Workbook

Sheet Main
BE1: -100
Q2: listref | R2: caps nF | S2: resistors k | T2: pots k | V2: component | W2: list ref | BE2: -100
Q3: 0 | R3: 0.0001 | S3: 0.0001 | T3: 50 | V3: c3 | W3: 0 | X3: =VLOOKUP((W3),$Q$3:$S$43,2) -> 0.0001 | BE3: -100
Q4: =Q3+1 -> 1 | R4: 0.1 | S4: =R4*10 -> 1 | T4: 60 | V4: r4 | W4: 40 | X4: =VLOOKUP((W4),$Q$3:$S$43,3) -> 1000000000000 | BE4: -100
A5: Main | B5: Fret | C5: Pick distance | D5: Bass cut | E5: =D6/10 -> 10 | F5: C6 | H5: C5 | J5: Treble bleed | N5: =IF(AS41,1,0) -> 0 | Q5: =Q4+1 -> 2 | R5: 0.12 | S5: 1.2 | T5: 80 | V5: r5 | W5: =Y5+IF(H16>300,1,0) -> 27 | X5: =VLOOKUP((W5),$Q$3:$S$43,3) -> 120 | Y5: 27 | BE5: -100
A6: =VLOOKUP((A17),A18:B30,2) -> Select PU | B6: 0 | C6: 110 | D6: 100 | E6: 500 | F6: =IF(Tone!B7=3,"k rev log",(IF(Tone!B7=1,"k lin","k log"))) -> k lin | G6: C3 | I6: C3 | K6: =X3 -> 0.0001 | L6: nF | N6: 0 | Q6: 3 | R6: 0.15 | S6: 1.5 | T6: 100 | V6: r2 | W6: 10 | X6: =VLOOKUP((W6),$Q$3:$T$43,4) -> 500 | BE6: -100
A7: ='Strings & Pickups'!C67 -> Texas Special | B7: ='Strings & Pickups'!E15 -> 1.120428071 | C7: db output | E7: =O8 -> 0 | I7: R4 | K7: =X4 -> 1000000000000 | L7: k | N7: bass pot | O7: =ABS(IF(Tone!B7=3,0,E6)-IF(Tone!B7=1,E6*(E5/10),IF(E5<5,E6*E5/50,E6*((E5-5)/5*0.9+0.1)))) -> 0 | Q7: 4 | R7: 0.18 | S7: 1.8 | T7: 125 | V7: r3 | W7: 7 | X7: =VLOOKUP((W7),$Q$3:$T$43,4) -> 250 | BE7: -100
A8: R1 | B8: ='Strings & Pickups'!E9 -> 6.34 | C8: k R1 C1 | E8: =X10 -> 2.2 | F8: nF | G8: R7 | I8: R5 | K8: =X5 -> 120 | L8: k | O8: =O7/E6 -> 0 | Q8: 5 | R8: 0.22 | S8: 2.2 | T8: 160 | V8: c2 | W8: 17 | X8: =VLOOKUP((W8),$Q$3:$S$43,2) -> 2.2 | BE8: -100
A9: L1 | B9: ='Strings & Pickups'!E10 -> 2.55 | C9: H | E9: Tone/treble | G9: R4 | H9: R5 | I9: C5 | K9: =X9 -> 1 | L9: nF | Q9: 6 | R9: 0.27 | S9: 2.7 | T9: 200 | V9: c5 | W9: 13 | X9: =VLOOKUP((W9),$Q$3:$S$43,2) -> 1 | BE9: -100
A10: C1 | B10: ='Strings & Pickups'!E11 -> 0.16 | C10: nF | D10: Rd | E10: =E11/10 -> 10 | I10: R7 | K10: =X11 -> 1000000000000 | L10: k | Q10: 7 | R10: 0.33 | S10: 3.3 | T10: 250 | V10: c6 | W10: 17 | X10: =VLOOKUP((W10),$Q$3:$S$43,2) -> 2.2 | BE10: -100
A11: Rd | B11: ='Strings & Pickups'!E12 -> 490 | C11: k L1 | E11: 100 | G11: Volume | J11: Output | Q11: 8 | R11: 0.39 | S11: 3.9 | T11: 300 | V11: r7 | W11: 40 | X11: =VLOOKUP((W11),$Q$3:$S$43,3) -> 1000000000000 | BE11: -100
A12: Select PU' option: Rl | B12: ='Strings & Pickups'!E13 -> 6200 | C12: k | D12: Rl | E12: =Tone!R4 -> 500 | F12: =IF(Tone!B13=1,"k lin", "k log") -> k log | L12: Load | Q12: 9 | R12: 0.47 | S12: 4.7 | T12: 400 | BE12: -100
A13: Ld | B13: ='Strings & Pickups'!E14 -> 12 | C13: H | D13: Ld | G13: Volume | H13: =G14/10 -> 10 | J13: C4 R6 | O13: db calc | Q13: 10 | R13: 0.56 | S13: 5.6 | T13: 500 | BE13: -100
E14: =100*Tone!R11/Tone!R4 -> 10000000000 | F14: R2% | G14: 100 | I14: NOT USED | K14: C4 | L14: 0.5 | M14: nF | N14: ref 0db | O14: 130 | P14: mv | Q14: 11 | R14: 0.68 | S14: 6.8 | T14: 600 | BE14: -100
G15: R3% | H15: =IF(Tone!B3=1,G14,(IF(G14<50,G14*0.2,(G14-50)/50*90+10))) -> 100 | I15: % | K15: R6 | L15: 1000 | M15: k | N15: ouput mv | O15: 220 | P15: mv | Q15: 12 | R15: 0.82 | S15: 8.2 | T15: 800 | X15: 5 | BE15: -100
C16: dcΩ(k) | D16: =1/(1/B8+1/B11+1/B12) -> 6.252703776 | E16: =X8*10 -> 22 | F16: nF | H16: =X7 -> 250 | I16: =IF(Tone!B3=1,"k lin","k log") -> k log | N16: db | O16: =20*LOG(O15/O14) -> 4.56958657 | P16: db | Q16: 13 | R16: 1 | S16: 10 | T16: 1000 | BE16: -100
A17: 13 | J17: Current (Red) trace: | L17: Tone control selection: | Q17: 14 | R17: =R5*10 -> 1.2 | S17: 12 | T17: 1250 | BE17: -100
A18: 1 | B18: ='Strings & Pickups'!F25 -> Shredder | J18: Freq. | K18: db | L18: =Tone!R3 -> No-load | Q18: 15 | R18: =R6*10 -> 1.5 | S18: 15 | T18: 1600 | BE18: -100
A19: 2 | B19: ='Strings & Pickups'!F26 -> HSS Strat | J19: 110 Hz | K19: =AX63 -> -5.459299206 | Q19: 16 | R19: =R7*10 -> 1.8 | S19: 18 | T19: 2000 | BE19: -100
A20: 3 | B20: ='Strings & Pickups'!F27 -> Strat Texas Specials | J20: 220 Hz | K20: =AX75 -> -2.622870173 | Q20: 17 | R20: 2.2 | S20: 20 | T20: 1000000000 | BE20: -100
A21: 4 | B21: ='Strings & Pickups'!F28 -> Strat Fat50 | J21: 440 Hz | K21: =AX87 -> -2.582264718 | Q21: 18 | R21: 2.7 | S21: =R20*10 -> 22 | BE21: -100
A22: 5 | B22: ='Strings & Pickups'!F29 -> Pearly Gates LP | J22: 880 Hz | K22: =AX99 -> -2.30192611 | Q22: 19 | R22: 3.3 | S22: 27 | BE22: -100
A23: 6 | B23: ='Strings & Pickups'!F30 -> Seth Lover LP | J23: 1760 Hz | K23: =AX111 -> -2.397914655 | Q23: 20 | R23: 3.9 | S23: 33 | BE23: -100
A24: 7 | B24: ='Strings & Pickups'!F31 -> Vintage Tele | J24: 3520 Hz | K24: =AX123 -> -4.66643051 | Q24: 21 | R24: 4.7 | S24: 39 | BE24: -100
A25: 8 | B25: ='Strings & Pickups'!F32 -> Hot Tele | J25: 7040 Hz | K25: =AX135 -> -23.5932742 | Q25: 22 | R25: 5.6 | S25: 47 | BE25: -100
A26: 9 | B26: ='Strings & Pickups'!F33 -> P90 LP | F26: 7 | J26: range: from Hz | K26: 400 | L26: to Hz | M26: 5000 | Q26: 23 | R26: 6.8 | S26: 56 | BE26: -100
A27: 10 | B27: ='Strings & Pickups'!F34 -> Gretsch Filtertrons | J27: Max db | K27: =AT36 -> -2.216952304 | L27: @ freq.(Hz) | M27: =AT37 -> 1108.730524 | Q27: 24 | R27: 8.2 | S27: 68 | BD27: ref freq | BE27: -100 | BF27: =110*2^(-10/12) -> 61.73541266 | BG27: =110*2^(-10/12) -> 61.73541266 | BH27: 61.73541266 | BI27: 61.73541266 | BJ27: 61.73541266 | BK27: 61.73541266 | BL27: 61.73541266
A28: 11 | B28: ='Strings & Pickups'!F35 -> Gretsch w/TV Jones Classics | J28: Min db | K28: =AT39 -> -15.3755275 | L28: @ freq.(Hz) | M28: =AT40 -> 4978.03174 | Q28: 25 | R28: 10 | S28: 82 | BD28: F0 | BE28: -100 | BF28: ='Strings & Pickups'!B58 -> 61.73541266 | BG28: ='Strings & Pickups'!B59 -> 82.40688923 | BH28: ='Strings & Pickups'!B60 -> 110 | BI28: ='Strings & Pickups'!B61 -> 146.832384 | BJ28: ='Strings & Pickups'!B62 -> 195.997718 | BK28: ='Strings & Pickups'!B63 -> 246.9416506 | BL28: ='Strings & Pickups'!B64 -> 329.6275569
A29: 12 | B29: ='Strings & Pickups'!F36 -> P/J Bass | J29: diff.max-min (all traces wrt. Reference) db | M29: =Chart!AG102 -> 43.81942674 | Q29: 26 | R29: 12 | S29: 100 | BD29: F0 offset | BE29: -100 | BF29: =INT((LOG(BF28/BF27))/LOG(2^(1/12))+0.5) -> 0 | BG29: 5 | BH29: 10 | BI29: 15 | BJ29: 20 | BK29: 24 | BL29: 29
A30: 13 | B30: ='Strings & Pickups'!F37 -> Select PU | J30: Strings | K30: Legend: | L30: Envelope | Q30: 27 | R30: 15 | S30: 120 | BD30: fret offset | BE30: -100
Q31: 28 | R31: 18 | S31: 150 | BD31: Offset | BE31: -100 | BF31: =-BF29-BF30 -> 0 | BG31: =-BG29-BG30 -> -5 | BH31: -10 | BI31: -15 | BJ31: -20 | BK31: -24 | BL31: -29
Q32: 29 | R32: 22 | S32: 180 | BE32: -100
Q33: 30 | R33: 27 | S33: 220 | BE33: -100
K34: GuitarFreak | Q34: 31 | R34: 33 | S34: 270 | BE34: -100
K35: ver 6.6.0 | L35: ©J Hewitt | M35: 2019-12-01 | Q35: 32 | R35: 39 | S35: 330 | AS35: Vol match | AT35: max vol | BE35: -100
D36: Z ref freq | E36: 440 | G36: 4 | Q36: 33 | R36: =R24*10 -> 47 | S36: 390 | AS36: FALSE | AT36: =MAX(AV46:AV142) -> -2.216952304 | AU36: db | BE36: -100
Q37: 34 | R37: 56 | S37: 470 | AS37: 440hz diff | AT37: =VLOOKUP(AT36,AV46:AW142,2,FALSE) -> 1108.730524 | AU37: hz | AV37: 2 | BD37: db adj | BE37: -100
Q38: 35 | R38: 68 | S38: 560 | AS38: =AX87-AY87 -> -2.582264718 | AT38: min vol | AV38: Full response | AX38: =IF(AV$37=1,1,0) -> 0 | BD38: =G36 -> 4 | BE38: -100
Q39: 36 | R39: 82 | S39: 680 | AT39: =MIN(AZ46:AZ142) -> -15.3755275 | AU39: db | AV39: Envelope | AX39: =IF(AV$37=2,1,0) -> 1 | BD39: =G36 -> 4 | BE39: -100 | BF39: =IF(BF44,1,"") ->  | BG39: 1 | BH39: 1 | BI39: 1 | BJ39: 1 | BK39: 1 | BL39: 1 | BM39: min F
F40: =AW123 -> 3520 | G40: =AX123 -> -4.66643051 | Q40: 37 | R40: 100 | S40: 820 | AO40: elect db | AS40: string factor | AT40: =VLOOKUP(AT39,AV46:AW142,2,FALSE) -> 4978.03174 | AU40: hz | AV40: Smooth env. | AX40: =IF(AV$37=3,1,0) -> 0 | BD40: =G36 -> 4 | BE40: -100 | BF40: =IF(BF39=1,BF28,"") ->  | BG40: =IF(BG39=1,BG28,"") -> 82.40688923 | BH40: 110 | BI40: 146.832384 | BJ40: 195.997718 | BK40: 246.9416506 | BL40: 329.6275569 | BM40: =MIN(BF40:BL40) -> 82.40688923 | BS40: Pickup impedance
B41: =J27 -> Max db | C41: =K27 -> -2.216952304 | D41: =L27 -> @ freq.(Hz) | E41: =M27 -> 1108.730524 | F41: =AW124 -> 3729.310092 | G41: =AX124 -> -5.737005315 | Q41: 38 | R41: 120 | S41: 1000 | AO41: TRUE | AS41: FALSE | AV41: Electrical only | AX41: =IF(AV$37=4,1,0) -> 0 | BD41: 0 | BE41: -100
Q42: 39 | R42: 150 | S42: 1200 | T42: 125 | U42: 50's multiplier | V42: =1-AF43 -> 0 | AF42: Modern tone multiplier | AO42: =IF(AX42=0,1,0) -> 1 | AS42: =IF(AS41,1,0) -> 0 | AV42: Strings & PU's only | AX42: =IF(AV$37=5,1,0) -> 0 | BD42: =G36 -> 4 | BE42: -100
A43: freq | B43: Pickup | E43: Tone | J43: Treb Bleed +Vol upper | Q43: 40 | R43: 1800 | S43: 1000000000000 | U43: Vol lower+50's tone | Z43: Vol +Tbass | AF43: 1 | AK43: Total Impedance | AS43: =IF(AS41,0,1) -> 1 | BD43: =AX38*BD38+AX39*BD39+AX40*BD40+AX41*BD41+AX42*BD42 -> 4 | BE43: -100 | BF43: 7 | BG43: 6 | BH43: 5 | BI43: 4 | BJ43: 3 | BK43: 2 | BL43: 1 | BS43: 1/Coil impedance | BV43: 1/C1 | BW43: 1/A+1/C1
B44: L1+R1=A | D44: 1/c1 | E44: see tone page | G44: 1/tone=C | J44: 1/(R3t+R5)=D | K44: 1/c3+1/r7=W | M44: 1/W | P44: C3//R7+R4 | R44: 1/(c3+R4) +1/C5=E | U44: D+E | W44: 1/(D+E)=F | Z44: 1/(R3l+R6)=G | AA44: 1/C4=H | AB44: 1/(G+H) = K | AE44: F+K+TBass=L | AH44: 1/L=M | AK44: B+C+M+V=N | AM44: 1/N=P | AP44: A+P | AS44: V1 | AT44: Vout | AW44: freq | AX44: Output db | BA44: =AX38+AX42 -> 0 | BB44: =IF(BA44=0,1,0)*ABS(AX41-1) -> 1 | BC44: =(BA44+BB44)*AX39+BA44 -> 1 | BD44: =(BA44+BB44)*AX40 -> 0 | BE44: -100 | BF44: FALSE | BG44: TRUE | BH44: TRUE | BI44: TRUE | BJ44: TRUE | BK44: TRUE | BL44: TRUE | BN44: =AX41 -> 0 | BO44: total db adjust | BQ44: Rd | BR44: Ld | BS44: 1/(Rd+Ld)+1/Rl=V | BX44: =G147 -> 1/(R1+L1)=1/A | CB44: =1/PU imped | CD44: Impedance
A45: Hz | C45: j | D45: j | F45: j | G45: mag | I45: j | K45: 1/r7 | L45: 1/c3 | M45: mag | O45: j | Q45: j | R45: mag | T45: j | V45: j | W45: mag | Y45: j | AA45: j | AB45: mag | AD45: j | AF45: j | AG45: mag | AH45: mag | AJ45: j | AL45: j | AM45: mag | AO45: j | AQ45: j | AR45: mag | BA45: string harms | BB45: string env | BC45: PU env | BD45: PU smth env | BE45: -100 | BN45: elect only | BR45: j | BS45: mag 1/(Rd+Ld) | BU45: j | BX45: Mag | BZ45: =I148 -> j | CA45: j | CD45: mag | CF45: j
A46: =440/2^(3+5/12) -> 41.20344461 | B46: =$B$8*1000 -> 6340 | C46: =2*PI()*A46*$B$9 -> 660.1666384 | D46: =2*PI()*$B$10*0.000000001*$A46 -> 4.142222045e-08 | E46: =Tone!BA47 -> 4.761904762e+13 | F46: =Tone!BB47 -> -168011.0274 | G46: =1/(E46^2+F46^2)^0.5 -> 2.1e-14 | H46: =E46*G46^2 -> 2.1e-14 | I46: =-F46*G46^2 -> 7.40928631e-23 | J46: =(1/($H$16*1000*(100.00000001-$H$15)/100)+1/$K$8/1000) -> 40000.02512 | K46: =1/$K$10/1000 -> 1e-15 | L46: =2*PI()*$K$6*0.000000001*$A46 -> 2.588888778e-11 | M46: =1/(K46^2+L46^2)^0.5 -> 3.862661107e+10 | N46: =K46*M46^2 -> 1492015.083 | O46: =-L46*M46^2 -> -3.862661104e+10 | P46: =$K$7*1000+N46 -> 1.000000001e+15 | Q46: =O46 -> -3.862661104e+10 | R46: =1/(P46^2+Q46^2)^0.5 -> 9.999999978e-16 | S46: =P46*R46^2 -> 9.99999997e-16 | T46: =-Q46*R46^2+2*PI()*A46*$K$9*0.000000001 -> 2.588888778e-07 | U46: =J46+S46 -> 40000.02512 | V46: =T46 -> 2.588888778e-07 | W46: =1/(U46^2+V46^2)^0.5 -> 2.49999843e-05 | X46: =U46*W46^2 -> 2.49999843e-05 | Y46: =-V46*W46^2 -> -1.618053454e-16 | Z46: =1/($H$16*1000*$H$15/100)+H46*$V$42 -> 4e-06 | AA46: =I46*$V$42 -> 0 | AB46: =1/(Z46^2+AA46^2)^0.5 -> 250000 | AC46: =Z46*AB46^2 -> 250000 | AD46: =-AA46*AB46^2 -> 0 | AE46: =X46+AC46+E149 -> 250000 | AF46: =Y46+AD46+F149 -> -1.623749009e-16 | AG46: =(AE46^2+AF46^2)^0.5 -> 250000 | AH46: =1/(AE46^2+AF46^2)^0.5 -> 4e-06 | AI46: =AE46*AH46^2 -> 4e-06 | AJ46: =-AF46*AH46^2 -> 2.597998414e-27 | AK46: =H46*$AF$43+AI46+BT46 -> 6.202024638e-06 | AL46: =+D46+I46*$AF$43+AJ46+BU46 -> 2.848368792e-08 | AM46: =1/(AK46^2+AL46^2)^0.5 -> 161235.9693 | AN46: =AK46*AM46^2 -> 161234.2689 | AO46: =-AL46*AM46^2 -> -740.4915114 | AP46: =B46+AN46 -> 167574.2689 | AQ46: =C46+AO46 -> -80.32487301 | AR46: =(AP46^2+AQ46^2)^0.5 -> 167574.2881 | AS46: =AM46/AR46 -> 0.9621760658 | AT46: =AS46*AB46/AG46 -> 0.9621760657 | AU46: =IF($AO$42=0,1,AK149) -> 0.9564139037 | AV46: =IF(AY46,-1000,AX46) -> -1000 | AW46: =A46 -> 41.20344461 | AX46: =IF(AW46<$BM$40,NA(),20*LOG(AU46)+BO46) ->  | AY46: =OR(AW46<$K$26,AW46>$M$26,ISNA(AX46)) -> TRUE | AZ46: =IF(AV46=-1000,1000,AV46) -> 1000 | BA46: =Strings!H62 -> -50 | BB46: =Strings!B62 -> -100 | BC46: =harmonics!BA21 -> -100 | BD46: =harmonics!BB21 -> -100 | BE46: -100 | BF46: =IF(BF$44,OFFSET($BE46,BF$31,0),-100) -> -100 | BG46: -100 | BH46: -100 | BI46: -100 | BJ46: -100 | BK46: -100 | BL46: -100 | BM46: =IF(MAX(BF46:BL46)<-80,#N/A,(MAX(BF46:BL46))) ->  | BN46: =$B$7 -> 1.120428071 | BO46: =BM46+BN46*$BN$44+$BD$43 ->  | BQ46: =$B$11*1000 -> 490000 | BR46: =2*PI()*$B$13*A46 -> 3106.666534 | BS46: =1/(BQ46^2+BR46^2)^0.5 -> 2.04077531e-06 | BT46: =BQ46*BS46^2+1/$B$12/1000 -> 2.202024617e-06 | BU46: =-BR46*BS46^2 -> -1.293853252e-08 | BX46: 0.0001568805126 | BY46: =H149 -> 0.0001560368799 | BZ46: -1.624768808e-05 | CA46: =D46 -> 4.142222045e-08 | CB46: =BY46 -> 0.0001560368799 | CC46: =BZ46+CA46 -> -1.620626586e-05 | CD46: =1/(CB46^2+CC46^2)^0.5 -> 6374.452091 | CE46: =CB46*CD46^2 -> 6340.346319 | CF46: =-CC46*CD46^2 -> 658.519564
A47: =A46*2^(1/12) -> 43.65352893 | B47: =$B$8*1000 -> 6340 | C47: =2*PI()*A47*$B$9 -> 699.4221895 | D47: 4.388531385e-08 | E47: =Tone!BA48 -> 4.761904762e+13 | F47: =Tone!BB48 -> -158581.2931 | G47: =1/(E47^2+F47^2)^0.5 -> 2.1e-14 | H47: =E47*G47^2 -> 2.1e-14 | I47: =-F47*G47^2 -> 6.993435024e-23 | J47: 40000.02512 | K47: =1/$K$10/1000 -> 1e-15 | L47: =2*PI()*$K$6*0.000000001*$A47 -> 2.742832116e-11 | M47: =1/(K47^2+L47^2)^0.5 -> 3.645866598e+10 | N47: =K47*M47^2 -> 1329234.325 | O47: =-L47*M47^2 -> -3.645866595e+10 | P47: =$K$7*1000+N47 -> 1.000000001e+15 | Q47: =O47 -> -3.645866595e+10 | R47: =1/(P47^2+Q47^2)^0.5 -> 9.99999998e-16 | S47: =P47*R47^2 -> 9.999999973e-16 | T47: 2.742832116e-07 | U47: 40000.02512 | V47: =T47 -> 2.742832116e-07 | W47: =1/(U47^2+V47^2)^0.5 -> 2.49999843e-05 | X47: =U47*W47^2 -> 2.49999843e-05 | Y47: =-V47*W47^2 -> -1.714267919e-16 | Z47: 4e-06 | AA47: 0 | AB47: =1/(Z47^2+AA47^2)^0.5 -> 250000 | AC47: =Z47*AB47^2 -> 250000 | AD47: =-AA47*AB47^2 -> 0 | AE47: 250000 | AF47: -1.72030215e-16 | AG47: =(AE47^2+AF47^2)^0.5 -> 250000 | AH47: =1/(AE47^2+AF47^2)^0.5 -> 4e-06 | AI47: =AE47*AH47^2 -> 4e-06 | AJ47: =-AF47*AH47^2 -> 2.752483439e-27 | AK47: 6.202014592e-06 | AL47: 3.017748362e-08 | AM47: =1/(AK47^2+AL47^2)^0.5 -> 161236.0222 | AN47: =AK47*AM47^2 -> 161234.1135 | AO47: =-AL47*AM47^2 -> -784.525697 | AP47: 167574.1135 | AQ47: -85.10350754 | AR47: =(AP47^2+AQ47^2)^0.5 -> 167574.1352 | AS47: =AM47/AR47 -> 0.9621772599 | AT47: =AS47*AB47/AG47 -> 0.9621772598 | AU47: 0.9564238663 | AV47: =IF(AY47,-1000,AX47) -> -1000 | AW47: 43.65352893 | AY47: =OR(AW47<$K$26,AW47>$M$26,ISNA(AX47)) -> TRUE | AZ47: =IF(AV47=-1000,1000,AV47) -> 1000 | BA47: =Strings!E63 -> -50 | BB47: =Strings!B63 -> -100 | BC47: =harmonics!BA22 -> -100 | BD47: =harmonics!BB22 -> -100 | BE47: -100 | BF47: -100 | BG47: -100 | BH47: -100 | BI47: -100 | BJ47: -100 | BK47: -100 | BL47: -100 | BM47: =IF(MAX(BF47:BL47)<-80,#N/A,(MAX(BF47:BL47))) ->  | BN47: 1.120428071 | BQ47: 490000 | BR47: 3291.398539 | BS47: =1/(BQ47^2+BR47^2)^0.5 -> 2.040770287e-06 | BT47: 2.202014572e-06 | BU47: =-BR47*BS47^2 -> -1.370783023e-08 | BX47: 0.0001567775788 | BY47: 0.0001558321865 | BZ47: -1.719124433e-05 | CA47: 4.388531385e-08 | CB47: =BY47 -> 0.0001558321865 | CC47: =BZ47+CA47 -> -1.714735902e-05 | CD47: =1/(CB47^2+CC47^2)^0.5 -> 6378.658633 | CE47: =CB47*CD47^2 -> 6340.388732 | CF47: =-CC47*CD47^2 -> 697.6794997
A48: 46.24930284 | B48: 6340 | C48: 741.0119972 | D48: 4.649487041e-08 | E48: =Tone!BA49 -> 4.761904762e+13 | F48: =Tone!BB49 -> -149680.809 | G48: 2.1e-14 | H48: 2.1e-14 | I48: 6.600923676e-23 | J48: 40000.02512 | K48: =1/$K$10/1000 -> 1e-15 | L48: =2*PI()*$K$6*0.000000001*$A48 -> 2.905929401e-11 | M48: =1/(K48^2+L48^2)^0.5 -> 3.441239829e+10 | N48: =K48*M48^2 -> 1184213.156 | O48: =-L48*M48^2 -> -3.441239827e+10 | P48: =$K$7*1000+N48 -> 1.000000001e+15 | Q48: =O48 -> -3.441239827e+10 | R48: 9.999999982e-16 | S48: 9.999999976e-16 | T48: 2.905929401e-07 | U48: 40000.02512 | V48: 2.905929401e-07 | W48: 2.49999843e-05 | X48: 2.49999843e-05 | Y48: -1.816203594e-16 | Z48: 4e-06 | AA48: 0 | AB48: 250000 | AC48: 250000 | AD48: 0 | AE48: 250000 | AF48: -1.822596639e-16 | AG48: 250000 | AH48: 4e-06 | AI48: 4e-06 | AJ48: 2.916154622e-27 | AK48: 6.202003317e-06 | AL48: 3.197201042e-08 | AM48: 161236.0816 | AN48: 161233.9392 | AO48: -831.1787209 | AP48: 167573.9392 | AQ48: -90.16672369 | AR48: 167573.9634 | AS48: 0.9621786002 | AT48: 0.9621786001 | AU48: 0.9564350491 | AV48: -1000 | AW48: 46.24930284 | AY48: TRUE | AZ48: 1000 | BA48: =Strings!E64 -> -50 | BB48: =Strings!B64 -> -100 | BC48: =harmonics!BA23 -> -100 | BD48: =harmonics!BB23 -> -100 | BE48: -100 | BF48: -100 | BG48: -100 | BH48: -100 | BI48: -100 | BJ48: -100 | BK48: -100 | BL48: -100 | BN48: 1.120428071 | BQ48: 490000 | BR48: 3487.115281 | BS48: 2.040764649e-06 | BT48: 2.202003296e-06 | BU48: -1.452285999e-08 | BX48: 0.0001566622805 | BY48: 0.0001556030647 | BZ48: -1.818670942e-05 | CA48: 4.649487041e-08 | CB48: 0.0001556030647 | CC48: -1.814021455e-05 | CD48: 6383.377081 | CE48: 6340.436339 | CF48: 739.1684461
A49: 48.9994295 | B49: 6340 | C49: 785.0748635 | D49: 4.925959928e-08 | E49: =Tone!BA50 -> 4.761904762e+13 | F49: =Tone!BB50 -> -141279.8707 | G49: 2.1e-14 | H49: 2.1e-14 | I49: 6.230442298e-23 | J49: 40000.02512 | K49: 1e-15 | L49: 3.078724955e-11 | M49: 3.248097879e+10 | N49: 1055013.983 | O49: -3.248097877e+10 | P49: 1000000001055014 | Q49: -3.248097877e+10 | R49: 9.999999984e-16 | S49: 9.999999979e-16 | T49: 3.078724955e-07 | U49: 40000.02512 | V49: 3.078724955e-07 | W49: 2.49999843e-05 | X49: 2.49999843e-05 | Y49: -1.92420068e-16 | Z49: 4e-06 | AA49: 0 | AB49: 250000 | AC49: 250000 | AD49: 0 | AE49: 250000 | AF49: -1.930973875e-16 | AG49: 250000 | AH49: 4e-06 | AI49: 4e-06 | AJ49: 3.089558199e-27 | AK49: 6.201990661e-06 | AL49: 3.387326052e-08 | AM49: 161236.1482 | AN49: 161233.7434 | AO49: -880.6063882 | AP49: 167573.7434 | AQ49: -95.53152477 | AR49: 167573.7707 | AS49: 0.9621801047 | AT49: 0.9621801046 | AU49: 0.9564476017 | AV49: -1000 | AW49: 48.9994295 | AY49: TRUE | AZ49: 1000 | BA49: =Strings!E65 -> -50 | BB49: =Strings!B65 -> -100 | BC49: =harmonics!BA24 -> -100 | BD49: =harmonics!BB24 -> -100 | BE49: -100 | BF49: -100 | BG49: -100 | BH49: -100 | BI49: -100 | BJ49: -100 | BK49: -100 | BL49: -100 | BN49: 1.120428071 | BQ49: 490000 | BR49: 3694.469946 | BS49: 2.040758321e-06 | BT49: 2.20199064e-06 | BU49: -1.538633876e-08 | BX49: 0.0001565331651 | BY49: 0.0001553466854 | BZ49: -1.923640029e-05 | CA49: 4.925959928e-08 | CB49: 0.0001553466854 | CC49: -1.918714069e-05 | CD49: 6388.669293 | CE49: 6340.489777 | CF49: 783.1249767
A50: 51.9130872 | B50: 6340 | C50: 831.7578442 | D50: 5.218872748e-08 | E50: =Tone!BA51 -> 4.761904762e+13 | F50: =Tone!BB51 -> -133350.4409 | G50: 2.1e-14 | H50: 2.1e-14 | I50: 5.880754442e-23 | J50: 40000.02512 | K50: 1e-15 | L50: 3.261795467e-11 | M50: 3.065796153e+10 | N50: 939910.6051 | O50: -3.065796151e+10 | P50: 1.000000001e+15 | Q50: -3.065796151e+10 | R50: 9.999999986e-16 | S50: 9.999999981e-16 | T50: 3.261795467e-07 | U50: 40000.02512 | V50: 3.261795467e-07 | W50: 2.49999843e-05 | X50: 2.49999843e-05 | Y50: -2.038619607e-16 | Z50: 4e-06 | AA50: 0 | AB50: 250000 | AC50: 250000 | AD50: 0 | AE50: 250000 | AF50: -2.045795557e-16 | AG50: 250000 | AH50: 4e-06 | AI50: 4e-06 | AJ50: 3.27327289e-27 | AK50: 6.201976455e-06 | AL50: 3.588758288e-08 | AM50: 161236.223 | AN50: 161233.5237 | AO50: -932.9737846 | AP50: 167573.5237 | AQ50: -101.2159405 | AR50: 167573.5543 | AS50: 0.9621817935 | AT50: 0.9621817934 | AU50: 0.9564616918 | AV50: -1000 | AW50: 51.9130872 | AY50: TRUE | AZ50: 1000 | BA50: =Strings!E66 -> -50 | BB50: =Strings!B66 -> -100 | BC50: =harmonics!BA25 -> -100 | BD50: =harmonics!BB25 -> -100 | BE50: -100 | BF50: -100 | BG50: -100 | BH50: -100 | BI50: -100 | BJ50: -100 | BK50: -100 | BL50: -100 | BN50: 1.120428071 | BQ50: 490000 | BR50: 3914.154561 | BS50: 2.040751218e-06 | BT50: 2.201976434e-06 | BU50: -1.63011446e-08 | BX50: 0.0001563886175 | BY50: 0.000155059914 | BZ50: -2.034263403e-05 | CA50: 5.218872748e-08 | CB50: 0.000155059914 | CC50: -2.02904453e-05 | CD50: 6394.60449 | CE50: 6340.54976 | CF50: 829.6959208
A51: 55 | B51: 6340 | C51: 881.2167393 | D51: 5.52920307e-08 | E51: =Tone!BA52 -> 4.761904762e+13 | F51: =Tone!BB52 -> -125866.0557 | G51: 2.1e-14 | H51: 2.1e-14 | I51: 5.550693057e-23 | J51: 40000.02512 | K51: 1e-15 | L51: 3.455751919e-11 | M51: 2.893726237e+10 | N51: 837365.1534 | O51: -2.893726236e+10 | P51: 1.000000001e+15 | Q51: -2.893726236e+10 | R51: 9.999999987e-16 | S51: 9.999999983e-16 | T51: 3.455751919e-07 | U51: 40000.02512 | V51: 3.455751919e-07 | W51: 2.49999843e-05 | X51: 2.49999843e-05 | Y51: -2.159842237e-16 | Z51: 4e-06 | AA51: 0 | AB51: 250000 | AC51: 250000 | AD51: 0 | AE51: 250000 | AF51: -2.167444891e-16 | AG51: 250000 | AH51: 4e-06 | AI51: 4e-06 | AJ51: 3.467911824e-27 | AK51: 6.20196051e-06 | AL51: 3.802170455e-08 | AM51: 161236.3069 | AN51: 161233.2771 | AO51: -988.4558302 | AP51: 167573.2771 | AQ51: -107.2390909 | AR51: 167573.3114 | AS51: 0.9621836892 | AT51: 0.9621836891 | AU51: 0.9564775079 | AV51: -1000 | AW51: 55 | AY51: TRUE | AZ51: 1000 | BA51: =Strings!E67 -> -50 | BB51: =Strings!B67 -> -100 | BC51: =harmonics!BA26 -> -100 | BD51: =harmonics!BB26 -> -12.91151643 | BE51: -100 | BF51: -100 | BG51: -100 | BH51: -100 | BI51: -100 | BJ51: -100 | BK51: -100 | BL51: -100 | BN51: 1.120428071 | BQ51: 490000 | BR51: 4146.902303 | BS51: 2.040743245e-06 | BT51: 2.201960489e-06 | BU51: -1.727032615e-08 | BX51: 0.0001562268443 | BY51: 0.0001547392825 | BZ51: -2.150770441e-05 | CA51: 5.52920307e-08 | CB51: 0.0001547392825 | CC51: -2.145241238e-05 | CD51: 6401.2601 | CE51: 6340.61709 | CF51: 879.0368571
A52: 58.27047019 | B52: 6340 | C52: 933.6166135 | D52: 5.857986594e-08 | E52: =Tone!BA53 -> 4.761904762e+13 | F52: =Tone!BB53 -> -118801.7368 | G52: 2.1e-14 | H52: 2.1e-14 | I52: 5.239156594e-23 | J52: 40000.02512 | K52: 1e-15 | L52: 3.661241621e-11 | M52: 2.731313863e+10 | N52: 746007.5418 | O52: -2.731313862e+10 | P52: 1.000000001e+15 | Q52: -2.731313862e+10 | R52: 9.999999989e-16 | S52: 9.999999985e-16 | T52: 3.661241621e-07 | U52: 40000.02512 | V52: 3.661241621e-07 | W52: 2.49999843e-05 | X52: 2.49999843e-05 | Y52: -2.288273139e-16 | Z52: 4e-06 | AA52: 0 | AB52: 250000 | AC52: 250000 | AD52: 0 | AE52: 250000 | AF52: -2.296327871e-16 | AG52: 250000 | AH52: 4e-06 | AI52: 4e-06 | AJ52: 3.674124593e-27 | AK52: 6.201942612e-06 | AL52: 4.028275323e-08 | AM52: 161236.4012 | AN52: 161233.0002 | AO52: -1047.237868 | AP52: 167573.0002 | AQ52: -113.6212548 | AR52: 167573.0387 | AS52: 0.962185817 | AT52: 0.9621858169 | AU52: 0.9564952614 | AV52: -1000 | AW52: 58.27047019 | AY52: TRUE | AZ52: 1000 | BA52: =Strings!E68 -> -50 | BB52: =Strings!B68 -> -100 | BC52: =harmonics!BA27 -> -100 | BD52: =harmonics!BB27 -> -12.4173055 | BE52: -100 | BF52: -100 | BG52: -100 | BH52: -100 | BI52: -100 | BJ52: -100 | BK52: -100 | BL52: -100 | BN52: 1.120428071 | BQ52: 490000 | BR52: 4393.489946 | BS52: 2.040734296e-06 | BT52: 2.201942592e-06 | BU52: -1.829711271e-08 | BX52: 0.0001560458567 | BY52: 0.0001543809616 | BZ52: -2.27338534e-05 | CA52: 5.857986594e-08 | CB52: 0.0001543809616 | CC52: -2.267527354e-05 | CD52: 6408.722705 | CE52: 6340.692666 | CF52: 931.3126379
A53: 61.73541266 | B53: 6340 | C53: 989.1323462 | D53: 6.206320604e-08 | E53: =Tone!BA54 -> 4.761904762e+13 | F53: =Tone!BB54 -> -112133.9077 | G53: 2.1e-14 | H53: 2.1e-14 | I53: 4.945105329e-23 | J53: 40000.02512 | K53: 1e-15 | L53: 3.878950377e-11 | M53: 2.578016995e+10 | N53: 664617.1628 | O53: -2.578016994e+10 | P53: 1.000000001e+15 | Q53: -2.578016994e+10 | R53: 9.99999999e-16 | S53: 9.999999987e-16 | T53: 3.878950377e-07 | U53: 40000.02512 | V53: 3.878950377e-07 | W53: 2.49999843e-05 | X53: 2.49999843e-05 | Y53: -2.424340941e-16 | Z53: 4e-06 | AA53: 0 | AB53: 250000 | AC53: 250000 | AD53: 0 | AE53: 250000 | AF53: -2.432874632e-16 | AG53: 250000 | AH53: 4e-06 | AI53: 4e-06 | AJ53: 3.89259941e-27 | AK53: 6.201922523e-06 | AL53: 4.267828123e-08 | AM53: 161236.5069 | AN53: 161232.6894 | AO53: -1109.516289 | AP53: 167572.6894 | AQ53: -120.3839424 | AR53: 167572.7326 | AS53: 0.9621882054 | AT53: 0.9621882053 | AU53: 0.9565151898 | AV53: =IF(AY53,-1000,AX53) -> -1000 | AW53: 61.73541266 | AY53: =OR(AW53<$K$26,AW53>$M$26,ISNA(AX53)) -> TRUE | AZ53: =IF(AV53=-1000,1000,AV53) -> 1000 | BA53: =Strings!E69 -> 1.525615166 | BB53: =Strings!B69 -> 1.497659428 | BC53: =harmonics!BA28 -> -12.91151643 | BD53: =harmonics!BB28 -> -11.92401649 | BE53: =(BA53*$BA$44+BB53*$BB$44+BC53*$BC$44+BD53*$BD$44) -> -11.413857 | BF53: -100 | BG53: -100 | BH53: -100 | BI53: -100 | BJ53: -100 | BK53: -100 | BL53: -100 | BN53: 1.120428071 | BQ53: 490000 | BR53: 4654.740453 | BS53: 2.040724251e-06 | BT53: 2.201922503e-06 | BU53: -1.938492481e-08 | BX53: 0.0001558434524 | BY53: 0.0001539807317 | BZ53: -2.402323698e-05 | CA53: 6.206320604e-08 | CB53: 0.0001539807317 | CC53: -2.396117378e-05 | CD53: 6417.089069 | CE53: 6340.777499 | CF53: 986.6979446
A54: 65.40639133 | B54: 6340 | C54: 1047.949216 | D54: 6.575367632e-08 | E54: =Tone!BA55 -> 4.761904762e+13 | F54: =Tone!BB55 -> -105840.315 | G54: 2.1e-14 | H54: 2.1e-14 | I54: 4.667557893e-23 | J54: 40000.02512 | K54: 1e-15 | L54: 4.10960477e-11 | M54: 2.43332402e+10 | N54: 592106.5784 | O54: -2.433324019e+10 | P54: 1.000000001e+15 | Q54: -2.433324019e+10 | R54: 9.999999991e-16 | S54: 9.999999988e-16 | T54: 4.10960477e-07 | U54: 40000.02512 | V54: 4.10960477e-07 | W54: 2.49999843e-05 | X54: 2.49999843e-05 | Y54: -2.568499755e-16 | Z54: 4e-06 | AA54: 0 | AB54: 250000 | AC54: 250000 | AD54: 0 | AE54: 250000 | AF54: -2.577540885e-16 | AG54: 250000 | AH54: 4e-06 | AI54: 4e-06 | AJ54: 4.124065416e-27 | AK54: 6.201899975e-06 | AL54: 4.521629083e-08 | AM54: 161236.6255 | AN54: 161232.3405 | AO54: -1175.49919 | AP54: 167572.3405 | AQ54: -127.5499739 | AR54: 167572.389 | AS54: 0.9621908864 | AT54: 0.9621908863 | AU54: 0.9565375594 | AV54: -1000 | AW54: 65.40639133 | AY54: TRUE | AZ54: 1000 | BA54: =Strings!E70 -> -50 | BB54: =Strings!B70 -> 1.486236064 | BC54: =harmonics!BA29 -> -12.4173055 | BD54: =harmonics!BB29 -> -11.43176302 | BE54: -10.93106943 | BF54: -100 | BG54: -100 | BH54: -100 | BI54: -100 | BJ54: -100 | BK54: -100 | BL54: -100 | BN54: 1.120428071 | BQ54: 490000 | BR54: 4931.525724 | BS54: 2.040712976e-06 | BT54: 2.201899954e-06 | BU54: -2.053738549e-08 | BX54: 0.0001556171968 | BY54: 0.0001535339536 | BZ54: -2.537788429e-05 | CA54: 6.575367632e-08 | CB54: 0.0001535339536 | CC54: -2.531213061e-05 | CD54: 6426.467287 | CE54: 6340.872723 | CF54: 1045.377877
A55: 69.29565774 | B55: 6340 | C55: 1110.263519 | D55: 6.966359337e-08 | E55: =Tone!BA56 -> 4.761904762e+13 | F55: =Tone!BB56 -> -99899.95462 | G55: 2.1e-14 | H55: 2.1e-14 | I55: 4.405587999e-23 | J55: 40000.02512 | K55: 1e-15 | L55: 4.353974586e-11 | M55: 2.296752037e+10 | N55: 527506.9918 | O55: -2.296752036e+10 | P55: 1000000000527507 | Q55: -2.296752036e+10 | R55: 9.999999992e-16 | S55: 9.999999989e-16 | T55: 4.353974586e-07 | U55: 40000.02512 | V55: 4.353974586e-07 | W55: 2.49999843e-05 | X55: 2.49999843e-05 | Y55: -2.721230698e-16 | Z55: 4e-06 | AA55: 0 | AB55: 250000 | AC55: 250000 | AD55: 0 | AE55: 250000 | AF55: -2.730809442e-16 | AG55: 250000 | AH55: 4e-06 | AI55: 4e-06 | AJ55: 4.369295107e-27 | AK55: 6.201874665e-06 | AL55: 4.790526127e-08 | AM55: 161236.7587 | AN55: 161231.9488 | AO55: -1245.407082 | AP55: 167571.9488 | AQ55: -135.1435629 | AR55: 167572.0033 | AS55: 0.9621938959 | AT55: 0.9621938958 | AU55: 0.9565626697 | AV55: -1000 | AW55: 69.29565774 | AY55: TRUE | AZ55: 1000 | BA55: =Strings!E71 -> -50 | BB55: =Strings!B71 -> 1.470233335 | BC55: =harmonics!BA30 -> -11.92401649 | BD55: =harmonics!BB30 -> -10.94067281 | BE55: -10.45378315 | BF55: -100 | BG55: -100 | BH55: -100 | BI55: -100 | BJ55: -100 | BK55: -100 | BL55: -100 | BN55: 1.120428071 | BQ55: 490000 | BR55: 5224.769503 | BS55: 2.040700321e-06 | BT55: 2.201874644e-06 | BU55: -2.175833211e-08 | BX55: 0.0001553644035 | BY55: 0.0001530355405 | BZ55: -2.67996495e-05 | CA55: 6.966359337e-08 | CB55: 0.0001530355405 | CC55: -2.67299859e-05 | CD55: 6436.978039 | CE55: 6340.979611 | CF55: 1107.54858
A56: 73.41619198 | B56: 6340 | C56: 1176.283224 | D56: 7.38060062e-08 | E56: =Tone!BA57 -> 4.761904762e+13 | F56: =Tone!BB57 -> -94293.001 | G56: 2.1e-14 | H56: 2.1e-14 | I56: 4.158321344e-23 | J56: 40000.02512 | K56: 1e-15 | L56: 4.612875388e-11 | M56: 2.16784525e+10 | N56: 469955.3028 | O56: -2.167845249e+10 | P56: 1e+15 | Q56: -2.167845249e+10 | R56: 9.999999993e-16 | S56: 9.999999991e-16 | T56: 4.612875388e-07 | U56: 40000.02512 | V56: 4.612875388e-07 | W56: 2.49999843e-05 | X56: 2.49999843e-05 | Y56: -2.883043496e-16 | Z56: 4e-06 | AA56: 0 | AB56: 250000 | AC56: 250000 | AD56: 0 | AE56: 250000 | AF56: -2.893191822e-16 | AG56: 250000 | AH56: 4e-06 | AI56: 4e-06 | AJ56: 4.629106914e-27 | AK56: 6.201846257e-06 | AL56: 5.075417726e-08 | AM56: 161236.9081 | AN56: 161231.5091 | AO56: -1319.47363 | AP56: 167571.5091 | AQ56: -143.190406 | AR56: 167571.5703 | AS56: 0.9621972739 | AT56: 0.9621972738 | AU56: 0.9565908563 | AV56: -1000 | AW56: 73.41619198 | AY56: TRUE | AZ56: 1000 | BA56: =Strings!E72 -> -50 | BB56: =Strings!B72 -> 1.44789985 | BC56: =harmonics!BA31 -> -11.43176302 | BD56: =harmonics!BB31 -> -10.45088947 | BE56: -9.983863166 | BF56: =IF(BF$44,OFFSET($BE56,BF$31,0),-100) -> -100 | BG56: -100 | BH56: -100 | BI56: -100 | BJ56: -100 | BK56: -100 | BL56: -100 | BN56: 1.120428071 | BQ56: 490000 | BR56: 5535.450465 | BS56: 2.040686116e-06 | BT56: 2.201846236e-06 | BU56: -2.305182894e-08 | BX56: 0.0001550821149 | BY56: 0.0001524799314 | BZ56: -2.82901554e-05 | CA56: 7.38060062e-08 | CB56: 0.0001524799314 | CC56: -2.821634939e-05 | CD56: 6448.755974 | CE56: 6341.099591 | CF56: 1173.417905
A57: 77.78174593 | B57: 6340 | C57: 1246.228664 | D57: 7.819473971e-08 | E57: =Tone!BA58 -> 4.761904762e+13 | F57: =Tone!BB58 -> -89000.74151 | G57: 2.1e-14 | H57: 2.1e-14 | I57: 3.924932701e-23 | J57: 40000.02512 | K57: 1e-15 | L57: 4.887171232e-11 | M57: 2.046173445e+10 | N57: 418682.5769 | O57: -2.046173445e+10 | P57: 1e+15 | Q57: -2.046173445e+10 | R57: 9.999999994e-16 | S57: 9.999999992e-16 | T57: 4.887171232e-07 | U57: 40000.02512 | V57: 4.887171232e-07 | W57: 2.49999843e-05 | X57: 2.49999843e-05 | Y57: -3.054478183e-16 | Z57: 4e-06 | AA57: 0 | AB57: 250000 | AC57: 250000 | AD57: 0 | AE57: 250000 | AF57: -3.06522996e-16 | AG57: 250000 | AH57: 4e-06 | AI57: 4e-06 | AJ57: 4.904367935e-27 | AK57: 6.201814371e-06 | AL57: 5.377255932e-08 | AM57: 161237.0758 | AN57: 161231.0155 | AO57: -1397.946444 | AP57: 167571.0155 | AQ57: -151.7177796 | AR57: 167571.0842 | AS57: 0.9622010658 | AT57: 0.9622010657 | AU57: 0.9566224965 | AV57: -1000 | AW57: 77.78174593 | AY57: TRUE | AZ57: 1000 | BA57: =Strings!E73 -> -50 | BB57: =Strings!B73 -> 1.416892378 | BC57: =harmonics!BA32 -> -10.94067281 | BD57: =harmonics!BB32 -> -9.962574481 | BE57: -9.523780432 | BF57: -100 | BG57: -100 | BH57: -100 | BI57: -100 | BJ57: -100 | BK57: -100 | BL57: -100 | BN57: 1.120428071 | BQ57: 490000 | BR57: 5864.605478 | BS57: 2.040670172e-06 | BT57: 2.20181435e-06 | BU57: -2.442218039e-08 | BX57: 0.0001547670822 | BY57: 0.0001518610674 | BZ57: -2.985072794e-05 | CA57: 7.819473971e-08 | CB57: 0.0001518610674 | CC57: -2.97725332e-05 | CD57: 6461.951215 | CE57: 6341.234269 | CF57: 1243.206116
A58: 82.40688923 | B58: 6340 | C58: 1320.333277 | D58: 8.28444409e-08 | E58: =Tone!BA59 -> 4.761904762e+13 | F58: =Tone!BB59 -> -84005.51372 | G58: 2.1e-14 | H58: 2.1e-14 | I58: 3.704643155e-23 | J58: 40000.02512 | K58: 1e-15 | L58: 5.177777556e-11 | M58: 1.931330554e+10 | N58: 373003.771 | O58: -1.931330554e+10 | P58: 1e+15 | Q58: -1.931330554e+10 | R58: 9.999999994e-16 | S58: 9.999999993e-16 | T58: 5.177777556e-07 | U58: 40000.02512 | V58: 5.177777556e-07 | W58: 2.49999843e-05 | X58: 2.49999843e-05 | Y58: -3.236106908e-16 | Z58: 4e-06 | AA58: 0 | AB58: 250000 | AC58: 250000 | AD58: 0 | AE58: 250000 | AF58: -3.247498019e-16 | AG58: 250000 | AH58: 4e-06 | AI58: 4e-06 | AJ58: 5.195996829e-27 | AK58: 6.201778581e-06 | AL58: 5.697049591e-08 | AM58: 161237.2639 | AN58: 161230.4613 | AO58: -1481.08792 | AP58: 167570.4613 | AQ58: -160.7546431 | AR58: 167570.5384 | AS58: 0.9622053223 | AT58: 0.9622053222 | AU58: 0.9566580137 | AV58: -1000 | AW58: 82.40688923 | AX58: -7.798722722 | AY58: TRUE | AZ58: 1000 | BA58: =Strings!E74 -> -50 | BB58: =Strings!B74 -> 1.374144885 | BC58: =harmonics!BA33 -> -10.45088947 | BD58: =harmonics!BB33 -> -9.475909494 | BE58: -9.076744583 | BF58: -100 | BG58: -11.413857 | BH58: -100 | BI58: -100 | BJ58: -100 | BK58: -100 | BL58: -100 | BM58: -11.413857 | BN58: 1.120428071 | BO58: -7.413856999 | BQ58: 490000 | BR58: 6213.333067 | BS58: 2.040652276e-06 | BT58: 2.20177856e-06 | BU58: -2.587394498e-08 | BX58: 0.0001544157468 | BY58: 0.0001511723729 | BZ58: -3.148232089e-05 | CA58: 8.28444409e-08 | CB58: 0.0001511723729 | CC58: -3.139947645e-05 | CD58: 6476.731014 | CE58: 6341.385445 | CF58: 1317.14664
A59: 87.30705786 | B59: 6340 | C59: 1398.844379 | D59: 8.77706277e-08 | E59: =Tone!BA60 -> 4.761904762e+13 | F59: =Tone!BB60 -> -79290.64653 | G59: 2.1e-14 | H59: 2.1e-14 | I59: 3.496717512e-23 | J59: 40000.02512 | K59: 1e-15 | L59: 5.485664231e-11 | M59: 1.8229333e+10 | N59: 332308.5815 | O59: -1.822933299e+10 | P59: 1e+15 | Q59: -1.822933299e+10 | R59: 9.999999995e-16 | S59: 9.999999993e-16 | T59: 5.485664231e-07 | U59: 40000.02512 | V59: 5.485664231e-07 | W59: 2.49999843e-05 | X59: 2.49999843e-05 | Y59: -3.428535838e-16 | Z59: 4e-06 | AA59: 0 | AB59: 250000 | AC59: 250000 | AD59: 0 | AE59: 250000 | AF59: -3.4406043e-16 | AG59: 250000 | AH59: 4e-06 | AI59: 4e-06 | AJ59: 5.504966878e-27 | AK59: 6.20173841e-06 | AL59: 6.035867756e-08 | AM59: 161237.4751 | AN59: 161229.8392 | AO59: -1569.17613 | AP59: 167569.8392 | AQ59: -170.331751 | AR59: 167569.9258 | AS59: 0.9622101001 | AT59: 0.9622101 | AU59: 0.9566978831 | AV59: -1000 | AW59: 87.30705786 | AX59: -7.315573172 | AY59: TRUE | AZ59: 1000 | BA59: =Strings!E75 -> -50 | BB59: =Strings!B75 -> 1.315767682 | BC59: =harmonics!BA34 -> -9.962574481 | BD59: =harmonics!BB34 -> -8.991098878 | BE59: -8.646806799 | BF59: -100 | BG59: -10.93106943 | BH59: -100 | BI59: -100 | BJ59: -100 | BK59: -100 | BL59: -100 | BM59: -10.93106943 | BN59: 1.120428071 | BO59: -6.931069432 | BQ59: 490000 | BR59: 6582.797078 | BS59: 2.040632188e-06 | BT59: 2.201738389e-06 | BU59: -2.741195014e-08 | BX59: 0.000154024222 | BY59: 0.0001504067425 | BZ59: -3.318543003e-05 | CA59: 8.77706277e-08 | CB59: 0.0001504067425 | CC59: -3.30976594e-05 | CD59: 6493.28154 | CE59: 6341.555141 | CF59: 1395.486855
A60: 92.49860568 | B60: 6340 | C60: 1482.023994 | D60: 9.298974082e-08 | E60: =Tone!BA61 -> 4.761904762e+13 | F60: =Tone!BB61 -> -74840.40449 | G60: 2.1e-14 | H60: 2.1e-14 | I60: 3.300461838e-23 | J60: 40000.02512 | K60: 1e-15 | L60: 5.811858801e-11 | M60: 1.720619915e+10 | N60: 296053.2893 | O60: -1.720619915e+10 | P60: 1e+15 | Q60: -1.720619915e+10 | R60: 9.999999996e-16 | S60: 9.999999994e-16 | T60: 5.811858801e-07 | U60: 40000.02512 | V60: 5.811858801e-07 | W60: 2.49999843e-05 | X60: 2.49999843e-05 | Y60: -3.632407188e-16 | Z60: 4e-06 | AA60: 0 | AB60: 250000 | AC60: 250000 | AD60: 0 | AE60: 250000 | AF60: -3.645193278e-16 | AG60: 250000 | AH60: 4e-06 | AI60: 4e-06 | AJ60: 5.832309243e-27 | AK60: 6.201693321e-06 | AL60: 6.394843305e-08 | AM60: 161237.7119 | AN60: 161229.1407 | AO60: -1662.505767 | AP60: 167569.1407 | AQ60: -180.4817729 | AR60: 167569.2379 | AS60: 0.9622154634 | AT60: 0.9622154633 | AU60: 0.9567426385 | AV60: -1000 | AW60: 92.49860568 | AX60: -6.837880564 | AY60: TRUE | AZ60: 1000 | BA60: =Strings!E76 -> -50 | BB60: =Strings!B76 -> 1.237032766 | BC60: =harmonics!BA35 -> -9.475909494 | BD60: =harmonics!BB35 -> -8.508372644 | BE60: -8.238876727 | BF60: -100 | BG60: -10.45378315 | BH60: -100 | BI60: -100 | BJ60: -100 | BK60: -100 | BL60: -100 | BM60: -10.45378315 | BN60: 1.120428071 | BO60: -6.45378315 | BQ60: 490000 | BR60: 6974.230562 | BS60: 2.040609642e-06 | BT60: 2.201693301e-06 | BU60: -2.904130777e-08 | BX60: 0.0001535882782 | BY60: 0.0001495565373 | BZ60: -3.495999634e-05 | CA60: 9.298974082e-08 | CB60: 0.0001495565373 | CC60: -3.48670066e-05 | CD60: 6511.80982 | CE60: 6341.745626 | CF60: 1478.488942
A61: 97.998859 | B61: 6340 | C61: 1570.149727 | D61: 9.851919855e-08 | E61: =Tone!BA62 -> 4.761904762e+13 | F61: =Tone!BB62 -> -70639.93535 | G61: 2.1e-14 | H61: 2.1e-14 | I61: 3.115221149e-23 | J61: 40000.02512 | K61: 1e-15 | L61: 6.15744991e-11 | M61: 1.62404894e+10 | N61: 263753.4959 | O61: -1.62404894e+10 | P61: 1e+15 | Q61: -1.62404894e+10 | R61: 9.999999996e-16 | S61: 9.999999995e-16 | T61: 6.15744991e-07 | U61: 40000.02512 | V61: 6.15744991e-07 | W61: 2.49999843e-05 | X61: 2.49999843e-05 | Y61: -3.84840136e-16 | Z61: 4e-06 | AA61: 0 | AB61: 250000 | AC61: 250000 | AD61: 0 | AE61: 250000 | AF61: -3.86194775e-16 | AG61: 250000 | AH61: 4e-06 | AI61: 4e-06 | AJ61: 6.179116398e-27 | AK61: 6.201642713e-06 | AL61: 6.77517679e-08 | AM61: 161237.9777 | AN61: 161228.3566 | AO61: -1761.389151 | AP61: 167568.3566 | AQ61: -191.2394242 | AR61: 167568.4657 | AS61: 0.9622214838 | AT61: 0.9622214837 | AU61: 0.9567928792 | AV61: -1000 | AW61: 97.998859 | AX61: -6.367504476 | AY61: TRUE | AZ61: 1000 | BA61: =Strings!E77 -> -50 | BB61: =Strings!B77 -> 1.132523463 | BC61: =harmonics!BA36 -> -8.991098878 | BD61: =harmonics!BB36 -> -8.027989738 | BE61: -7.858575415 | BF61: -100 | BG61: -9.983863166 | BH61: -100 | BI61: -100 | BJ61: -100 | BK61: -100 | BL61: -100 | BM61: -9.983863166 | BN61: 1.120428071 | BO61: -5.983863166 | BQ61: 490000 | BR61: 7388.939892 | BS61: 2.040584335e-06 | BT61: 2.201642693e-06 | BU61: -3.076743065e-08 | BX61: 0.0001531033298 | BY61: 0.0001486135917 | BZ61: -3.680529817e-05 | CA61: 9.851919855e-08 | CB61: 0.0001486135917 | CC61: -3.670677897e-05 | CD61: 6532.54583 | CE61: 6341.959448 | CF61: 1566.430776
A62: 103.8261744 | B62: 6340 | C62: 1663.515688 | D62: 1.04377455e-07 | E62: =Tone!BA63 -> 4.761904762e+13 | F62: =Tone!BB63 -> -66675.22043 | G62: 2.1e-14 | H62: 2.1e-14 | I62: 2.940377221e-23 | J62: 40000.02512 | K62: 1e-15 | L62: 6.523590935e-11 | M62: 1.532898077e+10 | N62: 234977.6514 | O62: -1.532898077e+10 | P62: 1e+15 | Q62: -1.532898077e+10 | R62: 9.999999996e-16 | S62: 9.999999995e-16 | T62: 6.523590935e-07 | U62: 40000.02512 | V62: 6.523590935e-07 | W62: 2.49999843e-05 | X62: 2.49999843e-05 | Y62: -4.077239213e-16 | Z62: 4e-06 | AA62: 0 | AB62: 250000 | AC62: 250000 | AD62: 0 | AE62: 250000 | AF62: -4.091591113e-16 | AG62: 250000 | AH62: 4e-06 | AI62: 4e-06 | AJ62: 6.54654578e-27 | AK62: 6.201585911e-06 | AL62: 7.178140516e-08 | AM62: 161238.2759 | AN62: 161227.4762 | AO62: -1866.157295 | AP62: 167567.4762 | AQ62: -202.6416069 | AR62: 167567.5987 | AS62: 0.9622282419 | AT62: 0.9622282418 | AU62: 0.956849278 | AV62: -1000 | AW62: 103.8261744 | AX62: -5.906909762 | AY62: TRUE | AZ62: 1000 | BA62: =Strings!E78 -> -50 | BB62: =Strings!B78 -> 0.9965266741 | BC62: =harmonics!BA37 -> -8.508372644 | BD62: =harmonics!BB37 -> -7.550241798 | BE62: -7.511845969 | BF62: -100 | BG62: -9.523780432 | BH62: -100 | BI62: -100 | BJ62: -100 | BK62: -100 | BL62: -100 | BM62: -9.523780432 | BN62: 1.120428071 | BO62: -5.523780432 | BQ62: 490000 | BR62: 7828.309122 | BS62: 2.04055593e-06 | BT62: 2.20158589e-06 | BU62: -3.25960498e-08 | BX62: 0.0001525644277 | BY62: 0.0001475692352 | BZ62: -3.871983247e-05 | CA62: 1.04377455e-07 | CB62: 0.0001475692352 | CC62: -3.861545502e-05 | CD62: 6555.74474 | CE62: 6342.199468 | CF62: 1659.606882
A63: 110 | B63: 6340 | C63: 1762.433479 | D63: 1.105840614e-07 | E63: =Tone!BA64 -> 4.761904762e+13 | F63: =Tone!BB64 -> -62933.02785 | G63: 2.1e-14 | H63: 2.1e-14 | I63: 2.775346528e-23 | J63: 40000.02512 | K63: 1e-15 | L63: 6.911503838e-11 | M63: 1.446863119e+10 | N63: 209341.2885 | O63: -1.446863119e+10 | P63: 1e+15 | Q63: -1.446863119e+10 | R63: 9.999999997e-16 | S63: 9.999999996e-16 | T63: 6.911503838e-07 | U63: 40000.02512 | V63: 6.911503838e-07 | W63: 2.49999843e-05 | X63: 2.49999843e-05 | Y63: -4.319684473e-16 | Z63: 4e-06 | AA63: 0 | AB63: 250000 | AC63: 250000 | AD63: 0 | AE63: 250000 | AF63: -4.334889782e-16 | AG63: 250000 | AH63: 4e-06 | AI63: 4e-06 | AJ63: 6.935823649e-27 | AK63: 6.201522156e-06 | AL63: 7.605082875e-08 | AM63: 161238.6104 | AN63: 161226.4877 | AO63: -1977.161041 | AP63: 167566.4877 | AQ63: -214.7275625 | AR63: 167566.6252 | AS63: 0.9622358282 | AT63: 0.9622358281 | AU63: 0.9569125906 | AV63: -1000 | AW63: 110 | AX63: -5.459299206 | AY63: TRUE | AZ63: 1000 | BA63: =Strings!E79 -> -50 | BB63: =Strings!B79 -> 0.8236958106 | BC63: =harmonics!BA38 -> -8.027989738 | BD63: =harmonics!BB38 -> -7.075457414 | BE63: -7.204293928 | BF63: -100 | BG63: -9.076744583 | BH63: -11.413857 | BI63: -100 | BJ63: -100 | BK63: -100 | BL63: -100 | BM63: -9.076744583 | BN63: 1.120428071 | BO63: -5.076744583 | BQ63: 490000 | BR63: 8293.804605 | BS63: 2.040524049e-06 | BT63: 2.201522135e-06 | BU63: -3.453323266e-08 | BX63: 0.000151966257 | BY63: 0.0001464143323 | BZ63: -4.070118627e-05 | CA63: 1.105840614e-07 | CB63: 0.0001464143323 | CC63: -4.059060221e-05 | CD63: 6581.68931 | CE63: 6342.468898 | CF63: 1758.329448
A64: 116.5409404 | B64: 6340 | C64: 1867.233227 | D64: 1.171597319e-07 | E64: =Tone!BA65 -> 4.761904762e+13 | F64: =Tone!BB65 -> -59400.86841 | G64: 2.1e-14 | H64: 2.1e-14 | I64: 2.619578297e-23 | J64: 40000.02512 | K64: 1e-15 | L64: 7.322483243e-11 | M64: 1.365656932e+10 | N64: 186501.8856 | O64: -1.365656932e+10 | P64: 1e+15 | Q64: -1.365656932e+10 | R64: 9.999999997e-16 | S64: 9.999999996e-16 | T64: 7.322483243e-07 | U64: 40000.02512 | V64: 7.322483243e-07 | W64: 2.49999843e-05 | X64: 2.49999843e-05 | Y64: -4.576546278e-16 | Z64: 4e-06 | AA64: 0 | AB64: 250000 | AC64: 250000 | AD64: 0 | AE64: 250000 | AF64: -4.592655742e-16 | AG64: 250000 | AH64: 4e-06 | AI64: 4e-06 | AJ64: 7.348249185e-27 | AK64: 6.201450598e-06 | AL64: 8.057432957e-08 | AM64: 161238.9857 | AN64: 161225.3777 | AO64: -2094.772266 | AP64: 167565.3777 | AQ64: -227.539039 | AR64: 167565.5322 | AS64: 0.9622443442 | AT64: 0.9622443441 | AU64: 0.9569836654 | AV64: -1000 | AW64: 116.5409404 | AX64: -5.028716301 | AY64: TRUE | AZ64: 1000 | BA64: =Strings!E80 -> -50 | BB64: =Strings!B80 -> 0.6098970758 | BC64: =harmonics!BA39 -> -7.550241798 | BD64: =harmonics!BB39 -> -6.604006986 | BE64: -6.940344722 | BF64: -100 | BG64: -8.646806799 | BH64: -10.93106943 | BI64: -100 | BJ64: -100 | BK64: -100 | BL64: -100 | BM64: -8.646806799 | BN64: 1.120428071 | BO64: -4.646806799 | BQ64: 490000 | BR64: 8786.979891 | BS64: 2.040488264e-06 | BT64: 2.201450577e-06 | BU64: -3.658540231e-08 | BX64: 0.0001513031423 | BY64: 0.0001451393432 | BZ64: -4.27458997e-05 | CA64: 1.171597319e-07 | CB64: 0.0001451393432 | CC64: -4.262873997e-05 | CD64: 6610.692421 | CE64: 6342.771344 | CF64: 1862.929406
A65: 123.4708253 | B65: 6340 | C65: 1978.264692 | D65: 1.241264121e-07 | E65: =Tone!BA66 -> 4.761904762e+13 | F65: =Tone!BB66 -> -56066.95384 | G65: 2.1e-14 | H65: 2.1e-14 | I65: 2.472552664e-23 | J65: 40000.02512 | K65: 1e-15 | L65: 7.757900755e-11 | M65: 1.289008498e+10 | N65: 166154.2908 | O65: -1.289008498e+10 | P65: 1e+15 | Q65: -1.289008498e+10 | R65: 9.999999998e-16 | S65: 9.999999997e-16 | T65: 7.757900755e-07 | U65: 40000.02512 | V65: 7.757900755e-07 | W65: 2.49999843e-05 | X65: 2.49999843e-05 | Y65: -4.848681882e-16 | Z65: 4e-06 | AA65: 0 | AB65: 250000 | AC65: 250000 | AD65: 0 | AE65: 250000 | AF65: -4.865749263e-16 | AG65: 250000 | AH65: 4e-06 | AI65: 4e-06 | AJ65: 7.78519882e-27 | AK65: 6.201370283e-06 | AL65: 8.536705443e-08 | AM65: 161239.4066 | AN65: 161224.1314 | AO65: -2219.385164 | AP65: 167564.1314 | AQ65: -241.1204719 | AR65: 167564.3049 | AS65: 0.9622539039 | AT65: 0.9622539038 | AU65: 0.9570634552 | AV65: -1000 | AW65: 123.4708253 | AX65: -4.620062061 | AY65: TRUE | AZ65: 1000 | BA65: =Strings!E81 -> 0.2257894938 | BB65: =Strings!B81 -> 0.3530100223 | BC65: =harmonics!BA40 -> -7.075457414 | BD65: =harmonics!BB40 -> -6.136308274 | BE65: -6.722447391 | BF65: -100 | BG65: -8.238876727 | BH65: -10.45378315 | BI65: -100 | BJ65: -100 | BK65: -100 | BL65: -100 | BM65: -8.238876727 | BN65: 1.120428071 | BO65: -4.238876727 | BQ65: 490000 | BR65: 9309.480906 | BS65: 2.0404481e-06 | BT65: 2.201370262e-06 | BU65: -3.875935764e-08 | BX65: 0.0001505690631 | BY65: 0.0001437344112 | BZ65: -4.484932346e-05 | CA65: 1.241264121e-07 | CB65: 0.0001437344112 | CC65: -4.472519705e-05 | CD65: 6643.099748 | CE65: 6343.110853 | CF65: 1973.757575
A66: 130.8127827 | B66: 6340 | C66: 2095.898433 | D66: 1.315073526e-07 | E66: =Tone!BA67 -> 4.761904762e+13 | F66: =Tone!BB67 -> -52920.15752 | G66: 2.1e-14 | H66: 2.1e-14 | I66: 2.333778947e-23 | J66: 40000.02512 | K66: 1e-15 | L66: 8.219209539e-11 | M66: 1.21666201e+10 | N66: 148026.6447 | O66: -1.21666201e+10 | P66: 1e+15 | Q66: -1.21666201e+10 | R66: 9.999999998e-16 | S66: 9.999999997e-16 | T66: 8.219209539e-07 | U66: 40000.02512 | V66: 8.219209539e-07 | W66: 2.49999843e-05 | X66: 2.49999843e-05 | Y66: -5.13699951e-16 | Z66: 4e-06 | AA66: 0 | AB66: 250000 | AC66: 250000 | AD66: 0 | AE66: 250000 | AF66: -5.155081771e-16 | AG66: 250000 | AH66: 4e-06 | AI66: 4e-06 | AJ66: 8.248130832e-27 | AK66: 6.20128014e-06 | AL66: 9.04450581e-08 | AM66: 161239.8787 | AN66: 161222.732 | AO66: -2351.417616 | AP66: 167562.732 | AQ66: -255.519183 | AR66: 167562.9268 | AS66: 0.9622646354 | AT66: 0.9622646353 | AU66: 0.9571530303 | AV66: -1000 | AW66: 130.8127827 | AX66: -4.238947842 | AY66: TRUE | AZ66: 1000 | BA66: =Strings!E82 -> -50 | BB66: =Strings!B82 -> 0.0533868183 | BC66: =harmonics!BA41 -> -6.604006986 | BD66: =harmonics!BB41 -> -5.67283273 | BE66: -6.550620168 | BF66: =IF(BF$44,OFFSET($BE66,BF$31,0),-100) -> -100 | BG66: -7.858575415 | BH66: -9.983863166 | BI66: -100 | BJ66: -100 | BK66: -100 | BL66: -100 | BM66: -7.858575415 | BN66: 1.120428071 | BO66: -3.858575415 | BQ66: 490000 | BR66: 9863.051447 | BS66: 2.04040302e-06 | BT66: 2.201280119e-06 | BU66: -4.106229453e-08 | BX66: 0.0001497576799 | BY66: 0.0001421894795 | BZ66: -4.700547432e-05 | CA66: 1.315073526e-07 | CB66: 0.0001421894795 | CC66: -4.687396697e-05 | CD66: 6679.292539 | CE66: 6343.491972 | CF66: 2091.185889
A67: 138.5913155 | B67: 6340 | C67: 2220.527039 | D67: 1.393271867e-07 | E67: =Tone!BA68 -> 4.761904762e+13 | F67: =Tone!BB68 -> -49949.97731 | G67: 2.1e-14 | H67: 2.1e-14 | I67: 2.202793999e-23 | J67: 40000.02512 | K67: 1e-15 | L67: 8.707949172e-11 | M67: 1.148376019e+10 | N67: 131876.748 | O67: -1.148376018e+10 | P67: 1e+15 | Q67: -1.148376018e+10 | R67: 9.999999998e-16 | S67: 9.999999997e-16 | T67: 8.707949172e-07 | U67: 40000.02512 | V67: 8.707949172e-07 | W67: 2.49999843e-05 | X67: 2.49999843e-05 | Y67: -5.442461397e-16 | Z67: 4e-06 | AA67: 0 | AB67: 250000 | AC67: 250000 | AD67: 0 | AE67: 250000 | AF67: -5.461618885e-16 | AG67: 250000 | AH67: 4e-06 | AI67: 4e-06 | AJ67: 8.738590214e-27 | AK67: 6.201178968e-06 | AL67: 9.582535869e-08 | AM67: 161240.4081 | AN67: 161221.1604 | AO67: -2491.312637 | AP67: 167561.1604 | AQ67: -270.785598 | AR67: 167561.3792 | AS67: 0.9622766825 | AT67: 0.9622766824 | AU67: 0.9572535927 | AV67: -1000 | AW67: 138.5913155 | AX67: -3.89130587 | AY67: TRUE | AZ67: 1000 | BA67: =Strings!E83 -> -50 | BB67: =Strings!B83 -> -0.2862262909 | BC67: =harmonics!BA42 -> -6.136308274 | BD67: =harmonics!BB42 -> -5.214112774 | BE67: -6.422534565 | BF67: -100 | BG67: -7.511845969 | BH67: -9.523780432 | BI67: -100 | BJ67: -100 | BK67: -100 | BL67: -100 | BM67: -7.511845969 | BN67: 1.120428071 | BO67: -3.511845969 | BQ67: 490000 | BR67: 10449.53901 | BS67: 2.040352423e-06 | BT67: 2.201178947e-06 | BU67: -4.350182806e-08 | BX67: 0.0001488623747 | BY67: 0.0001404944419 | BZ67: -4.920689386e-05 | CA67: 1.393271867e-07 | CB67: 0.0001404944419 | CC67: -4.906756667e-05 | CD67: 6719.690498 | CE67: 6343.919804 | CF67: 2215.608701
A68: 146.832384 | B68: 6340 | C68: 2352.566448 | D68: 1.476120124e-07 | E68: =Tone!BA69 -> 4.761904762e+13 | F68: =Tone!BB69 -> -47146.5005 | G68: 2.1e-14 | H68: 2.1e-14 | I68: 2.079160672e-23 | J68: 40000.02512 | K68: 1e-15 | L68: 9.225750775e-11 | M68: 1.083922625e+10 | N68: 117488.8257 | O68: -1.083922625e+10 | P68: 1e+15 | Q68: -1.083922625e+10 | R68: 9.999999998e-16 | S68: 9.999999998e-16 | T68: 9.225750775e-07 | U68: 40000.02512 | V68: 9.225750775e-07 | W68: 2.49999843e-05 | X68: 2.49999843e-05 | Y68: -5.766086992e-16 | Z68: 4e-06 | AA68: 0 | AB68: 250000 | AC68: 250000 | AD68: 0 | AE68: 250000 | AF68: -5.786383644e-16 | AG68: 250000 | AH68: 4e-06 | AI68: 4e-06 | AJ68: 9.258213828e-27 | AK68: 6.201065417e-06 | AL68: 1.015259966e-07 | AM68: 161241.0018 | AN68: 161219.3955 | AO68: -2639.539933 | AP68: 167559.3955 | AQ68: -286.9734849 | AR68: 167559.6413 | AS68: 0.9622902066 | AT68: 0.9622902065 | AU68: 0.9573664924 | AV68: -1000 | AW68: 146.832384 | AX68: -3.582729463 | AY68: TRUE | AZ68: 1000 | BA68: =Strings!E84 -> -50 | BB68: =Strings!B84 -> -0.6612704727 | BC68: =harmonics!BA43 -> -5.67283273 | BD68: =harmonics!BB43 -> -4.760750136 | BE68: -6.334103203 | BF68: -100 | BG68: -7.204293928 | BH68: -9.076744583 | BI68: -11.413857 | BJ68: -100 | BK68: -100 | BL68: -100 | BM68: -7.204293928 | BN68: 1.120428071 | BO68: -3.204293928 | BQ68: 490000 | BR68: 11070.90093 | BS68: 2.040295634e-06 | BT68: 2.201065397e-06 | BU68: -4.608601585e-08 | BX68: 0.0001478763074 | BY68: 0.0001386393305 | BZ68: -5.144451693e-05 | CA68: 1.476120124e-07 | CB68: 0.0001386393305 | CC68: -5.129690492e-05 | CD68: 6764.754726 | CE68: 6344.400081 | CF68: 2347.444166
A69: 155.5634919 | B69: 6340 | C69: 2492.457328 | D69: 1.563894794e-07 | E69: =Tone!BA70 -> 4.761904762e+13 | F69: =Tone!BB70 -> -44500.37076 | G69: 2.1e-14 | H69: 2.1e-14 | I69: 1.96246635e-23 | J69: 40000.02512 | K69: 1e-15 | L69: 9.774342464e-11 | M69: 1.023086723e+10 | N69: 104670.6442 | O69: -1.023086723e+10 | P69: 1e+15 | Q69: -1.023086723e+10 | R69: 9.999999998e-16 | S69: 9.999999998e-16 | T69: 9.774342464e-07 | U69: 40000.02512 | V69: 9.774342464e-07 | W69: 2.49999843e-05 | X69: 2.49999843e-05 | Y69: -6.108956367e-16 | Z69: 4e-06 | AA69: 0 | AB69: 250000 | AC69: 250000 | AD69: 0 | AE69: 250000 | AF69: -6.13045992e-16 | AG69: 250000 | AH69: 4e-06 | AI69: 4e-06 | AJ69: 9.808735871e-27 | AK69: 6.200937976e-06 | AL69: 1.07566097e-07 | AM69: 161241.6675 | AN69: 161217.4134 | AO69: -2796.597546 | AP69: 167557.4134 | AQ69: -304.1402181 | AR69: 167557.6894 | AS69: 0.962305389 | AT69: 0.9623053889 | AU69: 0.9574932462 | AV69: -1000 | AW69: 155.5634919 | AX69: -3.317630337 | AY69: TRUE | AZ69: 1000 | BA69: =Strings!E85 -> -50 | BB69: =Strings!B85 -> -1.066216997 | BC69: =harmonics!BA44 -> -5.214112774 | BD69: =harmonics!BB44 -> -4.313425485 | BE69: -6.280329772 | BF69: -100 | BG69: -6.940344722 | BH69: -8.646806799 | BI69: -10.93106943 | BJ69: -100 | BK69: -100 | BL69: -100 | BM69: -6.940344722 | BN69: 1.120428071 | BO69: -2.940344722 | BQ69: 490000 | BR69: 11729.21096 | BS69: 2.040231896e-06 | BT69: 2.200937956e-06 | BU69: -4.882338238e-08 | BX69: 0.0001467924902 | BY69: 0.0001366145431 | BZ69: -5.37075582e-05 | CA69: 1.563894794e-07 | CB69: 0.0001366145431 | CC69: -5.355116872e-05 | CD69: 6814.990689 | CE69: 6344.939238 | CF69: 2487.135733
A70: 164.8137785 | B70: 6340 | C70: 2640.666554 | D70: 1.656888818e-07 | E70: =Tone!BA71 -> 4.761904762e+13 | F70: =Tone!BB71 -> -42002.75686 | G70: 2.1e-14 | H70: 2.1e-14 | I70: 1.852321578e-23 | J70: 40000.02512 | K70: 1e-15 | L70: 1.035555511e-10 | M70: 9656652774 | N70: 93250.94279 | O70: -9656652773 | P70: 1000000000093251 | Q70: -9656652773 | R70: 9.999999999e-16 | S70: 9.999999998e-16 | T70: 1.035555511e-06 | U70: 40000.02512 | V70: 1.035555511e-06 | W70: 2.49999843e-05 | X70: 2.49999843e-05 | Y70: -6.472213816e-16 | Z70: 4e-06 | AA70: 0 | AB70: 250000 | AC70: 250000 | AD70: 0 | AE70: 250000 | AF70: -6.494996037e-16 | AG70: 250000 | AH70: 4e-06 | AI70: 4e-06 | AJ70: 1.039199366e-26 | AK70: 6.200794948e-06 | AL70: 1.139659373e-07 | AM70: 161242.4137 | AN70: 161215.1871 | AO70: -2963.013622 | AP70: 167555.1871 | AQ70: -322.3470688 | AR70: 167555.4971 | AS70: 0.9623224335 | AT70: 0.9623224334 | AU70: 0.9576355578 | AV70: -1000 | AW70: 164.8137785 | AX70: -3.098442123 | AY70: TRUE | AZ70: 1000 | BA70: =Strings!E86 -> -50 | BB70: =Strings!B86 -> -1.495379826 | BC70: =harmonics!BA45 -> -4.760750136 | BD70: =harmonics!BB45 -> -3.872909549 | BE70: -6.256129963 | BF70: -100 | BG70: -6.722447391 | BH70: -8.238876727 | BI70: -10.45378315 | BJ70: -100 | BK70: -100 | BL70: -100 | BM70: -6.722447391 | BN70: 1.120428071 | BO70: -2.722447391 | BQ70: 490000 | BR70: 12426.66613 | BS70: 2.04016036e-06 | BT70: 2.200794927e-06 | BU70: -5.172294449e-08 | BX70: 0.0001456038824 | BY70: 0.0001344111102 | BZ70: -5.598342635e-05 | CA70: 1.656888818e-07 | CB70: 0.0001344111102 | CC70: -5.581773747e-05 | CD70: 6870.951185 | CE70: 6345.544504 | CF70: 2635.153722
A71: 174.6141157 | B71: 6340 | C71: 2797.688758 | D71: 1.755412554e-07 | E71: =Tone!BA72 -> 4.761904762e+13 | F71: =Tone!BB72 -> -39645.32326 | G71: 2.1e-14 | H71: 2.1e-14 | I71: 1.748358756e-23 | J71: 40000.02512 | K71: 1e-15 | L71: 1.097132846e-10 | M71: 9114666499 | N71: 83077.1454 | O71: -9114666499 | P71: 1e+15 | Q71: -9114666499 | R71: 9.999999999e-16 | S71: 9.999999998e-16 | T71: 1.097132846e-06 | U71: 40000.02512 | V71: 1.097132846e-06 | W71: 2.49999843e-05 | X71: 2.49999843e-05 | Y71: -6.857071677e-16 | Z71: 4e-06 | AA71: 0 | AB71: 250000 | AC71: 250000 | AD71: 0 | AE71: 250000 | AF71: -6.881208599e-16 | AG71: 250000 | AH71: 4e-06 | AI71: 4e-06 | AJ71: 1.100993376e-26 | AK71: 6.200634427e-06 | AL71: 1.207470175e-07 | AM71: 161243.2502 | AN71: 161212.6863 | AO71: -3139.348286 | AP71: 167552.6863 | AQ71: -341.6595283 | AR71: 167553.0347 | AS71: 0.9623415687 | AT71: 0.9623415686 | AU71: 0.9577953418 | AV71: -1000 | AW71: 174.6141157 | AX71: -2.925165757 | AY71: TRUE | AZ71: 1000 | BA71: =Strings!E87 -> -50 | BB71: =Strings!B87 -> -1.943506005 | BC71: =harmonics!BA46 -> -4.313425485 | BD71: =harmonics!BB46 -> -3.440076026 | BE71: -6.25693149 | BF71: -100 | BG71: -6.550620168 | BH71: -7.858575415 | BI71: -9.983863166 | BJ71: -100 | BK71: -100 | BL71: -100 | BM71: -6.550620168 | BN71: 1.120428071 | BO71: -2.550620168 | BQ71: 490000 | BR71: 13165.59416 | BS71: 2.040080073e-06 | BT71: 2.200634407e-06 | BU71: -5.479423787e-08 | BX71: 0.0001443035061 | BY71: 0.0001320210019 | BZ71: -5.825767708e-05 | CA71: 1.755412554e-07 | CB71: 0.0001320210019 | CC71: -5.808213583e-05 | CD71: 6933.23924 | CE71: 6346.223994 | CF71: 2791.997022
A72: 184.9972114 | B72: 6340 | C72: 2964.047989 | D72: 1.859794816e-07 | E72: =Tone!BA73 -> 4.761904762e+13 | F72: =Tone!BB73 -> -37420.20225 | G72: 2.1e-14 | H72: 2.1e-14 | I72: 1.650230919e-23 | J72: 40000.02512 | K72: 1e-15 | L72: 1.16237176e-10 | M72: 8603099578 | N72: 74013.32234 | O72: -8603099577 | P72: 1e+15 | Q72: -8603099577 | R72: 9.999999999e-16 | S72: 9.999999999e-16 | T72: 1.16237176e-06 | U72: 40000.02512 | V72: 1.16237176e-06 | W72: 2.49999843e-05 | X72: 2.49999843e-05 | Y72: -7.264814377e-16 | Z72: 4e-06 | AA72: 0 | AB72: 250000 | AC72: 250000 | AD72: 0 | AE72: 250000 | AF72: -7.290386556e-16 | AG72: 250000 | AH72: 4e-06 | AI72: 4e-06 | AJ72: 1.166461849e-26 | AK72: 6.20045428e-06 | AL72: 1.27932137e-07 | AM72: 161244.1877 | AN72: 161209.8771 | AO72: -3326.195655 | AP72: 167549.8771 | AQ72: -362.1476663 | AR72: 167550.2685 | AS72: 0.9623630515 | AT72: 0.9623630514 | AU72: 0.9579747495 | AV72: -1000 | AW72: 184.9972114 | AX72: -2.795453325 | AY72: TRUE | AZ72: 1000 | BA72: =Strings!E88 -> -2.147967701 | BB72: =Strings!B88 -> -2.406094267 | BC72: =harmonics!BA47 -> -3.872909549 | BD72: =harmonics!BB47 -> -3.015916616 | BE72: -6.279003817 | BF72: -100 | BG72: -6.422534565 | BH72: -7.511845969 | BI72: -9.523780432 | BJ72: -100 | BK72: -100 | BL72: -100 | BM72: -6.422534565 | BN72: 1.120428071 | BO72: -2.422534565 | BQ72: 490000 | BR72: 13948.46112 | BS72: 2.039989964e-06 | BT72: 2.200454259e-06 | BU72: -5.804734468e-08 | BX72: 0.0001428845845 | BY72: 0.0001294374684 | BZ72: -6.051401701e-05 | CA72: 1.859794816e-07 | CB72: 0.0001294374684 | CC72: -6.032803753e-05 | CD72: 7002.510898 | CE72: 6346.986827 | CF72: 2958.194905
A73: 195.997718 | B73: 6340 | C73: 3140.299454 | D73: 1.970383971e-07 | E73: =Tone!BA74 -> 4.761904762e+13 | F73: =Tone!BB74 -> -35319.96767 | G73: 2.1e-14 | H73: 2.1e-14 | I73: 1.557610574e-23 | J73: 40000.02512 | K73: 1e-15 | L73: 1.231489982e-10 | M73: 8120244701 | N73: 65938.374 | O73: -8120244700 | P73: 1e+15 | Q73: -8120244700 | R73: 9.999999999e-16 | S73: 9.999999999e-16 | T73: 1.231489982e-06 | U73: 40000.02512 | V73: 1.231489982e-06 | W73: 2.49999843e-05 | X73: 2.49999843e-05 | Y73: -7.69680272e-16 | Z73: 4e-06 | AA73: 0 | AB73: 250000 | AC73: 250000 | AD73: 0 | AE73: 250000 | AF73: -7.723895499e-16 | AG73: 250000 | AH73: 4e-06 | AI73: 4e-06 | AJ73: 1.23582328e-26 | AK73: 6.200252108e-06 | AL73: 1.35545475e-07 | AM73: 161245.2381 | AN73: 161206.7211 | AO73: -3524.185985 | AP73: 167546.7211 | AQ73: -383.8865308 | AR73: 167547.1609 | AS73: 0.9623871707 | AT73: 0.9623871706 | AU73: 0.9581761987 | AV73: -1000 | AW73: 195.997718 | AX73: -2.70519563 | AY73: TRUE | AZ73: 1000 | BA73: =Strings!E89 -> -50 | BB73: =Strings!B89 -> -2.879490442 | BC73: =harmonics!BA48 -> -3.440076026 | BD73: =harmonics!BB48 -> -2.601558619 | BE73: -6.319566468 | BF73: -100 | BG73: -6.334103203 | BH73: -7.204293928 | BI73: -9.076744583 | BJ73: -11.413857 | BK73: -100 | BL73: -100 | BM73: -6.334103203 | BN73: 1.120428071 | BO73: -2.334103203 | BQ73: 490000 | BR73: 14777.87978 | BS73: 2.039888835e-06 | BT73: 2.200252088e-06 | BU73: -6.149292214e-08 | BX73: 0.000141340701 | BY73: 0.0001266554085 | BZ73: -6.273437069e-05 | CA73: 1.970383971e-07 | CB73: 0.0001266554085 | CC73: -6.253733229e-05 | CD73: 7079.47784 | CE73: 6347.843241 | CF73: 3134.308963
A74: 207.6523488 | B74: 6340 | C74: 3327.031377 | D74: 2.087549099e-07 | E74: =Tone!BA75 -> 4.761904762e+13 | F74: =Tone!BB75 -> -33337.61021 | G74: 2.1e-14 | H74: 2.1e-14 | I74: 1.47018861e-23 | J74: 40000.02512 | K74: 1e-15 | L74: 1.304718187e-10 | M74: 7664490386 | N74: 58744.41287 | O74: -7664490385 | P74: 1e+15 | Q74: -7664490385 | R74: 9.999999999e-16 | S74: 9.999999999e-16 | T74: 1.304718187e-06 | U74: 40000.02512 | V74: 1.304718187e-06 | W74: 2.49999843e-05 | X74: 2.49999843e-05 | Y74: -8.154478426e-16 | Z74: 4e-06 | AA74: 0 | AB74: 250000 | AC74: 250000 | AD74: 0 | AE74: 250000 | AF74: -8.183182226e-16 | AG74: 250000 | AH74: 4e-06 | AI74: 4e-06 | AJ74: 1.309309156e-26 | AK74: 6.200025227e-06 | AL74: 1.436126777e-07 | AM74: 161246.4149 | AN74: 161203.1751 | AO74: -3733.987973 | AP74: 167543.1751 | AQ74: -406.9565961 | AR74: 167543.6693 | AS74: 0.9624142504 | AT74: 0.9624142503 | AU74: 0.958402407 | AV74: -1000 | AW74: 207.6523488 | AX74: -2.649371856 | AY74: TRUE | AZ74: 1000 | BA74: =Strings!E90 -> -50 | BB74: =Strings!B90 -> -3.360841749 | BC74: =harmonics!BA49 -> -3.015916616 | BD74: =harmonics!BB49 -> -2.198285628 | BE74: -6.376758365 | BF74: -100 | BG74: -6.280329772 | BH74: -6.940344722 | BI74: -8.646806799 | BJ74: -10.93106943 | BK74: -100 | BL74: -100 | BM74: -6.280329772 | BN74: 1.120428071 | BO74: -2.280329772 | BQ74: 490000 | BR74: 15656.61824 | BS74: 2.03977534e-06 | BT74: 2.200025206e-06 | BU74: -6.514223218e-08 | BX74: 0.000139665979 | BY74: 0.0001236717532 | BZ74: -6.489902262e-05 | CA74: 2.087549099e-07 | CB74: 0.0001236717532 | CC74: -6.469026771e-05 | CD74: 7164.909784 | CE74: 6348.80474 | CF74: 3320.935198
A75: 220 | B75: 6340 | C75: 3524.866957 | D75: 2.211681228e-07 | E75: =Tone!BA76 -> 4.761904762e+13 | F75: =Tone!BB76 -> -31466.51393 | G75: 2.1e-14 | H75: 2.1e-14 | I75: 1.387673264e-23 | J75: 40000.02512 | K75: 1e-15 | L75: 1.382300768e-10 | M75: 7234315595 | N75: 52335.32213 | O75: -7234315595 | P75: 1e+15 | Q75: -7234315595 | R75: 9.999999999e-16 | S75: 9.999999999e-16 | T75: 1.382300768e-06 | U75: 40000.02512 | V75: 1.382300768e-06 | W75: 2.49999843e-05 | X75: 2.49999843e-05 | Y75: -8.639368946e-16 | Z75: 4e-06 | AA75: 0 | AB75: 250000 | AC75: 250000 | AD75: 0 | AE75: 250000 | AF75: -8.669779563e-16 | AG75: 250000 | AH75: 4e-06 | AI75: 4e-06 | AJ75: 1.38716473e-26 | AK75: 6.199770621e-06 | AL75: 1.521609509e-07 | AM75: 161247.7328 | AN75: 161199.1903 | AO75: -3956.311222 | AP75: 167539.1903 | AQ75: -431.4442644 | AR75: 167539.7458 | AS75: 0.9624446549 | AT75: 0.9624446548 | AU75: 0.9586564298 | AV75: -1000 | AW75: 220 | AX75: -2.622870173 | AY75: TRUE | AZ75: 1000 | BA75: =Strings!E91 -> -50 | BB75: =Strings!B91 -> -3.847983033 | BC75: =harmonics!BA50 -> -2.601558619 | BD75: =harmonics!BB50 -> -1.80756201 | BE75: -6.449541652 | BF75: -100 | BG75: -6.256129963 | BH75: -6.722447391 | BI75: -8.238876727 | BJ75: -10.45378315 | BK75: -100 | BL75: -100 | BM75: -6.256129963 | BN75: 1.120428071 | BO75: -2.256129963 | BQ75: 490000 | BR75: 16587.60921 | BS75: 2.039647968e-06 | BT75: 2.1997706e-06 | BU75: -6.900717189e-08 | BX75: 0.0001378552764 | BY75: 0.0001204858497 | BZ75: -6.698684393e-05 | CA75: 2.211681228e-07 | CB75: 0.0001204858497 | CC75: -6.676567581e-05 | CD75: 7259.636605 | CE75: 6349.884246 | CF75: 3518.706254
A76: 233.0818808 | B76: 6340 | C76: 3734.466454 | D76: 2.343194638e-07 | E76: =Tone!BA77 -> 4.761904762e+13 | F76: =Tone!BB77 -> -29700.4342 | G76: 2.1e-14 | H76: 2.1e-14 | I76: 1.309789148e-23 | J76: 40000.02512 | K76: 1e-15 | L76: 1.464496649e-10 | M76: 6828284660 | N76: 46625.4714 | O76: -6828284660 | P76: 1e+15 | Q76: -6828284660 | R76: 9.999999999e-16 | S76: 9.999999999e-16 | T76: 1.464496649e-06 | U76: 40000.02512 | V76: 1.464496649e-06 | W76: 2.49999843e-05 | X76: 2.49999843e-05 | Y76: -9.153092557e-16 | Z76: 4e-06 | AA76: 0 | AB76: 250000 | AC76: 250000 | AD76: 0 | AE76: 250000 | AF76: -9.185311483e-16 | AG76: 250000 | AH76: 4e-06 | AI76: 4e-06 | AJ76: 1.469649837e-26 | AK76: 6.199484911e-06 | AL76: 1.612191589e-07 | AM76: 161249.2085 | AN76: 161194.7119 | AO76: -4191.908884 | AP76: 167534.7119 | AQ76: -457.4424303 | AR76: 167535.3364 | AS76: 0.9624787938 | AT76: 0.9624787937 | AU76: 0.9589417027 | AV76: -1000 | AW76: 233.0818808 | AX76: -2.621087376 | AY76: TRUE | AZ76: 1000 | BA76: =Strings!E92 -> -50 | BB76: =Strings!B92 -> -4.33930405 | BC76: =harmonics!BA51 -> -2.198285628 | BD76: =harmonics!BB51 -> -1.431062048 | BE76: -6.537589678 | BF76: =IF(BF$44,OFFSET($BE76,BF$31,0),-100) -> -100 | BG76: -6.25693149 | BH76: -6.550620168 | BI76: -7.858575415 | BJ76: -9.983863166 | BK76: -100 | BL76: -100 | BM76: -6.25693149 | BN76: 1.120428071 | BO76: -2.25693149 | BQ76: 490000 | BR76: 17573.95978 | BS76: 2.039505026e-06 | BT76: 2.19948489e-06 | BU76: -7.310030482e-08 | BX76: =G179 -> 0.0001359043932 | BY76: 0.0001170998259 | BZ76: -6.897561063e-05 | CA76: 2.343194638e-07 | CB76: 0.0001170998259 | CC76: -6.874129117e-05 | CD76: 7364.550144 | CE76: 6351.096278 | CF76: 3728.293832
A77: 246.9416506 | B77: 6340 | C77: 3956.529385 | D77: 2.482528242e-07 | E77: =Tone!BA78 -> 4.761904762e+13 | F77: =Tone!BB78 -> -28033.47692 | G77: 2.1e-14 | H77: 2.1e-14 | I77: 1.236276332e-23 | J77: 40000.02512 | K77: 1e-15 | L77: 1.551580151e-10 | M77: 6445042490 | N77: 41538.5727 | O77: -6445042490 | P77: 1e+15 | Q77: -6445042490 | R77: 9.999999999e-16 | S77: 9.999999999e-16 | T77: 1.551580151e-06 | U77: 40000.02512 | V77: 1.551580151e-06 | W77: 2.49999843e-05 | X77: 2.49999843e-05 | Y77: -9.697363763e-16 | Z77: 4e-06 | AA77: 0 | AB77: 250000 | AC77: 250000 | AD77: 0 | AE77: 250000 | AF77: -9.731498527e-16 | AG77: 250000 | AH77: 4e-06 | AI77: 4e-06 | AJ77: 1.557039764e-26 | AK77: 6.199164308e-06 | AL77: 1.708179312e-07 | AM77: 161250.8602 | AN77: 161189.678 | AO77: -4441.580503 | AP77: 167529.678 | AQ77: -485.0511185 | AR77: 167530.3801 | AS77: 0.9625171272 | AT77: 0.9625171271 | AU77: 0.9592620895 | AV77: -1000 | AW77: 246.9416506 | AX77: -2.640258191 | AY77: TRUE | AZ77: 1000 | BA77: =Strings!E93 -> -6.101024484 | BB77: =Strings!B93 -> -4.833624562 | BC77: =harmonics!BA52 -> -1.80756201 | BD77: =harmonics!BB52 -> -1.07070488 | BE77: -6.641186572 | BF77: -100 | BG77: -6.279003817 | BH77: -6.422534565 | BI77: -7.511845969 | BJ77: -9.523780432 | BK77: -11.413857 | BL77: -100 | BM77: -6.279003817 | BN77: 1.120428071 | BO77: -2.279003817 | BQ77: 490000 | BR77: 18618.96181 | BS77: 2.039344615e-06 | BT77: 2.199164287e-06 | BU77: -7.743489291e-08 | BX77: 0.0001338102806 | BY77: 0.0001135189121 | BZ77: =I180 -> -7.084241509e-05 | CA77: 2.482528242e-07 | CB77: 0.0001135189121 | CC77: -7.059416226e-05 | CD77: 7480.605665 | CE77: 6352.457151 | CF77: 3950.411278
A78: 261.6255653 | B78: 6340 | C78: 4191.796865 | D78: =2*PI()*$B$10*0.000000001*$A78 -> 2.630147053e-07 | E78: =Tone!BA79 -> 4.761904762e+13 | F78: =Tone!BB79 -> -26460.07876 | G78: 2.1e-14 | H78: 2.1e-14 | I78: 1.166889473e-23 | J78: 40000.02512 | K78: 1e-15 | L78: 1.643841908e-10 | M78: 6083310051 | N78: 37006.66117 | O78: -6083310050 | P78: 1e+15 | Q78: -6083310050 | R78: 9.999999999e-16 | S78: 9.999999999e-16 | T78: =-Q78*R78^2+2*PI()*A78*$K$9*0.000000001 -> 1.643841908e-06 | U78: =J78+S78 -> 40000.02512 | V78: 1.643841908e-06 | W78: 2.49999843e-05 | X78: 2.49999843e-05 | Y78: -1.027399902e-15 | Z78: =1/($H$16*1000*$H$15/100)+H78*$V$42 -> 4e-06 | AA78: =I78*$V$42 -> 0 | AB78: 250000 | AC78: 250000 | AD78: 0 | AE78: =X78+AC78+E181 -> 250000 | AF78: =Y78+AD78+F181 -> -1.031016354e-15 | AG78: 250000 | AH78: 4e-06 | AI78: 4e-06 | AJ78: 1.649626166e-26 | AK78: =H78*$AF$43+AI78+BT78 -> 6.198804563e-06 | AL78: =+D78+I78*$AF$43+AJ78+BU78 -> 1.809897764e-07 | AM78: 161252.7084 | AN78: 161184.0187 | AO78: -4706.175069 | AP78: =B78+AN78 -> 167524.0187 | AQ78: =C78+AO78 -> -514.3782041 | AR78: 167524.8084 | AS78: 0.9625601722 | AT78: 0.9625601721 | AU78: =IF($AO$42=0,1,AK181) -> 0.959621937 | AV78: -1000 | AW78: =A78 -> 261.6255653 | AX78: =IF(AW78<$BM$40,NA(),20*LOG(AU78)+BO78) -> -2.677563119 | AY78: TRUE | AZ78: 1000 | BA78: =Strings!E94 -> -50 | BB78: =Strings!B94 -> -5.330088454 | BC78: =harmonics!BA53 -> -1.431062048 | BD78: =harmonics!BB53 -> -0.7286967336 | BE78: -6.761150502 | BF78: -100 | BG78: -6.319566468 | BH78: -6.334103203 | BI78: -7.204293928 | BJ78: -9.076744583 | BK78: -10.93106943 | BL78: -100 | BM78: -6.319566468 | BN78: =$B$7 -> 1.120428071 | BO78: =BM78+BN78*$BN$44+$BD$43 -> -2.319566468 | BQ78: =$B$11*1000 -> 490000 | BR78: =2*PI()*$B$13*A78 -> 19726.10289 | BS78: 2.039164605e-06 | BT78: =BQ78*BS78^2+1/$B$12/1000 -> 2.198804543e-06 | BU78: -8.202492888e-08 | BX78: 0.0001315712472 | BY78: =H181 -> 0.0001097516962 | BZ78: -7.256416658e-05 | CA78: =D78 -> 2.630147053e-07 | CB78: 0.0001097516962 | CC78: -7.230115188e-05 | CD78: 7608.822956 | CE78: 6353.9852 | CF78: 4185.816391
A79: 277.182631 | B79: 6340 | C79: 4441.054078 | D79: 2.786543735e-07 | E79: =Tone!BA80 -> 4.761904762e+13 | F79: =Tone!BB80 -> -24974.98865 | G79: 2.1e-14 | H79: 2.1e-14 | I79: 1.101397e-23 | J79: 40000.02512 | K79: 1e-15 | L79: 1.741589834e-10 | M79: 5741880093 | N79: 32969.187 | O79: -5741880093 | P79: 1e+15 | Q79: -5741880093 | R79: 1e-15 | S79: 9.999999999e-16 | T79: 1.741589834e-06 | U79: 40000.02512 | V79: 1.741589834e-06 | W79: 2.49999843e-05 | X79: 2.49999843e-05 | Y79: -1.088492279e-15 | Z79: 4e-06 | AA79: 0 | AB79: 250000 | AC79: 250000 | AD79: 0 | AE79: 250000 | AF79: -1.092323777e-15 | AG79: 250000 | AH79: 4e-06 | AI79: 4e-06 | AJ79: 1.747718043e-26 | AK79: 6.198400915e-06 | AL79: 1.917692046e-07 | AM79: 161254.7755 | AN79: 161177.6551 | AO79: -4986.594308 | AP79: 167517.6551 | AQ79: -545.5402301 | AR79: 167518.5434 | AS79: 0.9626085103 | AT79: 0.9626085102 | AU79: 0.9600261365 | AV79: -1000 | AW79: 277.182631 | AX79: -2.634668636 | AY79: TRUE | AZ79: 1000 | BA79: =Strings!E95 -> -50 | BB79: =Strings!B95 -> -5.82807931 | BC79: =harmonics!BA54 -> -1.07070488 | BD79: =harmonics!BB54 -> -0.4075824327 | BE79: -6.898784189 | BF79: -100 | BG79: -6.376758365 | BH79: -6.280329772 | BI79: -6.940344722 | BJ79: -8.646806799 | BK79: -10.45378315 | BL79: -100 | BM79: -6.280329772 | BN79: 1.120428071 | BO79: -2.280329772 | BQ79: 490000 | BR79: 20899.07801 | BS79: 2.038962607e-06 | BT79: 2.198400894e-06 | BU79: -8.688516889e-08 | BX79: 0.0001291871482 | BY79: 0.0001058102842 | BZ79: -7.411816939e-05 | CA79: 2.786543735e-07 | CB79: 0.0001058102842 | CC79: -7.383951502e-05 | CD79: 7750.287082 | CE79: 6355.701033 | CF79: 4435.314446
A80: 293.6647679 | B80: 6340 | C80: 4705.132895 | D80: 2.952240248e-07 | E80: =Tone!BA81 -> 4.761904762e+13 | F80: =Tone!BB81 -> -23573.25025 | G80: 2.1e-14 | H80: 2.1e-14 | I80: 1.039580336e-23 | J80: 40000.02512 | K80: 1e-15 | L80: 1.845150155e-10 | M80: 5419613126 | N80: 29372.20644 | O80: -5419613126 | P80: 1e+15 | Q80: -5419613126 | R80: 1e-15 | S80: 9.999999999e-16 | T80: 1.845150155e-06 | U80: 40000.02512 | V80: 1.845150155e-06 | W80: 2.49999843e-05 | X80: 2.49999843e-05 | Y80: -1.153217398e-15 | Z80: 4e-06 | AA80: 0 | AB80: 250000 | AC80: 250000 | AD80: 0 | AE80: 250000 | AF80: -1.157276729e-15 | AG80: 250000 | AH80: 4e-06 | AI80: 4e-06 | AJ80: 1.851642766e-26 | AK80: 6.197948025e-06 | AL80: 2.031928598e-07 | AM80: 161257.0865 | AN80: 161170.4981 | AO80: -5283.796232 | AP80: 167510.4981 | AQ80: -578.6633367 | AR80: 167511.4976 | AS80: 0.9626627955 | AT80: 0.9626627954 | AU80: 0.9604801936 | AV80: -1000 | AW80: 293.6647679 | AX80: -2.606361692 | AY80: TRUE | AZ80: 1000 | BA80: =Strings!E96 -> -50 | BB80: =Strings!B96 -> -6.327155628 | BC80: =harmonics!BA55 -> -0.7286967336 | BD80: =harmonics!BB55 -> -0.1103088514 | BE80: -7.055852362 | BF80: -100 | BG80: -6.449541652 | BH80: -6.256129963 | BI80: -6.722447391 | BJ80: -8.238876727 | BK80: -9.983863166 | BL80: -100 | BM80: -6.256129963 | BN80: 1.120428071 | BO80: -2.256129963 | BQ80: 490000 | BR80: 22141.80186 | BS80: 2.038735944e-06 | BT80: 2.197948005e-06 | BU80: -9.2031165e-08 | BX80: 0.0001266595484 | BY80: 0.0001017103452 | BZ80: -7.548275882e-05 | CA80: 2.952240248e-07 | CB80: 0.0001017103452 | CC80: -7.518753479e-05 | CD80: 7906.14884 | CE80: 6357.627818 | CF80: 4699.761484
A81: 311.1269837 | B81: 6340 | C81: 4984.914657 | D81: 3.127789588e-07 | E81: =Tone!BA82 -> 4.761904762e+13 | F81: =Tone!BB82 -> -22250.18538 | G81: 2.1e-14 | H81: 2.1e-14 | I81: 9.812331752e-24 | J81: 40000.02512 | K81: 1e-15 | L81: 1.954868493e-10 | M81: 5115433614 | N81: 26167.66106 | O81: -5115433614 | P81: 1e+15 | Q81: -5115433614 | R81: 1e-15 | S81: 9.999999999e-16 | T81: 1.954868493e-06 | U81: 40000.02512 | V81: 1.954868493e-06 | W81: 2.49999843e-05 | X81: 2.49999843e-05 | Y81: -1.221791273e-15 | Z81: 4e-06 | AA81: 0 | AB81: 250000 | AC81: 250000 | AD81: 0 | AE81: 250000 | AF81: -1.226091984e-15 | AG81: 250000 | AH81: 4e-06 | AI81: 4e-06 | AJ81: 1.961747174e-26 | AK81: 6.197439914e-06 | AL81: 2.152996615e-07 | AM81: 161259.6689 | AN81: 161162.4468 | AO81: -5598.798977 | AP81: 167502.4468 | AQ81: -613.8843199 | AR81: 167503.5717 | AS81: 0.962723763 | AT81: 0.9627237629 | AU81: 0.9609903075 | AV81: -1000 | AW81: 311.1269837 | AX81: -2.602551342 | AY81: TRUE | AZ81: 1000 | BA81: =Strings!E97 -> -13.39522604 | BB81: =Strings!B97 -> -6.827002374 | BC81: =harmonics!BA56 -> -0.4075824327 | BD81: =harmonics!BB56 -> 0.1596960149 | BE81: -7.234584806 | BF81: -100 | BG81: -6.537589678 | BH81: -6.25693149 | BI81: -6.550620168 | BJ81: -7.858575415 | BK81: -9.523780432 | BL81: -100 | BM81: -6.25693149 | BN81: 1.120428071 | BO81: -2.25693149 | BQ81: 490000 | BR81: 23458.42191 | BS81: 2.038481613e-06 | BT81: 2.197439893e-06 | BU81: -9.747929735e-08 | BX81: 0.0001239918464 | BY81: 9.747102039e-05 | BZ81: -7.663796816e-05 | CA81: 3.127789588e-07 | CB81: 9.747102039e-05 | CC81: -7.63251892e-05 | CD81: 8077.624979 | CE81: 6359.791604 | CF81: 4980.067876
A82: 329.6275569 | B82: 6340 | C82: 5281.333107 | D82: 3.313777636e-07 | E82: =Tone!BA83 -> 4.761904762e+13 | F82: =Tone!BB83 -> -21001.37843 | G82: 2.1e-14 | H82: 2.1e-14 | I82: 9.261607888e-24 | J82: 40000.02512 | K82: 1e-15 | L82: 2.071111022e-10 | M82: 4828326387 | N82: 23312.7357 | O82: -4828326387 | P82: 1e+15 | Q82: -4828326387 | R82: 1e-15 | S82: 1e-15 | T82: 2.071111022e-06 | U82: 40000.02512 | V82: 2.071111022e-06 | W82: 2.49999843e-05 | X82: 2.49999843e-05 | Y82: -1.294442763e-15 | Z82: 4e-06 | AA82: 0 | AB82: 250000 | AC82: 250000 | AD82: 0 | AE82: 250000 | AF82: -1.298999207e-15 | AG82: 250000 | AH82: 4e-06 | AI82: 4e-06 | AJ82: 2.078398731e-26 | AK82: 6.19686988e-06 | AL82: 2.281309583e-07 | AM82: 161262.5528 | AN82: 161153.3872 | AO82: -5932.684947 | AP82: 167493.3872 | AQ82: -651.3518394 | AR82: 167494.6537 | AS82: 0.9627922403 | AT82: 0.9627922402 | AU82: 0.9615634612 | AV82: -1000 | AW82: 329.6275569 | AX82: -2.619444776 | AY82: TRUE | AZ82: 1000 | BA82: =Strings!E98 -> -50 | BB82: =Strings!B98 -> -7.327395345 | BC82: =harmonics!BA57 -> -0.1103088514 | BD82: =harmonics!BB57 -> 0.3984232578 | BE82: -7.437704196 | BF82: -100 | BG82: -6.641186572 | BH82: -6.279003817 | BI82: -6.422534565 | BJ82: -7.511845969 | BK82: -9.076744583 | BL82: -11.413857 | BM82: -6.279003817 | BN82: 1.120428071 | BO82: -2.279003817 | BQ82: 490000 | BR82: 24853.33227 | BS82: 2.03819625e-06 | BT82: 2.196869859e-06 | BU82: -1.032468053e-07 | BX82: 0.0001211893505 | BY82: 9.311468405e-05 | BZ82: -7.7566193e-05 | CA82: 3.313777636e-07 | CB82: 9.311468405e-05 | CC82: -7.723481524e-05 | CD82: 8265.998304 | CE82: 6362.221687 | CF82: 5277.202211
A83: 349.2282314 | B83: 6340 | C83: 5595.377516 | D83: 3.510825108e-07 | E83: =Tone!BA84 -> 4.761904762e+13 | F83: =Tone!BB84 -> -19822.66163 | G83: 2.1e-14 | H83: 2.1e-14 | I83: 8.741793779e-24 | J83: 40000.02512 | K83: 1e-15 | L83: 2.194265693e-10 | M83: 4557333250 | N83: 20769.28635 | O83: -4557333250 | P83: 1e+15 | Q83: -4557333250 | R83: 1e-15 | S83: 1e-15 | T83: 2.194265693e-06 | U83: 40000.02512 | V83: 2.194265693e-06 | W83: 2.49999843e-05 | X83: 2.49999843e-05 | Y83: -1.371414335e-15 | Z83: 4e-06 | AA83: 0 | AB83: 250000 | AC83: 250000 | AD83: 0 | AE83: 250000 | AF83: -1.37624172e-15 | AG83: 250000 | AH83: 4e-06 | AI83: 4e-06 | AJ83: 2.201986751e-26 | AK83: 6.196230418e-06 | AL83: 2.417306938e-07 | AM83: 161265.7714 | AN83: 161143.1898 | AO83: -6286.605316 | AP83: 167483.1898 | AQ83: -691.2278002 | AR83: 167484.6162 | AS83: 0.9628691582 | AT83: 0.9628691581 | AU83: 0.9622075236 | AV83: -1000 | AW83: 349.2282314 | AX83: -2.6541915 | AY83: TRUE | AZ83: 1000 | BA83: =Strings!E99 -> -50 | BB83: =Strings!B99 -> -7.828175285 | BC83: =harmonics!BA58 -> 0.1596960149 | BD83: =harmonics!BB58 -> 0.6011552849 | BE83: -7.66847927 | BF83: -100 | BG83: -6.761150502 | BH83: -6.319566468 | BI83: -6.334103203 | BJ83: -7.204293928 | BK83: -8.646806799 | BL83: -10.93106943 | BM83: -6.319566468 | BN83: 1.120428071 | BO83: -2.319566468 | BQ83: 490000 | BR83: 26331.18831 | BS83: 2.037876083e-06 | BT83: 2.196230398e-06 | BU83: -1.09351817e-07 | BX83: 0.0001182592957 | BY83: 8.866655488e-05 | BZ83: -7.825281508e-05 | CA83: 3.510825108e-07 | CB83: 8.866655488e-05 | CC83: -7.790173257e-05 | CD83: 8472.617801 | CE83: 6364.951021 | CF83: 5592.195534
A84: 369.9944227 | B84: 6340 | C84: 5928.095977 | D84: 3.719589633e-07 | E84: =Tone!BA85 -> 4.761904762e+13 | F84: =Tone!BB85 -> -18710.10112 | G84: 2.1e-14 | H84: 2.1e-14 | I84: 8.251154595e-24 | J84: 40000.02512 | K84: 1e-15 | L84: 2.324743521e-10 | M84: 4301549789 | N84: 18503.33059 | O84: -4301549789 | P84: 1e+15 | Q84: -4301549789 | R84: 1e-15 | S84: 1e-15 | T84: 2.324743521e-06 | U84: 40000.02512 | V84: 2.324743521e-06 | W84: 2.49999843e-05 | X84: 2.49999843e-05 | Y84: -1.452962875e-15 | Z84: 4e-06 | AA84: 0 | AB84: 250000 | AC84: 250000 | AD84: 0 | AE84: 250000 | AF84: -1.458077311e-15 | AG84: 250000 | AH84: 4e-06 | AI84: 4e-06 | AJ84: 2.332923697e-26 | AK84: 6.195513125e-06 | AL84: 2.561455862e-07 | AM84: 161269.3609 | AN84: 161131.7082 | AO84: -6661.784911 | AP84: 167471.7082 | AQ84: -733.6889338 | AR84: 167473.3154 | AS84: 0.9629555645 | AT84: 0.9629555644 | AU84: 0.9629313665 | AV84: -1000 | AW84: 369.9944227 | AX84: -2.608423099 | AY84: TRUE | AZ84: 1000 | BA84: =Strings!E100 -> -32.65623406 | BB84: =Strings!B100 -> -8.329229217 | BC84: =harmonics!BA59 -> 0.3984232578 | BD84: =harmonics!BB59 -> 0.7622995473 | BE84: -7.930805959 | BF84: -100 | BG84: -6.898784189 | BH84: -6.376758365 | BI84: -6.280329772 | BJ84: -6.940344722 | BK84: -8.238876727 | BL84: -10.45378315 | BM84: -6.280329772 | BN84: 1.120428071 | BO84: -2.280329772 | BQ84: 490000 | BR84: 27896.92225 | BS84: 2.037516887e-06 | BT84: 2.195513105e-06 | BU84: -1.158133771e-07 | BX84: 0.0001152107972 | BY84: 8.415416617e-05 | BZ84: -7.868674668e-05 | CA84: 3.719589633e-07 | CB84: 8.415416617e-05 | CC84: -7.831478772e-05 | CD84: 8698.898946 | CE84: 6368.016685 | CF84: 5926.145996
A85: 391.995436 | B85: 6340 | C85: 6280.598908 | D85: 3.940767942e-07 | E85: =Tone!BA86 -> 4.761904762e+13 | F85: =Tone!BB86 -> -17659.98384 | G85: 2.1e-14 | H85: 2.1e-14 | I85: 7.788052872e-24 | J85: 40000.02512 | K85: 1e-15 | L85: 2.462979964e-10 | M85: 4060122350 | N85: 16484.5935 | O85: -4060122350 | P85: 1e+15 | Q85: -4060122350 | R85: 1e-15 | S85: 1e-15 | T85: 2.462979964e-06 | U85: 40000.02512 | V85: 2.462979964e-06 | W85: 2.49999843e-05 | X85: 2.49999843e-05 | Y85: -1.539360544e-15 | Z85: 4e-06 | AA85: 0 | AB85: 250000 | AC85: 250000 | AD85: 0 | AE85: 250000 | AF85: -1.5447791e-15 | AG85: 250000 | AH85: 4e-06 | AI85: 4e-06 | AJ85: 2.471646559e-26 | AK85: 6.194708593e-06 | AL85: 2.71425323e-07 | AM85: 161273.3607 | AN85: 161118.7759 | AO85: -7059.527518 | AP85: 167458.7759 | AQ85: -778.9286102 | AR85: 167460.5874 | AS85: 0.9630526391 | AT85: 0.963052639 | AU85: 0.9637449974 | AV85: =IF(AY85,-1000,AX85) -> -1000 | AW85: 391.995436 | AX85: -2.576887228 | AY85: =OR(AW85<$K$26,AW85>$M$26,ISNA(AX85)) -> TRUE | AZ85: =IF(AV85=-1000,1000,AV85) -> 1000 | BA85: =Strings!E101 -> -50 | BB85: =Strings!B101 -> -8.830477075 | BC85: =harmonics!BA60 -> 0.6011552849 | BD85: =harmonics!BB60 -> 0.8751681466 | BE85: =(BA85*$BA$44+BB85*$BB$44+BC85*$BC$44+BD85*$BD$44) -> -8.22932179 | BF85: -100 | BG85: -7.055852362 | BH85: -6.449541652 | BI85: -6.256129963 | BJ85: -6.722447391 | BK85: -7.858575415 | BL85: -9.983863166 | BM85: -6.256129963 | BN85: 1.120428071 | BO85: -2.256129963 | BQ85: 490000 | BR85: 29555.75957 | BS85: 2.03711393e-06 | BT85: 2.194708573e-06 | BU85: -1.226514712e-07 | BX85: 0.0001120547375 | BY85: 7.960671506e-05 | BZ85: -7.886085925e-05 | CA85: 3.940767942e-07 | CB85: 7.960671506e-05 | CC85: -7.846678246e-05 | CD85: 8946.324421 | CE85: 6371.460414 | CF85: 6280.223947
A86: 415.3046976 | B86: 6340 | C86: 6654.062753 | D86: 4.175098198e-07 | E86: =Tone!BA87 -> 4.761904762e+13 | F86: =Tone!BB87 -> -16668.80511 | G86: 2.1e-14 | H86: 2.1e-14 | I86: 7.350943052e-24 | J86: 40000.02512 | K86: 1e-15 | L86: 2.609436374e-10 | M86: 3832245193 | N86: 14686.10322 | O86: -3832245193 | P86: 1e+15 | Q86: -3832245193 | R86: 1e-15 | S86: 1e-15 | T86: 2.609436374e-06 | U86: 40000.02512 | V86: 2.609436374e-06 | W86: 2.49999843e-05 | X86: 2.49999843e-05 | Y86: -1.630895685e-15 | Z86: 4e-06 | AA86: 0 | AB86: 250000 | AC86: 250000 | AD86: 0 | AE86: 250000 | AF86: -1.636636445e-15 | AG86: 250000 | AH86: 4e-06 | AI86: 4e-06 | AJ86: 2.618618312e-26 | AK86: 6.193806295e-06 | AL86: 2.876227736e-07 | AM86: 161277.8134 | AN86: 161104.2036 | AO86: -7481.22167 | AP86: 167444.2036 | AQ86: -827.1589171 | AR86: 167446.2466 | AS86: 0.963161711 | AT86: 0.9631617109 | AU86: 0.9646597117 | AV86: -2.569448672 | AW86: 415.3046976 | AX86: -2.569448672 | AY86: FALSE | AZ86: -2.569448672 | BA86: =Strings!E102 -> -50 | BB86: =Strings!B102 -> -9.331862149 | BC86: =harmonics!BA61 -> 0.7622995473 | BD86: =harmonics!BB61 -> 0.931679533 | BE86: -8.569562602 | BF86: =IF(BF$44,OFFSET($BE86,BF$31,0),-100) -> -100 | BG86: -7.234584806 | BH86: -6.537589678 | BI86: -6.25693149 | BJ86: -6.550620168 | BK86: -7.511845969 | BL86: -9.523780432 | BM86: -6.25693149 | BN86: 1.120428071 | BO86: -2.25693149 | BQ86: 490000 | BR86: 31313.23649 | BS86: 2.03666191e-06 | BT86: 2.193806274e-06 | BU86: -1.298870462e-07 | BX86: 0.0001088035895 | BY86: 7.505432164e-05 | BZ86: -7.877226594e-05 | CA86: 4.175098198e-07 | CB86: 7.505432164e-05 | CC86: -7.835475612e-05 | CD86: 9216.445417 | CE86: 6375.329195 | CF86: 6655.67756
A87: 440 | B87: 6340 | C87: 7049.733915 | D87: 4.423362456e-07 | E87: =Tone!BA88 -> 4.761904762e+13 | F87: =Tone!BB88 -> -15733.25696 | G87: 2.1e-14 | H87: 2.1e-14 | I87: 6.938366321e-24 | J87: 40000.02512 | K87: 1e-15 | L87: 2.764601535e-10 | M87: 3617157798 | N87: 13083.83053 | O87: -3617157797 | P87: 1e+15 | Q87: -3617157797 | R87: 1e-15 | S87: 1e-15 | T87: 2.764601535e-06 | U87: 40000.02512 | V87: 2.764601535e-06 | W87: 2.49999843e-05 | X87: 2.49999843e-05 | Y87: -1.727873789e-15 | Z87: 4e-06 | AA87: 0 | AB87: 250000 | AC87: 250000 | AD87: 0 | AE87: 250000 | AF87: -1.733955913e-15 | AG87: 250000 | AH87: 4e-06 | AI87: 4e-06 | AJ87: 2.77432946e-26 | AK87: 6.192794452e-06 | AL87: 3.047942201e-07 | AM87: 161282.765 | AN87: 161087.776 | AO87: -7928.346958 | AP87: 167427.776 | AQ87: -878.6130436 | AR87: 167430.0814 | AS87: 0.9632842775 | AT87: 0.9632842774 | AU87: 0.9656882672 | AV87: -2.582264718 | AW87: 440 | AX87: -2.582264718 | AY87: FALSE | AZ87: -2.582264718 | BA87: =Strings!E103 -> -14.55511259 | BB87: =Strings!B103 -> -9.833344297 | BC87: =harmonics!BA62 -> 0.8751681466 | BD87: =harmonics!BB62 -> 0.931679533 | BE87: -8.958176151 | BF87: -100 | BG87: -7.437704196 | BH87: -6.641186572 | BI87: -6.279003817 | BJ87: -6.422534565 | BK87: -7.204293928 | BL87: -9.076744583 | BM87: -6.279003817 | BN87: 1.120428071 | BO87: -2.279003817 | BQ87: 490000 | BR87: 33175.21842 | BS87: 2.036154894e-06 | BT87: 2.192794431e-06 | BU87: -1.375420256e-07 | BX87: 0.0001054711803 | BY87: 7.052723694e-05 | BZ87: -7.842243757e-05 | CA87: 4.423362456e-07 | CB87: 7.052723694e-05 | CC87: -7.798010132e-05 | CD87: 9510.883784 | CE87: 6379.67595 | CF87: 7053.839035
A88: 466.1637615 | B88: 6340 | C88: 7468.932908 | D88: 4.686389275e-07 | E88: =Tone!BA89 -> 4.761904762e+13 | F88: =Tone!BB89 -> -14850.2171 | G88: 2.1e-14 | H88: 2.1e-14 | I88: 6.548945742e-24 | J88: 40000.02512 | K88: 1e-15 | L88: 2.928993297e-10 | M88: 3414142330 | N88: 11656.36785 | O88: -3414142330 | P88: 1e+15 | Q88: -3414142330 | R88: 1e-15 | S88: 1e-15 | T88: 2.928993297e-06 | U88: 40000.02512 | V88: 2.928993297e-06 | W88: 2.49999843e-05 | X88: 2.49999843e-05 | Y88: -1.830618511e-15 | Z88: 4e-06 | AA88: 0 | AB88: 250000 | AC88: 250000 | AD88: 0 | AE88: 250000 | AF88: -1.837062297e-15 | AG88: 250000 | AH88: 4e-06 | AI88: 4e-06 | AJ88: 2.939299674e-26 | AK88: 6.191659896e-06 | AL88: 3.229996097e-07 | AM88: 161288.2645 | AN88: 161069.2478 | AO88: -8402.480924 | AP88: 167409.2478 | AQ88: -933.5480165 | AR88: 167411.8507 | AS88: 0.9634220268 | AT88: 0.9634220267 | AU88: 0.9668450836 | AV88: -2.612428604 | AW88: 466.1637615 | AX88: -2.612428604 | AY88: FALSE | AZ88: -2.612428604 | BA88: =Strings!E104 -> -50 | BB88: =Strings!B104 -> -10.33489511 | BC88: =harmonics!BA63 -> 0.931679533 | BD88: =harmonics!BB63 -> 0.931679533 | BE88: -9.403215576 | BF88: -100 | BG88: -7.66847927 | BH88: -6.761150502 | BI88: -6.319566468 | BJ88: -6.334103203 | BK88: -6.940344722 | BL88: -8.646806799 | BM88: -6.319566468 | BN88: 1.120428071 | BO88: -2.319566468 | BQ88: 490000 | BR88: 35147.91957 | BS88: 2.035586238e-06 | BT88: 2.191659876e-06 | BU88: -1.456393178e-07 | BX88: 0.0001020724086 | BY88: 6.605504365e-05 | BZ88: -7.781714342e-05 | CA88: 4.686389275e-07 | CB88: 6.605504365e-05 | CC88: -7.734850449e-05 | CD88: 9831.335229 | CE88: 6384.56031 | CF88: 7476.131488
A89: 493.8833013 | B89: 6340 | C89: 7913.05877 | D89: 4.965056483e-07 | E89: =Tone!BA90 -> 4.761904762e+13 | F89: =Tone!BB90 -> -14016.73846 | G89: 2.1e-14 | H89: 2.1e-14 | I89: 6.181381661e-24 | J89: 40000.02512 | K89: 1e-15 | L89: 3.103160302e-10 | M89: 3222521245 | N89: 10384.64318 | O89: -3222521245 | P89: 1e+15 | Q89: -3222521245 | R89: 1e-15 | S89: 1e-15 | T89: 3.103160302e-06 | U89: 40000.02512 | V89: 3.103160302e-06 | W89: 2.49999843e-05 | X89: 2.49999843e-05 | Y89: -1.939472753e-15 | Z89: 4e-06 | AA89: 0 | AB89: 250000 | AC89: 250000 | AD89: 0 | AE89: 250000 | AF89: -1.946299705e-15 | AG89: 250000 | AH89: 4e-06 | AI89: 4e-06 | AJ89: 3.114079528e-26 | AK89: 6.190387909e-06 | AL89: 3.423028316e-07 | AM89: 161294.364 | AN89: 161048.3386 | AO89: -8905.306607 | AP89: 167388.3386 | AQ89: -992.2478368 | AR89: 167391.2796 | AS89: 0.9635768629 | AT89: 0.9635768628 | AU89: 0.9681464729 | AV89: -2.56150842 | AW89: 493.8833013 | AX89: -2.56150842 | AY89: FALSE | AZ89: -2.56150842 | BA89: =Strings!E105 -> -11.54954806 | BB89: =Strings!B105 -> -10.83649448 | BC89: =harmonics!BA64 -> 0.9219449852 | BD89: =harmonics!BB64 -> 0.931679533 | BE89: -9.9145495 | BF89: -100 | BG89: -7.930805959 | BH89: -6.898784189 | BI89: -6.376758365 | BJ89: -6.280329772 | BK89: -6.722447391 | BL89: -8.238876727 | BM89: -6.280329772 | BN89: 1.120428071 | BO89: -2.280329772 | BQ89: 490000 | BR89: 37237.92362 | BS89: 2.034948511e-06 | BT89: 2.190387888e-06 | BU89: -1.542028167e-07 | BX89: 9.862292683e-05 | BY89: 6.166589395e-05 | BZ89: -7.696622129e-05 | CA89: 4.965056483e-07 | CB89: 6.166589395e-05 | CC89: -7.646971564e-05 | CD89: 10179.5738 | CE89: 6390.049499 | CF89: 7924.076613
A90: 523.2511306 | B90: 6340 | C90: 8383.59373 | D90: 5.260294105e-07 | E90: =Tone!BA91 -> 4.761904762e+13 | F90: =Tone!BB91 -> -13230.03938 | G90: 2.1e-14 | H90: 2.1e-14 | I90: 5.834447367e-24 | J90: 40000.02512 | K90: 1e-15 | L90: 3.287683816e-10 | M90: 3041655025 | N90: 9251.665293 | O90: -3041655025 | P90: 1e+15 | Q90: -3041655025 | R90: 1e-15 | S90: 1e-15 | T90: 3.287683816e-06 | U90: 40000.02512 | V90: 3.287683816e-06 | W90: 2.49999843e-05 | X90: 2.49999843e-05 | Y90: -2.054799804e-15 | Z90: 4e-06 | AA90: 0 | AB90: 250000 | AC90: 250000 | AD90: 0 | AE90: 250000 | AF90: -2.062032708e-15 | AG90: 250000 | AH90: 4e-06 | AI90: 4e-06 | AJ90: 3.299252333e-26 | AK90: 6.188962049e-06 | AL90: 3.627720199e-07 | AM90: 161301.1181 | AN90: 161024.7283 | AO90: -9438.620803 | AP90: 167364.7283 | AQ90: -1055.027073 | AR90: 167368.0536 | AS90: 0.9637509346 | AT90: 0.9637509345 | AU90: 0.9696109046 | AV90: -2.524180141 | AW90: 523.2511306 | AX90: -2.524180141 | AY90: FALSE | AZ90: -2.524180141 | BA90: =Strings!E106 -> -50 | BB90: =Strings!B106 -> -11.33812821 | BC90: =harmonics!BA65 -> 0.8336793805 | BD90: =harmonics!BB65 -> 0.931679533 | BE90: -10.50444883 | BF90: -100 | BG90: -8.22932179 | BH90: -7.055852362 | BI90: -6.449541652 | BJ90: -6.256129963 | BK90: -6.550620168 | BL90: -7.858575415 | BM90: -6.256129963 | BN90: 1.120428071 | BO90: -2.256129963 | BQ90: 490000 | BR90: 39452.20579 | BS90: 2.034233399e-06 | BT90: 2.188962028e-06 | BU90: -1.632573906e-07 | BX90: 9.513880409e-05 | BY90: 5.738582556e-05 | BZ90: -7.588319359e-05 | CA90: 5.260294105e-07 | CB90: 5.738582556e-05 | CC90: -7.535716418e-05 | CD90: 10557.45787 | CE90: 6396.219334 | CF90: 8399.303238
A91: 554.365262 | B91: 6340 | C91: 8882.108155 | D91: 5.57308747e-07 | E91: =Tone!BA92 -> 4.761904762e+13 | F91: =Tone!BB92 -> -12487.49433 | G91: 2.1e-14 | H91: 2.1e-14 | I91: 5.506984998e-24 | J91: 40000.02512 | K91: 1e-15 | L91: 3.483179669e-10 | M91: 2870940046 | N91: 8242.29675 | O91: -2870940046 | P91: 1e+15 | Q91: -2870940046 | R91: 1e-15 | S91: 1e-15 | T91: 3.483179669e-06 | U91: 40000.02512 | V91: 3.483179669e-06 | W91: 2.49999843e-05 | X91: 2.49999843e-05 | Y91: -2.176984559e-15 | Z91: 4e-06 | AA91: 0 | AB91: 250000 | AC91: 250000 | AD91: 0 | AE91: 250000 | AF91: -2.184647554e-15 | AG91: 250000 | AH91: 4e-06 | AI91: 4e-06 | AJ91: 3.495436085e-26 | AK91: 6.18736396e-06 | AL91: 3.844798875e-07 | AM91: 161308.583 | AN91: 160998.0498 | AO91: -10004.34312 | AP91: 167338.0498 | AQ91: -1122.234968 | AR91: 167341.8129 | AS91: 0.9639466681 | AT91: 0.963946668 | AU91: 0.9712593126 | AV91: -2.510227572 | AW91: 554.365262 | AX91: -2.510227572 | AY91: FALSE | AZ91: -2.510227572 | BA91: =Strings!E107 -> -11.72135426 | BB91: =Strings!B107 -> -11.83978622 | BC91: =harmonics!BA66 -> 0.6513343302 | BD91: =harmonics!BB66 -> 0.931679533 | BE91: -11.18845189 | BF91: -100 | BG91: -8.569562602 | BH91: -7.234584806 | BI91: -6.537589678 | BJ91: -6.25693149 | BK91: -6.422534565 | BL91: -7.511845969 | BM91: -6.25693149 | BN91: 1.120428071 | BO91: -2.25693149 | BQ91: 490000 | BR91: 41798.15602 | BS91: 2.033431611e-06 | BT91: 2.18736394e-06 | BU91: -1.728288595e-07 | BX91: 9.163618718e-05 | BY91: 5.323818968e-05 | BZ91: -7.458475689e-05 | CA91: 5.57308747e-07 | CB91: 5.323818968e-05 | CC91: -7.402744815e-05 | CD91: 10966.93781 | CE91: 6403.155381 | CF91: 8903.556935
A92: 587.3295358 | B92: 6340 | C92: 9410.265791 | D92: 5.904480496e-07 | E92: =Tone!BA93 -> 4.761904762e+13 | F92: =Tone!BB93 -> -11786.62513 | G92: 2.1e-14 | H92: 2.1e-14 | I92: 5.19790168e-24 | J92: 40000.02512 | K92: 1e-15 | L92: 3.69030031e-10 | M92: 2709806563 | N92: 7343.051609 | O92: -2709806563 | P92: 1000000000007343 | Q92: -2709806563 | R92: 1e-15 | S92: 1e-15 | T92: 3.69030031e-06 | U92: 40000.02512 | V92: 3.69030031e-06 | W92: 2.49999843e-05 | X92: 2.49999843e-05 | Y92: -2.306434797e-15 | Z92: 4e-06 | AA92: 0 | AB92: 250000 | AC92: 250000 | AD92: 0 | AE92: 250000 | AF92: -2.314553458e-15 | AG92: 250000 | AH92: 4e-06 | AI92: 4e-06 | AJ92: 3.703285531e-26 | AK92: 6.185573164e-06 | AL92: 4.07504094e-07 | AM92: 161316.8158 | AN92: 160967.8822 | AO92: -10604.52592 | AP92: 167307.8822 | AQ92: -1194.260134 | AR92: 167312.1445 | AS92: 0.9641668051 | AT92: 0.964166805 | AU92: 0.9731154516 | AV92: -2.515716446 | AW92: 587.3295358 | AX92: -2.515716446 | AY92: FALSE | AZ92: -2.515716446 | BA92: =Strings!E108 -> -50 | BB92: =Strings!B108 -> -12.3414614 | BC92: =harmonics!BA67 -> 0.3547740812 | BD92: =harmonics!BB67 -> 0.9219449852 | BE92: -11.98668732 | BF92: -100 | BG92: -8.958176151 | BH92: -7.437704196 | BI92: -6.641186572 | BJ92: -6.279003817 | BK92: -6.334103203 | BL92: -7.204293928 | BM92: -6.279003817 | BN92: 1.120428071 | BO92: -2.279003817 | BQ92: 490000 | BR92: 44283.60372 | BS92: 2.032532763e-06 | BT92: 2.185573144e-06 | BU92: -1.829439557e-07 | BX92: 8.813097401e-05 | BY92: 4.92432148e-05 | BZ92: -7.309017975e-05 | CA92: 5.904480496e-07 | CB92: 4.92432148e-05 | CC92: -7.249973171e-05 | CD92: 11410.06558 | CE92: 6410.954266 | CF92: 9438.710819
A93: 622.2539674 | B93: 6340 | C93: 9969.829313 | D93: 6.255579177e-07 | E93: =Tone!BA94 -> 4.761904762e+13 | F93: =Tone!BB94 -> -11125.09269 | G93: 2.1e-14 | H93: 2.1e-14 | I93: 4.906165876e-24 | J93: 40000.02512 | K93: 1e-15 | L93: 3.909736986e-10 | M93: 2557716807 | N93: 6541.915266 | O93: -2557716807 | P93: 1e+15 | Q93: -2557716807 | R93: 1e-15 | S93: 1e-15 | T93: 3.909736986e-06 | U93: 40000.02512 | V93: 3.909736986e-06 | W93: 2.49999843e-05 | X93: 2.49999843e-05 | Y93: -2.443582547e-15 | Z93: 4e-06 | AA93: 0 | AB93: 250000 | AC93: 250000 | AD93: 0 | AE93: 250000 | AF93: -2.452183968e-15 | AG93: 250000 | AH93: 4e-06 | AI93: 4e-06 | AJ93: 3.923494348e-26 | AK93: 6.183566831e-06 | AL93: 4.319276521e-07 | AM93: 161325.8731 | AN93: 160933.7411 | AO93: -11241.36519 | AP93: 167273.7411 | AQ93: -1271.535879 | AR93: 167278.5738 | AS93: 0.9644144456 | AT93: 0.9644144455 | AU93: 0.9752063111 | AV93: -2.498399708 | AW93: 622.2539674 | AX93: -2.498399708 | AY93: FALSE | AZ93: -2.498399708 | BA93: =Strings!E109 -> -14.40934572 | BB93: =Strings!B109 -> -12.84314874 | BC93: =harmonics!BA68 -> -0.08283957282 | BD93: =harmonics!BB68 -> 0.8336793805 | BE93: -12.92598831 | BF93: -100 | BG93: -9.403215576 | BH93: -7.66847927 | BI93: -6.761150502 | BJ93: -6.319566468 | BK93: -6.280329772 | BL93: -6.940344722 | BM93: -6.280329772 | BN93: 1.120428071 | BO93: -2.280329772 | BQ93: 490000 | BR93: 46916.84383 | BS93: 2.031525258e-06 | BT93: 2.18356681e-06 | BU93: -1.936302656e-07 | BX93: 8.463851392e-05 | BY93: 4.541771877e-05 | BZ93: -7.14206473e-05 | CA93: 6.255579177e-07 | CB93: 4.541771877e-05 | CC93: -7.079508938e-05 | CD93: 11889.00639 | CE93: 6419.725189 | CF93: 10006.77777
A94: 659.2551138 | B94: 6340 | C94: 10562.66621 | D94: 6.627555272e-07 | E94: =Tone!BA95 -> 4.761904762e+13 | F94: =Tone!BB95 -> -10500.68922 | G94: 2.1e-14 | H94: 2.1e-14 | I94: 4.630803944e-24 | J94: 40000.02512 | K94: 1e-15 | L94: 4.142222045e-10 | M94: 2414163193 | N94: 5828.183925 | O94: -2414163193 | P94: 1e+15 | Q94: -2414163193 | R94: 1e-15 | S94: 1e-15 | T94: 4.142222045e-06 | U94: 40000.02512 | V94: 4.142222045e-06 | W94: 2.49999843e-05 | X94: 2.49999843e-05 | Y94: -2.588885526e-15 | Z94: 4e-06 | AA94: 0 | AB94: 250000 | AC94: 250000 | AD94: 0 | AE94: 250000 | AF94: -2.597998415e-15 | AG94: 250000 | AH94: 4e-06 | AI94: 4e-06 | AJ94: 4.156797463e-26 | AK94: 6.18131953e-06 | AL94: 4.578393779e-07 | AM94: 161335.8085 | AN94: 160895.0688 | AO94: -11917.21247 | AP94: 167235.0688 | AQ94: -1354.546255 | AR94: 167240.5543 | AS94: 0.9646930981 | AT94: 0.964693098 | AU94: 0.9775625998 | AV94: -2.453238408 | AW94: 659.2551138 | AX94: -2.453238408 | AY94: FALSE | AZ94: -2.453238408 | BA94: =Strings!E110 -> -50 | BB94: =Strings!B110 -> -13.34484466 | BC94: =harmonics!BA69 -> -0.6986147315 | BD94: =harmonics!BB69 -> 0.6513343302 | BE94: -14.04345939 | BF94: -100 | BG94: -9.9145495 | BH94: -7.930805959 | BI94: -6.898784189 | BJ94: -6.376758365 | BK94: -6.256129963 | BL94: -6.722447391 | BM94: -6.256129963 | BN94: 1.120428071 | BO94: -2.256129963 | BQ94: 490000 | BR94: 49706.66454 | BS94: 2.030396155e-06 | BT94: 2.18131951e-06 | BU94: -2.049161493e-07 | BX94: 8.117334567e-05 | BY94: 4.177497038e-05 | BZ94: -6.95985912e-05 | CA94: 6.627555272e-07 | CB94: 4.177497038e-05 | CC94: -6.893583567e-05 | CD94: 12406.05267 | CE94: 6429.591657 | CF94: 10609.92431
A95: 698.4564629 | B95: 6340 | C95: 11190.75503 | D95: 7.021650216e-07 | E95: =Tone!BA96 -> 4.761904762e+13 | F95: =Tone!BB96 -> -9911.330816 | G95: 2.1e-14 | H95: 2.1e-14 | I95: 4.37089689e-24 | J95: 40000.02512 | K95: 1e-15 | L95: 4.388531385e-10 | M95: 2278666625 | N95: 5192.321588 | O95: -2278666625 | P95: 1e+15 | Q95: -2278666625 | R95: 1e-15 | S95: 1e-15 | T95: 4.388531385e-06 | U95: 40000.02512 | V95: 4.388531385e-06 | W95: 2.49999843e-05 | X95: 2.49999843e-05 | Y95: -2.742828671e-15 | Z95: 4e-06 | AA95: 0 | AB95: 250000 | AC95: 250000 | AD95: 0 | AE95: 250000 | AF95: -2.75248344e-15 | AG95: 250000 | AH95: 4e-06 | AI95: 4e-06 | AJ95: 4.403973503e-26 | AK95: 6.178802963e-06 | AL95: 4.853343902e-07 | AM95: 161346.6704 | AN95: 160851.2209 | AO95: -12634.58791 | AP95: 167191.2209 | AQ95: -1443.832873 | AR95: 167197.4551 | AS95: 0.9650067363 | AT95: 0.9650067362 | AU95: 0.9802193132 | AV95: -2.430466388 | AW95: 698.4564629 | AX95: -2.430466388 | AY95: FALSE | AZ95: -2.430466388 | BA95: =Strings!E111 -> -21.33467875 | BB95: =Strings!B111 -> -13.84654666 | BC95: =harmonics!BA70 -> -1.546368129 | BD95: =harmonics!BB70 -> 0.3547740812 | BE95: -15.39291479 | BF95: -100 | BG95: -10.50444883 | BH95: -8.22932179 | BI95: -7.055852362 | BJ95: -6.449541652 | BK95: -6.25693149 | BL95: -6.550620168 | BM95: -6.25693149 | BN95: 1.120428071 | BO95: -2.25693149 | BQ95: 490000 | BR95: 52662.37662 | BS95: 2.029131019e-06 | BT95: 2.178802942e-06 | BU95: -2.168306315e-07 | BX95: 7.77489809e-05 | BY95: 3.832469155e-05 | BZ95: -6.76470402e-05 | CA95: 7.021650216e-07 | CB95: 3.832469155e-05 | CC95: -6.694487518e-05 | CD95: 12963.64058 | CE95: 6440.693488 | CF95: 11250.48641
A96: 739.9888454 | B96: 6340 | C96: 11856.19195 | D96: 7.439179266e-07 | E96: =Tone!BA97 -> 4.761904762e+13 | F96: =Tone!BB97 -> -9355.050561 | G96: 2.1e-14 | H96: 2.1e-14 | I96: 4.125577298e-24 | J96: 40000.02512 | K96: 1e-15 | L96: 4.649487041e-10 | M96: 2150774894 | N96: 4625.832647 | O96: -2150774894 | P96: 1e+15 | Q96: -2150774894 | R96: 1e-15 | S96: 1e-15 | T96: 4.649487041e-06 | U96: 40000.02512 | V96: 4.649487041e-06 | W96: 2.49999843e-05 | X96: 2.49999843e-05 | Y96: -2.905925751e-15 | Z96: 4e-06 | AA96: 0 | AB96: 250000 | AC96: 250000 | AD96: 0 | AE96: 250000 | AF96: -2.916154622e-15 | AG96: 250000 | AH96: 4e-06 | AI96: 4e-06 | AJ96: 4.665847395e-26 | AK96: 6.17598567e-06 | AL96: 5.145146658e-07 | AM96: 161358.4981 | AN96: 160801.4517 | AO96: -13396.19449 | AP96: 167141.4517 | AQ96: -1540.002533 | AR96: 167148.5462 | AS96: 0.9653598656 | AT96: 0.9653598655 | AU96: 0.9832164015 | AV96: -2.426021525 | AW96: 739.9888454 | AX96: -2.426021525 | AY96: FALSE | AZ96: -2.426021525 | BA96: =Strings!E112 -> -32.67170099 | BB96: =Strings!B112 -> -14.34825295 | BC96: =harmonics!BA71 -> -2.709304563 | BD96: =harmonics!BB71 -> -0.08283957282 | BE96: -17.05755751 | BF96: =IF(BF$44,OFFSET($BE96,BF$31,0),-100) -> -100 | BG96: -11.18845189 | BH96: -8.569562602 | BI96: -7.234584806 | BJ96: -6.537589678 | BK96: -6.279003817 | BL96: -6.422534565 | BM96: -6.279003817 | BN96: 1.120428071 | BO96: -2.279003817 | BQ96: 490000 | BR96: 55793.84449 | BS96: 2.027713766e-06 | BT96: 2.175985649e-06 | BU96: -2.294032607e-07 | BX96: 7.437773729e-05 | BY96: 3.507318308e-05 | BZ96: -6.558902068e-05 | CA96: 7.439179266e-07 | CB96: 3.507318308e-05 | CC96: -6.484510275e-05 | CD96: 13564.36931 | CE96: 6453.189129 | CF96: 11930.98759
A97: 783.990872 | B97: 6340 | C97: 12561.19782 | D97: 7.881535884e-07 | E97: =Tone!BA98 -> 4.761904762e+13 | F97: =Tone!BB98 -> -8829.991919 | G97: 2.1e-14 | H97: 2.1e-14 | I97: 3.894026436e-24 | J97: 40000.02512 | K97: 1e-15 | L97: 4.925959928e-10 | M97: 2030061175 | N97: 4121.148375 | O97: -2030061175 | P97: 1e+15 | Q97: -2030061175 | R97: 1e-15 | S97: 1e-15 | T97: 4.925959928e-06 | U97: 40000.02512 | V97: 4.925959928e-06 | W97: 2.49999843e-05 | X97: 2.49999843e-05 | Y97: -3.078721088e-15 | Z97: 4e-06 | AA97: 0 | AB97: 250000 | AC97: 250000 | AD97: 0 | AE97: 250000 | AF97: -3.0895582e-15 | AG97: 250000 | AH97: 4e-06 | AI97: 4e-06 | AJ97: 4.943293118e-26 | AK97: 6.172832724e-06 | AL97: 5.45489658e-07 | AM97: 161371.3165 | AN97: 160744.8962 | AO97: -14204.93352 | AP97: 167084.8962 | AQ97: -1643.735705 | AR97: 167092.9814 | AS97: 0.9657575994 | AT97: 0.9657575993 | AU97: 0.9865995598 | AV97: -2.436748121 | AW97: 783.990872 | AX97: -2.436748121 | AY97: FALSE | AZ97: -2.436748121 | BA97: =Strings!E113 -> -19.21016388 | BB97: =Strings!B113 -> -14.84996227 | BC97: =harmonics!BA72 -> -4.328095322 | BD97: =harmonics!BB72 -> -0.6986147315 | BE97: -19.1780576 | BF97: -100 | BG97: -11.98668732 | BH97: -8.958176151 | BI97: -7.437704196 | BJ97: -6.641186572 | BK97: -6.319566468 | BL97: -6.334103203 | BM97: -6.319566468 | BN97: 1.120428071 | BO97: -2.319566468 | BQ97: 490000 | BR97: 59111.51913 | BS97: 2.026126485e-06 | BT97: 2.172832703e-06 | BU97: -2.426639304e-07 | BX97: 7.10706223e-05 | BY97: 3.202355146e-05 | BZ97: -6.344702913e-05 | CA97: 7.881535884e-07 | CB97: 3.202355146e-05 | CC97: -6.265887554e-05 | CD97: 14211.0235 | CE97: 6467.25834 | CF97: 12654.15973
A98: 830.6093952 | B98: 6340 | C98: 13308.12551 | D98: 8.350196396e-07 | E98: =Tone!BA99 -> 4.761904762e+13 | F98: =Tone!BB99 -> -8334.402553 | G98: 2.1e-14 | H98: 2.1e-14 | I98: 3.675471526e-24 | J98: 40000.02512 | K98: 1e-15 | L98: 5.218872748e-10 | M98: 1916122596 | N98: 3671.525805 | O98: -1916122596 | P98: 1e+15 | Q98: -1916122596 | R98: 1e-15 | S98: 1e-15 | T98: 5.218872748e-06 | U98: 40000.02512 | V98: 5.218872748e-06 | W98: 2.49999843e-05 | X98: 2.49999843e-05 | Y98: -3.26179137e-15 | Z98: 4e-06 | AA98: 0 | AB98: 250000 | AC98: 250000 | AD98: 0 | AE98: 250000 | AF98: -3.27327289e-15 | AG98: 250000 | AH98: 4e-06 | AI98: 4e-06 | AJ98: 5.237236624e-26 | AK98: 6.169305396e-06 | AL98: 5.783769857e-07 | AM98: 161385.1306 | AN98: 160680.5485 | AO98: -15063.92135 | AP98: 167020.5485 | AQ98: -1755.795845 | AR98: 167029.7771 | AS98: 0.9662057475 | AT98: 0.9662057474 | AU98: 0.9904211657 | AV98: -2.363931515 | AW98: 830.6093952 | AX98: -2.363931515 | AY98: FALSE | AZ98: -2.363931515 | BA98: =Strings!E114 -> -50 | BB98: =Strings!B114 -> -15.35167375 | BC98: =harmonics!BA73 -> -6.674511343 | BD98: =harmonics!BB73 -> -1.546368129 | BE98: -22.02618509 | BF98: -100 | BG98: -12.92598831 | BH98: -9.403215576 | BI98: -7.66847927 | BJ98: -6.761150502 | BK98: -6.376758365 | BL98: -6.280329772 | BM98: -6.280329772 | BN98: 1.120428071 | BO98: -2.280329772 | BQ98: 490000 | BR98: 62626.47297 | BS98: 2.024349254e-06 | BT98: 2.169305375e-06 | BU98: -2.566426539e-07 | BX98: 6.783726555e-05 | BY98: 2.917601174e-05 | BZ98: -6.124259086e-05 | CA98: 8.350196396e-07 | CB98: 2.917601174e-05 | CC98: -6.040757122e-05 | CD98: 14906.59925 | CE98: 6483.105324 | CF98: 13422.96713
A99: 880 | B99: 6340 | C99: 14099.46783 | D99: 8.846724913e-07 | E99: =Tone!BA100 -> 4.761904762e+13 | F99: =Tone!BB100 -> -7866.628482 | G99: 2.1e-14 | H99: 2.1e-14 | I99: 3.46918316e-24 | J99: 40000.02512 | K99: 1e-15 | L99: 5.52920307e-10 | M99: 1808578899 | N99: 3270.957633 | O99: -1808578899 | P99: 1000000000003271 | Q99: -1808578899 | R99: 1e-15 | S99: 1e-15 | T99: 5.52920307e-06 | U99: 40000.02512 | V99: 5.52920307e-06 | W99: 2.49999843e-05 | X99: 2.49999843e-05 | Y99: -3.455747578e-15 | Z99: 4e-06 | AA99: 0 | AB99: 250000 | AC99: 250000 | AD99: 0 | AE99: 250000 | AF99: -3.467911825e-15 | AG99: 250000 | AH99: 4e-06 | AI99: 4e-06 | AJ99: 5.548658919e-26 | AK99: 6.165360811e-06 | AL99: 6.133032035e-07 | AM99: 161399.9162 | AN99: 160607.2357 | AO99: -15976.50732 | AP99: 166947.2357 | AQ99: -1877.039495 | AR99: 166957.7874 | AS99: 0.9667109194 | AT99: 0.9667109193 | AU99: 0.9947413988 | AV99: -2.30192611 | AW99: 880 | AX99: -2.30192611 | AY99: FALSE | AZ99: -2.30192611 | BA99: =Strings!E115 -> -16.18239719 | BB99: =Strings!B115 -> -15.85338674 | BC99: =harmonics!BA74 -> -10.40509965 | BD99: =harmonics!BB74 -> -2.709304563 | BE99: -26.25848639 | BF99: -100 | BG99: -14.04345939 | BH99: -9.9145495 | BI99: -7.930805959 | BJ99: -6.898784189 | BK99: -6.449541652 | BL99: -6.256129963 | BM99: -6.256129963 | BN99: 1.120428071 | BO99: -2.256129963 | BQ99: 490000 | BR99: 66350.43684 | BS99: 2.022359941e-06 | BT99: 2.16536079e-06 | BU99: -2.713692878e-07 | BX99: 6.468589575e-05 | BY99: 2.652824079e-05 | BZ99: -5.89959113e-05 | CA99: 8.846724913e-07 | CB99: 2.652824079e-05 | CC99: -5.81112388e-05 | CD99: 15654.3342 | CE99: 6500.962384 | CF99: 14240.63437
A100: 932.327523 | B100: 6340 | C100: 14937.86582 | D100: 9.372778551e-07 | E100: =Tone!BA101 -> 4.761904762e+13 | F100: =Tone!BB101 -> -7425.108551 | G100: 2.1e-14 | H100: 2.1e-14 | I100: 3.274472871e-24 | J100: 40000.02512 | K100: 1e-15 | L100: 5.857986594e-10 | M100: 1707071165 | N100: 2914.091962 | O100: -1707071165 | P100: 1e+15 | Q100: -1707071165 | R100: 1e-15 | S100: 1e-15 | T100: 5.857986594e-06 | U100: 40000.02512 | V100: 5.857986594e-06 | W100: 2.49999843e-05 | X100: 2.49999843e-05 | Y100: -3.661237023e-15 | Z100: 4e-06 | AA100: 0 | AB100: 250000 | AC100: 250000 | AD100: 0 | AE100: 250000 | AF100: -3.674124593e-15 | AG100: 250000 | AH100: 4e-06 | AI100: 4e-06 | AJ100: 5.878599348e-26 | AK100: 6.160951584e-06 | AL100: 6.504046614e-07 | AM100: 161415.6097 | AN100: 160523.5877 | AO100: -16946.29284 | AP100: 166863.5877 | AQ100: -2008.427025 | AR100: 166875.6744 | AS100: 0.9672806438 | AT100: 0.9672806437 | AU100: 0.9996295817 | AV100: -2.260149499 | AW100: 932.327523 | AX100: -2.260149499 | AY100: FALSE | AZ100: -2.260149499 | BA100: =Strings!E116 -> -16.22047409 | BB100: =Strings!B116 -> -16.35510081 | BC100: =harmonics!BA75 -> -18.10499948 | BD100: =harmonics!BB75 -> -4.328095322 | BE100: -34.46010029 | BF100: -100 | BG100: -15.39291479 | BH100: -10.50444883 | BI100: -8.22932179 | BJ100: -7.055852362 | BK100: -6.537589678 | BL100: -6.25693149 | BM100: -6.25693149 | BN100: 1.120428071 | BO100: -2.25693149 | BQ100: 490000 | BR100: 70295.83913 | BS100: 2.020133983e-06 | BT100: 2.160951564e-06 | BU100: -2.868731937e-07 | BX100: 6.162335633e-05 | BY100: 2.407575721e-05 | BZ100: -5.672561996e-05 | CA100: 9.372778551e-07 | CB100: 2.407575721e-05 | CC100: -5.578834211e-05 | CD100: 16457.74237 | CE100: 6521.094204 | CF100: 15110.67881
A101: 987.7666025 | B101: 6340 | C101: 15826.11754 | D101: 9.930112966e-07 | E101: =Tone!BA102 -> 4.761904762e+13 | F101: =Tone!BB102 -> -7008.36923 | G101: 2.1e-14 | H101: 2.1e-14 | I101: 3.090690831e-24 | J101: 40000.02512 | K101: 1e-15 | L101: 6.206320604e-10 | M101: 1611260623 | N101: 2596.160794 | O101: -1611260623 | P101: 1e+15 | Q101: -1611260623 | R101: 1e-15 | S101: 1e-15 | T101: 6.206320604e-06 | U101: 40000.02512 | V101: 6.206320604e-06 | W101: 2.49999843e-05 | X101: 2.49999843e-05 | Y101: -3.878945505e-15 | Z101: 4e-06 | AA101: 0 | AB101: 250000 | AC101: 250000 | AD101: 0 | AE101: 250000 | AF101: -3.892599411e-15 | AG101: 250000 | AH101: 4e-06 | AI101: 4e-06 | AJ101: 6.228159056e-26 | AK101: 6.156025449e-06 | AL101: 6.898284659e-07 | AM101: 161432.0943 | AN101: 160427.9998 | AO101: -17977.15131 | AP101: 166767.9998 | AQ101: -2151.033772 | AR101: 166781.8716 | AS101: 0.9679235086 | AT101: 0.9679235085 | AU101: 1.005165798 | AV101: -2.234249764 | AW101: 987.7666025 | AX101: -2.234249764 | AY101: FALSE | AZ101: -2.234249764 | BA101: =Strings!E117 -> -18.88821271 | BB101: =Strings!B117 -> -16.85681564 | BC101: =harmonics!BA76 -> -23.82361153 | BD101: =harmonics!BB76 -> -6.674511343 | BE101: -40.68042717 | BF101: -100 | BG101: -17.05755751 | BH101: -11.18845189 | BI101: -8.569562602 | BJ101: -7.234584806 | BK101: -6.641186572 | BL101: -6.279003817 | BM101: -6.279003817 | BN101: 1.120428071 | BO101: -2.279003817 | BQ101: 490000 | BR101: 74475.84725 | BS101: 2.017644164e-06 | BT101: 2.156025428e-06 | BU101: -3.031828307e-07 | BX101: 5.865515311e-05 | BY101: 2.181230709e-05 | BZ101: -5.444860187e-05 | CA101: 9.930112966e-07 | CB101: 2.181230709e-05 | CC101: -5.345559057e-05 | CD101: 17320.65469 | CE101: 6543.802906 | CF101: 16036.94866
A102: 1046.502261 | B102: 6340 | C102: 16767.18746 | D102: 1.052058821e-06 | E102: =Tone!BA103 -> 4.761904762e+13 | F102: =Tone!BB103 -> -6615.01969 | G102: 2.1e-14 | H102: 2.1e-14 | I102: 2.917223683e-24 | J102: 40000.02512 | K102: 1e-15 | L102: 6.575367632e-10 | M102: 1520827513 | N102: 2312.916323 | O102: -1520827513 | P102: 1e+15 | Q102: -1520827513 | R102: 1e-15 | S102: 1e-15 | T102: 6.575367632e-06 | U102: 40000.02512 | V102: 6.575367632e-06 | W102: 2.49999843e-05 | X102: 2.49999843e-05 | Y102: -4.109599608e-15 | Z102: 4e-06 | AA102: 0 | AB102: 250000 | AC102: 250000 | AD102: 0 | AE102: 250000 | AF102: -4.124065417e-15 | AG102: 250000 | AH102: 4e-06 | AI102: 4e-06 | AJ102: 6.598504665e-26 | AK102: 6.150524881e-06 | AL102: 7.317335544e-07 | AM102: 161449.1823 | AN102: 160318.5879 | AO102: -19073.24862 | AP102: 166658.5879 | AQ102: -2306.06116 | AR102: 166674.5417 | AS102: 0.9686493247 | AT102: 0.9686493246 | AU102: 1.01144285 | AV102: -2.220739499 | AW102: 1046.502261 | AX102: -2.220739499 | AY102: FALSE | AZ102: -2.220739499 | BA102: =Strings!E118 -> -26.39954868 | BB102: =Strings!B118 -> -17.358531 | BC102: =harmonics!BA77 -> -11.75294473 | BD102: =harmonics!BB77 -> -4.043537788 | BE102: -29.11147573 | BF102: -100 | BG102: -19.1780576 | BH102: -11.98668732 | BI102: -8.958176151 | BJ102: -7.437704196 | BK102: -6.761150502 | BL102: -6.319566468 | BM102: -6.319566468 | BN102: 1.120428071 | BO102: -2.319566468 | BQ102: 490000 | BR102: 78904.41158 | BS102: 2.014860373e-06 | BT102: 2.15052486e-06 | BU102: -3.203252667e-07 | BX102: 5.578552716e-05 | BY102: 1.973023876e-05 | BZ102: -5.217990724e-05 | CA102: 1.052058821e-06 | CB102: 1.973023876e-05 | CC102: -5.112784841e-05 | CD102: 18247.26618 | CE102: 6569.434024 | CF102: 17023.66763
A103: 1108.730524 | B103: 6340 | C103: 17764.21631 | D103: 1.114617494e-06 | E103: =Tone!BA104 -> 4.761904762e+13 | F103: =Tone!BB104 -> -6243.747164 | G103: 2.1e-14 | H103: 2.1e-14 | I103: 2.753492499e-24 | J103: 40000.02512 | K103: 1e-15 | L103: 6.966359337e-10 | M103: 1435470023 | N103: 2060.574188 | O103: -1435470023 | P103: 1e+15 | Q103: -1435470023 | R103: 1e-15 | S103: 1e-15 | T103: 6.966359337e-06 | U103: 40000.02512 | V103: 6.966359337e-06 | W103: 2.49999843e-05 | X103: 2.49999843e-05 | Y103: -4.353969117e-15 | Z103: 4e-06 | AA103: 0 | AB103: 250000 | AC103: 250000 | AD103: 0 | AE103: 250000 | AF103: -4.369295108e-15 | AG103: 250000 | AH103: 4e-06 | AI103: 4e-06 | AJ103: 6.990872171e-26 | AK103: 6.144386726e-06 | AL103: 7.762918939e-07 | AM103: 161466.5927 | AN103: 160193.1361 | AO103: -20239.06348 | AP103: 166533.1361 | AQ103: -2474.847174 | AR103: 166551.5244 | AS103: 0.9694693172 | AT103: 0.9694693171 | AU103: 1.018568645 | AV103: -2.216952304 | AW103: 1108.730524 | AX103: -2.216952304 | AY103: FALSE | AZ103: -2.216952304 | BA103: =Strings!E119 -> -32.69750375 | BB103: =Strings!B119 -> -17.86024674 | BC103: =harmonics!BA78 -> -6.942642232 | BD103: =harmonics!BB78 -> -2.14907352 | BE103: -24.80288898 | BF103: -100 | BG103: -22.02618509 | BH103: -12.92598831 | BI103: -9.403215576 | BJ103: -7.66847927 | BK103: -6.898784189 | BL103: -6.376758365 | BM103: -6.376758365 | BN103: 1.120428071 | BO103: -2.376758365 | BQ103: 490000 | BR103: 83596.31205 | BS103: 2.011749357e-06 | BT103: 2.144386705e-06 | BU103: -3.383256001e-07 | BX103: 5.301754604e-05 | BY103: 1.782085359e-05 | BZ103: -4.99327284e-05 | CA103: 1.114617494e-06 | CB103: 1.782085359e-05 | CC103: -4.88181109e-05 | CD103: 19242.19136 | CE103: 6598.383613 | CF103: 18075.48787
A104: 1174.659072 | B104: 6340 | C104: 18820.53158 | D104: 1.180896099e-06 | E104: =Tone!BA105 -> 4.761904762e+13 | F104: =Tone!BB105 -> -5893.312563 | G104: 2.1e-14 | H104: 2.1e-14 | I104: 2.59895084e-24 | J104: 40000.02512 | K104: 1e-15 | L104: 7.38060062e-10 | M104: 1354903282 | N104: 1835.762902 | O104: -1354903282 | P104: 1e+15 | Q104: -1354903282 | R104: 1e-15 | S104: 1e-15 | T104: 7.38060062e-06 | U104: 40000.02512 | V104: 7.38060062e-06 | W104: 2.49999843e-05 | X104: 2.49999843e-05 | Y104: -4.612869594e-15 | Z104: 4e-06 | AA104: 0 | AB104: 250000 | AC104: 250000 | AD104: 0 | AE104: 250000 | AF104: -4.629106915e-15 | AG104: 250000 | AH104: 4e-06 | AI104: 4e-06 | AJ104: 7.406571063e-26 | AK104: 6.137541848e-06 | AL104: 8.236898197e-07 | AM104: 161483.9235 | AN104: 160049.0319 | AO104: -21479.40682 | AP104: 166389.0319 | AQ104: -2658.875244 | AR104: 166410.2748 | AS104: 0.9703963511 | AT104: 0.970396351 | AU104: 1.02666912 | AV104: -2.220931657 | AW104: 1174.659072 | AX104: -2.220931657 | AY104: FALSE | AZ104: -2.220931657 | BA104: =Strings!E120 -> -21.86859987 | BB104: =Strings!B120 -> -18.36196275 | BC104: =harmonics!BA79 -> -4.043537788 | BD104: =harmonics!BB79 -> -0.9614287961 | BE104: -22.40550054 | BF104: -100 | BG104: -26.25848639 | BH104: -14.04345939 | BI104: -9.9145495 | BJ104: -7.930805959 | BK104: -7.055852362 | BL104: -6.449541652 | BM104: -6.449541652 | BN104: 1.120428071 | BO104: -2.449541652 | BQ104: 490000 | BR104: 88567.20744 | BS104: 2.008274467e-06 | BT104: 2.137541827e-06 | BU104: -3.572062795e-07 | BX104: 5.035320715e-05 | BY104: 1.607472428e-05 | BZ104: -4.771843155e-05 | CA104: 1.180896099e-06 | CB104: 1.607472428e-05 | CC104: -4.653753545e-05 | CD104: 20310.5294 | CE104: 6631.106757 | CF104: 19197.55265
A105: 1244.507935 | B105: 6340 | C105: 19939.65863 | D105: 1.251115835e-06 | E105: =Tone!BA106 -> 4.761904762e+13 | F105: =Tone!BB106 -> -5562.546344 | G105: 2.1e-14 | H105: 2.1e-14 | I105: 2.453082938e-24 | J105: 40000.02512 | K105: 1e-15 | L105: 7.819473971e-10 | M105: 1278858404 | N105: 1635.478817 | O105: -1278858404 | P105: 1e+15 | Q105: -1278858404 | R105: 1e-15 | S105: 1e-15 | T105: 7.819473971e-06 | U105: 40000.02512 | V105: 7.819473971e-06 | W105: 2.49999843e-05 | X105: 2.49999843e-05 | Y105: -4.887165094e-15 | Z105: 4e-06 | AA105: 0 | AB105: 250000 | AC105: 250000 | AD105: 0 | AE105: 250000 | AF105: -4.904367936e-15 | AG105: 250000 | AH105: 4e-06 | AI105: 4e-06 | AJ105: 7.846988696e-26 | AK105: 6.129914801e-06 | AL105: 8.741295242e-07 | AM105: 161500.6164 | AN105: 159883.1908 | AO105: -22799.43882 | AP105: 166223.1908 | AQ105: -2859.780193 | AR105: 166247.7894 | AS105: 0.9714451961 | AT105: 0.971445196 | AU105: 1.035891835 | AV105: -2.231301478 | AW105: 1244.507935 | AX105: -2.231301478 | AY105: FALSE | AZ105: -2.231301478 | BA105: =Strings!E121 -> -19.08853072 | BB105: =Strings!B121 -> -18.86367896 | BC105: =harmonics!BA80 -> -2.14907352 | BD105: =harmonics!BB80 -> -0.3798660553 | BE105: -21.01275248 | BF105: -100 | BG105: -34.46010029 | BH105: -15.39291479 | BI105: -10.50444883 | BJ105: -8.22932179 | BK105: -7.234584806 | BL105: -6.537589678 | BM105: -6.537589678 | BN105: 1.120428071 | BO105: -2.537589678 | BQ105: 490000 | BR105: 93833.68765 | BS105: 2.004395404e-06 | BT105: 2.12991478e-06 | BU105: -3.769863111e-07 | BX105: 4.779354786e-05 | BY105: 1.44819752e-05 | BZ105: -4.554663118e-05 | CA105: 1.251115835e-06 | CB105: 1.44819752e-05 | CC105: -4.429551534e-05 | CD105: 21457.94152 | CE105: 6668.12779 | CF105: 20395.57124
A106: 1318.510228 | B106: 6340 | C106: 21125.33243 | D106: 1.325511054e-06 | E106: =Tone!BA107 -> 4.761904762e+13 | F106: =Tone!BB107 -> -5250.344608 | G106: 2.1e-14 | H106: 2.1e-14 | I106: 2.315401972e-24 | J106: 40000.02512 | K106: 1e-15 | L106: 8.28444409e-10 | M106: 1207081597 | N106: 1457.045981 | O106: -1207081597 | P106: 1000000000001457 | Q106: -1207081597 | R106: 1e-15 | S106: 1e-15 | T106: 8.28444409e-06 | U106: 40000.02512 | V106: 8.28444409e-06 | W106: 2.49999843e-05 | X106: 2.49999843e-05 | Y106: -5.177771053e-15 | Z106: 4e-06 | AA106: 0 | AB106: 250000 | AC106: 250000 | AD106: 0 | AE106: 250000 | AF106: -5.19599683e-15 | AG106: 250000 | AH106: 4e-06 | AI106: 4e-06 | AJ106: 8.313594926e-26 | AK106: 6.121423554e-06 | AL106: 9.278307117e-07 | AM106: 161515.913 | AN106: 159691.9645 | AO106: -24204.68177 | AP106: 166031.9645 | AQ106: -3079.349338 | AR106: 166060.518 | AS106: 0.9726328386 | AT106: 0.9726328385 | AU106: 1.046410426 | AV106: -2.247145411 | AW106: 1318.510228 | AX106: -2.247145411 | AY106: FALSE | AZ106: -2.247145411 | BA106: =Strings!E122 -> -19.23681326 | BB106: =Strings!B122 -> -19.36539529 | BC106: =harmonics!BA81 -> -0.9614287961 | BD106: =harmonics!BB81 -> -0.3798660553 | BE106: -20.32682409 | BF106: =IF(BF$44,OFFSET($BE106,BF$31,0),-100) -> -100 | BG106: -40.68042717 | BH106: -17.05755751 | BI106: -11.18845189 | BJ106: -8.569562602 | BK106: -7.437704196 | BL106: -6.641186572 | BM106: -6.641186572 | BN106: 1.120428071 | BO106: -2.641186572 | BQ106: 490000 | BR106: 99413.32908 | BS106: 2.000067963e-06 | BT106: 2.121423533e-06 | BU106: -3.976803427e-07 | BX106: 4.533875769e-05 | BY106: 1.30325227e-05 | BZ106: -4.342529564e-05 | CA106: 1.325511054e-06 | CB106: 1.30325227e-05 | CC106: -4.209978458e-05 | CD106: 22690.74314 | CE106: 6710.052669 | CF106: 21675.90869
A107: 1396.912926 | B107: 6340 | C107: 22381.51006 | D107: 1.404330043e-06 | E107: =Tone!BA108 -> 4.761904762e+13 | F107: =Tone!BB108 -> -4955.665408 | G107: 2.1e-14 | H107: 2.1e-14 | I107: 2.185448445e-24 | J107: 40000.02512 | K107: 1e-15 | L107: 8.77706277e-10 | M107: 1139333312 | N107: 1298.080397 | O107: -1139333312 | P107: 1e+15 | Q107: -1139333312 | R107: 1e-15 | S107: 1e-15 | T107: 8.77706277e-06 | U107: 40000.02512 | V107: 8.77706277e-06 | W107: 2.49999843e-05 | X107: 2.49999843e-05 | Y107: -5.485657341e-15 | Z107: 4e-06 | AA107: 0 | AB107: 250000 | AC107: 250000 | AD107: 0 | AE107: 250000 | AF107: -5.504966879e-15 | AG107: 250000 | AH107: 4e-06 | AI107: 4e-06 | AJ107: 8.807947005e-26 | AK107: 6.111979286e-06 | AL107: 9.850324278e-07 | AM107: 161528.8005 | AN107: 159471.0339 | AO107: -25701.02618 | AP107: 165811.0339 | AQ107: -3319.516117 | AR107: 165844.2587 | AS107: 0.9739788508 | AT107: 0.9739788507 | AU107: 1.058430137 | AV107: -2.267906558 | AW107: 1396.912926 | AX107: -2.267906558 | AY107: FALSE | AZ107: -2.267906558 | BA107: =Strings!E123 -> -22.10218103 | BB107: =Strings!B123 -> -19.86711172 | BC107: =harmonics!BA82 -> -0.3798660553 | BD107: =harmonics!BB82 -> -0.3798660553 | BE107: -20.24697778 | BF107: -100 | BG107: -29.11147573 | BH107: -19.1780576 | BI107: -11.98668732 | BJ107: -8.958176151 | BK107: -7.66847927 | BL107: -6.761150502 | BM107: -6.761150502 | BN107: 1.120428071 | BO107: -2.761150502 | BQ107: 490000 | BR107: 105324.7532 | BS107: 1.995243805e-06 | BT107: 2.111979266e-06 | BU107: -4.192976155e-07 | BX107: 4.298828903e-05 | BY107: 1.171627558e-05 | BZ107: -4.136087378e-05 | CA107: 1.404330043e-06 | CB107: 1.171627558e-05 | CC107: -3.995654374e-05 | CD107: 24016.0146 | CE107: 6757.584049 | CF107: 23045.69407
A108: 1479.977691 | B108: 6340 | C108: 23712.38391 | D108: 1.487835853e-06 | E108: =Tone!BA109 -> 4.761904762e+13 | F108: =Tone!BB109 -> -4677.525281 | G108: 2.1e-14 | H108: 2.1e-14 | I108: 2.062788649e-24 | J108: 40000.02512 | K108: 1e-15 | L108: 9.298974082e-10 | M108: 1075387447 | N108: 1156.458162 | O108: -1075387447 | P108: 1e+15 | Q108: -1075387447 | R108: 1e-15 | S108: 1e-15 | T108: 9.298974082e-06 | U108: 40000.02512 | V108: 9.298974082e-06 | W108: 2.49999843e-05 | X108: 2.49999843e-05 | Y108: -5.811851501e-15 | Z108: 4e-06 | AA108: 0 | AB108: 250000 | AC108: 250000 | AD108: 0 | AE108: 250000 | AF108: -5.832309244e-15 | AG108: 250000 | AH108: 4e-06 | AI108: 4e-06 | AJ108: 9.331694789e-26 | AK108: 6.101486279e-06 | AL108: 1.045995076e-06 | AM108: 161537.9451 | AN108: 159215.2807 | AO108: -27294.72656 | AP108: 165555.2807 | AQ108: -3582.342652 | AR108: 165594.0341 | AS108: 0.9755058262 | AT108: 0.9755058261 | AU108: 1.072194728 | AV108: -2.293310844 | AW108: 1479.977691 | AX108: -2.293310844 | AY108: FALSE | AZ108: -2.293310844 | BA108: =Strings!E124 -> -32.7336793 | BB108: =Strings!B124 -> -20.36882822 | BC108: =harmonics!BA83 -> -0.4077359552 | BD108: =harmonics!BB83 -> -0.3798660553 | BE108: -20.77656417 | BF108: -100 | BG108: -24.80288898 | BH108: -22.02618509 | BI108: -12.92598831 | BJ108: -9.403215576 | BK108: -7.930805959 | BL108: -6.898784189 | BM108: -6.898784189 | BN108: 1.120428071 | BO108: -2.898784189 | BQ108: 490000 | BR108: 111587.689 | BS108: 1.989870233e-06 | BT108: 2.101486259e-06 | BU108: -4.41840777e-07 | BX108: =G211 -> 4.074096349e-05 | BY108: 1.052329752e-05 | BZ108: -3.935843386e-05 | CA108: 1.487835853e-06 | CB108: 1.052329752e-05 | CC108: -3.787059801e-05 | CD108: 25441.73492 | CE108: 6811.539757 | CF108: 24512.95172
A109: 1567.981744 | B109: 6340 | C109: 25122.39563 | D109: 1.576307177e-06 | E109: =Tone!BA110 -> 4.761904762e+13 | F109: =Tone!BB110 -> -4414.995959 | G109: 2.1e-14 | H109: 2.1e-14 | I109: 1.947013218e-24 | J109: 40000.02512 | K109: 1e-15 | L109: 9.851919855e-10 | M109: 1015030588 | N109: 1030.287094 | O109: -1015030588 | P109: 1e+15 | Q109: -1015030588 | R109: 1e-15 | S109: 1e-15 | T109: 9.851919855e-06 | U109: 40000.02512 | V109: 9.851919855e-06 | W109: 2.49999843e-05 | X109: 2.49999843e-05 | Y109: -6.157442176e-15 | Z109: 4e-06 | AA109: 0 | AB109: 250000 | AC109: 250000 | AD109: 0 | AE109: 250000 | AF109: -6.179116399e-15 | AG109: 250000 | AH109: 4e-06 | AI109: 4e-06 | AJ109: 9.886586237e-26 | AK109: 6.08984194e-06 | AL109: 1.111002627e-06 | AM109: 161541.61 | AN109: 158918.6381 | AO109: -28992.3821 | AP109: 165258.6381 | AQ109: -3869.986471 | AR109: 165303.9451 | AS109: 0.9772398952 | AT109: 0.9772398951 | AU109: 1.087995106 | AV109: -2.323313525 | AW109: 1567.981744 | AX109: -2.323313525 | AY109: FALSE | AZ109: -2.323313525 | BA109: =Strings!E125 -> -21.20993877 | BB109: =Strings!B125 -> -20.87054476 | BC109: =harmonics!BA84 -> -1.143675744 | BD109: =harmonics!BB84 -> -0.3798660553 | BE109: -22.01422051 | BF109: -100 | BG109: -22.40550054 | BH109: -26.25848639 | BI109: -14.04345939 | BJ109: -9.9145495 | BK109: -8.22932179 | BL109: -7.055852362 | BM109: -7.055852362 | BN109: 1.120428071 | BO109: -3.055852362 | BQ109: 490000 | BR109: 118223.0383 | BS109: 1.983890013e-06 | BT109: 2.089841919e-06 | BU109: -4.653045494e-07 | BX109: 3.859507198e-05 | BY109: 9.443934546e-06 | BZ109: =I212 -> -3.742180757e-05 | CA109: 1.576307177e-06 | CB109: 9.443934546e-06 | CC109: -3.584550039e-05 | CD109: 26976.9445 | CE109: 6872.875634 | CF109: 26086.7613
A110: 1661.21879 | B110: 6340 | C110: 26616.25101 | D110: =2*PI()*$B$10*0.000000001*$A110 -> 1.670039279e-06 | E110: =Tone!BA111 -> 4.761904762e+13 | F110: =Tone!BB111 -> -4167.201277 | G110: 2.1e-14 | H110: 2.1e-14 | I110: 1.837735763e-24 | J110: =(1/($H$16*1000*(100.00000001-$H$15)/100)+1/$K$8/1000) -> 40000.02512 | K110: 1e-15 | L110: 1.04377455e-09 | M110: 958061298.2 | N110: 917.8814512 | O110: -958061298.2 | P110: 1e+15 | Q110: -958061298.2 | R110: 1e-15 | S110: 1e-15 | T110: =-Q110*R110^2+2*PI()*A110*$K$9*0.000000001 -> 1.04377455e-05 | U110: =J110+S110 -> 40000.02512 | V110: 1.04377455e-05 | W110: 2.49999843e-05 | X110: 2.49999843e-05 | Y110: -6.523582741e-15 | Z110: =1/($H$16*1000*$H$15/100)+H110*$V$42 -> 4e-06 | AA110: =I110*$V$42 -> 0 | AB110: 250000 | AC110: 250000 | AD110: 0 | AE110: =X110+AC110+E213 -> 250000 | AF110: =Y110+AD110+F213 -> -6.546545781e-15 | AG110: 250000 | AH110: 4e-06 | AI110: 4e-06 | AJ110: 1.047447325e-25 | AK110: =H110*$AF$43+AI110+BT110 -> 6.07693699e-06 | AL110: =+D110+I110*$AF$43+AJ110+BU110 -> 1.180365022e-06 | AM110: 161537.5567 | AN110: 158573.9166 | AO110: -30800.89607 | AP110: =B110+AN110 -> 164913.9166 | AQ110: =C110+AO110 -> -4184.645061 | AR110: 164967.0002 | AS110: 0.9792113365 | AT110: 0.9792113364 | AU110: =IF($AO$42=0,1,AK213) -> 1.106180141 | AV110: -2.358067655 | AW110: =A110 -> 1661.21879 | AX110: =IF(AW110<$BM$40,NA(),20*LOG(AU110)+BO110) -> -2.358067655 | AY110: FALSE | AZ110: -2.358067655 | BA110: =Strings!E126 -> -21.54580652 | BB110: =Strings!B126 -> -21.37226134 | BC110: =harmonics!BA85 -> -2.840067236 | BD110: =harmonics!BB85 -> -0.3798660553 | BE110: -24.21232858 | BF110: -100 | BG110: -21.01275248 | BH110: -34.46010029 | BI110: -15.39291479 | BJ110: -10.50444883 | BK110: -8.569562602 | BL110: -7.234584806 | BM110: -7.234584806 | BN110: =$B$7 -> 1.120428071 | BO110: =BM110+BN110*$BN$44+$BD$43 -> -3.234584806 | BQ110: =$B$11*1000 -> 490000 | BR110: =2*PI()*$B$13*A110 -> 125252.9459 | BS110: 1.977241248e-06 | BT110: =BQ110*BS110^2+1/$B$12/1000 -> 2.076936969e-06 | BU110: -4.896742569e-07 | BX110: 3.654846704e-05 | BY110: =H213 -> 8.46891141e-06 | BZ110: -3.555373374e-05 | CA110: =D110 -> 1.670039279e-06 | CB110: 8.46891141e-06 | CC110: -3.388369446e-05 | CD110: 28631.94437 | CE110: 6942.713965 | CF110: 27777.45419
A111: 1760 | B111: =$B$8*1000 -> 6340 | C111: =2*PI()*A111*$B$9 -> 28198.93566 | D111: 1.769344983e-06 | E111: =Tone!BA112 -> 4.761904762e+13 | F111: =Tone!BB112 -> -3933.314241 | G111: =1/(E111^2+F111^2)^0.5 -> 2.1e-14 | H111: =E111*G111^2 -> 2.1e-14 | I111: =-F111*G111^2 -> 1.73459158e-24 | J111: 40000.02512 | K111: 1e-15 | L111: 1.105840614e-09 | M111: 904289449.4 | N111: 817.7394083 | O111: -904289449.4 | P111: 1e+15 | Q111: -904289449.4 | R111: =1/(P111^2+Q111^2)^0.5 -> 1e-15 | S111: =P111*R111^2 -> 1e-15 | T111: 1.105840614e-05 | U111: 40000.02512 | V111: =T111 -> 1.105840614e-05 | W111: =1/(U111^2+V111^2)^0.5 -> 2.49999843e-05 | X111: =U111*W111^2 -> 2.49999843e-05 | Y111: =-V111*W111^2 -> -6.911495157e-15 | Z111: 4e-06 | AA111: 0 | AB111: =1/(Z111^2+AA111^2)^0.5 -> 250000 | AC111: =Z111*AB111^2 -> 250000 | AD111: =-AA111*AB111^2 -> 0 | AE111: 250000 | AF111: -6.93582365e-15 | AG111: =(AE111^2+AF111^2)^0.5 -> 250000 | AH111: =1/(AE111^2+AF111^2)^0.5 -> 4e-06 | AI111: =AE111*AH111^2 -> 4e-06 | AJ111: =-AF111*AH111^2 -> 1.109731784e-25 | AK111: 6.062655867e-06 | AL111: 1.254420766e-06 | AM111: =1/(AK111^2+AL111^2)^0.5 -> 161522.9259 | AN111: =AK111*AM111^2 -> 158172.6035 | AO111: =-AL111*AM111^2 -> -32727.40574 | AP111: 164512.6035 | AQ111: -4528.470083 | AR111: =(AP111^2+AQ111^2)^0.5 -> 164574.9184 | AS111: =AM111/AR111 -> 0.9814553001 | AT111: =AS111*AB111/AG111 -> 0.9814553 | AU111: 1.127170145 | AV111: -2.397914655 | AW111: 1760 | AX111: -2.397914655 | AY111: FALSE | AZ111: -2.397914655 | BA111: =Strings!E127 -> -24.70185714 | BB111: =Strings!B127 -> -21.87397794 | BC111: =harmonics!BA86 -> -6.150233348 | BD111: =harmonics!BB86 -> -0.4077359552 | BE111: -28.02421129 | BF111: -100 | BG111: -20.32682409 | BH111: -40.68042717 | BI111: -17.05755751 | BJ111: -11.18845189 | BK111: -8.958176151 | BL111: -7.437704196 | BM111: =IF(MAX(BF111:BL111)<-80,#N/A,(MAX(BF111:BL111))) -> -7.437704196 | BN111: 1.120428071 | BO111: -3.437704196 | BQ111: 490000 | BR111: 132700.8737 | BS111: =1/(BQ111^2+BR111^2)^0.5 -> 1.969857305e-06 | BT111: 2.062655846e-06 | BU111: =-BR111*BS111^2 -> -5.149242167e-07 | BX111: 3.459864687e-05 | BY111: 7.589400756e-06 | BZ111: -3.375599742e-05 | CA111: 1.769344983e-06 | CB111: =BY111 -> 7.589400756e-06 | CC111: =BZ111+CA111 -> -3.198665243e-05 | CD111: =1/(CB111^2+CC111^2)^0.5 -> 30418.54208 | CE111: =CB111*CD111^2 -> 7022.379186 | CF111: =-CC111*CD111^2 -> 29596.85613
A112: =A111*2^(1/12) -> 1864.655046 | B112: 6340 | C112: 29875.73163 | D112: 1.87455571e-06 | E112: =Tone!BA113 -> 4.761904762e+13 | F112: =Tone!BB113 -> -3712.554276 | G112: 2.1e-14 | H112: 2.1e-14 | I112: 1.637236436e-24 | J112: 40000.02512 | K112: =1/$K$10/1000 -> 1e-15 | L112: =2*PI()*$K$6*0.000000001*$A112 -> 1.171597319e-09 | M112: =1/(K112^2+L112^2)^0.5 -> 853535582.5 | N112: =K112*M112^2 -> 728.5229906 | O112: =-L112*M112^2 -> -853535582.5 | P112: =$K$7*1000+N112 -> 1e+15 | Q112: =O112 -> -853535582.5 | R112: 1e-15 | S112: 1e-15 | T112: 1.171597319e-05 | U112: 40000.02512 | V112: 1.171597319e-05 | W112: 2.49999843e-05 | X112: 2.49999843e-05 | Y112: -7.322474046e-15 | Z112: 4e-06 | AA112: 0 | AB112: 250000 | AC112: 250000 | AD112: 0 | AE112: 250000 | AF112: -7.348249187e-15 | AG112: 250000 | AH112: 4e-06 | AI112: 4e-06 | AJ112: 1.17571987e-25 | AK112: 6.046877385e-06 | AL112: 1.333539696e-06 | AM112: 161494.0954 | AN112: 157704.6353 | AO112: -34779.17247 | AP112: 164044.6353 | AQ112: -4903.440842 | AR112: 164117.9031 | AS112: 0.9840126662 | AT112: 0.9840126661 | AU112: 1.151473529 | AV112: -2.443400101 | AW112: 1864.655046 | AX112: -2.443400101 | AY112: FALSE | AZ112: -2.443400101 | BA112: =Strings!E128 -> -32.78027975 | BB112: =Strings!B128 -> -22.37569456 | BC112: =harmonics!BA87 -> -13.67021376 | BD112: =harmonics!BB87 -> -1.143675744 | BE112: -36.04590833 | BF112: -100 | BG112: -20.24697778 | BH112: -29.11147573 | BI112: -19.1780576 | BJ112: -11.98668732 | BK112: -9.403215576 | BL112: -7.66847927 | BM112: -7.66847927 | BN112: 1.120428071 | BO112: -3.66847927 | BQ112: 490000 | BR112: 140591.6783 | BS112: 1.961666848e-06 | BT112: 2.046877365e-06 | BU112: -5.410160138e-07 | BX112: 3.274283058e-05 | BY112: 6.797069332e-06 | BZ112: -3.202956139e-05 | CA112: 1.87455571e-06 | CB112: 6.797069332e-06 | CC112: -3.015500568e-05 | CD112: 32350.35733 | CE112: 7113.443135 | CF112: 31558.58911
A113: 1975.533205 | B113: 6340 | C113: 31652.23508 | D113: 1.986022593e-06 | E113: =Tone!BA114 -> 4.761904762e+13 | F113: =Tone!BB114 -> -3504.184615 | G113: 2.1e-14 | H113: 2.1e-14 | I113: 1.545345415e-24 | J113: 40000.02512 | K113: 1e-15 | L113: 1.241264121e-09 | M113: 805630311.3 | N113: 649.0401985 | O113: -805630311.3 | P113: 1000000000000649 | Q113: -805630311.3 | R113: 1e-15 | S113: 1e-15 | T113: 1.241264121e-05 | U113: 40000.02512 | V113: 1.241264121e-05 | W113: 2.49999843e-05 | X113: 2.49999843e-05 | Y113: -7.757891011e-15 | Z113: 4e-06 | AA113: 0 | AB113: 250000 | AC113: 250000 | AD113: 0 | AE113: 250000 | AF113: -7.785198821e-15 | AG113: 250000 | AH113: 4e-06 | AI113: 4e-06 | AJ113: 1.245631811e-25 | AK113: 6.029475704e-06 | AL113: 1.418125909e-06 | AM113: 161446.5141 | AN113: 157158.1451 | AO113: -36963.41911 | AP113: 163498.1451 | AQ113: -5311.184035 | AR113: 163584.3884 | AS113: 0.9869310618 | AT113: 0.9869310617 | AU113: 1.179706978 | AV113: -2.495322992 | AW113: 1975.533205 | AX113: -2.495322992 | AY113: FALSE | AZ113: -2.495322992 | BA113: =Strings!E129 -> -50 | BB113: =Strings!B129 -> -22.87741119 | BC113: =harmonics!BA88 -> -19.47563625 | BD113: =harmonics!BB88 -> -2.840067236 | BE113: -42.35304745 | BF113: -100 | BG113: -20.77656417 | BH113: -24.80288898 | BI113: -22.02618509 | BJ113: -12.92598831 | BK113: -9.9145495 | BL113: -7.930805959 | BM113: -7.930805959 | BN113: 1.120428071 | BO113: -3.930805959 | BQ113: 490000 | BR113: 148951.6945 | BS113: 1.952593963e-06 | BT113: 2.029475683e-06 | BU113: -5.678966838e-07 | BX113: 3.097802483e-05 | BY113: 6.084105063e-06 | BZ113: -3.037468828e-05 | CA113: 1.986022593e-06 | CB113: 6.084105063e-06 | CC113: -2.838866569e-05 | CD113: 34443.20495 | CE113: 7217.782928 | CF113: 33678.44973
A114: 2093.004522 | B114: 6340 | C114: 33534.37492 | D114: 2.104117642e-06 | E114: =Tone!BA115 -> 4.761904762e+13 | F114: =Tone!BB115 -> -3307.509845 | G114: 2.1e-14 | H114: 2.1e-14 | I114: 1.458611842e-24 | J114: 40000.02512 | K114: 1e-15 | L114: 1.315073526e-09 | M114: 760413756.3 | N114: 578.2290808 | O114: -760413756.3 | P114: 1e+15 | Q114: -760413756.3 | R114: 1e-15 | S114: 1e-15 | T114: 1.315073526e-05 | U114: 40000.02512 | V114: 1.315073526e-05 | W114: 2.49999843e-05 | X114: 2.49999843e-05 | Y114: -8.219199216e-15 | Z114: 4e-06 | AA114: 0 | AB114: 250000 | AC114: 250000 | AD114: 0 | AE114: 250000 | AF114: -8.248130833e-15 | AG114: 250000 | AH114: 4e-06 | AI114: 4e-06 | AJ114: 1.319700933e-25 | AK114: 6.010321656e-06 | AL114: 1.508620794e-06 | AM114: 161374.5097 | AN114: 156519.1881 | AO114: -39287.09898 | AP114: 162859.1881 | AQ114: -5752.724059 | AR114: 162960.759 | AS114: 0.9902660658 | AT114: 0.9902660657 | AU114: 1.212618852 | AV114: -2.554835475 | AW114: 2093.004522 | AX114: -2.554835475 | AY114: FALSE | AZ114: -2.554835475 | BA114: =Strings!E130 -> -50 | BB114: =Strings!B130 -> -23.37912783 | BC114: =harmonics!BA89 -> -7.805076786 | BD114: =harmonics!BB89 -> -2.209652702 | BE114: -31.18420462 | BF114: -100 | BG114: -22.01422051 | BH114: -22.40550054 | BI114: -26.25848639 | BJ114: -14.04345939 | BK114: -10.50444883 | BL114: -8.22932179 | BM114: -8.22932179 | BN114: 1.120428071 | BO114: -4.22932179 | BQ114: 490000 | BR114: 157808.8232 | BS114: 1.94255844e-06 | BT114: 2.010321635e-06 | BU114: -5.954968478e-07 | BX114: 2.930108207e-05 | BY114: 5.443228622e-06 | BZ114: -2.879105195e-05 | CA114: 2.104117642e-06 | CB114: 5.443228622e-06 | CC114: -2.668693431e-05 | CD114: 36715.57884 | CE114: 7337.655781 | CF114: 35974.88759
A115: 2217.461048 | B115: 6340 | C115: 35528.43262 | D115: 2.229234988e-06 | E115: =Tone!BA116 -> 4.761904762e+13 | F115: =Tone!BB116 -> -3121.873582 | G115: 2.1e-14 | H115: 2.1e-14 | I115: 1.37674625e-24 | J115: 40000.02512 | K115: 1e-15 | L115: 1.393271867e-09 | M115: 717735011.6 | N115: 515.1435469 | O115: -717735011.6 | P115: 1e+15 | Q115: -717735011.6 | R115: 1e-15 | S115: 1e-15 | T115: 1.393271867e-05 | U115: 40000.02512 | V115: 1.393271867e-05 | W115: 2.49999843e-05 | X115: 2.49999843e-05 | Y115: -8.707938234e-15 | Z115: 4e-06 | AA115: 0 | AB115: 250000 | AC115: 250000 | AD115: 0 | AE115: 250000 | AF115: -8.738590216e-15 | AG115: 250000 | AH115: 4e-06 | AI115: 4e-06 | AJ115: 1.398174434e-25 | AK115: 5.989284498e-06 | AL115: 1.605506132e-06 | AM115: 161271.0695 | AN115: 155771.4546 | AO115: -41756.57802 | AP115: 162111.4546 | AQ115: -6228.145401 | AR115: 162231.0497 | AS115: 0.9940826358 | AT115: 0.9940826357 | AU115: 1.251113931 | AV115: -2.623625403 | AW115: 2217.461048 | AX115: -2.623625403 | AY115: FALSE | AZ115: -2.623625403 | BA115: =Strings!E131 -> -50 | BB115: =Strings!B131 -> -23.88084448 | BC115: =harmonics!BA90 -> -3.786821466 | BD115: =harmonics!BB90 -> -2.209652702 | BE115: -27.66766594 | BF115: -100 | BG115: -24.21232858 | BH115: -21.01275248 | BI115: -34.46010029 | BJ115: -15.39291479 | BK115: -11.18845189 | BL115: -8.569562602 | BM115: -8.569562602 | BN115: 1.120428071 | BO115: -4.569562602 | BQ115: 490000 | BR115: 167192.6241 | BS115: 1.931476201e-06 | BT115: 1.989284477e-06 | BU115: -6.237288562e-07 | BX115: 2.77087509e-05 | BY115: 4.867692716e-06 | BZ115: -2.727783796e-05 | CA115: 2.229234988e-06 | CB115: 4.867692716e-06 | CC115: -2.504860298e-05 | CD115: 39189.26936 | CE115: 7475.796794 | CF115: 38469.61522
A116: 2349.318143 | B116: 6340 | C116: 37641.06316 | D116: 2.361792198e-06 | E116: =Tone!BA117 -> 4.761904762e+13 | F116: =Tone!BB117 -> -2946.656281 | G116: 2.1e-14 | H116: 2.1e-14 | I116: 1.29947542e-24 | J116: 40000.02512 | K116: 1e-15 | L116: 1.476120124e-09 | M116: 677451640.8 | N116: 458.9407256 | O116: -677451640.8 | P116: 1000000000000459 | Q116: -677451640.8 | R116: 1e-15 | S116: 1e-15 | T116: 1.476120124e-05 | U116: 40000.02512 | V116: 1.476120124e-05 | W116: 2.49999843e-05 | X116: 2.49999843e-05 | Y116: -9.225739187e-15 | Z116: 4e-06 | AA116: 0 | AB116: 250000 | AC116: 250000 | AD116: 0 | AE116: 250000 | AF116: -9.25821383e-15 | AG116: 250000 | AH116: 4e-06 | AI116: 4e-06 | AJ116: 1.481314213e-25 | AK116: 5.966234115e-06 | AL116: 1.70930718e-06 | AM116: 161127.5993 | AN116: 154895.9862 | AO116: -44377.20953 | AP116: 161235.9862 | AQ116: -6736.146367 | AR116: 161376.6368 | AS116: 0.9984567934 | AT116: 0.9984567933 | AU116: 1.296273689 | AV116: -2.704242031 | AW116: 2349.318143 | AX116: -2.704242031 | AY116: FALSE | AZ116: -2.704242031 | BA116: =Strings!E132 -> -50 | BB116: =Strings!B132 -> -24.38256113 | BC116: =harmonics!BA91 -> -2.209652702 | BD116: =harmonics!BB91 -> -2.209652702 | BE116: -26.59221383 | BF116: =IF(BF$44,OFFSET($BE116,BF$31,0),-100) -> -100 | BG116: -28.02421129 | BH116: -20.32682409 | BI116: -40.68042717 | BJ116: -17.05755751 | BK116: -11.98668732 | BL116: -8.958176151 | BM116: -8.958176151 | BN116: 1.120428071 | BO116: -4.958176151 | BQ116: 490000 | BR116: 177134.4149 | BS116: 1.91925994e-06 | BT116: 1.966234094e-06 | BU116: -6.524850181e-07 | BX116: 2.619771917e-05 | BY116: 4.351271905e-06 | BZ116: -2.583383291e-05 | CA116: 2.361792198e-06 | CB116: 4.351271905e-06 | CC116: -2.347204071e-05 | CD116: 41890.15842 | CE116: 7635.548289 | CF116: 41188.39369
A117: 2489.01587 | B117: 6340 | C117: 39879.31725 | D117: 2.502231671e-06 | E117: =Tone!BA118 -> 4.761904762e+13 | F117: =Tone!BB118 -> -2781.273172 | G117: 2.1e-14 | H117: 2.1e-14 | I117: 1.226541469e-24 | J117: 40000.02512 | K117: 1e-15 | L117: 1.563894794e-09 | M117: 639429201.8 | N117: 408.8697041 | O117: -639429201.8 | P117: 1e+15 | Q117: -639429201.8 | R117: 1e-15 | S117: 1e-15 | T117: 1.563894794e-05 | U117: 40000.02512 | V117: 1.563894794e-05 | W117: 2.49999843e-05 | X117: 2.49999843e-05 | Y117: -9.774330187e-15 | Z117: 4e-06 | AA117: 0 | AB117: 250000 | AC117: 250000 | AD117: 0 | AE117: 250000 | AF117: -9.808735873e-15 | AG117: 250000 | AH117: 4e-06 | AI117: 4e-06 | AJ117: 1.569397739e-25 | AK117: 5.941043728e-06 | AL117: 1.820595658e-06 | AM117: 160933.6638 | AN117: 153870.9183 | AO117: -47152.77964 | AP117: 160210.9183 | AQ117: -7273.462386 | AR117: 160375.9383 | AS117: 1.003477613 | AT117: 1.003477613 | AU117: 1.34935718 | AV117: =IF(AY117,-1000,AX117) -> -2.80067709 | AW117: 2489.01587 | AX117: -2.80067709 | AY117: =OR(AW117<$K$26,AW117>$M$26,ISNA(AX117)) -> FALSE | AZ117: =IF(AV117=-1000,1000,AV117) -> -2.80067709 | BA117: =Strings!E133 -> -50 | BB117: =Strings!B133 -> -24.88427778 | BC117: =harmonics!BA92 -> -2.436294731 | BD117: =harmonics!BB92 -> -2.209652702 | BE117: =(BA117*$BA$44+BB117*$BB$44+BC117*$BC$44+BD117*$BD$44) -> -27.32057251 | BF117: -100 | BG117: -36.04590833 | BH117: -20.24697778 | BI117: -29.11147573 | BJ117: -19.1780576 | BK117: -12.92598831 | BL117: -9.403215576 | BM117: -9.403215576 | BN117: 1.120428071 | BO117: -5.403215576 | BQ117: 490000 | BR117: 187667.3753 | BS117: 1.905819972e-06 | BT117: 1.941043707e-06 | BU117: -6.816360131e-07 | BX117: 2.476465039e-05 | BY117: 3.888245341e-06 | BZ117: -2.445750308e-05 | CA117: 2.502231671e-06 | CB117: 3.888245341e-06 | CC117: -2.195527141e-05 | CD117: 44849.25489 | CE117: 7821.033117 | CF117: 44162.05504
A118: 2637.020455 | B118: 6340 | C118: 42250.66486 | D118: 2.651022109e-06 | E118: =Tone!BA119 -> 4.761904762e+13 | F118: =Tone!BB119 -> -2625.172304 | G118: 2.1e-14 | H118: 2.1e-14 | I118: 1.157700986e-24 | J118: 40000.02512 | K118: 1e-15 | L118: 1.656888818e-09 | M118: 603540798.4 | N118: 364.2614953 | O118: -603540798.4 | P118: 1e+15 | Q118: -603540798.4 | R118: 1e-15 | S118: 1e-15 | T118: 1.656888818e-05 | U118: 40000.02512 | V118: 1.656888818e-05 | W118: 2.49999843e-05 | X118: 2.49999843e-05 | Y118: -1.035554211e-14 | Z118: 4e-06 | AA118: 0 | AB118: 250000 | AC118: 250000 | AD118: 0 | AE118: 250000 | AF118: -1.039199366e-14 | AG118: 250000 | AH118: 4e-06 | AI118: 4e-06 | AJ118: 1.662718985e-25 | AK118: 5.913593119e-06 | AL118: 1.939992507e-06 | AM118: 160676.7208 | AN118: 152671.2844 | AO118: -50084.80322 | AP118: 159011.2844 | AQ118: -7834.138366 | AR118: 159204.1529 | AS118: 1.009249557 | AT118: 1.009249557 | AU118: 1.411747215 | AV118: -2.919410707 | AW118: 2637.020455 | AX118: -2.919410707 | AY118: FALSE | AZ118: -2.919410707 | BA118: =Strings!E134 -> -50 | BB118: =Strings!B134 -> -25.38599443 | BC118: =harmonics!BA93 -> -4.816420234 | BD118: =harmonics!BB93 -> -2.209652702 | BE118: -30.20241467 | BF118: -100 | BG118: -42.35304745 | BH118: -20.77656417 | BI118: -24.80288898 | BJ118: -22.02618509 | BK118: -14.04345939 | BL118: -9.9145495 | BM118: -9.9145495 | BN118: 1.120428071 | BO118: -5.9145495 | BQ118: 490000 | BR118: 198826.6582 | BS118: 1.891065339e-06 | BT118: 1.913593099e-06 | BU118: -7.110296022e-07 | BX118: 2.340621415e-05 | BY118: 3.473374457e-06 | BZ118: -2.314706311e-05 | CA118: 2.651022109e-06 | CB118: 3.473374457e-06 | CC118: -2.0496041e-05 | CD118: 48104.05893 | CE118: 8037.39018 | CF118: 47427.84883
A119: 2793.825851 | B119: 6340 | C119: 44763.02013 | D119: 2.808660087e-06 | E119: =Tone!BA120 -> 4.761904762e+13 | F119: =Tone!BB120 -> -2477.832704 | G119: 2.1e-14 | H119: 2.1e-14 | I119: 1.092724222e-24 | J119: 40000.02512 | K119: 1e-15 | L119: 1.755412554e-09 | M119: 569666656.2 | N119: 324.5200992 | O119: -569666656.2 | P119: 1e+15 | Q119: -569666656.2 | R119: 1e-15 | S119: 1e-15 | T119: 1.755412554e-05 | U119: 40000.02512 | V119: 1.755412554e-05 | W119: 2.49999843e-05 | X119: 2.49999843e-05 | Y119: -1.097131468e-14 | Z119: 4e-06 | AA119: 0 | AB119: 250000 | AC119: 250000 | AD119: 0 | AE119: 250000 | AF119: -1.100993376e-14 | AG119: 250000 | AH119: 4e-06 | AI119: 4e-06 | AJ119: 1.761589401e-25 | AK119: 5.883772373e-06 | AL119: 2.068170312e-06 | AM119: 160341.868 | AN119: 151268.9318 | AO119: -53171.65487 | AP119: 157608.9318 | AQ119: -8408.634745 | AR119: 157833.0781 | AS119: 1.01589521 | AT119: 1.01589521 | AU119: 1.484761941 | AV119: -3.071312294 | AW119: 2793.825851 | AX119: -3.071312294 | AY119: FALSE | AZ119: -3.071312294 | BA119: =Strings!E135 -> -50 | BB119: =Strings!B135 -> -25.88771109 | BC119: =harmonics!BA94 -> -11.74993705 | BD119: =harmonics!BB94 -> -2.209652702 | BE119: -37.63764814 | BF119: -100 | BG119: -31.18420462 | BH119: -22.01422051 | BI119: -22.40550054 | BJ119: -26.25848639 | BK119: -15.39291479 | BL119: -10.50444883 | BM119: -10.50444883 | BN119: 1.120428071 | BO119: -6.504448826 | BQ119: 490000 | BR119: 210649.5065 | BS119: 1.874905184e-06 | BT119: 1.883772352e-06 | BU119: -7.404897744e-07 | BX119: 2.21191113e-05 | BY119: 3.101877237e-06 | BZ119: -2.190053521e-05 | CA119: 2.808660087e-06 | CB119: 3.101877237e-06 | CC119: -1.909187512e-05 | CD119: 51700.38302 | CE119: 8291.099497 | CF119: 51031.23821
A120: 2959.955382 | B120: 6340 | C120: 47424.76782 | D120: 2.975671706e-06 | E120: =Tone!BA121 -> 4.761904762e+13 | F120: =Tone!BB121 -> -2338.76264 | G120: 2.1e-14 | H120: 2.1e-14 | I120: 1.031394324e-24 | J120: 40000.02512 | K120: 1e-15 | L120: 1.859794816e-09 | M120: 537693723.6 | N120: 289.1145404 | O120: -537693723.6 | P120: 1e+15 | Q120: -537693723.6 | R120: 1e-15 | S120: 1e-15 | T120: 1.859794816e-05 | U120: 40000.02512 | V120: 1.859794816e-05 | W120: 2.49999843e-05 | X120: 2.49999843e-05 | Y120: -1.1623703e-14 | Z120: 4e-06 | AA120: 0 | AB120: 250000 | AC120: 250000 | AD120: 0 | AE120: 250000 | AF120: -1.166461849e-14 | AG120: 250000 | AH120: 4e-06 | AI120: 4e-06 | AJ120: 1.866338958e-25 | AK120: 5.851486091e-06 | AL120: 2.205855227e-06 | AM120: 159911.6268 | AN120: 149632.613 | AO120: -56407.53073 | AP120: 155972.613 | AQ120: -8982.762908 | AR120: 156231.0661 | AS120: 1.023558443 | AT120: 1.023558443 | AU120: 1.569160014 | AV120: -3.275107234 | AW120: 2959.955382 | AX120: -3.275107234 | AY120: FALSE | AZ120: -3.275107234 | BA120: =Strings!E136 -> -50 | BB120: =Strings!B136 -> -26.38942775 | BC120: =harmonics!BA95 -> -18.33733949 | BD120: =harmonics!BB95 -> -2.436294731 | BE120: -44.72676724 | BF120: -100 | BG120: -27.66766594 | BH120: -24.21232858 | BI120: -21.01275248 | BJ120: -34.46010029 | BK120: -17.05755751 | BL120: -11.18845189 | BM120: -11.18845189 | BN120: 1.120428071 | BO120: -7.188451887 | BQ120: 490000 | BR120: 223175.378 | BS120: 1.857250408e-06 | BT120: 1.85148607e-06 | BU120: -7.698164792e-07 | BX120: 2.090009438e-05 | BY120: 2.769400411e-06 | BZ120: -2.071579992e-05 | CA120: 2.975671706e-06 | CB120: 2.769400411e-06 | CC120: -1.774012821e-05 | CD120: 55694.81822 | CE120: 8590.438518 | CF120: 55028.33036
A121: 3135.963488 | B121: 6340 | C121: 50244.79126 | D121: 3.152614354e-06 | E121: =Tone!BA122 -> 4.761904762e+13 | F121: =Tone!BB122 -> -2207.49798 | G121: 2.1e-14 | H121: 2.1e-14 | I121: 9.73506609e-25 | J121: 40000.02512 | K121: 1e-15 | L121: 1.970383971e-09 | M121: 507515293.8 | N121: 257.5717735 | O121: -507515293.8 | P121: 1e+15 | Q121: -507515293.8 | R121: 1e-15 | S121: 1e-15 | T121: 1.970383971e-05 | U121: 40000.02512 | V121: 1.970383971e-05 | W121: 2.49999843e-05 | X121: 2.49999843e-05 | Y121: -1.231488435e-14 | Z121: 4e-06 | AA121: 0 | AB121: 250000 | AC121: 250000 | AD121: 0 | AE121: 250000 | AF121: -1.23582328e-14 | AG121: 250000 | AH121: 4e-06 | AI121: 4e-06 | AJ121: 1.977317247e-25 | AK121: 5.816658016e-06 | AL121: 2.353828249e-06 | AM121: 159365.8021 | AN121: 147728.3327 | AO121: -59781.25613 | AP121: 154068.3327 | AQ121: -9536.464871 | AR121: 154363.1928 | AS121: 1.032408045 | AT121: 1.032408044 | AU121: 1.664000218 | AV121: -3.563619746 | AW121: 3135.963488 | AX121: -3.563619746 | AY121: FALSE | AZ121: -3.563619746 | BA121: =Strings!E137 -> -50 | BB121: =Strings!B137 -> -26.8911444 | BC121: =harmonics!BA96 -> -6.799252097 | BD121: =harmonics!BB96 -> -3.967371993 | BE121: -33.6903965 | BF121: -100 | BG121: -26.59221383 | BH121: -28.02421129 | BI121: -20.32682409 | BJ121: -40.68042717 | BK121: -19.1780576 | BL121: -11.98668732 | BM121: -11.98668732 | BN121: 1.120428071 | BO121: -7.986687323 | BQ121: 490000 | BR121: 236446.0765 | BS121: 1.838015607e-06 | BT121: 1.816657995e-06 | BU121: -7.987861048e-07 | BX121: 1.974598399e-05 | BY121: 2.471990622e-06 | BZ121: -1.959063924e-05 | CA121: 3.152614354e-06 | CB121: 2.471990622e-06 | CC121: -1.643802489e-05 | CD121: 60158.12773 | CE121: 8946.134882 | CF121: 59489.21753
A122: 3322.437581 | B122: 6340 | C122: 53232.50203 | D122: 3.340078559e-06 | E122: =Tone!BA123 -> 4.761904762e+13 | F122: =Tone!BB123 -> -2083.600638 | G122: 2.1e-14 | H122: 2.1e-14 | I122: 9.188678815e-25 | J122: 40000.02512 | K122: 1e-15 | L122: 2.087549099e-09 | M122: 479030649.1 | N122: 229.4703628 | O122: -479030649.1 | P122: 1e+15 | Q122: -479030649.1 | R122: 1e-15 | S122: 1e-15 | T122: 2.087549099e-05 | U122: 40000.02512 | V122: 2.087549099e-05 | W122: 2.49999843e-05 | X122: 2.49999843e-05 | Y122: -1.304716548e-14 | Z122: 4e-06 | AA122: 0 | AB122: 250000 | AC122: 250000 | AD122: 0 | AE122: 250000 | AF122: -1.309309156e-14 | AG122: 250000 | AH122: 4e-06 | AI122: 4e-06 | AJ122: 2.094894649e-25 | AK122: 5.779235925e-06 | AL122: 2.512925699e-06 | AM122: 158681.4634 | AN122: 145520.0442 | AO122: -63274.98368 | AP122: 151860.0442 | AQ122: -10042.48165 | AR122: 152191.7359 | AS122: 1.042641787 | AT122: 1.042641787 | AU122: 1.764309699 | AV122: -3.994491878 | AW122: 3322.437581 | AX122: -3.994491878 | AY122: FALSE | AZ122: -3.994491878 | BA122: =Strings!E138 -> -50 | BB122: =Strings!B138 -> -27.39286106 | BC122: =harmonics!BA97 -> -3.967371993 | BD122: =harmonics!BB97 -> -3.967371993 | BE122: -31.36023306 | BF122: -100 | BG122: -27.32057251 | BH122: -36.04590833 | BI122: -20.24697778 | BJ122: -29.11147573 | BK122: -22.02618509 | BL122: -12.92598831 | BM122: -12.92598831 | BN122: 1.120428071 | BO122: -8.925988311 | BQ122: 490000 | BR122: 250505.8919 | BS122: 1.817121284e-06 | BT122: 1.779235905e-06 | BU122: -8.271528593e-07 | BX122: 1.865368168e-05 | BY122: 2.206065386e-06 | BZ122: -1.852277289e-05 | CA122: 3.340078559e-06 | CB122: 2.206065386e-06 | CC122: -1.518269433e-05 | CD122: 65180.00077 | CE122: 9372.319883 | CF122: 64502.65204
A123: 3520 | B123: 6340 | C123: 56397.87132 | D123: 3.538689965e-06 | E123: =Tone!BA124 -> 4.761904762e+13 | F123: =Tone!BB124 -> -1966.65712 | G123: 2.1e-14 | H123: 2.1e-14 | I123: 8.672957901e-25 | J123: 40000.02512 | K123: 1e-15 | L123: 2.211681228e-09 | M123: 452144724.7 | N123: 204.4348521 | O123: -452144724.7 | P123: 1e+15 | Q123: -452144724.7 | R123: 1e-15 | S123: 1e-15 | T123: 2.211681228e-05 | U123: 40000.02512 | V123: 2.211681228e-05 | W123: 2.49999843e-05 | X123: 2.49999843e-05 | Y123: -1.382299031e-14 | Z123: 4e-06 | AA123: 0 | AB123: 250000 | AC123: 250000 | AD123: 0 | AE123: 250000 | AF123: -1.38716473e-14 | AG123: 250000 | AH123: 4e-06 | AI123: 4e-06 | AJ123: 2.219463568e-25 | AK123: 5.739196628e-06 | AL123: 2.684038771e-06 | AM123: 157833.1068 | AN123: 142970.7894 | AO123: -66862.86716 | AP123: 149310.7894 | AQ123: -10464.99584 | AR123: 149677.0789 | AS123: 1.054490828 | AT123: 1.054490828 | AU123: 1.857169078 | AV123: -4.66643051 | AW123: 3520 | AX123: -4.66643051 | AY123: FALSE | AZ123: -4.66643051 | BA123: =Strings!E139 -> -50 | BB123: =Strings!B139 -> -27.89457772 | BC123: =harmonics!BA98 -> -4.884487682 | BD123: =harmonics!BB98 -> -3.967371993 | BE123: -32.7790654 | BF123: -100 | BG123: -30.20241467 | BH123: -42.35304745 | BI123: -20.77656417 | BJ123: -24.80288898 | BK123: -26.25848639 | BL123: -14.04345939 | BM123: -14.04345939 | BN123: 1.120428071 | BO123: -10.04345939 | BQ123: 490000 | BR123: 265401.7474 | BS123: 1.794496283e-06 | BT123: 1.739196608e-06 | BU123: -8.546511943e-07 | BX123: 1.762017977e-05 | BY123: 1.968384461e-06 | BZ123: -1.750988857e-05 | CA123: 3.538689965e-06 | CB123: 1.968384461e-06 | CC123: -1.397119861e-05 | CD123: 70875.84688 | CE123: 9887.954297 | CF123: 70182.71889
A124: 3729.310092 | B124: 6340 | C124: 59751.46326 | D124: 3.74911142e-06 | E124: =Tone!BA125 -> 4.761904762e+13 | F124: =Tone!BB125 -> -1856.277138 | G124: 2.1e-14 | H124: 2.1e-14 | I124: 8.186182178e-25 | J124: 40000.02512 | K124: 1e-15 | L124: 2.343194638e-09 | M124: 426767791.3 | N124: 182.1307477 | O124: -426767791.3 | P124: 1e+15 | Q124: -426767791.3 | R124: 1e-15 | S124: 1e-15 | T124: 2.343194638e-05 | U124: 40000.02512 | V124: 2.343194638e-05 | W124: 2.49999843e-05 | X124: 2.49999843e-05 | Y124: -1.464494809e-14 | Z124: 4e-06 | AA124: 0 | AB124: 250000 | AC124: 250000 | AD124: 0 | AE124: 250000 | AF124: -1.469649837e-14 | AG124: 250000 | AH124: 4e-06 | AI124: 4e-06 | AJ124: 2.351439739e-25 | AK124: 5.696550827e-06 | AL124: 2.86811204e-06 | AM124: 156793.0593 | AN124: 140044.367 | AO124: -70509.8484 | AP124: 146384.367 | AQ124: -10758.38514 | AR124: 146779.1735 | AS124: 1.06822416 | AT124: 1.06822416 | AU124: 1.917765376 | AV124: -5.737005315 | AW124: 3729.310092 | AX124: -5.737005315 | AY124: FALSE | AZ124: -5.737005315 | BA124: =Strings!E140 -> -50 | BB124: =Strings!B140 -> -28.39629438 | BC124: =harmonics!BA99 -> -11.28801919 | BD124: =harmonics!BB99 -> -3.967371993 | BE124: -39.68431357 | BF124: -100 | BG124: -37.63764814 | BH124: -31.18420462 | BI124: -22.01422051 | BJ124: -22.40550054 | BK124: -34.46010029 | BL124: -15.39291479 | BM124: -15.39291479 | BN124: 1.120428071 | BO124: -11.39291479 | BQ124: 490000 | BR124: 281183.3565 | BS124: 1.770080411e-06 | BT124: 1.696550807e-06 | BU124: -8.809993798e-07 | BX124: 1.664256866e-05 | BY124: 1.75602208e-06 | BZ124: -1.6549667e-05 | CA124: 3.74911142e-06 | CB124: 1.75602208e-06 | CC124: -1.280055558e-05 | CD124: 77396.72947 | CE124: 10519.01782 | CF124: 76678.57586
A125: 3951.06641 | B125: 6340 | C125: 63304.47016 | D125: 3.972045186e-06 | E125: =Tone!BA126 -> 4.761904762e+13 | F125: =Tone!BB126 -> -1752.092308 | G125: 2.1e-14 | H125: 2.1e-14 | I125: 7.726727076e-25 | J125: 40000.02512 | K125: 1e-15 | L125: 2.482528242e-09 | M125: 402815155.6 | N125: 162.2600496 | O125: -402815155.6 | P125: 1e+15 | Q125: -402815155.6 | R125: 1e-15 | S125: 1e-15 | T125: 2.482528242e-05 | U125: 40000.02512 | V125: 2.482528242e-05 | W125: 2.49999843e-05 | X125: 2.49999843e-05 | Y125: -1.551578202e-14 | Z125: 4e-06 | AA125: 0 | AB125: 250000 | AC125: 250000 | AD125: 0 | AE125: 250000 | AF125: -1.557039764e-14 | AG125: 250000 | AH125: 4e-06 | AI125: 4e-06 | AJ125: 2.491263622e-25 | AK125: 5.651347575e-06 | AL125: 3.066140902e-06 | AM125: 155532.1882 | AN125: 136707.576 | AO125: -74170.75042 | AP125: 143047.576 | AQ125: -10866.28027 | AR125: 143459.6984 | AS125: 1.084152483 | AT125: 1.084152483 | AU125: 1.912341459 | AV125: -7.426248701 | AW125: 3951.06641 | AX125: -7.426248701 | AY125: FALSE | AZ125: -7.426248701 | BA125: =Strings!E141 -> -50 | BB125: =Strings!B141 -> -28.89801104 | BC125: =harmonics!BA100 -> -17.07796385 | BD125: =harmonics!BB100 -> -3.967371993 | BE125: -45.97597489 | BF125: -100 | BG125: -44.72676724 | BH125: -27.66766594 | BI125: -24.21232858 | BJ125: -21.01275248 | BK125: -40.68042717 | BL125: -17.05755751 | BM125: -17.05755751 | BN125: 1.120428071 | BO125: -13.05755751 | BQ125: 490000 | BR125: 297903.389 | BS125: 1.743827149e-06 | BT125: 1.651347555e-06 | BU125: -9.059042841e-07 | BX125: 1.571804187e-05 | BY125: 1.566340367e-06 | BZ125: -1.563980236e-05 | CA125: 3.972045186e-06 | CB125: 1.566340367e-06 | CC125: -1.166775718e-05 | CD125: 84944.26921 | CE125: 11301.97414 | CF125: 84189.03879
A126: 4186.009045 | B126: 6340 | C126: 67068.74984 | D126: 4.208235284e-06 | E126: =Tone!BA127 -> 4.761904762e+13 | F126: =Tone!BB127 -> -1653.754923 | G126: 2.1e-14 | H126: 2.1e-14 | I126: 7.293059209e-25 | J126: 40000.02512 | K126: 1e-15 | L126: 2.630147053e-09 | M126: 380206878.2 | N126: 144.5572702 | O126: -380206878.2 | P126: 1e+15 | Q126: -380206878.2 | R126: 1e-15 | S126: 1e-15 | T126: 2.630147053e-05 | U126: 40000.02512 | V126: 2.630147053e-05 | W126: 2.49999843e-05 | X126: 2.49999843e-05 | Y126: -1.643839843e-14 | Z126: 4e-06 | AA126: 0 | AB126: 250000 | AC126: 250000 | AD126: 0 | AE126: 250000 | AF126: -1.649626167e-14 | AG126: 250000 | AH126: 4e-06 | AI126: 4e-06 | AJ126: 2.639401866e-25 | AK126: 5.603678001e-06 | AL126: 3.279167942e-06 | AM126: 154020.9629 | AN126: 132933.0105 | AO126: -77789.92054 | AP126: 139273.0105 | AQ126: -10721.17069 | AR126: 139685.0563 | AS126: 1.10263021 | AT126: 1.10263021 | AU126: 1.817013543 | AV126: -9.990894309 | AW126: 4186.009045 | AX126: -9.990894309 | AY126: FALSE | AZ126: -9.990894309 | BA126: =Strings!E142 -> -50 | BB126: =Strings!B142 -> -29.3997277 | BC126: =harmonics!BA101 -> -6.655534141 | BD126: =harmonics!BB101 -> -4.884487682 | BE126: -36.05526184 | BF126: =IF(BF$44,OFFSET($BE126,BF$31,0),-100) -> -100 | BG126: -33.6903965 | BH126: -26.59221383 | BI126: -28.02421129 | BJ126: -20.32682409 | BK126: -29.11147573 | BL126: -19.1780576 | BM126: -19.1780576 | BN126: 1.120428071 | BO126: -15.1780576 | BQ126: 490000 | BR126: 315617.6463 | BS126: 1.71570635e-06 | BT126: 1.60367798e-06 | BU126: -9.29067342e-07 | BX126: 1.484389939e-05 | BY126: 1.396964153e-06 | BZ126: -1.477801882e-05 | CA126: 4.208235284e-06 | CB126: 1.396964153e-06 | CC126: -1.056978353e-05 | CD126: 93793.67849 | CE126: 12289.44866 | CF126: 92985.07179
A127: 4434.922096 | B127: 6340 | C127: 71056.86524 | D127: 4.458469976e-06 | E127: =Tone!BA128 -> 4.761904762e+13 | F127: =Tone!BB128 -> -1560.936791 | G127: 2.1e-14 | H127: 2.1e-14 | I127: 6.883731248e-25 | J127: 40000.02512 | K127: 1e-15 | L127: 2.786543735e-09 | M127: 358867505.8 | N127: 128.7858867 | O127: -358867505.8 | P127: 1e+15 | Q127: -358867505.8 | R127: 1e-15 | S127: 1e-15 | T127: 2.786543735e-05 | U127: 40000.02512 | V127: 2.786543735e-05 | W127: 2.49999843e-05 | X127: 2.49999843e-05 | Y127: -1.741587647e-14 | Z127: 4e-06 | AA127: 0 | AB127: 250000 | AC127: 250000 | AD127: 0 | AE127: 250000 | AF127: -1.747718043e-14 | AG127: 250000 | AH127: 4e-06 | AI127: 4e-06 | AJ127: 2.796348868e-25 | AK127: 5.553677984e-06 | AL127: 3.50827837e-06 | AM127: 152230.8859 | AN127: 128702.2811 | AO127: -81301.69416 | AP127: 135042.2811 | AQ127: -10244.82891 | AR127: 135430.3297 | AS127: 1.12405313 | AT127: 1.124053129 | AU127: 1.641371893 | AV127: -11.94283793 | AW127: 4434.922096 | AX127: -11.94283793 | AY127: FALSE | AZ127: -11.94283793 | BA127: =Strings!E143 -> -50 | BB127: =Strings!B143 -> -29.90144436 | BC127: =harmonics!BA102 -> -5.854542592 | BD127: =harmonics!BB102 -> -5.854542592 | BE127: -35.75598695 | BF127: -100 | BG127: -31.36023306 | BH127: -27.32057251 | BI127: -36.04590833 | BJ127: -20.24697778 | BK127: -24.80288898 | BL127: -22.02618509 | BM127: -20.24697778 | BN127: 1.120428071 | BO127: -16.24697778 | BQ127: 490000 | BR127: 334385.2482 | BS127: 1.685706804e-06 | BT127: 1.553677963e-06 | BU127: -9.501916059e-07 | BX127: 1.401754943e-05 | BY127: 1.245757327e-06 | BZ127: -1.396208368e-05 | CA127: 4.458469976e-06 | CB127: 1.245757327e-06 | CC127: -9.503613704e-06 | CD127: 104330.6131 | CE127: 13559.91508 | CF127: 103445.6647
A128: 4698.636287 | B128: 6340 | C128: 75282.12632 | D128: 4.723584397e-06 | E128: =Tone!BA129 -> 4.761904762e+13 | F128: =Tone!BB129 -> -1473.328141 | G128: 2.1e-14 | H128: 2.1e-14 | I128: 6.4973771e-25 | J128: 40000.02512 | K128: 1e-15 | L128: 2.952240248e-09 | M128: 338725820.4 | N128: 114.7351814 | O128: -338725820.4 | P128: 1e+15 | Q128: -338725820.4 | R128: 1e-15 | S128: 1e-15 | T128: 2.952240248e-05 | U128: 40000.02512 | V128: 2.952240248e-05 | W128: 2.49999843e-05 | X128: 2.49999843e-05 | Y128: -1.845147837e-14 | Z128: 4e-06 | AA128: 0 | AB128: 250000 | AC128: 250000 | AD128: 0 | AE128: 250000 | AF128: -1.851642766e-14 | AG128: 250000 | AH128: 4e-06 | AI128: 4e-06 | AJ128: 2.962628425e-25 | AK128: 5.50152945e-06 | AL128: 3.754594723e-06 | AM128: 150136.2597 | AN128: 124009.4059 | AO128: -84631.93101 | AP128: 130349.4059 | AQ128: -9349.804688 | AR128: 130684.3007 | AS128: 1.148846946 | AT128: 1.148846946 | AU128: 1.424734047 | AV128: -13.70188812 | AW128: 4698.636287 | AX128: -13.70188812 | AY128: FALSE | AZ128: -13.70188812 | BA128: =Strings!E144 -> -50 | BB128: =Strings!B144 -> -30.40316102 | BC128: =harmonics!BA103 -> -12.85580932 | BD128: =harmonics!BB103 -> -5.854542592 | BE128: -43.25897034 | BF128: -100 | BG128: -32.7790654 | BH128: -30.20241467 | BI128: -42.35304745 | BJ128: -20.77656417 | BK128: -22.40550054 | BL128: -26.25848639 | BM128: -20.77656417 | BN128: 1.120428071 | BO128: -16.77656417 | BQ128: 490000 | BR128: 354268.8298 | BS128: 1.65383852e-06 | BT128: 1.501529429e-06 | BU128: -9.689896734e-07 | BX128: 1.323650897e-05 | BY128: 1.110800775e-06 | BZ128: -1.318981771e-05 | CA128: 4.723584397e-06 | CB128: 1.110800775e-06 | CC128: -8.466233314e-06 | CD128: 117112.5716 | CE128: 15235.02634 | CF128: 116117.3906
A129: 4978.03174 | B129: 6340 | C129: 79758.63451 | D129: 5.004463342e-06 | E129: =Tone!BA130 -> 4.761904762e+13 | F129: =Tone!BB130 -> -1390.636586 | G129: 2.1e-14 | H129: 2.1e-14 | I129: 6.132707345e-25 | J129: 40000.02512 | K129: 1e-15 | L129: 3.127789588e-09 | M129: 319714600.9 | N129: 102.217426 | O129: -319714600.9 | P129: 1e+15 | Q129: -319714600.9 | R129: 1e-15 | S129: 1e-15 | T129: 3.127789588e-05 | U129: 40000.02512 | V129: 3.127789588e-05 | W129: 2.49999843e-05 | X129: 2.49999843e-05 | Y129: -1.954866037e-14 | Z129: 4e-06 | AA129: 0 | AB129: 250000 | AC129: 250000 | AD129: 0 | AE129: 250000 | AF129: -1.961747175e-14 | AG129: 250000 | AH129: 4e-06 | AI129: 4e-06 | AJ129: 3.138795479e-25 | AK129: 5.44746001e-06 | AL129: 4.019271156e-06 | AM129: 147716.1902 | AN129: 118863.9743 | AO129: -87700.78945 | AP129: 125203.9743 | AQ129: -7942.154948 | AR129: 125455.6217 | AS129: 1.177437793 | AT129: 1.177437792 | AU129: 1.207428016 | AV129: -15.3755275 | AW129: 4978.03174 | AX129: -15.3755275 | AY129: FALSE | AZ129: -15.3755275 | BA129: =Strings!E145 -> -50 | BB129: =Strings!B145 -> -30.90487768 | BC129: =harmonics!BA104 -> -13.9037352 | BD129: =harmonics!BB104 -> -5.854542592 | BE129: -44.80861288 | BF129: -100 | BG129: -39.68431357 | BH129: -37.63764814 | BI129: -31.18420462 | BJ129: -22.01422051 | BK129: -21.01275248 | BL129: -34.46010029 | BM129: -21.01275248 | BN129: 1.120428071 | BO129: -17.01275248 | BQ129: 490000 | BR129: 375334.7506 | BS129: 1.620134579e-06 | BT129: 1.447459989e-06 | BU129: -9.851921858e-07 | BX129: 1.249840326e-05 | BY129: 9.903719324e-07 | BZ129: -1.245910299e-05 | CA129: 5.004463342e-06 | CB129: 9.903719324e-07 | CC129: -7.454639652e-06 | CD129: 132976.2674 | CE129: 17512.43759 | CF129: 131818.0649
A130: 5274.040911 | B130: 6340 | C130: 84501.32972 | D130: 5.302044217e-06 | E130: =Tone!BA131 -> 4.761904762e+13 | F130: =Tone!BB131 -> -1312.586152 | G130: 2.1e-14 | H130: 2.1e-14 | I130: 5.78850493e-25 | J130: 40000.02512 | K130: 1e-15 | L130: 3.313777636e-09 | M130: 301770399.2 | N130: 91.06537383 | O130: -301770399.2 | P130: 1e+15 | Q130: -301770399.2 | R130: 1e-15 | S130: 1e-15 | T130: 3.313777636e-05 | U130: 40000.02512 | V130: 3.313777636e-05 | W130: 2.49999843e-05 | X130: 2.49999843e-05 | Y130: -2.071108421e-14 | Z130: 4e-06 | AA130: 0 | AB130: 250000 | AC130: 250000 | AD130: 0 | AE130: 250000 | AF130: -2.078398732e-14 | AG130: 250000 | AH130: 4e-06 | AI130: 4e-06 | AJ130: 3.32543797e-25 | AK130: 5.391740746e-06 | AL130: 4.303487721e-06 | AM130: 144956.654 | AN130: 113293.5834 | AO130: -90426.74116 | AP130: 119633.5834 | AQ130: -5925.411447 | AR130: 119780.2353 | AS130: 1.210188423 | AT130: 1.210188423 | AU130: 1.012622788 | AV130: -1000 | AW130: 5274.040911 | AX130: -16.21787016 | AY130: TRUE | AZ130: 1000 | BA130: =Strings!E146 -> -50 | BB130: =Strings!B146 -> -31.40659434 | BC130: =harmonics!BA105 -> -6.951892547 | BD130: =harmonics!BB105 -> -5.854542592 | BE130: -38.35848688 | BF130: -100 | BG130: -45.97597489 | BH130: -44.72676724 | BI130: -27.66766594 | BJ130: -24.21232858 | BK130: -20.32682409 | BL130: -40.68042717 | BM130: -20.32682409 | BN130: 1.120428071 | BO130: -16.32682409 | BQ130: 490000 | BR130: 397653.3163 | BS130: 1.584652414e-06 | BT130: 1.391740726e-06 | BU130: -9.985564967e-07 | BX130: 1.180096456e-05 | BY130: 8.829259267e-07 | BZ130: -1.176788878e-05 | CA130: 5.302044217e-06 | CB130: 8.829259267e-07 | CC130: -6.46584456e-06 | CD130: 153236.7686 | CE130: 20732.43154 | CF130: 151827.7759
A131: 5587.651703 | B131: 6340 | C131: 89526.04026 | D131: 5.617320173e-06 | E131: =Tone!BA132 -> 4.761904762e+13 | F131: =Tone!BB132 -> -1238.916352 | G131: 2.1e-14 | H131: 2.1e-14 | I131: 5.463621112e-25 | J131: 40000.02512 | K131: 1e-15 | L131: 3.510825108e-09 | M131: 284833328.1 | N131: 81.13002481 | O131: -284833328.1 | P131: 1e+15 | Q131: -284833328.1 | R131: 1e-15 | S131: 1e-15 | T131: 3.510825108e-05 | U131: 40000.02512 | V131: 3.510825108e-05 | W131: 2.49999843e-05 | X131: 2.49999843e-05 | Y131: -2.194262937e-14 | Z131: 4e-06 | AA131: 0 | AB131: 250000 | AC131: 250000 | AD131: 0 | AE131: 250000 | AF131: -2.201986752e-14 | AG131: 250000 | AH131: 4e-06 | AI131: 4e-06 | AJ131: 3.523178802e-25 | AK131: 5.334682058e-06 | AL131: 4.60844513e-06 | AM131: 141852.3925 | AN131: 107345.0125 | AO131: -92731.59948 | AP131: 113685.0125 | AQ131: -3205.559222 | AR131: 113730.1968 | AS131: 1.247271142 | AT131: 1.247271142 | AU131: 0.8476371397 | AV131: -1000 | AW131: 5587.651703 | AX131: -17.68277823 | AY131: TRUE | AZ131: 1000 | BA131: =Strings!E147 -> -50 | BB131: =Strings!B147 -> -31.90831099 | BC131: =harmonics!BA106 -> -10.76531268 | BD131: =harmonics!BB106 -> -6.951892547 | BE131: -42.67362368 | BF131: -100 | BG131: -36.05526184 | BH131: -33.6903965 | BI131: -26.59221383 | BJ131: -28.02421129 | BK131: -20.24697778 | BL131: -29.11147573 | BM131: -20.24697778 | BN131: 1.120428071 | BO131: -16.24697778 | BQ131: 490000 | BR131: 421299.013 | BS131: 1.547474384e-06 | BT131: 1.334682037e-06 | BU131: -1.008875043e-06 | BX131: 1.114203017e-05 | BY131: 7.870782621e-07 | BZ131: -1.111419561e-05 | CA131: 5.617320173e-06 | CB131: 7.870782621e-07 | CC131: -5.496875439e-06 | CD131: 180084.8156 | CE131: 25525.37371 | CF131: 178266.6433
A132: 5919.910763 | B132: 6340 | C132: 94849.53564 | D132: 5.951343413e-06 | E132: =Tone!BA133 -> 4.761904762e+13 | F132: =Tone!BB133 -> -1169.38132 | G132: 2.1e-14 | H132: 2.1e-14 | I132: 5.156971622e-25 | J132: 40000.02512 | K132: 1e-15 | L132: 3.719589633e-09 | M132: 268846861.8 | N132: 72.2786351 | O132: -268846861.8 | P132: 1e+15 | Q132: -268846861.8 | R132: 1e-15 | S132: 1e-15 | T132: 3.719589633e-05 | U132: 40000.02512 | V132: 3.719589633e-05 | W132: 2.49999843e-05 | X132: 2.49999843e-05 | Y132: -2.324740601e-14 | Z132: 4e-06 | AA132: 0 | AB132: 250000 | AC132: 250000 | AD132: 0 | AE132: 250000 | AF132: -2.332923698e-14 | AG132: 250000 | AH132: 4e-06 | AI132: 4e-06 | AJ132: 3.732677916e-25 | AK132: 5.276627603e-06 | AL132: 4.935360496e-06 | AM132: 138408.3614 | AN132: 101083.6928 | AO132: -94546.08165 | AP132: 107423.6928 | AQ132: 303.4539869 | AR132: 107424.1214 | AS132: 1.288429075 | AT132: 1.288429075 | AU132: 0.7113908243 | AV132: -1000 | AW132: 5919.910763 | AX132: -19.73439899 | AY132: TRUE | AZ132: 1000 | BA132: =Strings!E148 -> -50 | BB132: =Strings!B148 -> -32.41002765 | BC132: =harmonics!BA107 -> -17.02060738 | BD132: =harmonics!BB107 -> -6.951892547 | BE132: -49.43063503 | BF132: -100 | BG132: -35.75598695 | BH132: -31.36023306 | BI132: -27.32057251 | BJ132: -36.04590833 | BK132: -20.77656417 | BL132: -24.80288898 | BM132: -20.77656417 | BN132: 1.120428071 | BO132: -16.77656417 | BQ132: 490000 | BR132: 446350.7559 | BS132: 1.508707556e-06 | BT132: 1.276627582e-06 | BU132: -1.015982916e-06 | BX132: 1.051954e-05 | BY132: 7.015889765e-07 | BZ132: -1.049611808e-05 | CA132: 5.951343413e-06 | CB132: 7.015889765e-07 | CC132: -4.544774668e-06 | CD132: 217457.0659 | CE132: 33176.44171 | CF132: 214911.3753
A133: 6271.926976 | B133: 6340 | C133: 100489.5825 | D133: 6.305228707e-06 | E133: =Tone!BA134 -> 4.761904762e+13 | F133: =Tone!BB134 -> -1103.74899 | G133: 2.1e-14 | H133: 2.1e-14 | I133: 4.867533045e-25 | J133: 40000.02512 | K133: 1e-15 | L133: 3.940767942e-09 | M133: 253757646.9 | N133: 64.39294336 | O133: -253757646.9 | P133: 1e+15 | Q133: -253757646.9 | R133: 1e-15 | S133: 1e-15 | T133: 3.940767942e-05 | U133: 40000.02512 | V133: 3.940767942e-05 | W133: 2.49999843e-05 | X133: 2.49999843e-05 | Y133: -2.46297687e-14 | Z133: 4e-06 | AA133: 0 | AB133: 250000 | AC133: 250000 | AD133: 0 | AE133: 250000 | AF133: -2.47164656e-14 | AG133: 250000 | AH133: 4e-06 | AI133: 4e-06 | AJ133: 3.954634495e-25 | AK133: 5.217946549e-06 | AL133: 5.285464568e-06 | AM133: 134640.4828 | AN133: 94591.24614 | AO133: -95815.21683 | AP133: 100931.2461 | AQ133: 4674.365697 | AR133: 101039.4287 | AS133: 1.332553882 | AT133: 1.332553882 | AU133: 0.5998096728 | AV133: -1000 | AW133: 6271.926976 | AX133: -22.45395121 | AY133: TRUE | AZ133: 1000 | BA133: =Strings!E149 -> -50 | BB133: =Strings!B149 -> -32.91174431 | BC133: =harmonics!BA108 -> -8.14145269 | BD133: =harmonics!BB108 -> -6.951892547 | BE133: -41.053197 | BF133: -100 | BG133: -43.25897034 | BH133: -32.7790654 | BI133: -30.20241467 | BJ133: -42.35304745 | BK133: -22.01422051 | BL133: -22.40550054 | BM133: -22.01422051 | BN133: 1.120428071 | BO133: -18.01422051 | BQ133: 490000 | BR133: 472892.1531 | BS133: 1.46848263e-06 | BT133: 1.217946528e-06 | BU133: -1.019764139e-06 | BX133: 9.931533721e-06 | BY133: 6.253481954e-07 | BZ133: -9.911826355e-06 | CA133: 6.305228707e-06 | CB133: 6.253481954e-07 | CC133: -3.606597647e-06 | CD133: 273193.3831 | CE133: 46672.6278 | CF133: 269177.0614
A134: 6644.875161 | B134: 6340 | C134: 106465.0041 | D134: 6.680157117e-06 | E134: =Tone!BA135 -> 4.761904762e+13 | F134: =Tone!BB135 -> -1041.800319 | G134: 2.1e-14 | H134: 2.1e-14 | I134: 4.594339407e-25 | J134: 40000.02512 | K134: 1e-15 | L134: 4.175098198e-09 | M134: 239515324.6 | N134: 57.3675907 | O134: -239515324.6 | P134: 1e+15 | Q134: -239515324.6 | R134: 1e-15 | S134: 1e-15 | T134: 4.175098198e-05 | U134: 40000.02512 | V134: 4.175098198e-05 | W134: 2.49999843e-05 | X134: 2.49999843e-05 | Y134: -2.609433096e-14 | Z134: 4e-06 | AA134: 0 | AB134: 250000 | AC134: 250000 | AD134: 0 | AE134: 250000 | AF134: -2.618618312e-14 | AG134: 250000 | AH134: 4e-06 | AI134: 4e-06 | AJ134: 4.189789299e-25 | AK134: 5.159024453e-06 | AL134: 5.6600009e-06 | AM134: 130575.5182 | AN134: 87961.1913 | AO134: -96502.82266 | AP134: 94301.1913 | AQ134: 9962.18139 | AR134: 94825.94444 | AS134: 1.377002032 | AT134: 1.377002032 | AU134: 0.5084015982 | AV134: -1000 | AW134: 6644.875161 | AX134: -22.88861433 | AY134: TRUE | AZ134: 1000 | BA134: =Strings!E150 -> -50 | BB134: =Strings!B150 -> -33.41346097 | BC134: =harmonics!BA109 -> -15.9204596 | BD134: =harmonics!BB109 -> -8.14145269 | BE134: -49.33392058 | BF134: -100 | BG134: -44.80861288 | BH134: -39.68431357 | BI134: -37.63764814 | BJ134: -31.18420462 | BK134: -24.21232858 | BL134: -21.01275248 | BM134: -21.01275248 | BN134: 1.120428071 | BO134: -17.01275248 | BQ134: 490000 | BR134: 501011.7838 | BS134: 1.426952018e-06 | BT134: 1.159024433e-06 | BU134: -1.020156217e-06 | BX134: 9.376147632e-06 | BY134: 5.573629956e-07 | BZ134: -9.359566812e-06 | CA134: 6.680157117e-06 | CB134: 5.573629956e-07 | CC134: -2.679409695e-06 | CD134: 365394.7351 | CE134: 74415.37976 | CF134: 357736.8637
A135: 7040 | B135: 6340 | C135: 112795.7426 | D135: 7.07737993e-06 | E135: =Tone!BA136 -> 4.761904762e+13 | F135: =Tone!BB136 -> -983.3285602 | G135: 2.1e-14 | H135: 2.1e-14 | I135: 4.33647895e-25 | J135: 40000.02512 | K135: 1e-15 | L135: 4.423362456e-09 | M135: 226072362.3 | N135: 51.10871302 | O135: -226072362.3 | P135: 1e+15 | Q135: -226072362.3 | R135: 1e-15 | S135: 1e-15 | T135: 4.423362456e-05 | U135: 40000.02512 | V135: 4.423362456e-05 | W135: 2.49999843e-05 | X135: 2.49999843e-05 | Y135: -2.764598063e-14 | Z135: 4e-06 | AA135: 0 | AB135: 250000 | AC135: 250000 | AD135: 0 | AE135: 250000 | AF135: -2.77432946e-14 | AG135: 250000 | AH135: 4e-06 | AI135: 4e-06 | AJ135: 4.438927135e-25 | AK135: 5.100253251e-06 | AL135: 6.060227292e-06 | AM135: 126250.0092 | AN135: 81293.26714 | AO135: -96594.3556 | AP135: 87633.26714 | AQ135: 16201.38704 | AR135: 89118.31715 | AS135: 1.416656117 | AT135: 1.416656117 | AU135: 0.4331890739 | AV135: -1000 | AW135: 7040 | AX135: -23.5932742 | AY135: TRUE | AZ135: 1000 | BA135: =Strings!E151 -> -50 | BB135: =Strings!B151 -> -33.91517763 | BC135: =harmonics!BA110 -> -11.57973511 | BD135: =harmonics!BB110 -> -8.14145269 | BE135: -45.49491275 | BF135: -100 | BG135: -38.35848688 | BH135: -45.97597489 | BI135: -44.72676724 | BJ135: -27.66766594 | BK135: -28.02421129 | BL135: -20.32682409 | BM135: -20.32682409 | BN135: 1.120428071 | BO135: -16.32682409 | BQ135: 490000 | BR135: 530803.4948 | BS135: 1.384287121e-06 | BT135: 1.10025323e-06 | BU135: -1.017152639e-06 | BX135: 8.851611344e-06 | BY135: 4.967454882e-07 | BZ135: -8.837661868e-06 | CA135: 7.07737993e-06 | CB135: 4.967454882e-07 | CC135: -1.760281938e-06 | CD135: 546738.0647 | CE135: 148488.4089 | CF135: 526187.8979
A136: 7458.620184 | B136: 6340 | C136: 119502.9265 | D136: 7.498222841e-06 | E136: =Tone!BA137 -> 4.761904762e+13 | F136: =Tone!BB137 -> -928.1385689 | G136: 2.1e-14 | H136: 2.1e-14 | I136: 4.093091089e-25 | J136: 40000.02512 | K136: 1e-15 | L136: 4.686389275e-09 | M136: 213383895.6 | N136: 45.53268691 | O136: -213383895.6 | P136: 1e+15 | Q136: -213383895.6 | R136: 1e-15 | S136: 1e-15 | T136: 4.686389275e-05 | U136: 40000.02512 | V136: 4.686389275e-05 | W136: 2.49999843e-05 | X136: 2.49999843e-05 | Y136: -2.928989618e-14 | Z136: 4e-06 | AA136: 0 | AB136: 250000 | AC136: 250000 | AD136: 0 | AE136: 250000 | AF136: -2.939299675e-14 | AG136: 250000 | AH136: 4e-06 | AI136: 4e-06 | AJ136: 4.702879478e-25 | AK136: 5.042020879e-06 | AL136: 6.487419704e-06 | AM136: 121708.3808 | AN136: 74687.10214 | AO136: -96097.69369 | AP136: 81027.10214 | AQ136: 23405.23283 | AR136: 84339.76645 | AS136: 1.443072301 | AT136: 1.443072301 | AU136: 0.3709214475 | AV136: -1000 | AW136: 7458.620184 | AX136: -24.86133886 | AY136: TRUE | AZ136: 1000 | BA136: =Strings!E152 -> -50 | BB136: =Strings!B152 -> -34.41689429 | BC136: =harmonics!BA111 -> -11.28548279 | BD136: =harmonics!BB111 -> -8.14145269 | BE136: -45.70237708 | BF136: =IF(BF$44,OFFSET($BE136,BF$31,0),-100) -> -100 | BG136: -42.67362368 | BH136: -36.05526184 | BI136: -33.6903965 | BJ136: -26.59221383 | BK136: -36.04590833 | BL136: -20.24697778 | BM136: -20.24697778 | BN136: 1.120428071 | BO136: -16.24697778 | BQ136: 490000 | BR136: 562366.713 | BS136: 1.340674926e-06 | BT136: 1.042020859e-06 | BU136: -1.010803136e-06 | BX136: 8.356244299e-06 | BY136: 4.427020311e-07 | BZ136: -8.344509194e-06 | CA136: 7.498222841e-06 | CB136: 4.427020311e-07 | CC136: -8.462863538e-07 | CD136: 1047028.19 | CE136: 485320.0838 | CF136: 927756.6744
A137: 7902.13282 | B137: 6340 | C137: 126608.9403 | D137: 7.944090373e-06 | E137: =Tone!BA138 -> 4.761904762e+13 | F137: =Tone!BB138 -> -876.0461538 | G137: 2.1e-14 | H137: 2.1e-14 | I137: 3.863363538e-25 | J137: 40000.02512 | K137: 1e-15 | L137: 4.965056483e-09 | M137: 201407577.8 | N137: 40.5650124 | O137: -201407577.8 | P137: 1e+15 | Q137: -201407577.8 | R137: 1e-15 | S137: 1e-15 | T137: 4.965056483e-05 | U137: 40000.02512 | V137: 4.965056483e-05 | W137: 2.49999843e-05 | X137: 2.49999843e-05 | Y137: -3.103156404e-14 | Z137: 4e-06 | AA137: 0 | AB137: 250000 | AC137: 250000 | AD137: 0 | AE137: 250000 | AF137: -3.114079529e-14 | AG137: 250000 | AH137: 4e-06 | AI137: 4e-06 | AJ137: 4.982527245e-25 | AK137: 4.984701133e-06 | AL137: 6.94287868e-06 | AM137: 117000.4367 | AN137: 68236.08322 | AO137: -95041.77577 | AP137: 74576.08322 | AQ137: 31567.16455 | AR137: 80981.96136 | AS137: 1.444771586 | AT137: 1.444771586 | AU137: 0.3190264925 | AV137: -1000 | AW137: 7902.13282 | AX137: -26.70002919 | AY137: TRUE | AZ137: 1000 | BA137: =Strings!E153 -> -50 | BB137: =Strings!B153 -> -34.91861095 | BC137: =harmonics!BA112 -> -16.42450219 | BD137: =harmonics!BB112 -> -11.28095033 | BE137: -51.34311314 | BF137: -100 | BG137: -49.43063503 | BH137: -35.75598695 | BI137: -31.36023306 | BJ137: -27.32057251 | BK137: -42.35304745 | BL137: -20.77656417 | BM137: -20.77656417 | BN137: 1.120428071 | BO137: -16.77656417 | BQ137: 490000 | BR137: 595806.778 | BS137: 1.296314076e-06 | BT137: 9.847011124e-07 | BU137: -1.001211693e-06 | BX137: 7.88845223e-06 | BY137: 3.945234822e-07 | BZ137: -7.878580443e-06 | CA137: 7.944090373e-06 | CB137: 3.945234822e-07 | CC137: 6.550992971e-08 | CD137: 2500466.311 | CE137: 2466691.703 | CF137: -409589.8149
A138: 8372.01809 | B138: 6340 | C138: 134137.4997 | D138: 8.416470568e-06 | E138: =Tone!BA139 -> 4.761904762e+13 | F138: =Tone!BB139 -> -826.8774613 | G138: 2.1e-14 | H138: 2.1e-14 | I138: 3.646529604e-25 | J138: 40000.02512 | K138: 1e-15 | L138: 5.260294105e-09 | M138: 190103439.1 | N138: 36.13931755 | O138: -190103439.1 | P138: 1e+15 | Q138: -190103439.1 | R138: 1e-15 | S138: 1e-15 | T138: 5.260294105e-05 | U138: 40000.02512 | V138: 5.260294105e-05 | W138: 2.49999843e-05 | X138: 2.49999843e-05 | Y138: -3.287679686e-14 | Z138: 4e-06 | AA138: 0 | AB138: 250000 | AC138: 250000 | AD138: 0 | AE138: 250000 | AF138: -3.299252333e-14 | AG138: 250000 | AH138: 4e-06 | AI138: 4e-06 | AJ138: 5.278803732e-25 | AK138: 4.928644294e-06 | AL138: 7.427938128e-06 | AM138: 112178.5628 | AN138: 62022.20742 | AO138: -93473.39589 | AP138: 68362.20742 | AQ138: 40664.10379 | AR138: 79542.19472 | AS138: 1.410302585 | AT138: 1.410302585 | AU138: 0.2754916091 | AV138: -1000 | AW138: 8372.01809 | AX138: -29.212053 | AY138: TRUE | AZ138: 1000 | BA138: =Strings!E154 -> -50 | BB138: =Strings!B154 -> -35.42032761 | BC138: =harmonics!BA113 -> -11.28095033 | BD138: =harmonics!BB113 -> -11.28095033 | BE138: -46.70127794 | BF138: -100 | BG138: -41.053197 | BH138: -43.25897034 | BI138: -32.7790654 | BJ138: -30.20241467 | BK138: -31.18420462 | BL138: -22.01422051 | BM138: -22.01422051 | BN138: 1.120428071 | BO138: -18.01422051 | BQ138: 490000 | BR138: 631235.2926 | BS138: 1.251410592e-06 | BT138: 9.286442734e-07 | BU138: -9.885324401e-07 | BX138: 7.446723574e-06 | BY138: 3.515764072e-07 | BZ138: -7.438419591e-06 | CA138: 8.416470568e-06 | CB138: 3.515764072e-07 | CC138: 9.78050977e-07 | CD138: 962165.9583 | CE138: 325476.5459 | CF138: -905443.7306
A139: 8869.844191 | B139: 6340 | C139: 142113.7305 | D139: 8.916939952e-06 | E139: =Tone!BA140 -> 4.761904762e+13 | F139: =Tone!BB140 -> -780.4683954 | G139: 2.1e-14 | H139: 2.1e-14 | I139: 3.441865624e-25 | J139: 40000.02512 | K139: 1e-15 | L139: 5.57308747e-09 | M139: 179433752.9 | N139: 32.19647168 | O139: -179433752.9 | P139: 1e+15 | Q139: -179433752.9 | R139: 1e-15 | S139: 1e-15 | T139: 5.57308747e-05 | U139: 40000.02512 | V139: 5.57308747e-05 | W139: 2.49999843e-05 | X139: 2.49999843e-05 | Y139: -3.483175294e-14 | Z139: 4e-06 | AA139: 0 | AB139: 250000 | AC139: 250000 | AD139: 0 | AE139: 250000 | AF139: -3.495436086e-14 | AG139: 250000 | AH139: 4e-06 | AI139: 4e-06 | AJ139: 5.592697737e-25 | AK139: 4.874169029e-06 | AL139: 7.943976211e-06 | AM139: 107294.9751 | AN139: 56112.46567 | AO139: -91452.7358 | AP139: 62452.46567 | AQ139: 50660.99469 | AR139: 80416.70754 | AS139: 1.334237355 | AT139: 1.334237354 | AU139: 0.2387437081 | AV139: -1000 | AW139: 8869.844191 | AX139: -32.65368988 | AY139: TRUE | AZ139: 1000 | BA139: =Strings!E155 -> -50 | BB139: =Strings!B155 -> -35.92204427 | BC139: =harmonics!BA114 -> -17.41272204 | BD139: =harmonics!BB114 -> -11.28095033 | BE139: -53.33476631 | BF139: -100 | BG139: -49.33392058 | BH139: -44.80861288 | BI139: -39.68431357 | BJ139: -37.63764814 | BK139: -27.66766594 | BL139: -24.21232858 | BM139: -24.21232858 | BN139: 1.120428071 | BO139: -20.21232858 | BQ139: 490000 | BR139: 668770.4964 | BS139: 1.206173479e-06 | BT139: 8.741690088e-07 | BU139: -9.729637405e-07 | BX139: 7.029625901e-06 | BY139: 3.132951595e-07 | BZ139: -7.022640988e-06 | CA139: 8.916939952e-06 | CB139: 3.132951595e-07 | CC139: 1.894298964e-06 | CD139: 520824.6854 | CE139: 84983.92897 | CF139: -513844.4169
A140: 9397.272573 | B140: 6340 | C140: 150564.2526 | D140: 9.447168794e-06 | E140: =Tone!BA141 -> 4.761904762e+13 | F140: =Tone!BB141 -> -736.6640703 | G140: 2.1e-14 | H140: 2.1e-14 | I140: 3.24868855e-25 | J140: 40000.02512 | K140: 1e-15 | L140: 5.904480496e-09 | M140: 169362910.2 | N140: 28.68379535 | O140: -169362910.2 | P140: 1e+15 | Q140: -169362910.2 | R140: 1e-15 | S140: 1e-15 | T140: 5.904480496e-05 | U140: 40000.02512 | V140: 5.904480496e-05 | W140: 2.49999843e-05 | X140: 2.49999843e-05 | Y140: -3.690295675e-14 | Z140: 4e-06 | AA140: 0 | AB140: 250000 | AC140: 250000 | AD140: 0 | AE140: 250000 | AF140: -3.703285532e-14 | AG140: 250000 | AH140: 4e-06 | AI140: 4e-06 | AJ140: 5.92525685e-25 | AK140: 4.821555924e-06 | AL140: 8.492427918e-06 | AM140: 102399.3011 | AN140: 50556.98811 | AO140: -89048.3454 | AP140: 56896.98811 | AQ140: 61515.90725 | AR140: 83794.23668 | AS140: 1.222032745 | AT140: 1.222032745 | AU140: 0.2075481687 | AV140: -1000 | AW140: 9397.272573 | AX140: -36.24983571 | AY140: TRUE | AZ140: 1000 | BA140: =Strings!E156 -> -50 | BB140: =Strings!B156 -> -36.42376093 | BC140: =harmonics!BA115 -> -13.17219761 | BD140: =harmonics!BB115 -> -11.28095033 | BE140: -49.59595854 | BF140: -100 | BG140: -45.49491275 | BH140: -38.35848688 | BI140: -45.97597489 | BJ140: -44.72676724 | BK140: -26.59221383 | BL140: -28.02421129 | BM140: -26.59221383 | BN140: 1.120428071 | BO140: -22.59221383 | BQ140: 490000 | BR140: 708537.6595 | BS140: 1.160810396e-06 | BT140: 8.215559031e-07 | BU140: -9.547408757e-07 | BX140: =G243 -> 6.635802367e-06 | BY140: 2.791747551e-07 | BZ140: -6.629927187e-06 | CA140: 9.447168794e-06 | CB140: 2.791747551e-07 | CC140: 2.817241607e-06 | CD140: 353227.0533 | CE140: 34832.45306 | CF140: -351505.4073
A141: 9956.063479 | B141: 6340 | C141: 159517.269 | D141: 1.000892668e-05 | E141: =Tone!BA142 -> 4.761904762e+13 | F141: =Tone!BB142 -> -695.318293 | G141: 2.1e-14 | H141: 2.1e-14 | I141: 3.066353672e-25 | J141: 40000.02512 | K141: 1e-15 | L141: 6.255579177e-09 | M141: 159857300.5 | N141: 25.55435651 | O141: -159857300.5 | P141: 1e+15 | Q141: -159857300.5 | R141: 1e-15 | S141: 1e-15 | T141: 6.255579177e-05 | U141: 40000.02512 | V141: 6.255579177e-05 | W141: 2.49999843e-05 | X141: 2.49999843e-05 | Y141: -3.909732075e-14 | Z141: 4e-06 | AA141: 0 | AB141: 250000 | AC141: 250000 | AD141: 0 | AE141: 250000 | AF141: -3.923494349e-14 | AG141: 250000 | AH141: 4e-06 | AI141: 4e-06 | AJ141: 6.277590957e-25 | AK141: 4.771042874e-06 | AL141: 9.07479887e-06 | AM141: 97536.69037 | AN141: 45388.86775 | AO141: -86332.24572 | AP141: 51728.86775 | AQ141: 73185.02329 | AR141: 89620.99861 | AS141: 1.088324074 | AT141: 1.088324074 | AU141: 0.1809295317 | AV141: -1000 | AW141: 9956.063479 | AX141: -38.17038333 | AY141: TRUE | AZ141: 1000 | BA141: =Strings!E157 -> -50 | BB141: =Strings!B157 -> -36.92547759 | BC141: =harmonics!BA116 -> -14.13476698 | BD141: =harmonics!BB116 -> -11.28095033 | BE141: -51.06024457 | BF141: -100 | BG141: -45.70237708 | BH141: -42.67362368 | BI141: -36.05526184 | BJ141: -33.6903965 | BK141: -27.32057251 | BL141: -36.04590833 | BM141: -27.32057251 | BN141: 1.120428071 | BO141: -23.32057251 | BQ141: 490000 | BR141: 750669.5012 | BS141: 1.115523608e-06 | BT141: 7.710428538e-07 | BU141: -9.341278133e-07 | BX141: 6.263968231e-06 | BY141: 2.487644693e-07 | BZ141: =I244 -> -6.259026621e-06 | CA141: 1.000892668e-05 | CB141: 2.487644693e-07 | CC141: 3.749900062e-06 | CD141: 266088.9066 | CE141: 17613.3469 | CF141: -265505.3224
A142: 10548.08182 | B142: 6340 | C142: 169002.6594 | D142: 1.060408843e-05 | E142: =Tone!BA143 -> 4.761904762e+13 | F142: =Tone!BB143 -> -656.2930759 | G142: 2.1e-14 | H142: 2.1e-14 | I142: 2.894252465e-25 | J142: 40000.02512 | K142: 1e-15 | L142: 6.627555272e-09 | M142: 150885199.6 | N142: 22.76634346 | O142: -150885199.6 | P142: 1e+15 | Q142: -150885199.6 | R142: 1e-15 | S142: 1e-15 | T142: 6.627555272e-05 | U142: 40000.02512 | V142: 6.627555272e-05 | W142: 2.49999843e-05 | X142: 2.49999843e-05 | Y142: -4.142216842e-14 | Z142: 4e-06 | AA142: 0 | AB142: 250000 | AC142: 250000 | AD142: 0 | AE142: =X142+AC142+E245 -> 250000 | AF142: =Y142+AD142+F245 -> -4.156797464e-14 | AG142: 250000 | AH142: 4e-06 | AI142: 4e-06 | AJ142: 6.650875941e-25 | AK142: 4.722822434e-06 | AL142: 9.692679871e-06 | AM142: 92746.5446 | AN142: 40625.348 | AO142: -83375.67172 | AP142: 46965.348 | AQ142: 85626.98771 | AR142: 97661.27655 | AS142: 0.9496757352 | AT142: 0.9496757351 | AU142: =IF($AO$42=0,1,AK245) -> 0.1581110442 | AV142: -1000 | AW142: 10548.08182 | AX142: =IF(AW142<$BM$40,NA(),20*LOG(AU142)+BO142) -> -42.22317053 | AY142: TRUE | AZ142: 1000 | BA142: =Strings!E158 -> -50 | BB142: =Strings!B158 -> -37.42719425 | BC142: =harmonics!BA117 -> -21.5399946 | BD142: =harmonics!BB117 -> -13.17219761 | BE142: -58.96718885 | BF142: -100 | BG142: -51.34311314 | BH142: -49.43063503 | BI142: -35.75598695 | BJ142: -31.36023306 | BK142: -30.20241467 | BL142: -42.35304745 | BM142: -30.20241467 | BN142: 1.120428071 | BO142: =BM142+BN142*$BN$44+$BD$43 -> -26.20241467 | BQ142: 490000 | BR142: 795306.6326 | BS142: 1.070506356e-06 | BT142: =BQ142*BS142^2+1/$B$12/1000 -> 7.228224132e-07 | BU142: -9.114085635e-07 | BX142: 5.912907451e-06 | BY142: =H245 -> 2.216620885e-07 | BZ142: -5.908751174e-06 | CA142: 1.060408843e-05 | CB142: 2.216620885e-07 | CC142: 4.695337261e-06 | CD142: 212740.3123 | CE142: 10032.08044 | CF142: -212503.642
A143: 11175.30341 | B143: 6340 | C143: =2*PI()*A143*$B$9 -> 179052.0805 | D143: 1.123464035e-05 | E143: =Tone!BA144 -> 4.761904762e+13 | F143: =Tone!BB144 -> -619.458176 | G143: =1/(E143^2+F143^2)^0.5 -> 2.1e-14 | H143: =E143*G143^2 -> 2.1e-14 | I143: =-F143*G143^2 -> 2.731810556e-25 | J143: 40000.02512 | K143: 1e-15 | L143: 7.021650216e-09 | M143: 142416664.1 | N143: 20.2825062 | O143: -142416664.1 | P143: 1e+15 | Q143: -142416664.1 | R143: =1/(P143^2+Q143^2)^0.5 -> 1e-15 | S143: =P143*R143^2 -> 1e-15 | T143: 7.021650216e-05 | U143: 40000.02512 | V143: =T143 -> 7.021650216e-05 | W143: =1/(U143^2+V143^2)^0.5 -> 2.49999843e-05 | X143: =U143*W143^2 -> 2.49999843e-05 | Y143: =-V143*W143^2 -> -4.388525873e-14 | Z143: 4e-06 | AA143: 0 | AB143: =1/(Z143^2+AA143^2)^0.5 -> 250000 | AC143: =Z143*AB143^2 -> 250000 | AD143: =-AA143*AB143^2 -> 0 | AE143: 250000 | AF143: -4.403973504e-14 | AG143: =(AE143^2+AF143^2)^0.5 -> 250000 | AH143: =1/(AE143^2+AF143^2)^0.5 -> 4e-06 | AI143: =AE143*AH143^2 -> 4e-06 | AJ143: =-AF143*AH143^2 -> 7.046357604e-25 | AK143: 4.677041036e-06 | AL143: 1.034776174e-05 | AM143: =1/(AK143^2+AL143^2)^0.5 -> 88061.85609 | AN143: =AK143*AM143^2 -> 36269.94109 | AO143: =-AL143*AM143^2 -> -80245.75921 | AP143: 42609.94109 | AQ143: 98806.32131 | AR143: =(AP143^2+AQ143^2)^0.5 -> 107602.4917 | AS143: =AM143/AR143 -> 0.8183997855 | AT143: =AS143*AB143/AG143 -> 0.8183997854 | AU143: 0.1384690845 | AV143: =IF(AY143,-1000,AX143) -> -1000 | AW143: 11175.30341 | AX143: -44.3571482 | AY143: =OR(AW143<$K$26,AW143>$M$26,ISNA(AX143)) -> TRUE | AZ143: =IF(AV143=-1000,1000,AV143) -> 1000 | BA143: =Strings!E159 -> -50 | BB143: =Strings!B159 -> -37.92891091 | BC143: =harmonics!BA118 -> 0 | BD143: =harmonics!BB118 -> 0 | BE143: -37.92891091 | BF143: -100 | BG143: -46.70127794 | BH143: -41.053197 | BI143: -43.25897034 | BJ143: -32.7790654 | BK143: -37.63764814 | BL143: -31.18420462 | BM143: =IF(MAX(BF143:BL143)<-80,#N/A,(MAX(BF143:BL143))) -> -31.18420462 | BN143: 1.120428071 | BO143: -27.18420462 | BQ143: 490000 | BR143: 842598.026 | BS143: =1/(BQ143^2+BR143^2)^0.5 -> 1.025939781e-06 | BT143: =BQ143*BS143^2+1/$B$12/1000 -> 6.770410154e-07 | BU143: =-BR143*BS143^2 -> -8.868786034e-07 | BX143: 5.581469359e-06 | BY143: 1.975087533e-07 | BZ143: -5.577973691e-06 | CA143: 1.123464035e-05 | CB143: =BY143 -> 1.975087533e-07 | CC143: =BZ143+CA143 -> 5.656666655e-06 | CD143: =1/(CB143^2+CC143^2)^0.5 -> 176674.8954 | CE143: =CB143*CD143^2 -> 6165.041915 | CF143: =-CC143*CD143^2 -> -176567.2986
A144: 11839.82153 | B144: 6340 | C144: =2*PI()*A144*$B$9 -> 189699.0713 | D144: 1.190268683e-05 | E144: =Tone!BA145 -> 4.761904762e+13 | F144: =Tone!BB145 -> -584.6906601 | G144: =1/(E144^2+F144^2)^0.5 -> 2.1e-14 | H144: =E144*G144^2 -> 2.1e-14 | I144: =-F144*G144^2 -> 2.578485811e-25 | J144: 40000.02512 | K144: 1e-15 | L144: 7.439179266e-09 | M144: 134423430.9 | N144: 18.06965878 | O144: -134423430.9 | P144: 1e+15 | Q144: -134423430.9 | R144: =1/(P144^2+Q144^2)^0.5 -> 1e-15 | S144: =P144*R144^2 -> 1e-15 | T144: 7.439179266e-05 | U144: 40000.02512 | V144: =T144 -> 7.439179266e-05 | W144: =1/(U144^2+V144^2)^0.5 -> 2.49999843e-05 | X144: =U144*W144^2 -> 2.49999843e-05 | Y144: =-V144*W144^2 -> -4.649481201e-14 | Z144: 4e-06 | AA144: 0 | AB144: =1/(Z144^2+AA144^2)^0.5 -> 250000 | AC144: =Z144*AB144^2 -> 250000 | AD144: =-AA144*AB144^2 -> 0 | AE144: 250000 | AF144: -4.665847396e-14 | AG144: =(AE144^2+AF144^2)^0.5 -> 250000 | AH144: =1/(AE144^2+AF144^2)^0.5 -> 4e-06 | AI144: =AE144*AH144^2 -> 4e-06 | AJ144: =-AF144*AH144^2 -> 7.465355831e-25 | AK144: 4.633799933e-06 | AL144: 1.104185004e-05 | AM144: =1/(AK144^2+AL144^2)^0.5 -> 83509.0746 | AN144: =AK144*AM144^2 -> 32315.03429 | AO144: =-AL144*AM144^2 -> -77003.2733 | AP144: 38655.03429 | AQ144: 112695.798 | AR144: =(AP144^2+AQ144^2)^0.5 -> 119140.9021 | AS144: =AM144/AR144 -> 0.7009269958 | AT144: =AS144*AB144/AG144 -> 0.7009269957 | AU144: 0.1214988735 | AV144: =IF(AY144,-1000,AX144) -> -1000 | AW144: 11839.82153 | AX144: -41.97622092 | AY144: =OR(AW144<$K$26,AW144>$M$26,ISNA(AX144)) -> TRUE | AZ144: =IF(AV144=-1000,1000,AV144) -> 1000 | BA144: =Strings!E160 -> -50 | BB144: =Strings!B160 -> -38.43062757 | BC144: =harmonics!BA119 -> 0 | BD144: =harmonics!BB119 -> 0 | BE144: -38.43062757 | BF144: -100 | BG144: -53.33476631 | BH144: -49.33392058 | BI144: -44.80861288 | BJ144: -39.68431357 | BK144: -44.72676724 | BL144: -27.66766594 | BM144: =IF(MAX(BF144:BL144)<-80,#N/A,(MAX(BF144:BL144))) -> -27.66766594 | BN144: 1.120428071 | BO144: -23.66766594 | BQ144: 490000 | BR144: 892701.5119 | BS144: =1/(BQ144^2+BR144^2)^0.5 -> 9.819904714e-07 | BT144: =BQ144*BS144^2+1/$B$12/1000 -> 6.337999126e-07 | BU144: =-BR144*BS144^2 -> -8.608367866e-07 | BX144: 5.268565456e-06 | BY144: 1.759843377e-07 | BZ144: -5.265625459e-06 | CA144: 1.190268683e-05 | CB144: =BY144 -> 1.759843377e-07 | CC144: =BZ144+CA144 -> 6.637061366e-06 | CD144: =1/(CB144^2+CC144^2)^0.5 -> 150616.1533 | CE144: =CB144*CD144^2 -> 3992.244407 | CF144: =-CC144*CD144^2 -> -150563.2346
A145: 12543.85395 | B145: 6340 | C145: =2*PI()*A145*$B$9 -> 200979.165 | D145: 1.261045741e-05 | E145: =Tone!BA146 -> 4.761904762e+13 | F145: =Tone!BB146 -> -551.8744949 | G145: =1/(E145^2+F145^2)^0.5 -> 2.1e-14 | H145: =E145*G145^2 -> 2.1e-14 | I145: =-F145*G145^2 -> 2.433766523e-25 | J145: 40000.02512 | K145: 1e-15 | L145: 7.881535884e-09 | M145: 126878823.5 | N145: 16.09823584 | O145: -126878823.5 | P145: 1e+15 | Q145: -126878823.5 | R145: =1/(P145^2+Q145^2)^0.5 -> 1e-15 | S145: =P145*R145^2 -> 1e-15 | T145: 7.881535884e-05 | U145: 40000.02512 | V145: =T145 -> 7.881535884e-05 | W145: =1/(U145^2+V145^2)^0.5 -> 2.49999843e-05 | X145: =U145*W145^2 -> 2.49999843e-05 | Y145: =-V145*W145^2 -> -4.925953741e-14 | Z145: 4e-06 | AA145: 0 | AB145: =1/(Z145^2+AA145^2)^0.5 -> 250000 | AC145: =Z145*AB145^2 -> 250000 | AD145: =-AA145*AB145^2 -> 0 | AE145: 250000 | AF145: -4.94329312e-14 | AG145: =(AE145^2+AF145^2)^0.5 -> 250000 | AH145: =1/(AE145^2+AF145^2)^0.5 -> 4e-06 | AI145: =AE145*AH145^2 -> 4e-06 | AJ145: =-AF145*AH145^2 -> 7.90926899e-25 | AK145: 4.593157578e-06 | AL145: 1.177687935e-05 | AM145: =1/(AK145^2+AL145^2)^0.5 -> 79108.38271 | AN145: =AK145*AM145^2 -> 28744.60578 | AO145: =-AL145*AM145^2 -> -73701.31514 | AP145: 35084.60578 | AQ145: 127277.8499 | AR145: =(AP145^2+AQ145^2)^0.5 -> 132024.9243 | AS145: =AM145/AR145 -> 0.5991927897 | AT145: =AS145*AB145/AG145 -> 0.5991927896 | AU145: 0.1067886002 | AV145: =IF(AY145,-1000,AX145) -> -1000 | AW145: 12543.85395 | AX145: -42.02171595 | AY145: =OR(AW145<$K$26,AW145>$M$26,ISNA(AX145)) -> TRUE | AZ145: =IF(AV145=-1000,1000,AV145) -> 1000 | BA145: =Strings!E161 -> -50 | BB145: =Strings!B161 -> -38.93234423 | BC145: =harmonics!BA120 -> 0 | BD145: =harmonics!BB120 -> 0 | BE145: -38.93234423 | BF145: -100 | BG145: -49.59595854 | BH145: -45.49491275 | BI145: -38.35848688 | BJ145: -45.97597489 | BK145: -33.6903965 | BL145: -26.59221383 | BM145: =IF(MAX(BF145:BL145)<-80,#N/A,(MAX(BF145:BL145))) -> -26.59221383 | BN145: 1.120428071 | BO145: -22.59221383 | BQ145: 490000 | BR145: 945784.3061 | BS145: =1/(BQ145^2+BR145^2)^0.5 -> 9.388086623e-07 | BT145: =BQ145*BS145^2+1/$B$12/1000 -> 5.931575578e-07 | BU145: =-BR145*BS145^2 -> -8.335780681e-07 | BX145: 4.973166296e-06 | BY145: 1.568033083e-07 | BZ145: -4.970693687e-06 | CA145: 1.261045741e-05 | CB145: =BY145 -> 1.568033083e-07 | CC145: =BZ145+CA145 -> 7.639763727e-06 | CD145: =1/(CB145^2+CC145^2)^0.5 -> 130866.5388 | CE145: =CB145*CD145^2 -> 2685.421452 | CF145: =-CC145*CD145^2 -> -130838.9831
A146: Bass Control | G146: Total Impedance | AZ146: -100 | BE146: -50
B147: 1/R7 | C147: 1/C7 | D147: 1/R7+C7)=Tbass | G147: 1/(R1+L1)=1/A | J147: 1/A+1/C1+1/mod.tone+V | L147: Q | O147: Q+Tbass+F=R | Q147: 1/R | R147: !/R+1/Vol lower+1/50s.tone=S | U147: Impedance=1/S=U | W147: phase | Z147: 1/load | AB147: load | AE147: load+impedance | AJ147: Vnoload | AK147: vout | AL147: check | AM147: check2 | AZ147: -100 | BE147: -50
C148: j | D148: mag | F148: j | G148: Mag | I148: j | J148: =1/Q | K148: j | L148: Mag | N148: j | P148: j | Q148: Mag 1/R | S148: j | T148: Mag | V148: j | AA148: j | AB148: Mag | AD148: j | AF148: j | AG148: mag | AZ148: -100 | BE148: -50
A149: =A46 -> 41.20344461 | B149: =1/($O$7*1000+0.000001) -> 1000000 | C149: =2*PI()*$E$8*0.000000001*A149 -> 5.695555312e-07 | D149: =1/(B149^2+C149^2)^0.5 -> 1e-06 | E149: =B149*D149^2 -> 1e-06 | F149: =-C149*D149^2 -> -5.695555312e-19 | G149: =1/(B46^2+C46^2)^0.5 -> 0.0001568805126 | H149: =B46*G149^2 -> 0.0001560368799 | I149: =-C46*G149^2 -> -1.624768808e-05 | J149: =H149+H46*$AF$43+BT46 -> 0.0001582389045 | K149: =I149+D46+I46*$AF$43+BU46 -> -1.62192044e-05 | L149: =1/(J149^2+K149^2)^0.5 -> 6286.621439 | M149: =J149*L149^2 -> 6253.856131 | N149: =-K149*L149^2 -> 641.0090563 | O149: =M149+E149+X46 -> 6253.856157 | P149: =N149+F149+Y46 -> 641.0090563 | Q149: =1/(O149^2+P149^2)^0.5 -> 0.0001590679518 | R149: =O149*Q149^2+1/($H$16*$H$15*1000/100)+H46*$V$42 -> 0.0001622389039 | S149: =-P149*Q149^2+I46*$V$42 -> -1.621920426e-05 | T149: =1/(R149^2+S149^2)^0.5 -> 6133.17775 | U149: =R149*T149^2 -> 6102.757406 | V149: =-S149*T149^2 -> 610.099468 | W149: =ATAN(V149/U149) -> 0.09964005429 | Z149: =1/($L$15*1000) -> 1e-06 | AA149: =2*PI()*$L$14*0.000000001*$A46 -> 1.294444389e-07 | AB149: =1/(Z149^2+AA149^2)^0.5 -> 991725.9043 | AC149: =Z149*AB149^2 -> 983520.2693 | AD149: =-AA149*AB149^2 -> -127311.2294 | AE149: =U149+AC149 -> 989623.0267 | AF149: =V149+AD149 -> -126701.1299 | AG149: =(AE149^2+AF149^2)^0.5 -> 997700.8126 | AJ149: =AT46 -> 0.9621760657 | AK149: =AJ149*AB149/AG149 -> 0.9564139037 | AL149: =AK149/AM149 -> 3.694910657 | AM149: 0.2588462868 | AZ149: -100 | BE149: -50
A150: 43.65352893 | B150: 1000000 | C150: =2*PI()*$E$8*0.000000001*A150 -> 6.034230655e-07 | D150: =1/(B150^2+C150^2)^0.5 -> 1e-06 | E150: =B150*D150^2 -> 1e-06 | F150: =-C150*D150^2 -> -6.034230655e-19 | G150: =1/(B47^2+C47^2)^0.5 -> 0.0001567775788 | H150: =B47*G150^2 -> 0.0001558321865 | I150: =-C47*G150^2 -> -1.719124433e-05 | J150: 0.0001580342011 | K150: -1.716106685e-05 | L150: =1/(J150^2+K150^2)^0.5 -> 6290.762662 | M150: =J150*L150^2 -> 6253.997252 | N150: =-K150*L150^2 -> 679.1268231 | O150: 6253.997278 | P150: 679.1268231 | Q150: =1/(O150^2+P150^2)^0.5 -> 0.000158963237 | R150: =O150*Q150^2+1/($H$16*$H$15*1000/100)+H47*$V$42 -> 0.0001620342004 | S150: =-P150*Q150^2+I47*$V$42 -> -1.716106671e-05 | T150: =1/(R150^2+S150^2)^0.5 -> 6137.212163 | U150: =R150*T150^2 -> 6103.07862 | V150: =-S150*T150^2 -> 646.377981 | W150: =ATAN(V150/U150) -> 0.1055167988 | Z150: =1/($L$15*1000) -> 1e-06 | AA150: =2*PI()*$L$14*0.000000001*$A47 -> 1.371416058e-07 | AB150: =1/(Z150^2+AA150^2)^0.5 -> 990726.6949 | AC150: =Z150*AB150^2 -> 981539.3839 | AD150: =-AA150*AB150^2 -> -134609.8873 | AE150: =U150+AC150 -> 987642.4625 | AF150: =V150+AD150 -> -133963.5093 | AG150: =(AE150^2+AF150^2)^0.5 -> 996686.438 | AJ150: 0.9621772598 | AK150: 0.9564238663 | AL150: =AK150/AM150 -> 3.691827378 | AM150: 0.2590651643 | AZ150: -100 | BE150: -50
A151: 46.24930284 | B151: 1000000 | C151: 6.393044681e-07 | D151: 1e-06 | E151: 1e-06 | F151: -6.393044681e-19 | G151: 0.0001566622805 | H151: 0.0001556030647 | I151: -1.818670942e-05 | J151: 0.000157805068 | K151: -1.815473741e-05 | L151: 6295.407826 | M151: 6254.155655 | N151: 719.5114522 | O151: 6254.155681 | P151: 719.5114522 | Q151: 0.0001588459435 | R151: 0.0001618050674 | S151: -1.815473726e-05 | T151: 6141.737506 | U151: 6103.439172 | V151: 684.8137475 | W151: 0.1117339758 | Z151: 1e-06 | AA151: 1.4529647e-07 | AB151: 989608.7099 | AC151: 979325.3986 | AD151: -142292.5234 | AE151: 985428.8378 | AF151: -141607.7097 | AG151: 995551.4742 | AJ151: 0.9621786001 | AK151: 0.9564350491 | AL151: 3.688153033 | AM151: 0.2593262917 | AZ151: -100 | BE151: -50
A152: 48.9994295 | B152: 1000000 | C152: 6.773194901e-07 | D152: 1e-06 | E152: 1e-06 | F152: -6.773194901e-19 | G152: 0.0001565331651 | H152: 0.0001553466854 | I152: -1.923640029e-05 | J152: 0.0001575486761 | K152: -1.920252703e-05 | L152: 6300.61782 | M152: 6254.333458 | N152: 762.297788 | O152: 6254.333484 | P152: 762.297788 | Q152: 0.0001587145935 | R152: 0.0001615486755 | S152: -1.920252688e-05 | T152: 6146.813093 | U152: 6103.843878 | V152: 725.5350487 | W152: 0.1183101541 | Z152: 1e-06 | AA152: 1.539362477e-07 | AB152: 988358.3113 | AC152: 976852.1516 | AD152: -150372.9548 | AE152: 982955.9955 | AF152: -149647.4198 | AG152: 994282.0723 | AJ152: 0.9621801046 | AK152: 0.9564476017 | AL152: 3.683819805 | AM152: 0.2596347412 | AZ152: -100 | BE152: -50
A153: 51.9130872 | B153: 1000000 | C153: 7.175950028e-07 | D153: 1e-06 | E153: 1e-06 | F153: -7.175950028e-19 | G153: 0.0001563886175 | H153: 0.000155059914 | I153: -2.034263403e-05 | J153: 0.0001572618904 | K153: -2.030674645e-05 | L153: 6306.460782 | M153: 6254.533034 | N153: 807.6287023 | O153: 6254.53306 | P153: 807.6287023 | Q153: 0.0001585675437 | R153: 0.0001612618898 | S153: -2.030674628e-05 | T153: 6152.505296 | U153: 6104.298147 | V153: 768.677794 | W153: 0.1252647003 | Z153: 1e-06 | AA153: 1.630897734e-07 | AB153: 986960.4167 | AC153: 974090.8641 | AD153: -158864.2583 | AE153: 980195.1623 | AF153: -158095.5805 | AG153: 992862.9154 | AJ153: 0.9621817934 | AK153: 0.9564616918 | AL153: 3.678754873 | AM153: 0.2599960381 | AZ153: -100 | BE153: -50
A154: 55 | B154: 1000000 | C154: 7.602654222e-07 | D154: 1e-06 | E154: 1e-06 | F154: -7.602654222e-19 | G154: 0.0001562268443 | H154: 0.0001547392825 | I154: -2.150770441e-05 | J154: 0.000156941243 | K154: -2.14696827e-05 | L154: 6313.012929 | M154: 6254.757052 | N154: 855.6555737 | O154: 6254.757078 | P154: 855.6555737 | Q154: 0.0001584029697 | R154: 0.0001609412424 | S154: -2.146968253e-05 | T154: 6158.88836 | U154: 6104.808049 | V154: 814.3859758 | W154: 0.1326177714 | Z154: 1e-06 | AA154: 1.727875959e-07 | AB154: 985398.3765 | AC154: 971009.9604 | AD154: -167778.4767 | AE154: 977114.7684 | AF154: -166964.0907 | AG154: 991277.0946 | AJ154: 0.9621836891 | AK154: 0.9564775079 | AL154: 3.672879977 | AM154: 0.2604162167 | AZ154: -100 | BE154: -50
A155: 58.27047019 | B155: 1000000 | C155: 8.054731567e-07 | D155: 1e-06 | E155: 1e-06 | F155: -8.054731567e-19 | G155: 0.0001560458567 | H155: 0.0001543809616 | I155: -2.27338534e-05 | J155: 0.0001565829042 | K155: -2.269357065e-05 | L155: 6320.359482 | M155: 6255.008505 | N155: 906.5387956 | O155: 6255.008531 | P155: 906.5387956 | Q155: 0.000158218848 | R155: 0.0001605829036 | S155: -2.269357047e-05 | T155: 6166.045295 | U155: 6105.380396 | V155: 862.8121494 | W155: 0.1403902981 | Z155: 1e-06 | AA155: 1.830620811e-07 | AB155: 983653.8495 | AC155: 967574.8957 | AD155: -177126.274 | AE155: 973680.2761 | AF155: -176263.4618 | AG155: 989505.9818 | AJ155: 0.9621858169 | AK155: 0.9564952614 | AL155: 3.666110951 | AM155: 0.260901886 | AZ155: -100 | BE155: -50
A156: 61.73541266 | B156: 1000000 | C156: 8.53369083e-07 | D156: 1e-06 | E156: 1e-06 | F156: -8.53369083e-19 | G156: 0.0001558434524 | H156: 0.0001539807317 | I156: -2.402323698e-05 | J156: 0.0001561826543 | K156: -2.39805587e-05 | L156: 6328.595686 | M156: 6255.290752 | N156: 960.4483146 | O156: 6255.290778 | P156: 960.4483146 | Q156: 0.0001580129377 | R156: 0.0001601826536 | S156: -2.398055851e-05 | T156: 6174.068877 | U156: 6106.022837 | V156: 914.1179431 | W156: 0.1486039566 | Z156: 1e-06 | AA156: 1.939475189e-07 | AB156: 981706.6782 | AC156: 963748.002 | AD156: -186916.5338 | AE156: 969854.0249 | AF156: -186002.4159 | AG156: 987529.1025 | AJ156: 0.9621882053 | AK156: 0.9565151898 | AL156: 3.658357247 | AM156: 0.2614603018 | AZ156: -100 | BE156: -50
A157: 65.40639133 | B157: 1000000 | C157: 9.041130493e-07 | D157: 1e-06 | E157: 1e-06 | F157: -9.041130493e-19 | G157: 0.0001556171968 | H157: 0.0001535339536 | I157: -2.537788429e-05 | J157: 0.0001557358536 | K157: -2.5332668e-05 | L157: 6337.827933 | M157: 6255.607565 | N157: 1017.564202 | O157: 6255.607591 | P157: 1017.564202 | Q157: 0.0001577827619 | R157: 0.000159735853 | S157: -2.533266779e-05 | T157: 6183.062735 | U157: 6106.743955 | V157: 968.4745973 | W157: 0.1572811257 | Z157: 1e-06 | AA157: 2.054802385e-07 | AB157: 979534.7668 | AC157: 959488.3593 | AD157: -197155.8969 | AE157: 965595.1032 | AF157: -196187.4223 | AG157: 985324.0117 | AJ157: 0.9621908863 | AK157: 0.9565375594 | AL157: 3.649521475 | AM157: 0.2620994467 | AZ157: -100 | BE157: -50
A158: 69.29565774 | B158: 1000000 | C158: 9.578744089e-07 | D158: 1e-06 | E158: 1e-06 | F158: -9.578744089e-19 | G158: 0.0001553644035 | H158: 0.0001530355405 | I158: -2.67996495e-05 | J158: 0.0001552374152 | K158: -2.675174423e-05 | L158: 6348.175001 | M158: 6255.963176 | N158: 1078.077258 | O158: 6255.963202 | P158: 1078.077258 | Q158: 0.0001575255874 | R158: 0.0001592374146 | S158: -2.675174402e-05 | T158: 6193.142561 | U158: 6107.553388 | V158: 1026.063537 | W158: 0.1664448285 | Z158: 1e-06 | AA158: 2.176987293e-07 | AB158: 977113.9667 | AC158: 954751.7039 | AD158: -207848.2327 | AE158: 960859.2572 | AF158: -206822.1692 | AG158: 982866.177 | AJ158: 0.9621938958 | AK158: 0.9565626697 | AL158: 3.639499005 | AM158: 0.2628281169 | AZ158: -100 | BE158: -50
A159: 73.41619198 | B159: 1000000 | C159: 1.014832585e-06 | D159: 1e-06 | E159: 1e-06 | F159: -1.014832585e-18 | G159: 0.0001550821149 | H159: 0.0001524799314 | I159: -2.82901554e-05 | J159: 0.0001546817776 | K159: -2.823940122e-05 | L159: 6359.769409 | M159: 6256.362339 | N159: 1142.189655 | O159: 6256.362365 | P159: 1142.189655 | Q159: 0.0001572384047 | R159: 0.000158681777 | S159: -2.823940099e-05 | T159: 6204.437426 | U159: 6108.461952 | V159: 1087.076977 | W159: 0.1761186537 | Z159: 1e-06 | AA159: 2.306437694e-07 | AB159: 974417.9743 | AC159: 949490.3886 | AD159: -218994.0422 | AE159: 955598.8506 | AF159: -217906.9652 | AG159: 980128.8735 | AJ159: 0.9621972738 | AK159: 0.9565908563 | AL159: 3.628177667 | AM159: 0.2636560125 | AZ159: -100 | BE159: -50
A160: 77.78174593 | B160: 1000000 | C160: 1.075177671e-06 | D160: 1e-06 | E160: 1e-06 | F160: -1.075177671e-18 | G160: 0.0001547670822 | H160: 0.0001518610674 | I160: -2.985072794e-05 | J160: 0.0001540628818 | K160: -2.979695538e-05 | L160: 6372.758903 | M160: 6256.810387 | N160: 1210.115622 | O160: 6256.810413 | P160: 1210.115622 | Q160: 0.0001569179081 | R160: 0.0001580628812 | S160: -2.979695514e-05 | T160: 6217.091229 | U160: 6109.481787 | V160: 1151.718565 | W160: 0.1863266549 | Z160: 1e-06 | AA160: 2.443585616e-07 | AB160: 971418.247 | AC160: 943653.4106 | AD160: -230589.7901 | AE160: 949762.8924 | AF160: -229438.0715 | AG160: 977083.098 | AJ160: 0.9622010657 | AK160: 0.9566224965 | AL160: 3.615437605 | AM160: 0.2645938337 | AZ160: -100 | BE160: -50
A161: 82.40688923 | B161: 1000000 | C161: 1.139111062e-06 | D161: 1e-06 | E161: 1e-06 | F161: -1.139111062e-18 | G161: 0.0001544157468 | H161: 0.0001511723729 | I161: -3.148232089e-05 | J161: 0.0001533741515 | K161: -3.14253504e-05 | L161: 6387.308078 | M161: 6257.313307 | N161: 1282.082159 | O161: 6257.313333 | P161: 1282.082159 | Q161: 0.0001565604765 | R161: 0.0001573741509 | S161: -3.142535015e-05 | T161: 6231.264272 | U161: 6110.626521 | V161: 1220.204061 | W161: 0.1970932241 | Z161: 1e-06 | AA161: 2.588888778e-07 | AB161: 968083.9451 | AC161: 937186.5248 | AD161: -242627.1677 | AE161: 943297.1513 | AF161: -241406.9636 | AG161: 973697.5084 | AJ161: 0.9622053222 | AK161: 0.9566580137 | AL161: 3.601151331 | AM161: 0.2656533774 | AZ161: -100 | BE161: -50
A162: 87.30705786 | B162: 1000000 | C162: 1.206846131e-06 | D162: 1e-06 | E162: 1e-06 | F162: -1.206846131e-18 | G162: 0.000154024222 | H162: 0.0001504067425 | I162: -3.318543003e-05 | J162: 0.000152608481 | K162: -3.312507135e-05 | L162: 6403.600135 | M162: 6257.87782 | N162: 1358.329812 | O162: 6257.877846 | P162: 1358.329812 | Q162: 0.0001561621549 | R162: 0.0001566084804 | S162: -3.312507109e-05 | T162: 6247.134972 | U162: 6111.911453 | V162: 1292.762058 | W162: 0.208442935 | Z162: 1e-06 | AA162: 2.742832116e-07 | AB162: 964381.9093 | AC162: 930032.4669 | AD162: -255092.2919 | AE162: 936144.3784 | AF162: -253799.5298 | AG162: 969938.3993 | AJ162: 0.9622101 | AK162: 0.9566978831 | AL162: 3.585184061 | AM162: 0.2668476337 | AZ162: -100 | BE162: -50
A163: 92.49860568 | B163: 1000000 | C163: 1.278608936e-06 | D163: 1e-06 | E163: 1e-06 | F163: -1.278608936e-18 | G163: 0.0001535882782 | H163: 0.0001495565373 | I163: -3.495999634e-05 | J163: 0.0001517582306 | K163: -3.489604791e-05 | L163: 6421.838788 | M163: 6258.511469 | N163: 1439.113484 | O163: 6258.511495 | P163: 1439.113484 | Q163: 0.000155718639 | R163: 0.0001557582301 | S163: -3.489604763e-05 | T163: 6264.901713 | U163: 6113.353755 | V163: 1369.634746 | W163: 0.2204003525 | Z163: 1e-06 | AA163: 2.905929401e-07 | AB163: 960276.6826 | AC163: 922131.3071 | AD163: -267964.8477 | AE163: 928244.6608 | AF163: -266595.2129 | AG163: 965769.723 | AJ163: 0.9622154633 | AK163: 0.9567426385 | AL163: 3.567394399 | AM163: 0.2681908787 | AZ163: -100 | BE163: -50
A164: 97.998859 | B164: 1000000 | C164: 1.35463898e-06 | D164: 1e-06 | E164: 1e-06 | F164: -1.35463898e-18 | G164: 0.0001531033298 | H164: 0.0001486135917 | I164: -3.680529817e-05 | J164: 0.0001508152344 | K164: -3.67375464e-05 | L164: 6442.250324 | M164: 6259.222722 | N164: 1524.703298 | O164: 6259.222748 | P164: 1524.703298 | Q164: 0.0001552252623 | R164: 0.0001548152338 | S164: -3.673754611e-05 | T164: 6284.784849 | U164: 6114.972701 | V164: 1451.078722 | W164: 0.2329898053 | Z164: 1e-06 | AA164: 3.078724955e-07 | AB164: 955730.5905 | AC164: 913420.9617 | AD164: -281217.1909 | AE164: 919535.9344 | AF164: -279766.1122 | AG164: 961153.1679 | AJ164: 0.9622214837 | AK164: 0.9567928792 | AL164: 3.547635463 | AM164: 0.2696987583 | AZ164: -100 | BE164: -50
A165: 103.8261744 | B165: 1000000 | C165: 1.435190006e-06 | D165: 1e-06 | E165: 1e-06 | F165: -1.435190006e-18 | G165: 0.0001525644277 | H165: 0.0001475692352 | I165: -3.871983247e-05 | J165: 0.0001497708211 | K165: -3.864805107e-05 | L165: 6465.085796 | M165: 6260.021086 | N165: 1615.385512 | O165: 6260.021112 | P165: 1615.385512 | Q165: 0.0001546769877 | R165: 0.0001537708206 | S165: -3.864805077e-05 | T165: 6307.02884 | U165: 6116.789929 | V165: 1537.365846 | W165: 0.2462351152 | Z165: 1e-06 | AA165: 3.261795467e-07 | AB165: 950703.8909 | AC165: 903837.8882 | AD165: -294813.4327 | AE165: 909954.6781 | AF165: -293276.0668 | AG165: 956048.3082 | AJ165: 0.9622282418 | AK165: 0.956849278 | AL165: 3.525756541 | AM165: 0.2713883579 | AZ165: -100 | BE165: -50
A166: 110 | B166: 1000000 | C166: 1.520530844e-06 | D166: 1e-06 | E166: 1e-06 | F166: -1.520530844e-18 | G166: 0.000151966257 | H166: 0.0001464143323 | I166: -4.070118627e-05 | J166: 0.0001486158544 | K166: -4.062513545e-05 | L166: 6490.623379 | M166: 6260.917228 | N166: 1711.4635 | O166: 6260.917254 | P166: 1711.4635 | Q166: 0.0001540684057 | R166: 0.0001526158539 | S166: -4.062513513e-05 | T166: 6331.904535 | U166: 6118.829727 | V166: 1628.784154 | W166: 0.2601592822 | Z166: 1e-06 | AA166: 3.455751919e-07 | AB166: 945155.0077 | AC166: 893317.9887 | AD166: -308708.5354 | AE166: 899436.8184 | AF166: -307079.7512 | AG166: 950412.8386 | AJ166: 0.9622358281 | AK166: 0.9569125906 | AL166: 3.50160541 | AM166: 0.2732782477 | AZ166: -100 | BE166: -50
A167: 116.5409404 | B167: 1000000 | C167: 1.610946313e-06 | D167: 1e-06 | E167: 1e-06 | F167: -1.610946313e-18 | G167: 0.0001513031423 | H167: 0.0001451393432 | I167: -4.27458997e-05 | J167: 0.0001473407938 | K167: -4.266532537e-05 | L167: 6519.170857 | M167: 6261.923128 | N167: 1813.258778 | O167: 6261.923154 | P167: 1813.258778 | Q167: 0.0001533937395 | R167: 0.0001513407933 | S167: -4.266532505e-05 | T167: 6359.711589 | U167: 6121.119357 | V167: 1725.638814 | W167: 0.2747841199 | Z167: 1e-06 | AA167: 3.661241621e-07 | AB167: 939040.8639 | AC167: 881797.7441 | AD167: -322847.4602 | AE167: 887918.8635 | AF167: -321121.8214 | AG167: 944202.9084 | AJ167: 0.9622443441 | AK167: 0.9569836654 | AL167: 3.475031421 | AM167: 0.2753884928 | AZ167: -100 | BE167: -50
A168: 123.4708253 | B168: 1000000 | C168: 1.706738166e-06 | D168: 1e-06 | E168: 1e-06 | F168: -1.706738166e-18 | G168: 0.0001505690631 | H168: 0.0001437344112 | I168: -4.484932346e-05 | J168: 0.0001459357815 | K168: -4.476395641e-05 | L168: 6551.06823 | M168: 6263.052228 | N168: 1921.112109 | O168: 6263.052254 | P168: 1921.112109 | Q168: 0.0001526468602 | R168: 0.000149935781 | S168: -4.476395607e-05 | T168: 6390.780997 | U168: 6123.689424 | V168: 1828.253153 | W168: 0.2901298386 | Z168: 1e-06 | AA168: 3.878950377e-07 | AB168: 932317.3258 | AC168: 869215.596 | AD168: -337164.4164 | AE168: 875339.2854 | AF168: -335336.1633 | AG168: 937373.5685 | AJ168: 0.9622539038 | AK168: 0.9570634552 | AL168: 3.445889505 | AM168: 0.2777406106 | AZ168: -100 | BE168: -50
A169: 130.8127827 | B169: 1000000 | C169: 1.808226099e-06 | D169: 1e-06 | E169: 1e-06 | F169: -1.808226099e-18 | G169: 0.0001497576799 | H169: 0.0001421894795 | I169: -4.700547432e-05 | J169: 0.0001443907596 | K169: -4.691502927e-05 | L169: 6586.690448 | M169: 6264.319621 | N169: 2035.384668 | O169: 6264.319647 | P169: 2035.384668 | Q169: 0.0001518213136 | R169: 0.0001483907592 | S169: -4.691502891e-05 | T169: 6425.477741 | U169: 6126.574283 | V169: 1936.969736 | W169: 0.306214577 | Z169: 1e-06 | AA169: 4.10960477e-07 | AB169: 924939.7724 | AC169: 855513.5826 | AD169: -351582.27 | AE169: 861640.1569 | AF169: -349645.3002 | AG169: 929879.3449 | AJ169: 0.9622646353 | AK169: 0.9571530303 | AL169: 3.414045258 | AM169: 0.2803574522 | AZ169: -100 | BE169: -50
A170: 138.5913155 | B170: 1000000 | C170: 1.915748818e-06 | D170: 1e-06 | E170: 1e-06 | F170: -1.915748818e-18 | G170: 0.0001488623747 | H170: 0.0001404944419 | I170: -4.920689386e-05 | J170: 0.0001426956209 | K170: -4.91110685e-05 | L170: 6626.450224 | M170: 6265.742248 | N170: 2156.459286 | O170: 6265.742274 | P170: 2156.459286 | Q170: 0.0001509103611 | R170: 0.0001466956204 | S170: -4.911106813e-05 | T170: 6464.203515 | U170: 6129.812497 | V170: 2052.151512 | W170: 0.3230538789 | Z170: 1e-06 | AA170: 4.353974586e-07 | AB170: 916863.799 | AC170: 840639.2259 | AD170: -366012.1825 | AE170: 846769.0384 | AF170: -363960.031 | AG170: 921674.9474 | AJ170: 0.9622766824 | AK170: 0.9572535927 | AL170: 3.379381279 | AM170: 0.2832629744 | AZ170: -100 | BE170: -50
A171: 146.832384 | B171: 1000000 | C171: 2.029665171e-06 | D171: 1e-06 | E171: 1e-06 | F171: -2.029665171e-18 | G171: 0.0001478763074 | H171: 0.0001386393305 | I171: -5.144451693e-05 | J171: 0.0001408403959 | K171: -5.134299093e-05 | L171: 6670.800902 | M171: 6267.339125 | N171: 2284.741772 | O171: 6267.339151 | P171: 2284.741772 | Q171: 0.0001499070368 | R171: 0.0001448403955 | S171: -5.134299056e-05 | T171: 6507.399508 | U171: 6133.447359 | V171: 2174.183029 | W171: 0.3406601209 | Z171: 1e-06 | AA171: 4.612875388e-07 | AB171: 908046.059 | AC171: 824547.6453 | AD171: -380353.5539 | AE171: 830681.0926 | AF171: -378179.3708 | AG171: 912716.1192 | AJ171: 0.9622902065 | AK171: 0.9573664924 | AL171: 3.341804951 | AM171: 0.2864818583 | AZ171: -100 | BE171: -50
A172: 155.5634919 | B172: 1000000 | C172: 2.150355342e-06 | D172: 1e-06 | E172: 1e-06 | F172: -2.150355342e-18 | G172: 0.0001467924902 | H172: 0.0001366145431 | I172: -5.37075582e-05 | J172: 0.000138815481 | K172: -5.35999921e-05 | L172: 6720.239363 | M172: 6269.131601 | N172: 2420.662319 | O172: 6269.131627 | P172: 2420.662319 | Q172: 0.000148804223 | R172: 0.0001428154806 | S172: -5.359999172e-05 | T172: 6555.549204 | U172: 6137.527465 | V172: 2303.471724 | W172: 0.3590418937 | Z172: 1e-06 | AA172: 4.887171232e-07 | AB172: 898445.2446 | AC172: 807203.8576 | AD172: -394494.3471 | AE172: 813341.385 | AF172: -392190.8754 | AG172: 902960.6256 | AJ172: 0.9623053889 | AK172: 0.9574932462 | AL172: 3.301257916 | AM172: 0.2900389096 | AZ172: -100 | BE172: -50
A173: 164.8137785 | B173: 1000000 | C173: 2.278222125e-06 | D173: 1e-06 | E173: 1e-06 | F173: -2.278222125e-18 | G173: 0.0001456038824 | H173: 0.0001344111102 | I173: -5.598342635e-05 | J173: 0.0001366119051 | K173: -5.586946041e-05 | L173: 6775.308898 | M173: 6271.143639 | N173: 2564.677002 | O173: 6271.143665 | P173: 2564.677002 | Q173: 0.0001475947461 | R173: 0.0001406119047 | S173: -5.586946002e-05 | T173: 6609.181164 | U173: 6142.10737 | V173: 2440.449284 | W173: 0.3782033462 | Z173: 1e-06 | AA173: 5.177777556e-07 | AB173: 888023.1951 | AC173: 788585.1951 | AD173: -408311.8724 | AE173: 794727.3025 | AF173: -405871.4231 | AG173: 892369.3728 | AJ173: 0.9623224334 | AK173: 0.9576355578 | AL173: 3.257727494 | AM173: 0.2939581532 | AZ173: -100 | BE173: -50
A174: 174.6141157 | B174: 1000000 | C174: 2.413692262e-06 | D174: 1e-06 | E174: 1e-06 | F174: -2.413692262e-18 | G174: 0.0001443035061 | H174: 0.0001320210019 | I174: -5.825767708e-05 | J174: 0.0001342216363 | K174: -5.813693007e-05 | L174: 6836.602027 | M174: 6273.402141 | N174: 2717.269374 | O174: 6273.402167 | P174: 2717.269374 | Q174: 0.0001462714946 | R174: 0.0001382216359 | S174: -5.813692966e-05 | T174: 6668.871727 | U174: 6147.248318 | V174: 2585.573096 | W174: 0.3981435044 | Z174: 1e-06 | AA174: 5.485664231e-07 | AB174: 876746.1148 | AC174: 768683.7499 | AD174: -421674.0952 | AE174: 774830.9982 | AF174: -419088.5221 | AG174: 880907.6371 | AJ174: 0.9623415686 | AK174: 0.9577953418 | AL174: 3.211260391 | AM174: 0.2982615002 | AZ174: -100
A175: 184.9972114 | B175: 1000000 | C175: 2.557217873e-06 | D175: 1e-06 | E175: 1e-06 | F175: -2.557217873e-18 | G175: 0.0001428845845 | H175: 0.0001294374684 | I175: -6.051401701e-05 | J175: 0.0001316379227 | K175: -6.038608487e-05 | L175: 6904.763188 | M175: 6275.937308 | N175: 2878.952168 | O175: 6275.937334 | P175: 2878.952168 | Q175: 0.0001448275588 | R175: 0.0001356379223 | S175: -6.038608446e-05 | T175: 6735.247601 | U175: 6153.01906 | V175: 2739.32778 | W175: 0.4188555816 | Z175: 1e-06 | AA175: 5.811858801e-07 | AB175: 864585.8691 | AC175: 747508.725 | AD175: -434441.5163 | AE175: 753661.7441 | AF175: -431702.1885 | AG175: 868546.3741 | AJ175: 0.9623630514 | AK175: 0.9579747495 | AL175: 3.161979122 | AM175: 0.3029668169 | AZ175: -100
A176: 195.997718 | B176: 1000000 | C176: 2.70927796e-06 | D176: 1e-06 | E176: 1e-06 | F176: -2.70927796e-18 | G176: 0.000141340701 | H176: 0.0001266554085 | I176: -6.273437069e-05 | J176: 0.0001288556606 | K176: -6.259882522e-05 | L176: 6980.491255 | M176: 6278.783041 | N176: 3050.269117 | O176: 6278.783067 | P176: 3050.269117 | Q176: 0.0001432563927 | R176: 0.0001328556603 | S176: -6.25988248e-05 | T176: 6808.988258 | U176: 6159.496782 | V176: 2902.226816 | W176: 0.4403263002 | Z176: 1e-06 | AA176: 6.15744991e-07 | AB176: 851521.3167 | AC176: 725088.5528 | AD176: -446469.6444 | AE176: 731248.0496 | AF176: -443567.4176 | AG176: 855263.5641 | AJ176: 0.9623871706 | AK176: 0.9581761987 | AL176: 3.110101671 | AM176: 0.3080851689 | AZ176: -100
A177: 207.6523488 | B177: 1000000 | C177: 2.870380011e-06 | D177: 1e-06 | E177: 1e-06 | F177: -2.870380011e-18 | G177: 0.000139665979 | H177: 0.0001236717532 | I177: -6.489902262e-05 | J177: 0.0001258717785 | K177: -6.475540994e-05 | L177: 7064.541825 | M177: 6281.977401 | N177: 3231.796888 | O177: 6281.977427 | P177: 3231.796888 | Q177: 0.0001415519961 | R177: 0.0001298717781 | S177: -6.475540951e-05 | T177: 6890.828106 | U177: 6166.768135 | V177: 3074.814264 | W177: 0.4625352512 | Z177: 1e-06 | AA177: 6.523590935e-07 | AB177: 837539.6241 | AC177: 701472.622 | AD177: -457612.0438 | AE177: 707639.3901 | AF177: -454537.2295 | AG177: 841045.5395 | AJ177: 0.9624142503 | AK177: 0.958402407 | AL177: 3.055965126 | AM177: 0.313616932 | AZ177: -100
A178: 220 | B178: 1000000 | C178: 3.041061689e-06 | D178: 1e-06 | E178: 1e-06 | F178: -3.041061689e-18 | G178: 0.0001378552764 | H178: 0.0001204858497 | I178: -6.698684393e-05 | J178: 0.0001226856203 | K178: -6.683468298e-05 | L178: 7157.729211 | M178: 6285.563117 | N178: 3424.147158 | O178: 6285.563143 | P178: 3424.147158 | Q178: 0.0001397091127 | R178: 0.0001266856201 | S178: -6.683468255e-05 | T178: 6981.558361 | U178: 6174.930402 | V178: 3257.6666 | W178: 0.48545432 | Z178: 1e-06 | AA178: 6.911503838e-07 | AB178: 822637.497 | AC178: 676732.4515 | AD178: -467723.8936 | AE178: 682907.3819 | AF178: -464466.227 | AG178: 825888.2298 | AJ178: 0.9624446548 | AK178: 0.9586564298 | AL178: 3.000054177 | AM178: 0.3195463726 | AZ178: -100
A179: 233.0818808 | B179: 1000000 | C179: 3.221892627e-06 | D179: 1e-06 | E179: 1e-06 | F179: -3.221892627e-18 | G179: 0.0001359043932 | H179: 0.0001170998259 | I179: -6.897561063e-05 | J179: 0.0001192993108 | K179: -6.881439148e-05 | L179: 7260.928113 | M179: 6289.588158 | N179: 3627.968836 | O179: 6289.588184 | P179: 3627.968836 | Q179: 0.0001377234399 | R179: 0.0001232993105 | S179: -6.881439105e-05 | T179: 7082.028582 | U179: 6184.092804 | V179: 3451.394649 | W179: 0.5090472112 | Z179: 1e-06 | AA179: 7.322483243e-07 | AB179: 806822.259 | AC179: 650962.1576 | AD179: -476665.949 | AE179: 657146.2504 | AF179: -473214.5544 | AG179: 809798.252 | AJ179: 0.9624787937 | AK179: 0.9589417027 | AL179: 2.943035639 | AM179: 0.3258342135 | AZ179: -100
A180: 246.9416506 | B180: 1000000 | C180: 3.413476332e-06 | D180: 1e-06 | E180: 1e-06 | F180: -3.413476332e-18 | G180: 0.0001338102806 | H180: 0.0001135189121 | I180: -7.084241509e-05 | J180: 0.0001157180765 | K180: -7.067159716e-05 | L180: 7375.07492 | M180: 6294.10638 | N180: 3843.950437 | O180: 6294.106406 | P180: 3843.950437 | Q180: 0.0001355918425 | R180: 0.0001197180762 | S180: -7.067159673e-05 | T180: 7193.147834 | U180: 6194.377968 | V180: 3656.645642 | W180: 0.5332691064 | Z180: 1e-06 | AA180: 7.757900755e-07 | AB180: 790112.7036 | AC180: 624278.0844 | AD180: -484308.7422 | AE180: 630472.4623 | AF180: -480652.0965 | AG180: 792793.7712 | AJ180: 0.9625171271 | AK180: 0.9592620895 | AL180: 2.885800335 | AM180: 0.3324076437
A181: 261.6255653 | B181: 1000000 | C181: 3.616452197e-06 | D181: 1e-06 | E181: 1e-06 | F181: -3.616452197e-18 | G181: 0.0001315712472 | H181: 0.0001097516962 | I181: -7.256416658e-05 | J181: =H181+H78*$AF$43+BT78 -> 0.0001119505008 | K181: =I181+D78+I78*$AF$43+BU78 -> -7.238317681e-05 | L181: 7501.168628 | M181: 6299.178249 | N181: 4072.82263 | O181: =M181+E181+X78 -> 6299.178275 | P181: =N181+F181+Y78 -> 4072.82263 | Q181: 0.0001333125606 | R181: 0.0001159505006 | S181: -7.238317638e-05 | T181: 7315.885463 | U181: 6205.923576 | V181: 3874.105403 | W181: 0.5580664877 | Z181: 1e-06 | AA181: 8.219209539e-07 | AB181: 772539.65 | AC181: 596817.5108 | AD181: -490536.8178 | AE181: 603023.4344 | AF181: -486662.7124 | AG181: 774905.0639 | AJ181: =AT78 -> 0.9625601721 | AK181: =AJ181*AB181/AG181 -> 0.959621937 | AL181: 2.829513751 | AM181: 0.3391472958
A182: 277.182631 | B182: 1000000 | C182: 3.831497636e-06 | D182: 1e-06 | E182: 1e-06 | F182: -3.831497636e-18 | G182: 0.0001291871482 | H182: 0.0001058102842 | I182: -7.411816939e-05 | J182: 0.0001080086851 | K182: -7.392640019e-05 | L182: 7640.271395 | M182: 6304.871656 | N182: 4315.360981 | O182: 6304.871682 | P182: 4315.360981 | Q182: 0.0001308854026 | R182: 0.0001120086849 | S182: -7.392639977e-05 | T182: 7451.271478 | U182: 6218.884222 | V182: 4104.50066 | W182: 0.5833771595 | Z182: 1e-06 | AA182: 8.707949172e-07 | AB182: 754146.1428 | AC182: 568736.4048 | AD182: -495252.7705 | AE182: 574955.289 | AF182: -491148.2698 | AG182: 756174.7201 | AJ182: 0.9626085102 | AK182: 0.9600261365 | AL182: 2.775676566 | AM182: 0.3458710386
A183: 293.6647679 | B183: 1000000 | C183: 4.059330341e-06 | D183: 1e-06 | E183: 1e-06 | F183: -4.059330341e-18 | G183: 0.0001266595484 | H183: 0.0001017103452 | I183: -7.548275882e-05 | J183: 0.0001039082932 | K183: -7.527956596e-05 | L183: 7793.508755 | M183: 6311.262827 | N183: 4572.388898 | O183: 6311.262853 | P183: 4572.388898 | Q183: 0.0001283119104 | R183: 0.0001079082931 | S183: -7.527956555e-05 | T183: 7600.396577 | U183: 6233.433493 | V183: 4348.601501 | W183: 0.609130491 | Z183: 1e-06 | AA183: 9.225750775e-07 | AB183: 734987.2535 | AC183: 540206.2628 | AD183: -498380.8347 | AE183: 546439.6963 | AF183: -494032.2332 | AG183: 736657.4435 | AJ183: 0.9626627954 | AK183: 0.9604801936 | AL183: 2.726195178 | AM183: 0.3523152712
A184: 311.1269837 | B184: 1000000 | C184: 4.300710684e-06 | D184: 1e-06 | E184: 1e-06 | F184: -4.300710684e-18 | G184: 0.0001239918464 | H184: 9.747102039e-05 | I184: -7.663796816e-05 | J184: 9.96684603e-05 | K184: -7.64226685e-05 | L184: 7962.069558 | M184: 6318.437354 | N184: 4844.780805 | O184: 6318.43738 | P184: 4844.780805 | Q184: 0.0001255954862 | R184: 0.0001036684602 | S184: -7.64226681e-05 | T184: 7764.41188 | U184: 6249.766313 | V184: 4607.223988 | W184: 0.6352478984 | Z184: 1e-06 | AA184: 9.774342464e-07 | AB184: 715129.4617 | AC184: 511410.147 | AD184: -499869.7916 | AE184: 517659.9133 | AF184: -495262.5676 | AG184: 716419.4279 | AJ184: 0.9627237629 | AK184: 0.9609903075 | AL184: 2.68346013 | AM184: 0.3581161117
A185: 329.6275569 | B185: 1000000 | C185: 4.556444249e-06 | D185: 1e-06 | E185: 1e-06 | F185: -4.556444249e-18 | G185: 0.0001211893505 | H185: 9.311468405e-05 | I185: -7.7566193e-05 | J185: 9.531155393e-05 | K185: -7.733806205e-05 | L185: 8147.20575 | M185: 6326.491348 | N185: 5133.465569 | O185: 6326.491374 | P185: 5133.465569 | Q185: 0.0001227414685 | R185: 9.931155385e-05 | S185: -7.733806166e-05 | T185: 7944.528445 | U185: 6268.101577 | V185: 4881.232922 | W185: 0.66164357 | Z185: 1e-06 | AA185: 1.035555511e-06 | AB185: 694649.624 | AC185: 482538.1002 | AD185: -499694.989 | AE185: 488806.2018 | AF185: -494813.7561 | AG185: 695537.3147 | AJ185: 0.9627922402 | AK185: 0.9615634612 | AL185: 2.650426376 | AM185: 0.3627957637
A186: 349.2282314 | B186: 1000000 | C186: 4.827384524e-06 | D186: 1e-06 | E186: 1e-06 | F186: -4.827384524e-18 | G186: 0.0001182592957 | H186: 8.866655488e-05 | I186: -7.825281508e-05 | J186: 9.08627853e-05 | K186: -7.801108439e-05 | L186: 8350.232097 | M186: 6335.532739 | N186: 5439.430208 | O186: 6335.532765 | P186: 5439.430208 | Q186: 0.00011975715 | R186: 9.486278524e-05 | S186: -7.801108402e-05 | T186: 8142.016698 | U186: 6288.685111 | V186: 5171.544787 | W186: 0.6882254275 | Z186: 1e-06 | AA186: 1.097132846e-06 | AB186: 673633.5621 | AC186: 453782.1759 | AD186: -497859.3303 | AE186: 460070.861 | AF186: -492687.7855 | AG186: 674096.7669 | AJ186: 0.9628691581 | AK186: 0.9622075236 | AL186: 2.630683328 | AM186: 0.3657633412
A187: 369.9944227 | B187: 1000000 | C187: 5.114435745e-06 | D187: 1e-06 | E187: 1e-06 | F187: -5.114435745e-18 | G187: 0.0001152107972 | H187: 8.415416617e-05 | I187: -7.868674668e-05 | J187: 8.63496793e-05 | K187: -7.84306011e-05 | L187: 8572.52604 | M187: 6345.682735 | N187: 5763.723911 | O187: 6345.682761 | P187: 5763.723911 | Q187: 0.0001166517306 | R187: 9.034967926e-05 | S187: -7.843060074e-05 | T187: 8358.205916 | U187: 6311.793007 | V187: 5479.130877 | W187: 0.7148963015 | Z187: 1e-06 | AA187: 1.16237176e-06 | AB187: 652174.3294 | AC187: 425331.3559 | AD187: -494393.1569 | AE187: 431643.149 | AF187: -488914.026 | AG187: 652190.7182 | AJ187: 0.9629555644 | AK187: 0.9629313665 | AL187: 2.628495236 | AM187: 0.366343204
A188: 391.995436 | B188: 1000000 | C188: 5.41855592e-06 | D188: 1e-06 | E188: 1e-06 | F188: -5.41855592e-18 | G188: 0.0001120547375 | H188: 7.960671506e-05 | I188: -7.886085925e-05 | J188: 8.180142366e-05 | K188: -7.858943393e-05 | L188: 8815.527829 | M188: 6357.077466 | N188: 6107.462403 | O188: 6357.077492 | P188: 6107.462403 | Q188: 0.0001134362023 | R188: 8.580142364e-05 | S188: -7.85894336e-05 | T188: 8594.48393 | U188: 6337.735373 | V188: 5805.020617 | W188: 0.7415552842 | Z188: 1e-06 | AA188: 1.231489982e-06 | AB188: 630370.2398 | AC188: 397366.6393 | AD188: -489353.0354 | AE188: 403704.3746 | AF188: -483548.0148 | AG188: 629917.3793 | AJ188: 0.963052639 | AK188: 0.9637449974 | AL188: 2.648786442 | AM188: 0.3638439785
A189: 415.3046976 | B189: 1000000 | C189: 5.740760022e-06 | D189: 1e-06 | E189: 1e-06 | F189: -5.740760022e-18 | G189: 0.0001088035895 | H189: 7.505432164e-05 | I189: -7.877226594e-05 | J189: 7.724812793e-05 | K189: -7.848464317e-05 | L189: 9080.74117 | M189: 6369.86983 | N189: 6471.832704 | O189: 6369.869856 | P189: 6471.832704 | Q189: 0.0001101231694 | R189: 8.124812794e-05 | S189: -7.848464286e-05 | T189: 8852.297223 | U189: 6366.860547 | V189: 6150.305106 | W189: 0.7680992121 | Z189: 1e-06 | AA189: 1.304718187e-06 | AB189: 608322.7512 | AC189: 370056.5696 | AD189: -482819.5366 | AE189: 376423.4302 | AF189: -476669.2315 | AG189: 607378.0989 | AJ189: 0.9631617109 | AK189: 0.9646597117 | AL189: 2.697046231 | AM189: 0.3576726645
A190: 440 | B190: 1000000 | C190: 6.082123377e-06 | D190: 1e-06 | E190: 1e-06 | F190: -6.082123377e-18 | G190: 0.0001054711803 | H190: 7.052723694e-05 | I190: -7.842243757e-05 | J190: 7.272003139e-05 | K190: -7.811764335e-05 | L190: 9369.734549 | M190: 6384.23158 | N190: 6858.098326 | O190: 6384.231606 | P190: 6858.098326 | Q190: 0.0001067266093 | R190: 7.672003142e-05 | S190: -7.811764305e-05 | T190: 9133.151604 | U190: 6399.559856 | V190: 6516.140873 | W190: 0.7944242204 | Z190: 1e-06 | AA190: 1.382300768e-06 | AB190: 586134.3089 | AC190: 343553.428 | AD190: -474894.1673 | AE190: 349952.9879 | AF190: -468378.0264 | AG190: 584675.1828 | AJ190: 0.9632842774 | AK190: 0.9656882672 | AL190: 2.779139587 | AM190: 0.347477425
A191: 466.1637615 | B191: 1000000 | C191: 6.443785254e-06 | D191: 1e-06 | E191: 1e-06 | F191: -6.443785254e-18 | G191: 0.0001020724086 | H191: 6.605504365e-05 | I191: -7.781714342e-05 | J191: 6.824670355e-05 | K191: -7.749414381e-05 | L191: 9684.143461 | M191: 6400.35566 | N191: 7267.60497 | O191: 6400.355686 | P191: 7267.60497 | Q191: 0.0001032615845 | R191: 7.224670358e-05 | S191: -7.749414353e-05 | T191: 9438.613641 | U191: 6436.272965 | V191: 6903.753891 | W191: 0.8204273061 | Z191: 1e-06 | AA191: 1.464496649e-06 | AB191: 563906.2488 | AC191: 317990.2574 | AD191: -465695.6663 | AE191: 324426.5304 | AF191: -458791.9124 | AG191: 561909.7726 | AJ191: 0.9634220267 | AK191: 0.9668450836 | AL191: 2.901032159 | AM191: 0.3332762377
A192: 493.8833013 | B192: 1000000 | C192: 6.826952664e-06 | D192: 1e-06 | E192: 1e-06 | F192: -6.826952664e-18 | G192: 9.862292683e-05 | H192: 6.166589395e-05 | I192: -7.696622129e-05 | J192: 6.385628186e-05 | K192: -7.662391845e-05 | L192: 10025.67373 | M192: 6418.458852 | N192: 7701.786783 | O192: 6418.458878 | P192: 7701.786783 | Q192: 9.974392001e-05 | R192: 6.785628191e-05 | S192: -7.66239182e-05 | T192: 9770.313003 | U192: 6477.493912 | V192: 7314.443847 | W192: 0.8460078358 | Z192: 1e-06 | AA192: 1.551580151e-06 | AB192: 541736.851 | AC192: 293478.8158 | AD192: -455355.9053 | AE192: 299956.3097 | AF192: -448041.4614 | AG192: 539179.8762 | AJ192: 0.9635768628 | AK192: 0.9681464729 | AL192: 3.06845705 | AM192: 0.3155157323
A193: 523.2511306 | B193: 1000000 | C193: 7.232904395e-06 | D193: 1e-06 | E193: 1e-06 | F193: -7.232904395e-18 | G193: 9.513880409e-05 | H193: 5.738582556e-05 | I193: -7.588319359e-05 | J193: 5.957478761e-05 | K193: -7.552042157e-05 | L193: 10396.10607 | M193: 6438.784751 | N193: 8162.173267 | O193: 6438.784777 | P193: 8162.173267 | Q193: 9.618986102e-05 | R193: 6.357478766e-05 | S193: -7.552042133e-05 | T193: 10129.94587 | U193: 6523.777913 | V193: 7749.588709 | W193: 0.871068939 | Z193: 1e-06 | AA193: 1.643841908e-06 | AB193: 519719.6179 | AC193: 270108.4813 | AD193: -444015.6412 | AE193: 276632.2592 | AF193: -436266.0525 | AG193: 516578.6246 | AJ193: 0.9637509345 | AK193: 0.9696109046 | AL193: 3.286544543 | AM193: 0.2950244221
A194: 554.365262 | B194: 1000000 | C194: 7.662995271e-06 | D194: 1e-06 | E194: 1e-06 | F194: -7.662995271e-18 | G194: 9.163618718e-05 | H194: 5.323818968e-05 | I194: -7.458475689e-05 | J194: 5.542555364e-05 | K194: -7.4200277e-05 | L194: 10797.30214 | M194: 6461.607124 | N194: 8650.396921 | O194: 6461.60715 | P194: 8650.396921 | Q194: 9.261572803e-05 | R194: 5.94255537e-05 | S194: -7.420027679e-05 | T194: 10519.27955 | U194: 6575.749034 | V194: 8210.649596 | W194: 0.8955187337 | Z194: 1e-06 | AA194: 1.741589834e-06 | AB194: 497941.8313 | AC194: 247946.0674 | AD194: -431820.3504 | AE194: 254521.8164 | AF194: -423609.7008 | AG194: 494192.8102 | AJ194: 0.963946668 | AK194: 0.9712593126 | AL194: 3.559388073 | AM194: 0.2728725536
A195: 587.3295358 | B195: 1000000 | C195: 8.118660682e-06 | D195: 1e-06 | E195: 1e-06 | F195: -8.118660682e-18 | G195: 8.813097401e-05 | H195: 4.92432148e-05 | I195: -7.309017975e-05 | J195: 5.142878796e-05 | K195: -7.268267566e-05 | L195: 11231.21206 | M195: 6487.233704 | N195: 9168.201739 | O195: 6487.23373 | P195: 9168.201739 | Q195: 8.903758505e-05 | R195: 5.542878803e-05 | S195: -7.268267547e-05 | T195: 10940.15829 | U195: 6634.108872 | V195: 8699.175993 | W195: 0.9192713447 | Z195: 1e-06 | AA195: 1.845150155e-06 | AB195: 476483.4202 | AC195: 227036.4497 | AD195: -418916.3403 | AE195: 233670.5586 | AF195: -410217.1643 | AG195: 472101.7389 | AJ195: 0.964166805 | AK195: 0.9731154516 | AL195: 3.889442501 | AM195: 0.2501940706
A196: 622.2539674 | B196: 1000000 | C196: 8.601421368e-06 | D196: 1e-06 | E196: 1e-06 | F196: -8.601421368e-18 | G196: 8.463851392e-05 | H196: 4.541771877e-05 | I196: -7.14206473e-05 | J196: 4.76012856e-05 | K196: -7.098871965e-05 | L196: 11699.88373 | M196: 6516.010473 | N196: 9717.452688 | O196: 6516.010499 | P196: 9717.452688 | Q196: 8.547093477e-05 | R196: 5.160128567e-05 | S196: -7.098871947e-05 | T196: 11394.51063 | U196: 6699.646347 | V196: 9216.811344 | W196: 0.9422476879 | Z196: 1e-06 | AA196: 1.954868493e-06 | AB196: 455416.1494 | AC196: 207403.8691 | AD196: -405447.2891 | AE196: 214103.5155 | AF196: -396230.4777 | AG196: 450376.4057 | AJ196: 0.9644144455 | AK196: 0.9752063111 | AL196: 4.276587864 | AM196: 0.2280337367
A197: 659.2551138 | B197: 1000000 | C197: 9.112888499e-06 | D197: 1e-06 | E197: 1e-06 | F197: -9.112888499e-18 | G197: 8.117334567e-05 | H197: 4.177497038e-05 | I197: -6.95985912e-05 | J197: 4.395628991e-05 | K197: -6.914075182e-05 | L197: 12205.47396 | M197: 6548.326514 | N197: 10300.14633 | O197: 6548.32654 | P197: 10300.14633 | Q197: 8.193045203e-05 | R197: 4.795628998e-05 | S197: -6.914075166e-05 | T197: 11884.35799 | U197: 6773.248797 | V197: 9765.299051 | W197: 0.9643760073 | Z197: 1e-06 | AA197: 2.071111022e-06 | AB197: 434803.1219 | AC197: 189053.7548 | AD197: -391551.3154 | AE197: 195827.0036 | AF197: -381786.0164 | AG197: 429078.9876 | AJ197: 0.964693098 | AK197: 0.9775625998 | AL197: 4.716708745 | AM197: 0.2072552393
A198: 698.4564629 | B198: 1000000 | C198: 9.654769047e-06 | D198: 1e-06 | E198: 1e-06 | F198: -9.654769047e-18 | G198: 7.77489809e-05 | H198: 3.832469155e-05 | I198: -6.76470402e-05 | J198: 4.050349452e-05 | K198: -6.716170581e-05 | L198: 12750.26158 | M198: 6584.619504 | N198: 10918.4228 | O198: 6584.61953 | P198: 10918.4228 | Q198: 7.842976337e-05 | R198: 4.450349459e-05 | S198: -6.716170567e-05 | T198: 12411.8249 | U198: 6855.914538 | V198: 10346.48893 | W198: 0.9855921657 | Z198: 1e-06 | AA198: 2.194265693e-06 | AB198: 414698.5693 | AC198: 171974.9034 | AD198: -377358.6305 | AE198: 178830.8179 | AF198: -367012.1415 | AG198: 408262.6281 | AJ198: 0.9650067362 | AK198: 0.9802193132 | AL198: 5.199820125 | AM198: 0.1885102349
A199: 739.9888454 | B199: 1000000 | C199: 1.022887149e-05 | D199: 1e-06 | E199: 1e-06 | F199: -1.022887149e-17 | G199: 7.437773729e-05 | H199: 3.507318308e-05 | I199: -6.558902068e-05 | J199: 3.724916875e-05 | K199: -6.507450601e-05 | L199: 13336.66269 | M199: 6625.381947 | N199: 11574.57929 | O199: 6625.381973 | P199: 11574.57929 | Q199: 7.498127696e-05 | R199: 4.124916883e-05 | S199: -6.507450588e-05 | T199: 12979.15077 | U199: 6948.767116 | V199: 10962.3442 | W199: 1.005839702 | Z199: 1e-06 | AA199: 2.324743521e-06 | AB199: 395147.8978 | AC199: 156141.8611 | AD199: -362989.7799 | AE199: 163090.6282 | AF199: -352027.4357 | AG199: 387971.479 | AJ199: 0.9653598655 | AK199: 0.9832164015 | AL199: 5.708199269 | AM199: 0.1722463346
A200: 783.990872 | B200: 1000000 | C200: 1.083711184e-05 | D200: 1e-06 | E200: 1e-06 | F200: -1.083711184e-17 | G200: 7.10706223e-05 | H200: 3.202355146e-05 | I200: -6.344702913e-05 | J200: 3.419638419e-05 | K200: -6.290153947e-05 | L200: 13967.24828 | M200: 6671.168255 | N200: 12271.08548 | O200: 6671.168281 | P200: 12271.08548 | Q200: 7.159606379e-05 | R200: 3.819638426e-05 | S200: -6.290153936e-05 | T200: 13588.70331 | U200: 7053.0715 | V200: 11614.94899 | W200: 1.025069675 | Z200: 1e-06 | AA200: 2.462979964e-06 | AB200: 376187.9471 | AC200: 141517.3716 | AD200: -348554.4507 | AE200: 148570.4431 | AF200: -336939.5017 | AG200: 368240.9597 | AJ200: 0.9657575993 | AK200: 0.9865995598 | AL200: 6.215630386 | AM200: 0.1587288012
... 48 more rows

Sheet Tone
A1: Tone Circuits | E1: Tone control Position | F1: =Main!E10 -> 10 | H1: Current Tone Type: | I1: 2 | J1: =R3 -> No-load
B2: Volume | C2: =Main!H13 -> 10 | G2: Type | H2: 1 | I2: 2 | J2: 3 | K2: 4 | L2: 5 | M2: 6 | N2: 7 | O2: 8 | Q2: 1 | R2: =HLOOKUP($I$1,$H$2:$O$22,Q2) -> 2
B3: 2 | C3: =Main!H15/100 -> 1 | H3: Standard | I3: No-load | J3: Gibson Varitone | K3: Torres Mid-shaper | L3: Fender Greasebucket | M3: Std.w/ load resistor. | N3: Fender TBX | O3: 'Custom' | P3: units | Q3: 2 | R3: =HLOOKUP($I$1,$H$2:$O$25,Q3) -> No-load
D4: R1 | G4: Tone pot | H4: =Main!$X$6 -> 500 | I4: =Main!$X$6 -> 500 | J4: =Main!$X$6 -> 500 | K4: =Main!$X$6 -> 500 | L4: =Main!$X$6 -> 500 | M4: =Main!$X$6 -> 500 | N4: 950 | O4: =Main!$X$6 -> 500 | P4: k | Q4: 3 | R4: =HLOOKUP($I$1,$H$2:$O$25,Q4) -> 500
G5: R1 | H5: 0.001 | I5: 0 | J5: 1 | K5: 0 | L5: 4.7 | N5: 0.2 | O5: 0 | P5: k | Q5: 4 | R5: 0
B6: Bass | C6: =Main!E5 -> 10 | G6: L1 | H6: 0 | I6: 0 | J6: 15 | K6: 1.5 | L6: 0 | N6: 0 | O6: 1.5 | P6: H | Q6: 5 | R6: 0
B7: 1 | D7: L1 | G7: C1 | H7: =Main!$E$16 -> 22 | I7: =Main!$E$16 -> 22 | J7: 4.7 | K7: =Main!$E$16 -> 22 | L7: =Main!$E$16 -> 22 | M7: =Main!$E$16 -> 22 | N7: 1000000 | O7: 33 | P7: nF | Q7: 6 | R7: 22
C8: =Main!O8 -> 0 | G8: R2a(10) | H8: =H4 -> 500 | I8: =I4 -> 500 | J8: 500 | K8: 500 | L8: 500 | M8: 500 | N8: 950 | O8: 500 | P8: k | Q8: 7 | R8: 500
F9: C4 | G9: R2a(5.1) | P9: k | Q9: 8 | R9: 0
C10: C1 | E10: R5 | G10: R2a(5) | H10: =IF($B$13=2,H4/10,H4/2) -> 50 | I10: =IF($B$13=2,I4/10,I4/2) -> 50 | J10: =IF($B$13=2,J4/10,J4/2) -> 50 | K10: =IF($B$13=2,K4/10,K4/2) -> 50 | L10: =IF($B$13=2,L4/10,L4/2) -> 50 | M10: =M4/10 -> 50 | N10: 1 | O10: =IF($B$13=2,O4/10,O4/2) -> 50 | P10: k | Q10: 9 | R10: 50
F11: R6 | G11: R2a | H11: =IF($F$1<5,H10*$F$1/5,($F$1-5)/5*(H8-H10)+H10) -> 500 | I11: =(IF($F$1<5,I10*$F$1/5,($F$1-5)/5*(I8-I10)+I10))*IF($F$1<10,1,100000000) -> 50000000000 | J11: 0 | K11: =IF($F$1<5,K10*$F$1/5,($F$1-5)/5*(K8-K10)+K10) -> 500 | L11: =IF($F$1<5,L10*$F$1/5,($F$1-5)/5*(L8-L10)+L10) -> 500 | M11: =IF($F$1<5,M10*$F$1/5,($F$1-5)/5*(M8-M10)+M10) -> 500 | N11: =IF($F$1<5,N10*$F$1/5,($F$1-5)/5*(N8-N10)+N10) -> 950 | O11: =IF($F$1<5,O10*$F$1/5,($F$1-5)/5*(O8-O10)+O10) -> 500 | P11: k | Q11: 10 | R11: 50000000000
B12: Tone/Treble | C12: =Main!E10 -> 10 | G12: R2b | H12: =H8-H11 -> 0 | I12: 1e+24 | J12: =IF($F$1<5,J10*$F$1/5,($F$1-5)/5*(J8-J10)+J10) -> 500 | K12: =K8-K11 -> 0 | L12: =L8-L11 -> 0 | M12: 1 | N12: =N8-N11 -> 0 | O12: =O8-O11 -> 0 | P12: k | Q12: 11 | R12: 1e+24
B13: 2 | D13: R2a | E13: R2b | G13: R3(10) | N13: 100000 | P13: k | Q13: 12 | R13: 0
C14: =R11/R4 -> 100000000 | G14: R3(5) | N14: 100000 | P14: k | Q14: 13 | R14: 0
B15: Main tone cap | G15: R3(4.9) | N15: 230 | P15: k | Q15: 14 | R15: 0
F16: R3 R7 | G16: R3(2.5) | N16: 25 | P16: k | Q16: 15 | R16: 0
B17: =Main!E16 -> 22 | C17: nF | G17: R3 | H17: 1 | I17: 1 | J17: 1 | L17: =L8-L11 -> 0 | M17: 1 | N17: =IF($F$1<2.5,N16*$F$1/2.5,N16)+IF($F$1>2.5,(N15-N16)*($F$1-2.5)/2.5,0)+IF($F$1>4.9,100000,0) -> 100640 | P17: k | Q17: 16 | R17: 1
B18: Main Tone pot | D18: R4 | F18: C3 C5 | G18: R4 | H18: 1e-06 | I18: 1e-06 | J18: 1e-06 | K18: 1e-06 | L18: 100000 | M18: 1e-06 | N18: 82 | O18: 1e-06 | P18: k | Q18: 17 | R18: 1e-06
G19: C2 | H19: 1 | I19: 1 | J19: 1 | L19: 100 | M19: 1 | N19: 0.001 | O19: 1e-05 | P19: nF | Q19: 18 | R19: 1
B20: =R4 -> 500 | C20: k | D20: C2 | G20: C3 | H20: 1000000 | I20: 1000000 | J20: 1000000 | K20: 100000 | L20: 1000000 | M20: 1000000 | N20: =H7 -> 22 | O20: 1e-05 | P20: nF | Q20: 19 | R20: 1000000
G21: C4 | H21: 1e-09 | I21: 1e-09 | J21: =Main!$E$16 -> 22 | K21: 10 | L21: 1e-09 | M21: 1000000 | N21: 1e-09 | O21: 1.8 | P21: nF | Q21: 20 | R21: 1e-09
G22: R5 | H22: 1000000000000 | I22: 1000000000000 | J22: 100000000 | K22: 220 | L22: 1000000000000 | M22: 1000000000000 | N22: 1000000000000 | O22: 240 | P22: k | Q22: 21 | R22: 1000000000000
G23: R6 | H23: 1000000000000 | I23: 1000000000000 | J23: 1000000000000 | K23: 1000000000000 | L23: 1000000000000 | M23: 1e-05 | N23: 1000000000000 | O23: 1100 | P23: k | Q23: 22 | R23: 1000000000000
G24: R7 | H24: 1000000000000 | I24: 1000000000000 | J24: 1000000000000 | K24: 1000000000000 | L24: 1000000000000 | M24: 1000000000000 | N24: 1000000000000 | O24: 500 | P24: k | Q24: 23 | R24: 1000000000000
G25: C5 | H25: 1 | I25: 1 | J25: 1 | K25: 1 | L25: 1 | M25: 1 | N25: 1 | O25: 15 | P25: nF | Q25: 24 | R25: 1
N26: =R3 -> No-load
P27: =H3 -> Standard
P28: =I3 -> No-load
P29: =J3 -> Gibson Varitone
P30: =K3 -> Torres Mid-shaper
P31: =L3 -> Fender Greasebucket
P32: =M3 -> Std.w/ load resistor.
P33: =N3 -> Fender TBX
K34: Strings | L34: =Main!J26 -> range: from Hz | M34: =Main!K26 -> 400 | N34: =Main!L26 -> to Hz | O34: =Main!M26 -> 5000 | P34: =O3 -> 'Custom'
L35: =Main!J27 -> Max db | M35: =Main!K27 -> -2.216952304 | N35: =Main!L27 -> @ freq.(Hz) | O35: =Main!M27 -> 1108.730524
L36: =Main!J28 -> Min db | M36: =Main!K28 -> -15.3755275 | N36: =Main!L28 -> @ freq.(Hz) | O36: =Main!M28 -> 4978.03174
L37: =Main!J29 -> diff.max-min (all traces wrt. Reference) db | O37: =Main!M29 -> 43.81942674
L38: =Main!K30 -> Legend:
Y40: =R12 -> 1e+24
Y41: 1e-07
L42: =Main!K34 -> GuitarFreak
L43: =Main!K35 -> ver 6.6.0 | N43: =Main!L35 -> ©J Hewitt | O43: =Main!M35 -> 2019-12-01
A45: Freq. | B45: 1/R4 =A | C45: 1/C2=B | D45: R3+C3 = C | F45: 1/C = D | I45: A+B+D=E | K45: 1/E=F | O45: !/R5=G | P45: 1/C1=H | Q45: 1/(G+H)=J | T45: J+L1+R1+R2a=K | V45: 1/K=L | Y45: 1/C4+1/R6=Q | AA45: 1/Q | AD45: R2b+1/Q==M | AF45: 1/M==N | AI45: L+M=N | AK45: 1/N=P | AN45: F+P=S | AP45: 1/S=T | AS45: R7+C5=U | AU45: 1/U=V | AX45: U+V | AZ45: Total=1/(U+V)
C46: j | E46: j | F46: mag | H46: j | K46: mag | N46: j | P46: j | Q46: mag | S46: j | U46: j | V46: mag | X46: j | Z46: j | AA46: mag | AC46: j | AE46: j | AF46: mag | AH46: j | AJ46: j | AK46: mag | AM46: j | AO46: j | AP46: mag | AR46: j | AU46: mag | AW46: j | AZ46: mag | BB46: j
A47: =Main!A46 -> 41.20344461 | B47: =1/$R$18/1000 -> 1000 | C47: =2*PI()*A47*$R$19/1000000000 -> 2.588888778e-07 | D47: =$R$17*1000 -> 1000 | E47: =-1/(2*PI()*A47*$R$20/1000000000) -> -3.86266111 | F47: =1/(D47^2+E47^2)^0.5 -> 0.00099999254 | G47: =D47*F47^2 -> 0.0009999850801 | H47: =-E47*F47^2 -> 3.862603479e-06 | I47: =B47+G47 -> 1000.001 | J47: =C47+H47 -> 4.121492357e-06 | K47: =1/(I47^2+J47^2)^0.5 -> 0.000999999 | L47: =I47*K47^2 -> 0.000999999 | N47: =-J47*K47^2 -> -4.121484114e-12 | O47: =1/$R$22/1000 -> 1e-15 | P47: =2*PI()*A47*$R$7/1000000000 -> 5.695555312e-06 | Q47: =1/(O47^2+P47^2)^0.5 -> 175575.505 | R47: =O47*Q47^2 -> 3.082675795e-05 | S47: =-P47*Q47^2 -> -175575.505 | T47: =R47+$R$5*1000+$R$11*1000 -> 50000000000000 | U47: =S47+2*PI()*A47*$R$6 -> -175575.505 | V47: =1/(T47^2+U47^2)^0.5 -> 2e-14 | W47: =T47*V47^2 -> 2e-14 | X47: =-U47*V47^2 -> 7.023020199e-23 | Y47: =1/($R$23*1000) -> 1e-15 | Z47: =2*PI()*A47*$R$21/1000000000 -> 2.588888778e-16 | AA47: =1/(Y47^2+Z47^2)^0.5 -> 9.680839451e+14 | AB47: =Y47*AA47^2 -> 9.371865248e+14 | AC47: =-Z47*AA47^2 -> -2.426271677e+14 | AD47: =$R$12*1000+AB47 -> 1e+27 | AE47: =AC47 -> -2.426271677e+14 | AF47: =1/(AD47^2+AE47^2)^0.5 -> 1e-27 | AG47: =AD47*AF47^2 -> 1e-27 | AH47: =-AE47*AF47^2 -> 2.426271677e-40 | AI47: =W47+AG47 -> 2e-14 | AJ47: =X47+AH47 -> 7.023020199e-23 | AK47: =1/(AI47^2+AJ47^2)^0.5 -> 5e+13 | AL47: =AI47*AK47^2 -> 5e+13 | AM47: =-AJ47*AK47^2 -> -175575.505 | AN47: =L47+AL47 -> 5e+13 | AO47: =N47+AM47 -> -175575.505 | AP47: =1/(AN47^2+AO47^2)^0.5 -> 2e-14 | AQ47: =AN47*AP47^2 -> 2e-14 | AR47: =-AO47*AP47^2 -> 7.023020199e-23 | AS47: =$R$24*1000 -> 1000000000000000 | AT47: =-1/(2*PI()*A47*$R$25/1000000000) -> -3862661.11 | AU47: =1/(AS47^2+AT47^2)^0.5 -> 1e-15 | AV47: =AS47*AU47^2 -> 1e-15 | AW47: =-AT47*AU47^2 -> 3.86266111e-24 | AX47: =AQ47+AV47 -> 2.1e-14 | AY47: =AR47+AW47 -> 7.40928631e-23 | AZ47: =1/(AX47^2+AY47^2)^0.5 -> 4.761904762e+13 | BA47: =AX47*AZ47^2 -> 4.761904762e+13 | BB47: =-AY47*AZ47^2 -> -168011.0274
A48: =Main!A47 -> 43.65352893 | B48: 1000 | C48: =2*PI()*A48*$R$19/1000000000 -> 2.742832116e-07 | D48: 1000 | E48: =-1/(2*PI()*A48*$R$20/1000000000) -> -3.6458666 | F48: =1/(D48^2+E48^2)^0.5 -> 0.0009999933539 | G48: =D48*F48^2 -> 0.0009999867078 | H48: =-E48*F48^2 -> 3.645818138e-06 | I48: =B48+G48 -> 1000.001 | J48: =C48+H48 -> 3.92010135e-06 | K48: =1/(I48^2+J48^2)^0.5 -> 0.000999999 | L48: =I48*K48^2 -> 0.000999999 | N48: =-J48*K48^2 -> -3.92009351e-12 | O48: 1e-15 | P48: =2*PI()*A48*$R$7/1000000000 -> 6.034230655e-06 | Q48: =1/(O48^2+P48^2)^0.5 -> 165721.2091 | R48: =O48*Q48^2 -> 2.746351914e-05 | S48: =-P48*Q48^2 -> -165721.2091 | T48: =R48+$R$5*1000+$R$11*1000 -> 50000000000000 | U48: =S48+2*PI()*A48*$R$6 -> -165721.2091 | V48: =1/(T48^2+U48^2)^0.5 -> 2e-14 | W48: =T48*V48^2 -> 2e-14 | X48: =-U48*V48^2 -> 6.628848364e-23 | Y48: =1/($R$23*1000) -> 1e-15 | Z48: =2*PI()*A48*$R$21/1000000000 -> 2.742832116e-16 | AA48: =1/(Y48^2+Z48^2)^0.5 -> 964381909271681 | AB48: =Y48*AA48^2 -> 9.300324669e+14 | AC48: =-Z48*AA48^2 -> -2.550922919e+14 | AD48: =$R$12*1000+AB48 -> 1e+27 | AE48: =AC48 -> -2.550922919e+14 | AF48: =1/(AD48^2+AE48^2)^0.5 -> 1e-27 | AG48: =AD48*AF48^2 -> 1e-27 | AH48: =-AE48*AF48^2 -> 2.550922919e-40 | AI48: =W48+AG48 -> 2e-14 | AJ48: =X48+AH48 -> 6.628848364e-23 | AK48: =1/(AI48^2+AJ48^2)^0.5 -> 5e+13 | AL48: =AI48*AK48^2 -> 5e+13 | AM48: =-AJ48*AK48^2 -> -165721.2091 | AN48: =L48+AL48 -> 5e+13 | AO48: =N48+AM48 -> -165721.2091 | AP48: =1/(AN48^2+AO48^2)^0.5 -> 2e-14 | AQ48: =AN48*AP48^2 -> 2e-14 | AR48: =-AO48*AP48^2 -> 6.628848364e-23 | AS48: =$R$24*1000 -> 1000000000000000 | AT48: =-1/(2*PI()*A48*$R$25/1000000000) -> -3645866.6 | AU48: =1/(AS48^2+AT48^2)^0.5 -> 1e-15 | AV48: =AS48*AU48^2 -> 1e-15 | AW48: =-AT48*AU48^2 -> 3.6458666e-24 | AX48: =AQ48+AV48 -> 2.1e-14 | AY48: =AR48+AW48 -> 6.993435024e-23 | AZ48: =1/(AX48^2+AY48^2)^0.5 -> 4.761904762e+13 | BA48: =AX48*AZ48^2 -> 4.761904762e+13 | BB48: =-AY48*AZ48^2 -> -158581.2931
A49: =Main!A48 -> 46.24930284 | B49: 1000 | C49: 2.905929401e-07 | D49: 1000 | E49: -3.441239831 | F49: 0.000999994079 | G49: 0.000999988158 | H49: 3.44119908e-06 | I49: 1000.001 | J49: 3.73179202e-06 | K49: 0.000999999 | L49: 0.000999999 | N49: -3.731784557e-12 | O49: 1e-15 | P49: 6.393044681e-06 | Q49: 156419.9923 | R49: 2.4467214e-05 | S49: -156419.9923 | T49: 50000000000000 | U49: -156419.9923 | V49: 2e-14 | W49: 2e-14 | X49: 6.256799693e-23 | Y49: 1e-15 | Z49: 2.905929401e-16 | AA49: 9.602766826e+14 | AB49: 9.221313071e+14 | AC49: -2.679648477e+14 | AD49: 1e+27 | AE49: -2.679648477e+14 | AF49: 1e-27 | AG49: 1e-27 | AH49: 2.679648477e-40 | AI49: 2e-14 | AJ49: 6.256799693e-23 | AK49: 5e+13 | AL49: 5e+13 | AM49: -156419.9923 | AN49: 5e+13 | AO49: -156419.9923 | AP49: 2e-14 | AQ49: 2e-14 | AR49: 6.256799693e-23 | AS49: 1000000000000000 | AT49: -3441239.831 | AU49: 1e-15 | AV49: 1e-15 | AW49: 3.441239831e-24 | AX49: 2.1e-14 | AY49: 6.600923676e-23 | AZ49: 4.761904762e+13 | BA49: 4.761904762e+13 | BB49: -149680.809
A50: =Main!A49 -> 48.9994295 | B50: 1000 | C50: 3.078724955e-07 | D50: 1000 | E50: -3.24809788 | F50: 0.000999994725 | G50: 0.00099998945 | H50: 3.248063613e-06 | I50: 1000.001 | J50: 3.555936108e-06 | K50: 0.000999999 | L50: 0.000999999 | N50: -3.555928997e-12 | O50: 1e-15 | P50: 6.773194901e-06 | Q50: 147640.8127 | R50: 2.179780959e-05 | S50: -147640.8127 | T50: 50000000000000 | U50: -147640.8127 | V50: 2e-14 | W50: 2e-14 | X50: 5.90563251e-23 | Y50: 1e-15 | Z50: 3.078724955e-16 | AA50: 9.557305905e+14 | AB50: 9.134209617e+14 | AC50: -2.812171909e+14 | AD50: 1e+27 | AE50: -2.812171909e+14 | AF50: 1e-27 | AG50: 1e-27 | AH50: 2.812171909e-40 | AI50: 2e-14 | AJ50: 5.90563251e-23 | AK50: 5e+13 | AL50: 5e+13 | AM50: -147640.8127 | AN50: 5e+13 | AO50: -147640.8127 | AP50: 2e-14 | AQ50: 2e-14 | AR50: 5.90563251e-23 | AS50: 1000000000000000 | AT50: -3248097.88 | AU50: 1e-15 | AV50: 1e-15 | AW50: 3.24809788e-24 | AX50: 2.1e-14 | AY50: 6.230442298e-23 | AZ50: 4.761904762e+13 | BA50: 4.761904762e+13 | BB50: -141279.8707
A51: =Main!A50 -> 51.9130872 | B51: 1000 | C51: 3.261795467e-07 | D51: 1000 | E51: -3.065796154 | F51: 0.0009999953005 | G51: 0.000999990601 | H51: 3.065767339e-06 | I51: 1000.001 | J51: 3.391946886e-06 | K51: 0.000999999 | L51: 0.000999999 | N51: -3.391940102e-12 | O51: 1e-15 | P51: 7.175950028e-06 | Q51: 139354.3707 | R51: 1.941964062e-05 | S51: -139354.3707 | T51: 50000000000000 | U51: -139354.3707 | V51: 2e-14 | W51: 2e-14 | X51: 5.574174826e-23 | Y51: 1e-15 | Z51: 3.261795467e-16 | AA51: 950703890893281 | AB51: 9.038378882e+14 | AC51: -2.948134327e+14 | AD51: 1e+27 | AE51: -2.948134327e+14 | AF51: 1e-27 | AG51: 1e-27 | AH51: 2.948134327e-40 | AI51: 2e-14 | AJ51: 5.574174826e-23 | AK51: 5e+13 | AL51: 5e+13 | AM51: -139354.3707 | AN51: 5e+13 | AO51: -139354.3707 | AP51: 2e-14 | AQ51: 2e-14 | AR51: 5.574174826e-23 | AS51: 1000000000000000 | AT51: -3065796.154 | AU51: 1e-15 | AV51: 1e-15 | AW51: 3.065796154e-24 | AX51: 2.1e-14 | AY51: 5.880754442e-23 | AZ51: 4.761904762e+13 | BA51: 4.761904762e+13 | BB51: -133350.4409
A52: =Main!A51 -> 55 | B52: 1000 | C52: 3.455751919e-07 | D52: 1000 | E52: -2.893726238 | F52: 0.0009999958132 | G52: 0.0009999916264 | H52: 2.893702007e-06 | I52: 1000.001 | J52: 3.239277199e-06 | K52: 0.000999999 | L52: 0.000999999 | N52: -3.239270721e-12 | O52: 1e-15 | P52: 7.602654222e-06 | Q52: 131533.0108 | R52: 1.730093294e-05 | S52: -131533.0108 | T52: 50000000000000 | U52: -131533.0108 | V52: 2e-14 | W52: 2e-14 | X52: 5.261320433e-23 | Y52: 1e-15 | Z52: 3.455751919e-16 | AA52: 9.451550077e+14 | AB52: 8.933179887e+14 | AC52: -3.087085354e+14 | AD52: 1e+27 | AE52: -3.087085354e+14 | AF52: 1e-27 | AG52: 1e-27 | AH52: 3.087085354e-40 | AI52: 2e-14 | AJ52: 5.261320433e-23 | AK52: 5e+13 | AL52: 5e+13 | AM52: -131533.0108 | AN52: 5e+13 | AO52: -131533.0108 | AP52: 2e-14 | AQ52: 2e-14 | AR52: 5.261320433e-23 | AS52: 1000000000000000 | AT52: -2893726.238 | AU52: 1e-15 | AV52: 1e-15 | AW52: 2.893726238e-24 | AX52: 2.1e-14 | AY52: 5.550693057e-23 | AZ52: 4.761904762e+13 | BA52: 4.761904762e+13 | BB52: -125866.0557
A53: =Main!A52 -> 58.27047019 | B53: 1000 | C53: 3.661241621e-07 | D53: 1000 | E53: -2.731313864 | F53: 0.00099999627 | G53: 0.00099999254 | H53: 2.731293488e-06 | I53: 1000.001 | J53: 3.09741765e-06 | K53: 0.000999999 | L53: 0.000999999 | N53: -3.097411456e-12 | O53: 1e-15 | P53: 8.054731567e-06 | Q53: 124150.6302 | R53: 1.541337897e-05 | S53: -124150.6302 | T53: 50000000000000 | U53: -124150.6302 | V53: 2e-14 | W53: 2e-14 | X53: 4.966025207e-23 | Y53: 1e-15 | Z53: 3.661241621e-16 | AA53: 9.390408639e+14 | AB53: 8.817977441e+14 | AC53: -3.228474602e+14 | AD53: 1e+27 | AE53: -3.228474602e+14 | AF53: 1e-27 | AG53: 1e-27 | AH53: 3.228474602e-40 | AI53: 2e-14 | AJ53: 4.966025207e-23 | AK53: 5e+13 | AL53: 5e+13 | AM53: -124150.6302 | AN53: 5e+13 | AO53: -124150.6302 | AP53: 2e-14 | AQ53: 2e-14 | AR53: 4.966025207e-23 | AS53: 1000000000000000 | AT53: -2731313.864 | AU53: 1e-15 | AV53: 1e-15 | AW53: 2.731313864e-24 | AX53: 2.1e-14 | AY53: 5.239156594e-23 | AZ53: 4.761904762e+13 | BA53: 4.761904762e+13 | BB53: -118801.7368
A54: =Main!A53 -> 61.73541266 | B54: 1000 | C54: 3.878950377e-07 | D54: 1000 | E54: -2.578016996 | F54: 0.0009999966769 | G54: 0.0009999933539 | H54: 2.577999862e-06 | I54: 1000.001 | J54: 2.9658949e-06 | K54: 0.000999999 | L54: 0.000999999 | N54: -2.965888968e-12 | O54: 1e-15 | P54: 8.53369083e-06 | Q54: 117182.5907 | R54: 1.373175957e-05 | S54: -117182.5907 | T54: 50000000000000 | U54: -117182.5907 | V54: 2e-14 | W54: 2e-14 | X54: 4.687303629e-23 | Y54: 1e-15 | Z54: 3.878950377e-16 | AA54: 9.323173258e+14 | AB54: 8.69215596e+14 | AC54: -3.371644164e+14 | AD54: 1e+27 | AE54: -3.371644164e+14 | AF54: 1e-27 | AG54: 1e-27 | AH54: 3.371644164e-40 | AI54: 2e-14 | AJ54: 4.687303629e-23 | AK54: 5e+13 | AL54: 5e+13 | AM54: -117182.5907 | AN54: 5e+13 | AO54: -117182.5907 | AP54: 2e-14 | AQ54: 2e-14 | AR54: 4.687303629e-23 | AS54: 1000000000000000 | AT54: -2578016.996 | AU54: 1e-15 | AV54: 1e-15 | AW54: 2.578016996e-24 | AX54: 2.1e-14 | AY54: 4.945105329e-23 | AZ54: 4.761904762e+13 | BA54: 4.761904762e+13 | BB54: -112133.9077
A55: =Main!A54 -> 65.40639133 | B55: 1000 | C55: 4.10960477e-07 | D55: 1000 | E55: -2.43332402 | F55: 0.0009999970395 | G55: 0.000999994079 | H55: 2.433309613e-06 | I55: 1000.001 | J55: 2.844270089e-06 | K55: 0.000999999 | L55: 0.000999999 | N55: -2.844264401e-12 | O55: 1e-15 | P55: 9.041130493e-06 | Q55: 110605.6373 | R55: 1.2233607e-05 | S55: -110605.6373 | T55: 50000000000000 | U55: -110605.6373 | V55: 2e-14 | W55: 2e-14 | X55: 4.424225491e-23 | Y55: 1e-15 | Z55: 4.10960477e-16 | AA55: 9.249397724e+14 | AB55: 8.555135826e+14 | AC55: -3.5158227e+14 | AD55: 1e+27 | AE55: -3.5158227e+14 | AF55: 1e-27 | AG55: 1e-27 | AH55: 3.5158227e-40 | AI55: 2e-14 | AJ55: 4.424225491e-23 | AK55: 5e+13 | AL55: 5e+13 | AM55: -110605.6373 | AN55: 5e+13 | AO55: -110605.6373 | AP55: 2e-14 | AQ55: 2e-14 | AR55: 4.424225491e-23 | AS55: 1000000000000000 | AT55: -2433324.02 | AU55: 1e-15 | AV55: 1e-15 | AW55: 2.43332402e-24 | AX55: 2.1e-14 | AY55: 4.667557893e-23 | AZ55: 4.761904762e+13 | BA55: 4.761904762e+13 | BB55: -105840.315
A56: =Main!A55 -> 69.29565774 | B56: 1000 | C56: 4.353974586e-07 | D56: 1000 | E56: -2.296752037 | F56: 0.0009999973625 | G56: 0.000999994725 | H56: 2.296739922e-06 | I56: 1000.001 | J56: 2.73213738e-06 | K56: 0.000999999 | L56: 0.000999999 | N56: -2.732131916e-12 | O56: 1e-15 | P56: 9.578744089e-06 | Q56: 104397.8199 | R56: 1.089890479e-05 | S56: -104397.8199 | T56: 50000000000000 | U56: -104397.8199 | V56: 2e-14 | W56: 2e-14 | X56: 4.175912795e-23 | Y56: 1e-15 | Z56: 4.353974586e-16 | AA56: 916863798993540 | AB56: 8.406392259e+14 | AC56: -3.660121825e+14 | AD56: 1e+27 | AE56: -3.660121825e+14 | AF56: 1e-27 | AG56: 1e-27 | AH56: 3.660121825e-40 | AI56: 2e-14 | AJ56: 4.175912795e-23 | AK56: 5e+13 | AL56: 5e+13 | AM56: -104397.8199 | AN56: 5e+13 | AO56: -104397.8199 | AP56: 2e-14 | AQ56: 2e-14 | AR56: 4.175912795e-23 | AS56: 1000000000000000 | AT56: -2296752.037 | AU56: 1e-15 | AV56: 1e-15 | AW56: 2.296752037e-24 | AX56: 2.1e-14 | AY56: 4.405587999e-23 | AZ56: 4.761904762e+13 | BA56: 4.761904762e+13 | BB56: -99899.95462
A57: =Main!A56 -> 73.41619198 | B57: 1000 | C57: 4.612875388e-07 | D57: 1000 | E57: -2.16784525 | F57: 0.0009999976502 | G57: 0.0009999953005 | H57: 2.167835063e-06 | I57: 1000.001 | J57: 2.629122601e-06 | K57: 0.000999999 | L57: 0.000999999 | N57: -2.629117343e-12 | O57: 1e-15 | P57: 1.014832585e-05 | Q57: 98538.42048 | R57: 9.70982031e-06 | S57: -98538.42048 | T57: 50000000000000 | U57: -98538.42048 | V57: 2e-14 | W57: 2e-14 | X57: 3.941536819e-23 | Y57: 1e-15 | Z57: 4.612875388e-16 | AA57: 9.08046059e+14 | AB57: 8.245476453e+14 | AC57: -3.803535539e+14 | AD57: 1e+27 | AE57: -3.803535539e+14 | AF57: 1e-27 | AG57: 1e-27 | AH57: 3.803535539e-40 | AI57: 2e-14 | AJ57: 3.941536819e-23 | AK57: 5e+13 | AL57: 5e+13 | AM57: -98538.42048 | AN57: 5e+13 | AO57: -98538.42048 | AP57: 2e-14 | AQ57: 2e-14 | AR57: 3.941536819e-23 | AS57: 1000000000000000 | AT57: -2167845.25 | AU57: 1e-15 | AV57: 1e-15 | AW57: 2.16784525e-24 | AX57: 2.1e-14 | AY57: 4.158321344e-23 | AZ57: 4.761904762e+13 | BA57: 4.761904762e+13 | BB57: -94293.001
A58: =Main!A57 -> 77.78174593 | B58: 1000 | C58: 4.887171232e-07 | D58: 1000 | E58: -2.046173446 | F58: 0.0009999979066 | G58: 0.0009999958132 | H58: 2.046164879e-06 | I58: 1000.001 | J58: 2.534882002e-06 | K58: 0.000999999 | L58: 0.000999999 | N58: -2.534876932e-12 | O58: 1e-15 | P58: 1.075177671e-05 | Q58: 93007.8839 | R58: 8.650466468e-06 | S58: -93007.8839 | T58: 50000000000000 | U58: -93007.8839 | V58: 2e-14 | W58: 2e-14 | X58: 3.720315356e-23 | Y58: 1e-15 | Z58: 4.887171232e-16 | AA58: 8.984452446e+14 | AB58: 8.072038576e+14 | AC58: -3.944943471e+14 | AD58: 1e+27 | AE58: -3.944943471e+14 | AF58: 1e-27 | AG58: 1e-27 | AH58: 3.944943471e-40 | AI58: 2e-14 | AJ58: 3.720315356e-23 | AK58: 5e+13 | AL58: 5e+13 | AM58: -93007.8839 | AN58: 5e+13 | AO58: -93007.8839 | AP58: 2e-14 | AQ58: 2e-14 | AR58: 3.720315356e-23 | AS58: 1000000000000000 | AT58: -2046173.446 | AU58: 1e-15 | AV58: 1e-15 | AW58: 2.046173446e-24 | AX58: 2.1e-14 | AY58: 3.924932701e-23 | AZ58: 4.761904762e+13 | BA58: 4.761904762e+13 | BB58: -89000.74151
A59: =Main!A58 -> 82.40688923 | B59: 1000 | C59: 5.177777556e-07 | D59: 1000 | E59: -1.931330555 | F59: 0.000999998135 | G59: 0.00099999627 | H59: 1.931323351e-06 | I59: 1000.001 | J59: 2.449101106e-06 | K59: 0.000999999 | L59: 0.000999999 | N59: -2.449096208e-12 | O59: 1e-15 | P59: 1.139111062e-05 | Q59: 87787.75249 | R59: 7.706689487e-06 | S59: -87787.75249 | T59: 50000000000000 | U59: -87787.75249 | V59: 2e-14 | W59: 2e-14 | X59: 3.5115101e-23 | Y59: 1e-15 | Z59: 5.177777556e-16 | AA59: 8.880231951e+14 | AB59: 7.885851951e+14 | AC59: -4.083118724e+14 | AD59: 1e+27 | AE59: -4.083118724e+14 | AF59: 1e-27 | AG59: 1e-27 | AH59: 4.083118724e-40 | AI59: 2e-14 | AJ59: 3.5115101e-23 | AK59: 5e+13 | AL59: 5e+13 | AM59: -87787.75249 | AN59: 5e+13 | AO59: -87787.75249 | AP59: 2e-14 | AQ59: 2e-14 | AR59: 3.5115101e-23 | AS59: 1000000000000000 | AT59: -1931330.555 | AU59: 1e-15 | AV59: 1e-15 | AW59: 1.931330555e-24 | AX59: 2.1e-14 | AY59: 3.704643155e-23 | AZ59: 4.761904762e+13 | BA59: 4.761904762e+13 | BB59: -84005.51372
A60: =Main!A59 -> 87.30705786 | B60: 1000 | C60: 5.485664231e-07 | D60: 1000 | E60: -1.8229333 | F60: 0.0009999983385 | G60: 0.0009999966769 | H60: 1.822927242e-06 | I60: 1000.001 | J60: 2.371493665e-06 | K60: 0.000999999 | L60: 0.000999999 | N60: -2.371488922e-12 | O60: 1e-15 | P60: 1.206846131e-05 | Q60: 82860.60454 | R60: 6.865879785e-06 | S60: -82860.60454 | T60: 50000000000000 | U60: -82860.60454 | V60: 2e-14 | W60: 2e-14 | X60: 3.314424182e-23 | Y60: 1e-15 | Z60: 5.485664231e-16 | AA60: 8.767461148e+14 | AB60: 7.686837499e+14 | AC60: -4.216740952e+14 | AD60: 1e+27 | AE60: -4.216740952e+14 | AF60: 1e-27 | AG60: 1e-27 | AH60: 4.216740952e-40 | AI60: 2e-14 | AJ60: 3.314424182e-23 | AK60: 5e+13 | AL60: 5e+13 | AM60: -82860.60454 | AN60: 5e+13 | AO60: -82860.60454 | AP60: 2e-14 | AQ60: 2e-14 | AR60: 3.314424182e-23 | AS60: 1000000000000000 | AT60: -1822933.3 | AU60: 1e-15 | AV60: 1e-15 | AW60: 1.8229333e-24 | AX60: 2.1e-14 | AY60: 3.496717512e-23 | AZ60: 4.761904762e+13 | BA60: 4.761904762e+13 | BB60: -79290.64653
A61: =Main!A60 -> 92.49860568 | B61: 1000 | C61: 5.811858801e-07 | D61: 1000 | E61: -1.720619916 | F61: 0.0009999985197 | G61: 0.0009999970395 | H61: 1.720614822e-06 | I61: 1000.001 | J61: 2.301800702e-06 | K61: 0.000999999 | L61: 0.000999999 | N61: -2.301796098e-12 | O61: 1e-15 | P61: 1.278608936e-05 | Q61: 78209.99616 | R61: 6.1168035e-06 | S61: -78209.99616 | T61: 50000000000000 | U61: -78209.99616 | V61: 2e-14 | W61: 2e-14 | X61: 3.128399846e-23 | Y61: 1e-15 | Z61: 5.811858801e-16 | AA61: 8.645858691e+14 | AB61: 7.47508725e+14 | AC61: -4.344415163e+14 | AD61: 1e+27 | AE61: -4.344415163e+14 | AF61: 1e-27 | AG61: 1e-27 | AH61: 4.344415163e-40 | AI61: 2e-14 | AJ61: 3.128399846e-23 | AK61: 5e+13 | AL61: 5e+13 | AM61: -78209.99616 | AN61: 5e+13 | AO61: -78209.99616 | AP61: 2e-14 | AQ61: 2e-14 | AR61: 3.128399846e-23 | AS61: 1000000000000000 | AT61: -1720619.916 | AU61: 1e-15 | AV61: 1e-15 | AW61: 1.720619916e-24 | AX61: 2.1e-14 | AY61: 3.300461838e-23 | AZ61: 4.761904762e+13 | BA61: 4.761904762e+13 | BB61: -74840.40449
A62: =Main!A61 -> 97.998859 | B62: 1000 | C62: 6.15744991e-07 | D62: 1000 | E62: -1.62404894 | F62: 0.0009999986812 | G62: 0.0009999973625 | H62: 1.624044657e-06 | I62: 1000.001 | J62: 2.239789648e-06 | K62: 0.000999999 | L62: 0.000999999 | N62: -2.239785168e-12 | O62: 1e-15 | P62: 1.35463898e-05 | Q62: 73820.40637 | R62: 5.449452397e-06 | S62: -73820.40637 | T62: 50000000000000 | U62: -73820.40637 | V62: 2e-14 | W62: 2e-14 | X62: 2.952816255e-23 | Y62: 1e-15 | Z62: 6.15744991e-16 | AA62: 8.515213167e+14 | AB62: 7.250885528e+14 | AC62: -4.464696444e+14 | AD62: 1e+27 | AE62: -4.464696444e+14 | AF62: 1e-27 | AG62: 1e-27 | AH62: 4.464696444e-40 | AI62: 2e-14 | AJ62: 2.952816255e-23 | AK62: 5e+13 | AL62: 5e+13 | AM62: -73820.40637 | AN62: 5e+13 | AO62: -73820.40637 | AP62: 2e-14 | AQ62: 2e-14 | AR62: 2.952816255e-23 | AS62: 1000000000000000 | AT62: -1624048.94 | AU62: 1e-15 | AV62: 1e-15 | AW62: 1.62404894e-24 | AX62: 2.1e-14 | AY62: 3.115221149e-23 | AZ62: 4.761904762e+13 | BA62: 4.761904762e+13 | BB62: -70639.93535
A63: =Main!A62 -> 103.8261744 | B63: 1000 | C63: 6.523590935e-07 | D63: 1000 | E63: -1.532898077 | F63: 0.0009999988251 | G63: 0.0009999976502 | H63: 1.532894475e-06 | I63: 1000.001 | J63: 2.185253569e-06 | K63: 0.000999999 | L63: 0.000999999 | N63: -2.185249198e-12 | O63: 1e-15 | P63: 1.435190006e-05 | Q63: 69677.18533 | R63: 4.854910155e-06 | S63: -69677.18533 | T63: 50000000000000 | U63: -69677.18533 | V63: 2e-14 | W63: 2e-14 | X63: 2.787087413e-23 | Y63: 1e-15 | Z63: 6.523590935e-16 | AA63: 8.375396241e+14 | AB63: 7.01472622e+14 | AC63: -4.576120438e+14 | AD63: 1e+27 | AE63: -4.576120438e+14 | AF63: 1e-27 | AG63: 1e-27 | AH63: 4.576120438e-40 | AI63: 2e-14 | AJ63: 2.787087413e-23 | AK63: 5e+13 | AL63: 5e+13 | AM63: -69677.18533 | AN63: 5e+13 | AO63: -69677.18533 | AP63: 2e-14 | AQ63: 2e-14 | AR63: 2.787087413e-23 | AS63: 1000000000000000 | AT63: -1532898.077 | AU63: 1e-15 | AV63: 1e-15 | AW63: 1.532898077e-24 | AX63: 2.1e-14 | AY63: 2.940377221e-23 | AZ63: 4.761904762e+13 | BA63: 4.761904762e+13 | BB63: -66675.22043
A64: =Main!A63 -> 110 | B64: 1000 | C64: 6.911503838e-07 | D64: 1000 | E64: -1.446863119 | F64: 0.0009999989533 | G64: 0.0009999979066 | H64: 1.44686009e-06 | I64: 1000.001 | J64: 2.138010474e-06 | K64: 0.000999999 | L64: 0.000999999 | N64: -2.138006198e-12 | O64: 1e-15 | P64: 1.520530844e-05 | Q64: 65766.50541 | R64: 4.325233234e-06 | S64: -65766.50541 | T64: 50000000000000 | U64: -65766.50541 | V64: 2e-14 | W64: 2e-14 | X64: 2.630660216e-23 | Y64: 1e-15 | Z64: 6.911503838e-16 | AA64: 8.22637497e+14 | AB64: 676732451463778 | AC64: -4.677238936e+14 | AD64: 1e+27 | AE64: -4.677238936e+14 | AF64: 1e-27 | AG64: 1e-27 | AH64: 4.677238936e-40 | AI64: 2e-14 | AJ64: 2.630660216e-23 | AK64: 5e+13 | AL64: 5e+13 | AM64: -65766.50541 | AN64: 5e+13 | AO64: -65766.50541 | AP64: 2e-14 | AQ64: 2e-14 | AR64: 2.630660216e-23 | AS64: 1000000000000000 | AT64: -1446863.119 | AU64: 1e-15 | AV64: 1e-15 | AW64: 1.446863119e-24 | AX64: 2.1e-14 | AY64: 2.775346528e-23 | AZ64: 4.761904762e+13 | BA64: 4.761904762e+13 | BB64: -62933.02785
A65: =Main!A64 -> 116.5409404 | B65: 1000 | C65: 7.322483243e-07 | D65: 1000 | E65: -1.365656932 | F65: 0.0009999990675 | G65: 0.000999998135 | H65: 1.365654385e-06 | I65: 1000.001 | J65: 2.097902709e-06 | K65: 0.000999999 | L65: 0.000999999 | N65: -2.097898514e-12 | O65: 1e-15 | P65: 1.610946313e-05 | Q65: 62075.31509 | R65: 3.853344744e-06 | S65: -62075.31509 | T65: 50000000000000 | U65: -62075.31509 | V65: 2e-14 | W65: 2e-14 | X65: 2.483012604e-23 | Y65: 1e-15 | Z65: 7.322483243e-16 | AA65: 8.06822259e+14 | AB65: 6.509621576e+14 | AC65: -4.76665949e+14 | AD65: 1e+27 | AE65: -4.76665949e+14 | AF65: 1e-27 | AG65: 1e-27 | AH65: 4.76665949e-40 | AI65: 2e-14 | AJ65: 2.483012604e-23 | AK65: 5e+13 | AL65: 5e+13 | AM65: -62075.31509 | AN65: 5e+13 | AO65: -62075.31509 | AP65: 2e-14 | AQ65: 2e-14 | AR65: 2.483012604e-23 | AS65: 1000000000000000 | AT65: -1365656.932 | AU65: 1e-15 | AV65: 1e-15 | AW65: 1.365656932e-24 | AX65: 2.1e-14 | AY65: 2.619578297e-23 | AZ65: 4.761904762e+13 | BA65: 4.761904762e+13 | BB65: -59400.86841
A66: =Main!A65 -> 123.4708253 | B66: 1000 | C66: 7.757900755e-07 | D66: 1000 | E66: -1.289008498 | F66: 0.0009999991692 | G66: 0.0009999983385 | H66: 1.289006356e-06 | I66: 1000.001 | J66: 2.064796432e-06 | K66: 0.000999999 | L66: 0.000999999 | N66: -2.064792302e-12 | O66: 1e-15 | P66: 1.706738166e-05 | Q66: 58591.29537 | R66: 3.432939893e-06 | S66: -58591.29537 | T66: 50000000000000 | U66: -58591.29537 | V66: 2e-14 | W66: 2e-14 | X66: 2.343651815e-23 | Y66: 1e-15 | Z66: 7.757900755e-16 | AA66: 7.901127036e+14 | AB66: 6.242780844e+14 | AC66: -4.843087422e+14 | AD66: 1e+27 | AE66: -4.843087422e+14 | AF66: 1e-27 | AG66: 1e-27 | AH66: 4.843087422e-40 | AI66: 2e-14 | AJ66: 2.343651815e-23 | AK66: 5e+13 | AL66: 5e+13 | AM66: -58591.29537 | AN66: 5e+13 | AO66: -58591.29537 | AP66: 2e-14 | AQ66: 2e-14 | AR66: 2.343651815e-23 | AS66: 1000000000000000 | AT66: -1289008.498 | AU66: 1e-15 | AV66: 1e-15 | AW66: 1.289008498e-24 | AX66: 2.1e-14 | AY66: 2.472552664e-23 | AZ66: 4.761904762e+13 | BA66: 4.761904762e+13 | BB66: -56066.95384
A67: =Main!A66 -> 130.8127827 | B67: 1000 | C67: 8.219209539e-07 | D67: 1000 | E67: -1.21666201 | F67: 0.0009999992599 | G67: 0.0009999985197 | H67: 1.216660209e-06 | I67: 1000.001 | J67: 2.038581163e-06 | K67: 0.000999999 | L67: 0.000999999 | N67: -2.038577086e-12 | O67: 1e-15 | P67: 1.808226099e-05 | Q67: 55302.81864 | R67: 3.05840175e-06 | S67: -55302.81864 | T67: 50000000000000 | U67: -55302.81864 | V67: 2e-14 | W67: 2e-14 | X67: 2.212112746e-23 | Y67: 1e-15 | Z67: 8.219209539e-16 | AA67: 7.7253965e+14 | AB67: 5.968175108e+14 | AC67: -4.905368178e+14 | AD67: 1e+27 | AE67: -4.905368178e+14 | AF67: 1e-27 | AG67: 1e-27 | AH67: 4.905368178e-40 | AI67: 2e-14 | AJ67: 2.212112746e-23 | AK67: 5e+13 | AL67: 5e+13 | AM67: -55302.81864 | AN67: 5e+13 | AO67: -55302.81864 | AP67: 2e-14 | AQ67: 2e-14 | AR67: 2.212112746e-23 | AS67: 1000000000000000 | AT67: -1216662.01 | AU67: 1e-15 | AV67: 1e-15 | AW67: 1.21666201e-24 | AX67: 2.1e-14 | AY67: 2.333778947e-23 | AZ67: 4.761904762e+13 | BA67: 4.761904762e+13 | BB67: -52920.15752
A68: =Main!A67 -> 138.5913155 | B68: 1000 | C68: 8.707949172e-07 | D68: 1000 | E68: -1.148376019 | F68: 0.0009999993406 | G68: 0.0009999986812 | H68: 1.148374504e-06 | I68: 1000.001 | J68: 2.019169421e-06 | K68: 0.000999999 | L68: 0.000999999 | N68: -2.019165383e-12 | O68: 1e-15 | P68: 1.915748818e-05 | Q68: 52198.90994 | R68: 2.724726199e-06 | S68: -52198.90994 | T68: 50000000000000 | U68: -52198.90994 | V68: 2e-14 | W68: 2e-14 | X68: 2.087956397e-23 | Y68: 1e-15 | Z68: 8.707949172e-16 | AA68: 7.541461428e+14 | AB68: 568736404752528 | AC68: -4.952527705e+14 | AD68: 1e+27 | AE68: -4.952527705e+14 | AF68: 1e-27 | AG68: 1e-27 | AH68: 4.952527705e-40 | AI68: 2e-14 | AJ68: 2.087956397e-23 | AK68: 5e+13 | AL68: 5e+13 | AM68: -52198.90994 | AN68: 5e+13 | AO68: -52198.90994 | AP68: 2e-14 | AQ68: 2e-14 | AR68: 2.087956397e-23 | AS68: 1000000000000000 | AT68: -1148376.019 | AU68: 1e-15 | AV68: 1e-15 | AW68: 1.148376019e-24 | AX68: 2.1e-14 | AY68: 2.202793999e-23 | AZ68: 4.761904762e+13 | BA68: 4.761904762e+13 | BB68: -49949.97731
A69: =Main!A68 -> 146.832384 | B69: 1000 | C69: 9.225750775e-07 | D69: 1000 | E69: -1.083922625 | F69: 0.0009999994126 | G69: 0.0009999988251 | H69: 1.083921352e-06 | I69: 1000.001 | J69: 2.006496429e-06 | K69: 0.000999999 | L69: 0.000999999 | N69: -2.006492416e-12 | O69: 1e-15 | P69: 2.029665171e-05 | Q69: 49269.21024 | R69: 2.427455078e-06 | S69: -49269.21024 | T69: 50000000000000 | U69: -49269.21024 | V69: 2e-14 | W69: 2e-14 | X69: 1.97076841e-23 | Y69: 1e-15 | Z69: 9.225750775e-16 | AA69: 7.349872535e+14 | AB69: 5.402062628e+14 | AC69: -4.983808347e+14 | AD69: 1e+27 | AE69: -4.983808347e+14 | AF69: 1e-27 | AG69: 1e-27 | AH69: 4.983808347e-40 | AI69: 2e-14 | AJ69: 1.97076841e-23 | AK69: 5e+13 | AL69: 5e+13 | AM69: -49269.21024 | AN69: 5e+13 | AO69: -49269.21024 | AP69: 2e-14 | AQ69: 2e-14 | AR69: 1.97076841e-23 | AS69: 1000000000000000 | AT69: -1083922.625 | AU69: 1e-15 | AV69: 1e-15 | AW69: 1.083922625e-24 | AX69: 2.1e-14 | AY69: 2.079160672e-23 | AZ69: 4.761904762e+13 | BA69: 4.761904762e+13 | BB69: -47146.5005
A70: =Main!A69 -> 155.5634919 | B70: 1000 | C70: 9.774342464e-07 | D70: 1000 | E70: -1.023086723 | F70: 0.0009999994766 | G70: 0.0009999989533 | H70: 1.023085652e-06 | I70: 1000.001 | J70: 2.000519898e-06 | K70: 0.000999999 | L70: 0.000999999 | N70: -2.000515897e-12 | O70: 1e-15 | P70: 2.150355342e-05 | Q70: 46503.94195 | R70: 2.162616617e-06 | S70: -46503.94195 | T70: 50000000000000 | U70: -46503.94195 | V70: 2e-14 | W70: 2e-14 | X70: 1.860157678e-23 | Y70: 1e-15 | Z70: 9.774342464e-16 | AA70: 7.151294617e+14 | AB70: 5.11410147e+14 | AC70: -4.998697916e+14 | AD70: 1e+27 | AE70: -4.998697916e+14 | AF70: 1e-27 | AG70: 1e-27 | AH70: 4.998697916e-40 | AI70: 2e-14 | AJ70: 1.860157678e-23 | AK70: 5e+13 | AL70: 5e+13 | AM70: -46503.94195 | AN70: 5e+13 | AO70: -46503.94195 | AP70: 2e-14 | AQ70: 2e-14 | AR70: 1.860157678e-23 | AS70: 1000000000000000 | AT70: -1023086.723 | AU70: 1e-15 | AV70: 1e-15 | AW70: 1.023086723e-24 | AX70: 2.1e-14 | AY70: 1.96246635e-23 | AZ70: 4.761904762e+13 | BA70: 4.761904762e+13 | BB70: -44500.37076
A71: =Main!A70 -> 164.8137785 | B71: 1000 | C71: 1.035555511e-06 | D71: 1000 | E71: -0.9656652774 | F71: 0.0009999995337 | G71: 0.0009999990675 | H71: 9.656643769e-07 | I71: 1000.001 | J71: 2.001219888e-06 | K71: 0.000999999 | L71: 0.000999999 | N71: -2.001215886e-12 | O71: 1e-15 | P71: 2.278222125e-05 | Q71: 43893.87625 | R71: 1.926672372e-06 | S71: -43893.87625 | T71: 50000000000000 | U71: -43893.87625 | V71: 2e-14 | W71: 2e-14 | X71: 1.75575505e-23 | Y71: 1e-15 | Z71: 1.035555511e-15 | AA71: 6.94649624e+14 | AB71: 4.825381002e+14 | AC71: -4.99694989e+14 | AD71: 1e+27 | AE71: -4.99694989e+14 | AF71: 1e-27 | AG71: 1e-27 | AH71: 4.99694989e-40 | AI71: 2e-14 | AJ71: 1.75575505e-23 | AK71: 5e+13 | AL71: 5e+13 | AM71: -43893.87625 | AN71: 5e+13 | AO71: -43893.87625 | AP71: 2e-14 | AQ71: 2e-14 | AR71: 1.75575505e-23 | AS71: 1000000000000000 | AT71: -965665.2774 | AU71: 1e-15 | AV71: 1e-15 | AW71: 9.656652774e-25 | AX71: 2.1e-14 | AY71: 1.852321578e-23 | AZ71: 4.761904762e+13 | BA71: 4.761904762e+13 | BB71: -42002.75686
A72: =Main!A71 -> 174.6141157 | B72: 1000 | C72: 1.097132846e-06 | D72: 1000 | E72: -0.91146665 | F72: 0.0009999995846 | G72: 0.0009999991692 | H72: 9.114658928e-07 | I72: 1000.001 | J72: 2.008598739e-06 | K72: 0.000999999 | L72: 0.000999999 | N72: -2.008594722e-12 | O72: 1e-15 | P72: 2.413692262e-05 | Q72: 41430.30227 | R72: 1.716469946e-06 | S72: -41430.30227 | T72: 50000000000000 | U72: -41430.30227 | V72: 2e-14 | W72: 2e-14 | X72: 1.657212091e-23 | Y72: 1e-15 | Z72: 1.097132846e-15 | AA72: 6.736335621e+14 | AB72: 4.537821759e+14 | AC72: -4.978593303e+14 | AD72: 1e+27 | AE72: -4.978593303e+14 | AF72: 1e-27 | AG72: 1e-27 | AH72: 4.978593303e-40 | AI72: 2e-14 | AJ72: 1.657212091e-23 | AK72: 5e+13 | AL72: 5e+13 | AM72: -41430.30227 | AN72: 5e+13 | AO72: -41430.30227 | AP72: 2e-14 | AQ72: 2e-14 | AR72: 1.657212091e-23 | AS72: 1000000000000000 | AT72: -911466.65 | AU72: 1e-15 | AV72: 1e-15 | AW72: 9.1146665e-25 | AX72: 2.1e-14 | AY72: 1.748358756e-23 | AZ72: 4.761904762e+13 | BA72: 4.761904762e+13 | BB72: -39645.32326
A73: =Main!A72 -> 184.9972114 | B73: 1000 | C73: 1.16237176e-06 | D73: 1000 | E73: -0.8603099578 | F73: 0.0009999996299 | G73: 0.0009999992599 | H73: 8.60309321e-07 | I73: 1000.001 | J73: 2.022681081e-06 | K73: 0.000999999 | L73: 0.000999999 | N73: -2.022677036e-12 | O73: 1e-15 | P73: 2.557217873e-05 | Q73: 39104.99808 | R73: 1.529200875e-06 | S73: -39104.99808 | T73: 50000000000000 | U73: -39104.99808 | V73: 2e-14 | W73: 2e-14 | X73: 1.564199923e-23 | Y73: 1e-15 | Z73: 1.16237176e-15 | AA73: 6.521743294e+14 | AB73: 4.253313559e+14 | AC73: -4.943931569e+14 | AD73: 1e+27 | AE73: -4.943931569e+14 | AF73: 1e-27 | AG73: 1e-27 | AH73: 4.943931569e-40 | AI73: 2e-14 | AJ73: 1.564199923e-23 | AK73: 5e+13 | AL73: 5e+13 | AM73: -39104.99808 | AN73: 5e+13 | AO73: -39104.99808 | AP73: 2e-14 | AQ73: 2e-14 | AR73: 1.564199923e-23 | AS73: 1000000000000000 | AT73: -860309.9578 | AU73: 1e-15 | AV73: 1e-15 | AW73: 8.603099578e-25 | AX73: 2.1e-14 | AY73: 1.650230919e-23 | AZ73: 4.761904762e+13 | BA73: 4.761904762e+13 | BB73: -37420.20225
A74: =Main!A73 -> 195.997718 | B74: 1000 | C74: 1.231489982e-06 | D74: 1000 | E74: -0.8120244701 | F74: 0.0009999996703 | G74: 0.0009999993406 | H74: 8.120239347e-07 | I74: 1000.001 | J74: 2.043513917e-06 | K74: 0.000999999 | L74: 0.000999999 | N74: -2.04350983e-12 | O74: 1e-15 | P74: 2.70927796e-05 | Q74: 36910.20319 | R74: 1.362363099e-06 | S74: -36910.20319 | T74: 50000000000000 | U74: -36910.20319 | V74: 2e-14 | W74: 2e-14 | X74: 1.476408127e-23 | Y74: 1e-15 | Z74: 1.231489982e-15 | AA74: 6.303702398e+14 | AB74: 3.973666393e+14 | AC74: -489353035410224 | AD74: 1e+27 | AE74: -489353035410224 | AF74: 1e-27 | AG74: 1e-27 | AH74: 4.893530354e-40 | AI74: 2e-14 | AJ74: 1.476408127e-23 | AK74: 5e+13 | AL74: 5e+13 | AM74: -36910.20319 | AN74: 5e+13 | AO74: -36910.20319 | AP74: 2e-14 | AQ74: 2e-14 | AR74: 1.476408127e-23 | AS74: 1000000000000000 | AT74: -812024.4701 | AU74: 1e-15 | AV74: 1e-15 | AW74: 8.120244701e-25 | AX74: 2.1e-14 | AY74: 1.557610574e-23 | AZ74: 4.761904762e+13 | BA74: 4.761904762e+13 | BB74: -35319.96767
A75: =Main!A74 -> 207.6523488 | B75: 1000 | C75: 1.304718187e-06 | D75: 1000 | E75: -0.7664490386 | F75: 0.0009999997063 | G75: 0.0009999994126 | H75: 7.664485883e-07 | I75: 1000.001 | J75: 2.071166775e-06 | K75: 0.000999999 | L75: 0.000999999 | N75: -2.071162633e-12 | O75: 1e-15 | P75: 2.870380011e-05 | Q75: 34838.59266 | R75: 1.213727539e-06 | S75: -34838.59266 | T75: 50000000000000 | U75: -34838.59266 | V75: 2e-14 | W75: 2e-14 | X75: 1.393543707e-23 | Y75: 1e-15 | Z75: 1.304718187e-15 | AA75: 608322751198401 | AB75: 3.700565696e+14 | AC75: -4.828195366e+14 | AD75: 1e+27 | AE75: -4.828195366e+14 | AF75: 1e-27 | AG75: 1e-27 | AH75: 4.828195366e-40 | AI75: 2e-14 | AJ75: 1.393543707e-23 | AK75: 5e+13 | AL75: 5e+13 | AM75: -34838.59266 | AN75: 5e+13 | AO75: -34838.59266 | AP75: 2e-14 | AQ75: 2e-14 | AR75: 1.393543707e-23 | AS75: 1000000000000000 | AT75: -766449.0386 | AU75: 1e-15 | AV75: 1e-15 | AW75: 7.664490386e-25 | AX75: 2.1e-14 | AY75: 1.47018861e-23 | AZ75: 4.761904762e+13 | BA75: 4.761904762e+13 | BB75: -33337.61021
A76: =Main!A75 -> 220 | B76: 1000 | C76: 1.382300768e-06 | D76: 1000 | E76: -0.7234315595 | F76: 0.0009999997383 | G76: 0.0009999994766 | H76: 7.234311809e-07 | I76: 1000.001 | J76: 2.105731948e-06 | K76: 0.000999999 | L76: 0.000999999 | N76: -2.105727737e-12 | O76: 1e-15 | P76: 3.041061689e-05 | Q76: 32883.2527 | R76: 1.081308308e-06 | S76: -32883.2527 | T76: 50000000000000 | U76: -32883.2527 | V76: 2e-14 | W76: 2e-14 | X76: 1.315330108e-23 | Y76: 1e-15 | Z76: 1.382300768e-15 | AA76: 5.861343089e+14 | AB76: 3.43553428e+14 | AC76: -474894167286130 | AD76: 1e+27 | AE76: -474894167286130 | AF76: 1e-27 | AG76: 1e-27 | AH76: 4.748941673e-40 | AI76: 2e-14 | AJ76: 1.315330108e-23 | AK76: 5e+13 | AL76: 5e+13 | AM76: -32883.2527 | AN76: 5e+13 | AO76: -32883.2527 | AP76: 2e-14 | AQ76: 2e-14 | AR76: 1.315330108e-23 | AS76: 1000000000000000 | AT76: -723431.5595 | AU76: 1e-15 | AV76: 1e-15 | AW76: 7.234315595e-25 | AX76: 2.1e-14 | AY76: 1.387673264e-23 | AZ76: 4.761904762e+13 | BA76: 4.761904762e+13 | BB76: -31466.51393
A77: =Main!A76 -> 233.0818808 | B77: 1000 | C77: 1.464496649e-06 | D77: 1000 | E77: -0.682828466 | F77: 0.0009999997669 | G77: 0.0009999995337 | H77: 6.828281476e-07 | I77: 1000.001 | J77: 2.147324796e-06 | K77: 0.000999999 | L77: 0.000999999 | N77: -2.147320502e-12 | O77: 1e-15 | P77: 3.221892627e-05 | Q77: 31037.65755 | R77: 9.633361859e-07 | S77: -31037.65755 | T77: 50000000000000 | U77: -31037.65755 | V77: 2e-14 | W77: 2e-14 | X77: 1.241506302e-23 | Y77: 1e-15 | Z77: 1.464496649e-15 | AA77: 5.639062488e+14 | AB77: 3.179902574e+14 | AC77: -4.656956663e+14 | AD77: 1e+27 | AE77: -4.656956663e+14 | AF77: 1e-27 | AG77: 1e-27 | AH77: 4.656956663e-40 | AI77: 2e-14 | AJ77: 1.241506302e-23 | AK77: 5e+13 | AL77: 5e+13 | AM77: -31037.65755 | AN77: 5e+13 | AO77: -31037.65755 | AP77: 2e-14 | AQ77: 2e-14 | AR77: 1.241506302e-23 | AS77: 1000000000000000 | AT77: -682828.466 | AU77: 1e-15 | AV77: 1e-15 | AW77: 6.82828466e-25 | AX77: 2.1e-14 | AY77: 1.309789148e-23 | AZ77: 4.761904762e+13 | BA77: 4.761904762e+13 | BB77: -29700.4342
A78: =Main!A77 -> 246.9416506 | B78: 1000 | C78: 1.551580151e-06 | D78: 1000 | E78: -0.644504249 | F78: 0.0009999997923 | G78: 0.0009999995846 | H78: 6.445039813e-07 | I78: 1000.001 | J78: 2.196084132e-06 | K78: 0.000999999 | L78: 0.000999999 | N78: -2.19607974e-12 | O78: 1e-15 | P78: 3.413476332e-05 | Q78: 29295.64768 | R78: 8.582349732e-07 | S78: -29295.64768 | T78: 50000000000000 | U78: -29295.64768 | V78: 2e-14 | W78: 2e-14 | X78: 1.171825907e-23 | Y78: 1e-15 | Z78: 1.551580151e-15 | AA78: 5.41736851e+14 | AB78: 2.934788158e+14 | AC78: -4.553559053e+14 | AD78: 1e+27 | AE78: -4.553559053e+14 | AF78: 1e-27 | AG78: 1e-27 | AH78: 4.553559053e-40 | AI78: 2e-14 | AJ78: 1.171825907e-23 | AK78: 5e+13 | AL78: 5e+13 | AM78: -29295.64768 | AN78: 5e+13 | AO78: -29295.64768 | AP78: 2e-14 | AQ78: 2e-14 | AR78: 1.171825907e-23 | AS78: 1000000000000000 | AT78: -644504.249 | AU78: 1e-15 | AV78: 1e-15 | AW78: 6.44504249e-25 | AX78: 2.1e-14 | AY78: 1.236276332e-23 | AZ78: 4.761904762e+13 | BA78: 4.761904762e+13 | BB78: -28033.47692
A79: =Main!A78 -> 261.6255653 | B79: 1000 | C79: 1.643841908e-06 | D79: 1000 | E79: -0.6083310051 | F79: 0.000999999815 | G79: 0.0009999996299 | H79: 6.083307799e-07 | I79: 1000.001 | J79: 2.252172688e-06 | K79: 0.000999999 | L79: 0.000999999 | N79: -2.252168183e-12 | O79: 1e-15 | P79: 3.616452197e-05 | Q79: 27651.40932 | R79: 7.646004375e-07 | S79: -27651.40932 | T79: 50000000000000 | U79: -27651.40932 | V79: 2e-14 | W79: 2e-14 | X79: 1.106056373e-23 | Y79: 1e-15 | Z79: 1.643841908e-15 | AA79: 5.197196179e+14 | AB79: 2.701084813e+14 | AC79: -4.440156412e+14 | AD79: 1e+27 | AE79: -4.440156412e+14 | AF79: 1e-27 | AG79: 1e-27 | AH79: 4.440156412e-40 | AI79: 2e-14 | AJ79: 1.106056373e-23 | AK79: 5e+13 | AL79: 5e+13 | AM79: -27651.40932 | AN79: 5e+13 | AO79: -27651.40932 | AP79: 2e-14 | AQ79: 2e-14 | AR79: 1.106056373e-23 | AS79: 1000000000000000 | AT79: -608331.0051 | AU79: 1e-15 | AV79: 1e-15 | AW79: 6.083310051e-25 | AX79: 2.1e-14 | AY79: 1.166889473e-23 | AZ79: 4.761904762e+13 | BA79: 4.761904762e+13 | BB79: -26460.07876
A80: =Main!A79 -> 277.182631 | B80: 1000 | C80: 1.741589834e-06 | D80: 1000 | E80: -0.5741880093 | F80: 0.0009999998352 | G80: 0.0009999996703 | H80: 5.7418782e-07 | I80: 1000.001 | J80: 2.315777654e-06 | K80: 0.000999999 | L80: 0.000999999 | N80: -2.315773023e-12 | O80: 1e-15 | P80: 3.831497636e-05 | Q80: 26099.45497 | R80: 6.811815496e-07 | S80: -26099.45497 | T80: 50000000000000 | U80: -26099.45497 | V80: 2e-14 | W80: 2e-14 | X80: 1.043978199e-23 | Y80: 1e-15 | Z80: 1.741589834e-15 | AA80: 4.979418313e+14 | AB80: 2.479460674e+14 | AC80: -4.318203504e+14 | AD80: 1e+27 | AE80: -4.318203504e+14 | AF80: 1e-27 | AG80: 1e-27 | AH80: 4.318203504e-40 | AI80: 2e-14 | AJ80: 1.043978199e-23 | AK80: 5e+13 | AL80: 5e+13 | AM80: -26099.45497 | AN80: 5e+13 | AO80: -26099.45497 | AP80: 2e-14 | AQ80: 2e-14 | AR80: 1.043978199e-23 | AS80: 1000000000000000 | AT80: -574188.0093 | AU80: 1e-15 | AV80: 1e-15 | AW80: 5.741880093e-25 | AX80: 2.1e-14 | AY80: 1.101397e-23 | AZ80: 4.761904762e+13 | BA80: 4.761904762e+13 | BB80: -24974.98865
A81: =Main!A80 -> 293.6647679 | B81: 1000 | C81: 1.845150155e-06 | D81: 1000 | E81: -0.5419613126 | F81: 0.0009999998531 | G81: 0.0009999997063 | H81: 5.419611534e-07 | I81: 1000.001 | J81: 2.387111308e-06 | K81: 0.000999999 | L81: 0.000999999 | N81: -2.387106534e-12 | O81: 1e-15 | P81: 4.059330341e-05 | Q81: 24634.60512 | R81: 6.068637694e-07 | S81: -24634.60512 | T81: 50000000000000 | U81: -24634.60512 | V81: 2e-14 | W81: 2e-14 | X81: 9.853842048e-24 | Y81: 1e-15 | Z81: 1.845150155e-15 | AA81: 4.764834202e+14 | AB81: 2.270364497e+14 | AC81: -4.189163403e+14 | AD81: 1e+27 | AE81: -4.189163403e+14 | AF81: 1e-27 | AG81: 1e-27 | AH81: 4.189163403e-40 | AI81: 2e-14 | AJ81: 9.853842048e-24 | AK81: 5e+13 | AL81: 5e+13 | AM81: -24634.60512 | AN81: 5e+13 | AO81: -24634.60512 | AP81: 2e-14 | AQ81: 2e-14 | AR81: 9.853842048e-24 | AS81: 1000000000000000 | AT81: -541961.3126 | AU81: 1e-15 | AV81: 1e-15 | AW81: 5.419613126e-25 | AX81: 2.1e-14 | AY81: 1.039580336e-23 | AZ81: 4.761904762e+13 | BA81: 4.761904762e+13 | BB81: -23573.25025
A82: =Main!A81 -> 311.1269837 | B82: 1000 | C82: 1.954868493e-06 | D82: 1000 | E82: -0.5115433615 | F82: 0.0009999998692 | G82: 0.0009999997383 | H82: 5.115432276e-07 | I82: 1000.001 | J82: 2.46641172e-06 | K82: 0.000999999 | L82: 0.000999999 | N82: -2.466406788e-12 | O82: 1e-15 | P82: 4.300710684e-05 | Q82: 23251.97098 | R82: 5.406541542e-07 | S82: -23251.97098 | T82: 50000000000000 | U82: -23251.97098 | V82: 2e-14 | W82: 2e-14 | X82: 9.30078839e-24 | Y82: 1e-15 | Z82: 1.954868493e-15 | AA82: 4.554161494e+14 | AB82: 2.074038691e+14 | AC82: -4.054472891e+14 | AD82: 1e+27 | AE82: -4.054472891e+14 | AF82: 1e-27 | AG82: 1e-27 | AH82: 4.054472891e-40 | AI82: 2e-14 | AJ82: 9.30078839e-24 | AK82: 5e+13 | AL82: 5e+13 | AM82: -23251.97098 | AN82: 5e+13 | AO82: -23251.97098 | AP82: 2e-14 | AQ82: 2e-14 | AR82: 9.30078839e-24 | AS82: 1000000000000000 | AT82: -511543.3615 | AU82: 1e-15 | AV82: 1e-15 | AW82: 5.115433615e-25 | AX82: 2.1e-14 | AY82: 9.812331752e-24 | AZ82: 4.761904762e+13 | BA82: 4.761904762e+13 | BB82: -22250.18538
A83: =Main!A82 -> 329.6275569 | B83: 1000 | C83: 2.071111022e-06 | D83: 1000 | E83: -0.4828326387 | F83: 0.0009999998834 | G83: 0.0009999997669 | H83: 4.828325261e-07 | I83: 1000.001 | J83: 2.553943549e-06 | K83: 0.000999999 | L83: 0.000999999 | N83: -2.553938441e-12 | O83: 1e-15 | P83: 4.556444249e-05 | Q83: 21946.93812 | R83: 4.81668093e-07 | S83: -21946.93812 | T83: 50000000000000 | U83: -21946.93812 | V83: 2e-14 | W83: 2e-14 | X83: 8.778775249e-24 | Y83: 1e-15 | Z83: 2.071111022e-15 | AA83: 4.348031219e+14 | AB83: 1.890537548e+14 | AC83: -391551315409875 | AD83: 1e+27 | AE83: -391551315409875 | AF83: 1e-27 | AG83: 1e-27 | AH83: 3.915513154e-40 | AI83: 2e-14 | AJ83: 8.778775249e-24 | AK83: 5e+13 | AL83: 5e+13 | AM83: -21946.93812 | AN83: 5e+13 | AO83: -21946.93812 | AP83: 2e-14 | AQ83: 2e-14 | AR83: 8.778775249e-24 | AS83: 1000000000000000 | AT83: -482832.6387 | AU83: 1e-15 | AV83: 1e-15 | AW83: 4.828326387e-25 | AX83: 2.1e-14 | AY83: 9.261607888e-24 | AZ83: 4.761904762e+13 | BA83: 4.761904762e+13 | BB83: -21001.37843
A84: =Main!A83 -> 349.2282314 | B84: 1000 | C84: 2.194265693e-06 | D84: 1000 | E84: -0.455733325 | F84: 0.0009999998962 | G84: 0.0009999997923 | H84: 4.557332303e-07 | I84: 1000.001 | J84: 2.649998923e-06 | K84: 0.000999999 | L84: 0.000999999 | N84: -2.649993623e-12 | O84: 1e-15 | P84: 4.827384524e-05 | Q84: 20715.15114 | R84: 4.291174866e-07 | S84: -20715.15114 | T84: 50000000000000 | U84: -20715.15114 | V84: 2e-14 | W84: 2e-14 | X84: 8.286060454e-24 | Y84: 1e-15 | Z84: 2.194265693e-15 | AA84: 4.146985693e+14 | AB84: 1.719749034e+14 | AC84: -3.773586305e+14 | AD84: 1e+27 | AE84: -3.773586305e+14 | AF84: 1e-27 | AG84: 1e-27 | AH84: 3.773586305e-40 | AI84: 2e-14 | AJ84: 8.286060454e-24 | AK84: 5e+13 | AL84: 5e+13 | AM84: -20715.15114 | AN84: 5e+13 | AO84: -20715.15114 | AP84: 2e-14 | AQ84: 2e-14 | AR84: 8.286060454e-24 | AS84: 1000000000000000 | AT84: -455733.325 | AU84: 1e-15 | AV84: 1e-15 | AW84: 4.55733325e-25 | AX84: 2.1e-14 | AY84: 8.741793779e-24 | AZ84: 4.761904762e+13 | BA84: 4.761904762e+13 | BB84: -19822.66163
A85: =Main!A84 -> 369.9944227 | B85: 1000 | C85: 2.324743521e-06 | D85: 1000 | E85: -0.4301549789 | F85: 0.0009999999075 | G85: 0.000999999815 | H85: 4.301548993e-07 | I85: 1000.001 | J85: 2.75489842e-06 | K85: 0.000999999 | L85: 0.000999999 | N85: -2.75489291e-12 | O85: 1e-15 | P85: 5.114435745e-05 | Q85: 19552.49904 | R85: 3.823002187e-07 | S85: -19552.49904 | T85: 50000000000000 | U85: -19552.49904 | V85: 2e-14 | W85: 2e-14 | X85: 7.820999616e-24 | Y85: 1e-15 | Z85: 2.324743521e-15 | AA85: 3.951478978e+14 | AB85: 1.561418611e+14 | AC85: -3.629897799e+14 | AD85: 1e+27 | AE85: -3.629897799e+14 | AF85: 1e-27 | AG85: 1e-27 | AH85: 3.629897799e-40 | AI85: 2e-14 | AJ85: 7.820999616e-24 | AK85: 5e+13 | AL85: 5e+13 | AM85: -19552.49904 | AN85: 5e+13 | AO85: -19552.49904 | AP85: 2e-14 | AQ85: 2e-14 | AR85: 7.820999616e-24 | AS85: 1000000000000000 | AT85: -430154.9789 | AU85: 1e-15 | AV85: 1e-15 | AW85: 4.301549789e-25 | AX85: 2.1e-14 | AY85: 8.251154595e-24 | AZ85: 4.761904762e+13 | BA85: 4.761904762e+13 | BB85: -18710.10112
A86: =Main!A85 -> 391.995436 | B86: 1000 | C86: 2.462979964e-06 | D86: 1000 | E86: -0.406012235 | F86: 0.0009999999176 | G86: 0.0009999998352 | H86: 4.060121681e-07 | I86: 1000.001 | J86: 2.868992132e-06 | K86: 0.000999999 | L86: 0.000999999 | N86: -2.868986394e-12 | O86: 1e-15 | P86: 5.41855592e-05 | Q86: 18455.10159 | R86: 3.405907748e-07 | S86: -18455.10159 | T86: 50000000000000 | U86: -18455.10159 | V86: 2e-14 | W86: 2e-14 | X86: 7.382040637e-24 | Y86: 1e-15 | Z86: 2.462979964e-15 | AA86: 3.761879471e+14 | AB86: 1.415173716e+14 | AC86: -3.485544507e+14 | AD86: 1e+27 | AE86: -3.485544507e+14 | AF86: 1e-27 | AG86: 1e-27 | AH86: 3.485544507e-40 | AI86: 2e-14 | AJ86: 7.382040637e-24 | AK86: 5e+13 | AL86: 5e+13 | AM86: -18455.10159 | AN86: 5e+13 | AO86: -18455.10159 | AP86: 2e-14 | AQ86: 2e-14 | AR86: 7.382040637e-24 | AS86: 1000000000000000 | AT86: -406012.235 | AU86: 1e-15 | AV86: 1e-15 | AW86: 4.06012235e-25 | AX86: 2.1e-14 | AY86: 7.788052872e-24 | AZ86: 4.761904762e+13 | BA86: 4.761904762e+13 | BB86: -17659.98384
A87: =Main!A86 -> 415.3046976 | B87: 1000 | C87: 2.609436374e-06 | D87: 1000 | E87: -0.3832245193 | F87: 0.0009999999266 | G87: 0.0009999998531 | H87: 3.83224463e-07 | I87: 1000.001 | J87: 2.992660837e-06 | K87: 0.000999999 | L87: 0.000999999 | N87: -2.992654852e-12 | O87: 1e-15 | P87: 5.740760022e-05 | Q87: 17419.29633 | R87: 3.034318847e-07 | S87: -17419.29633 | T87: 50000000000000 | U87: -17419.29633 | V87: 2e-14 | W87: 2e-14 | X87: 6.967718533e-24 | Y87: 1e-15 | Z87: 2.609436374e-15 | AA87: 3.578474195e+14 | AB87: 1.280547757e+14 | AC87: -3.341507895e+14 | AD87: 1e+27 | AE87: -3.341507895e+14 | AF87: 1e-27 | AG87: 1e-27 | AH87: 3.341507895e-40 | AI87: 2e-14 | AJ87: 6.967718533e-24 | AK87: 5e+13 | AL87: 5e+13 | AM87: -17419.29633 | AN87: 5e+13 | AO87: -17419.29633 | AP87: 2e-14 | AQ87: 2e-14 | AR87: 6.967718533e-24 | AS87: 1000000000000000 | AT87: -383224.5193 | AU87: 1e-15 | AV87: 1e-15 | AW87: 3.832245193e-25 | AX87: 2.1e-14 | AY87: 7.350943052e-24 | AZ87: 4.761904762e+13 | BA87: 4.761904762e+13 | BB87: -16668.80511
A88: =Main!A87 -> 440 | B88: 1000 | C88: 2.764601535e-06 | D88: 1000 | E88: -0.3617157798 | F88: 0.0009999999346 | G88: 0.0009999998692 | H88: 3.617157324e-07 | I88: 1000.001 | J88: 3.126317268e-06 | K88: 0.000999999 | L88: 0.000999999 | N88: -3.126311015e-12 | O88: 1e-15 | P88: 6.082123377e-05 | Q88: 16441.62635 | R88: 2.703270771e-07 | S88: -16441.62635 | T88: 50000000000000 | U88: -16441.62635 | V88: 2e-14 | W88: 2e-14 | X88: 6.576650541e-24 | Y88: 1e-15 | Z88: 2.764601535e-15 | AA88: 3.401474344e+14 | AB88: 1.157002771e+14 | AC88: -3.198651638e+14 | AD88: 1e+27 | AE88: -3.198651638e+14 | AF88: 1e-27 | AG88: 1e-27 | AH88: 3.198651638e-40 | AI88: 2e-14 | AJ88: 6.576650541e-24 | AK88: 5e+13 | AL88: 5e+13 | AM88: -16441.62635 | AN88: 5e+13 | AO88: -16441.62635 | AP88: 2e-14 | AQ88: 2e-14 | AR88: 6.576650541e-24 | AS88: 1000000000000000 | AT88: -361715.7798 | AU88: 1e-15 | AV88: 1e-15 | AW88: 3.617157798e-25 | AX88: 2.1e-14 | AY88: 6.938366321e-24 | AZ88: 4.761904762e+13 | BA88: 4.761904762e+13 | BB88: -15733.25696
A89: =Main!A88 -> 466.1637615 | B89: 1000 | C89: 2.928993297e-06 | D89: 1000 | E89: -0.341414233 | F89: 0.0009999999417 | G89: 0.0009999998834 | H89: 3.414141932e-07 | I89: 1000.001 | J89: 3.27040749e-06 | K89: 0.000999999 | L89: 0.000999999 | N89: -3.27040095e-12 | O89: 1e-15 | P89: 6.443785254e-05 | Q89: 15518.82877 | R89: 2.408340465e-07 | S89: -15518.82877 | T89: 50000000000000 | U89: -15518.82877 | V89: 2e-14 | W89: 2e-14 | X89: 6.207531509e-24 | Y89: 1e-15 | Z89: 2.928993297e-15 | AA89: 3.231021694e+14 | AB89: 1.043950119e+14 | AC89: -3.057722901e+14 | AD89: 1e+27 | AE89: -3.057722901e+14 | AF89: 1e-27 | AG89: 1e-27 | AH89: 3.057722901e-40 | AI89: 2e-14 | AJ89: 6.207531509e-24 | AK89: 5e+13 | AL89: 5e+13 | AM89: -15518.82877 | AN89: 5e+13 | AO89: -15518.82877 | AP89: 2e-14 | AQ89: 2e-14 | AR89: 6.207531509e-24 | AS89: 1000000000000000 | AT89: -341414.233 | AU89: 1e-15 | AV89: 1e-15 | AW89: 3.41414233e-25 | AX89: 2.1e-14 | AY89: 6.548945742e-24 | AZ89: 4.761904762e+13 | BA89: 4.761904762e+13 | BB89: -14850.2171
A90: =Main!A89 -> 493.8833013 | B90: 1000 | C90: 3.103160302e-06 | D90: 1000 | E90: -0.3222521245 | F90: 0.0009999999481 | G90: 0.0009999998962 | H90: 3.22252091e-07 | I90: 1000.001 | J90: 3.425412393e-06 | K90: 0.000999999 | L90: 0.000999999 | N90: -3.425405542e-12 | O90: 1e-15 | P90: 6.826952664e-05 | Q90: 14647.82384 | R90: 2.145587433e-07 | S90: -14647.82384 | T90: 50000000000000 | U90: -14647.82384 | V90: 2e-14 | W90: 2e-14 | X90: 5.859129537e-24 | Y90: 1e-15 | Z90: 3.103160302e-15 | AA90: 306719551268463 | AB90: 9.407688313e+13 | AC90: -2.919356491e+14 | AD90: 1e+27 | AE90: -2.919356491e+14 | AF90: 1e-27 | AG90: 1e-27 | AH90: 2.919356491e-40 | AI90: 2e-14 | AJ90: 5.859129537e-24 | AK90: 5e+13 | AL90: 5e+13 | AM90: -14647.82384 | AN90: 5e+13 | AO90: -14647.82384 | AP90: 2e-14 | AQ90: 2e-14 | AR90: 5.859129537e-24 | AS90: 1000000000000000 | AT90: -322252.1245 | AU90: 1e-15 | AV90: 1e-15 | AW90: 3.222521245e-25 | AX90: 2.1e-14 | AY90: 6.181381661e-24 | AZ90: 4.761904762e+13 | BA90: 4.761904762e+13 | BB90: -14016.73846
A91: =Main!A90 -> 523.2511306 | B91: 1000 | C91: 3.287683816e-06 | D91: 1000 | E91: -0.3041655025 | F91: 0.0009999999537 | G91: 0.0009999999075 | H91: 3.041654744e-07 | I91: 1000.001 | J91: 3.59184929e-06 | K91: 0.000999999 | L91: 0.000999999 | N91: -3.591842106e-12 | O91: 1e-15 | P91: 7.232904395e-05 | Q91: 13825.70466 | R91: 1.911501094e-07 | S91: -13825.70466 | T91: 50000000000000 | U91: -13825.70466 | V91: 2e-14 | W91: 2e-14 | X91: 5.530281864e-24 | Y91: 1e-15 | Z91: 3.287683816e-15 | AA91: 2.910019663e+14 | AB91: 8.468214437e+13 | AC91: -2.784081155e+14 | AD91: 1e+27 | AE91: -2.784081155e+14 | AF91: 1e-27 | AG91: 1e-27 | AH91: 2.784081155e-40 | AI91: 2e-14 | AJ91: 5.530281864e-24 | AK91: 5e+13 | AL91: 5e+13 | AM91: -13825.70466 | AN91: 5e+13 | AO91: -13825.70466 | AP91: 2e-14 | AQ91: 2e-14 | AR91: 5.530281864e-24 | AS91: 1000000000000000 | AT91: -304165.5025 | AU91: 1e-15 | AV91: 1e-15 | AW91: 3.041655025e-25 | AX91: 2.1e-14 | AY91: 5.834447367e-24 | AZ91: 4.761904762e+13 | BA91: 4.761904762e+13 | BB91: -13230.03938
A92: =Main!A91 -> 554.365262 | B92: 1000 | C92: 3.483179669e-06 | D92: 1000 | E92: -0.2870940046 | F92: 0.0009999999588 | G92: 0.0009999999176 | H92: 2.87093981e-07 | I92: 1000.001 | J92: 3.77027365e-06 | K92: 0.000999999 | L92: 0.000999999 | N92: -3.770266109e-12 | O92: 1e-15 | P92: 7.662995271e-05 | Q92: 13049.72748 | R92: 1.702953874e-07 | S92: -13049.72748 | T92: 50000000000000 | U92: -13049.72748 | V92: 2e-14 | W92: 2e-14 | X92: 5.219890994e-24 | Y92: 1e-15 | Z92: 3.483179669e-15 | AA92: 2.759469663e+14 | AB92: 7.61467282e+13 | AC92: -2.652327355e+14 | AD92: 1e+27 | AE92: -2.652327355e+14 | AF92: 1e-27 | AG92: 1e-27 | AH92: 2.652327355e-40 | AI92: 2e-14 | AJ92: 5.219890994e-24 | AK92: 5e+13 | AL92: 5e+13 | AM92: -13049.72748 | AN92: 5e+13 | AO92: -13049.72748 | AP92: 2e-14 | AQ92: 2e-14 | AR92: 5.219890994e-24 | AS92: 1000000000000000 | AT92: -287094.0046 | AU92: 1e-15 | AV92: 1e-15 | AW92: 2.870940046e-25 | AX92: 2.1e-14 | AY92: 5.506984998e-24 | AZ92: 4.761904762e+13 | BA92: 4.761904762e+13 | BB92: -12487.49433
A93: =Main!A92 -> 587.3295358 | B93: 1000 | C93: 3.69030031e-06 | D93: 1000 | E93: -0.2709806563 | F93: 0.0009999999633 | G93: 0.0009999999266 | H93: 2.709806364e-07 | I93: 1000.001 | J93: 3.961280946e-06 | K93: 0.000999999 | L93: 0.000999999 | N93: -3.961273024e-12 | O93: 1e-15 | P93: 8.118660682e-05 | Q93: 12317.30256 | R93: 1.517159423e-07 | S93: -12317.30256 | T93: 50000000000000 | U93: -12317.30256 | V93: 2e-14 | W93: 2e-14 | X93: 4.926921024e-24 | Y93: 1e-15 | Z93: 3.69030031e-15 | AA93: 2.615479507e+14 | AB93: 6.840733051e+13 | AC93: -2.52443593e+14 | AD93: 1e+27 | AE93: -2.52443593e+14 | AF93: 1e-27 | AG93: 1e-27 | AH93: 2.52443593e-40 | AI93: 2e-14 | AJ93: 4.926921024e-24 | AK93: 5e+13 | AL93: 5e+13 | AM93: -12317.30256 | AN93: 5e+13 | AO93: -12317.30256 | AP93: 2e-14 | AQ93: 2e-14 | AR93: 4.926921024e-24 | AS93: 1000000000000000 | AT93: -270980.6563 | AU93: 1e-15 | AV93: 1e-15 | AW93: 2.709806563e-25 | AX93: 2.1e-14 | AY93: 5.19790168e-24 | AZ93: 4.761904762e+13 | BA93: 4.761904762e+13 | BB93: -11786.62513
A94: =Main!A93 -> 622.2539674 | B94: 1000 | C94: 3.909736986e-06 | D94: 1000 | E94: -0.2557716807 | F94: 0.0009999999673 | G94: 0.0009999999346 | H94: 2.55771664e-07 | I94: 1000.001 | J94: 4.16550865e-06 | K94: 0.000999999 | L94: 0.000999999 | N94: -4.165500319e-12 | O94: 1e-15 | P94: 8.601421368e-05 | Q94: 11625.98549 | R94: 1.351635386e-07 | S94: -11625.98549 | T94: 50000000000000 | U94: -11625.98549 | V94: 2e-14 | W94: 2e-14 | X94: 4.650394195e-24 | Y94: 1e-15 | Z94: 3.909736986e-15 | AA94: 2.477948109e+14 | AB94: 6.14022683e+13 | AC94: -2.400667194e+14 | AD94: 1e+27 | AE94: -2.400667194e+14 | AF94: 1e-27 | AG94: 1e-27 | AH94: 2.400667194e-40 | AI94: 2e-14 | AJ94: 4.650394195e-24 | AK94: 5e+13 | AL94: 5e+13 | AM94: -11625.98549 | AN94: 5e+13 | AO94: -11625.98549 | AP94: 2e-14 | AQ94: 2e-14 | AR94: 4.650394195e-24 | AS94: 1000000000000000 | AT94: -255771.6807 | AU94: 1e-15 | AV94: 1e-15 | AW94: 2.557716807e-25 | AX94: 2.1e-14 | AY94: 4.906165876e-24 | AZ94: 4.761904762e+13 | BA94: 4.761904762e+13 | BB94: -11125.09269
A95: =Main!A94 -> 659.2551138 | B95: 1000 | C95: 4.142222045e-06 | D95: 1000 | E95: -0.2414163193 | F95: 0.0009999999709 | G95: 0.0009999999417 | H95: 2.414163053e-07 | I95: 1000.001 | J95: 4.38363835e-06 | K95: 0.000999999 | L95: 0.000999999 | N95: -4.383629583e-12 | O95: 1e-15 | P95: 9.112888499e-05 | Q95: 10973.46906 | R95: 1.204170232e-07 | S95: -10973.46906 | T95: 50000000000000 | U95: -10973.46906 | V95: 2e-14 | W95: 2e-14 | X95: 4.389387625e-24 | Y95: 1e-15 | Z95: 4.142222045e-15 | AA95: 2.346745278e+14 | AB95: 5.507213399e+13 | AC95: -2.281210075e+14 | AD95: 1e+27 | AE95: -2.281210075e+14 | AF95: 1e-27 | AG95: 1e-27 | AH95: 2.281210075e-40 | AI95: 2e-14 | AJ95: 4.389387625e-24 | AK95: 5e+13 | AL95: 5e+13 | AM95: -10973.46906 | AN95: 5e+13 | AO95: -10973.46906 | AP95: 2e-14 | AQ95: 2e-14 | AR95: 4.389387625e-24 | AS95: 1000000000000000 | AT95: -241416.3193 | AU95: 1e-15 | AV95: 1e-15 | AW95: 2.414163193e-25 | AX95: 2.1e-14 | AY95: 4.630803944e-24 | AZ95: 4.761904762e+13 | BA95: 4.761904762e+13 | BB95: -10500.68922
A96: =Main!A95 -> 698.4564629 | B96: 1000 | C96: 4.388531385e-06 | D96: 1000 | E96: -0.2278666625 | F96: 0.000999999974 | G96: 0.0009999999481 | H96: 2.278666507e-07 | I96: 1000.001 | J96: 4.616398036e-06 | K96: 0.000999999 | L96: 0.000999999 | N96: -4.616388803e-12 | O96: 1e-15 | P96: 9.654769047e-05 | Q96: 10357.57557 | R96: 1.072793716e-07 | S96: -10357.57557 | T96: 50000000000000 | U96: -10357.57557 | V96: 2e-14 | W96: 2e-14 | X96: 4.143030227e-24 | Y96: 1e-15 | Z96: 4.388531385e-15 | AA96: 2.22171717e+14 | AB96: 4.936027183e+13 | AC96: -2.166191021e+14 | AD96: 1e+27 | AE96: -2.166191021e+14 | AF96: 1e-27 | AG96: 1e-27 | AH96: 2.166191021e-40 | AI96: 2e-14 | AJ96: 4.143030227e-24 | AK96: 5e+13 | AL96: 5e+13 | AM96: -10357.57557 | AN96: 5e+13 | AO96: -10357.57557 | AP96: 2e-14 | AQ96: 2e-14 | AR96: 4.143030227e-24 | AS96: 1000000000000000 | AT96: -227866.6625 | AU96: 1e-15 | AV96: 1e-15 | AW96: 2.278666625e-25 | AX96: 2.1e-14 | AY96: 4.37089689e-24 | AZ96: 4.761904762e+13 | BA96: 4.761904762e+13 | BB96: -9911.330816
A97: =Main!A96 -> 739.9888454 | B97: 1000 | C97: 4.649487041e-06 | D97: 1000 | E97: -0.2150774894 | F97: 0.0009999999769 | G97: 0.0009999999537 | H97: 2.150774795e-07 | I97: 1000.001 | J97: 4.864564521e-06 | K97: 0.000999999 | L97: 0.000999999 | N97: -4.864554791e-12 | O97: 1e-15 | P97: 0.0001022887149 | Q97: 9776.24952 | R97: 9.557505468e-08 | S97: -9776.24952 | T97: 50000000000000 | U97: -9776.24952 | V97: 2e-14 | W97: 2e-14 | X97: 3.910499808e-24 | Y97: 1e-15 | Z97: 4.649487041e-15 | AA97: 2.102691189e+14 | AB97: 4.421310234e+13 | AC97: -2.055682464e+14 | AD97: 1e+27 | AE97: -2.055682464e+14 | AF97: 1e-27 | AG97: 1e-27 | AH97: 2.055682464e-40 | AI97: 2e-14 | AJ97: 3.910499808e-24 | AK97: 5e+13 | AL97: 5e+13 | AM97: -9776.24952 | AN97: 5e+13 | AO97: -9776.24952 | AP97: 2e-14 | AQ97: 2e-14 | AR97: 3.910499808e-24 | AS97: 1000000000000000 | AT97: -215077.4894 | AU97: 1e-15 | AV97: 1e-15 | AW97: 2.150774894e-25 | AX97: 2.1e-14 | AY97: 4.125577298e-24 | AZ97: 4.761904762e+13 | BA97: 4.761904762e+13 | BB97: -9355.050561
A98: =Main!A97 -> 783.990872 | B98: 1000 | C98: 4.925959928e-06 | D98: 1000 | E98: -0.2030061175 | F98: 0.0009999999794 | G98: 0.0009999999588 | H98: 2.030061092e-07 | I98: 1000.001 | J98: 5.128966037e-06 | K98: 0.000999999 | L98: 0.000999999 | N98: -5.128955779e-12 | O98: 1e-15 | P98: 0.0001083711184 | Q98: 9227.550797 | R98: 8.51476937e-08 | S98: -9227.550797 | T98: 50000000000000 | U98: -9227.550797 | V98: 2e-14 | W98: 2e-14 | X98: 3.691020319e-24 | Y98: 1e-15 | Z98: 4.925959928e-15 | AA98: 1.989480335e+14 | AB98: 3.958032004e+13 | AC98: -1.949710704e+14 | AD98: 1e+27 | AE98: -1.949710704e+14 | AF98: 1e-27 | AG98: 1e-27 | AH98: 1.949710704e-40 | AI98: 2e-14 | AJ98: 3.691020319e-24 | AK98: 5e+13 | AL98: 5e+13 | AM98: -9227.550797 | AN98: 5e+13 | AO98: -9227.550797 | AP98: 2e-14 | AQ98: 2e-14 | AR98: 3.691020319e-24 | AS98: 1000000000000000 | AT98: -203006.1175 | AU98: 1e-15 | AV98: 1e-15 | AW98: 2.030061175e-25 | AX98: 2.1e-14 | AY98: 3.894026436e-24 | AZ98: 4.761904762e+13 | BA98: 4.761904762e+13 | BB98: -8829.991919
A99: =Main!A98 -> 830.6093952 | B99: 1000 | C99: 5.218872748e-06 | D99: 1000 | E99: -0.1916122596 | F99: 0.0009999999816 | G99: 0.0009999999633 | H99: 1.916122526e-07 | I99: 1000.001 | J99: 5.410485e-06 | K99: 0.000999999 | L99: 0.000999999 | N99: -5.410474179e-12 | O99: 1e-15 | P99: 0.0001148152004 | Q99: 8709.648166 | R99: 7.585797117e-08 | S99: -8709.648166 | T99: 50000000000000 | U99: -8709.648166 | V99: 2e-14 | W99: 2e-14 | X99: 3.483859266e-24 | Y99: 1e-15 | Z99: 5.218872748e-15 | AA99: 1.881887022e+14 | AB99: 3.541498764e+13 | AC99: -1.848263138e+14 | AD99: 1e+27 | AE99: -1.848263138e+14 | AF99: 1e-27 | AG99: 1e-27 | AH99: 1.848263138e-40 | AI99: 2e-14 | AJ99: 3.483859266e-24 | AK99: 5e+13 | AL99: 5e+13 | AM99: -8709.648166 | AN99: 5e+13 | AO99: -8709.648166 | AP99: 2e-14 | AQ99: 2e-14 | AR99: 3.483859266e-24 | AS99: 1000000000000000 | AT99: -191612.2596 | AU99: 1e-15 | AV99: 1e-15 | AW99: 1.916122596e-25 | AX99: 2.1e-14 | AY99: 3.675471526e-24 | AZ99: 4.761904762e+13 | BA99: 4.761904762e+13 | BB99: -8334.402553
A100: =Main!A99 -> 880 | B100: 1000 | C100: 5.52920307e-06 | D100: 1000 | E100: -0.1808578899 | F100: 0.0009999999836 | G100: 0.0009999999673 | H100: 1.80857884e-07 | I100: 1000.001 | J100: 5.710060954e-06 | K100: 0.000999999 | L100: 0.000999999 | N100: -5.710049534e-12 | O100: 1e-15 | P100: 0.0001216424675 | Q100: 8220.813176 | R100: 6.758176928e-08 | S100: -8220.813176 | T100: 50000000000000 | U100: -8220.813176 | V100: 2e-14 | W100: 2e-14 | X100: 3.28832527e-24 | Y100: 1e-15 | Z100: 5.52920307e-15 | AA100: 1.77970638e+14 | AB100: 3.1673548e+13 | AC100: -1.751294788e+14 | AD100: 1e+27 | AE100: -1.751294788e+14 | AF100: 1e-27 | AG100: 1e-27 | AH100: 1.751294788e-40 | AI100: 2e-14 | AJ100: 3.28832527e-24 | AK100: 5e+13 | AL100: 5e+13 | AM100: -8220.813176 | AN100: 5e+13 | AO100: -8220.813176 | AP100: 2e-14 | AQ100: 2e-14 | AR100: 3.28832527e-24 | AS100: 1000000000000000 | AT100: -180857.8899 | AU100: 1e-15 | AV100: 1e-15 | AW100: 1.808578899e-25 | AX100: 2.1e-14 | AY100: 3.46918316e-24 | AZ100: 4.761904762e+13 | BA100: 4.761904762e+13 | BB100: -7866.628482
A101: =Main!A100 -> 932.327523 | B101: 1000 | C101: 5.857986594e-06 | D101: 1000 | E101: -0.1707071165 | F101: 0.0009999999854 | G101: 0.0009999999709 | H101: 1.707071115e-07 | I101: 1000.001 | J101: 6.028693706e-06 | K101: 0.000999999 | L101: 0.000999999 | N101: -6.028681648e-12 | O101: 1e-15 | P101: 0.0001288757051 | Q101: 7759.414386 | R101: 6.020851162e-08 | S101: -7759.414386 | T101: 50000000000000 | U101: -7759.414386 | V101: 2e-14 | W101: 2e-14 | X101: 3.103765755e-24 | Y101: 1e-15 | Z101: 5.857986594e-15 | AA101: 1.682729093e+14 | AB101: 2.831577199e+13 | AC101: -1.658734127e+14 | AD101: 1e+27 | AE101: -1.658734127e+14 | AF101: 1e-27 | AG101: 1e-27 | AH101: 1.658734127e-40 | AI101: 2e-14 | AJ101: 3.103765755e-24 | AK101: 5e+13 | AL101: 5e+13 | AM101: -7759.414386 | AN101: 5e+13 | AO101: -7759.414386 | AP101: 2e-14 | AQ101: 2e-14 | AR101: 3.103765755e-24 | AS101: 1000000000000000 | AT101: -170707.1165 | AU101: 1e-15 | AV101: 1e-15 | AW101: 1.707071165e-25 | AX101: 2.1e-14 | AY101: 3.274472871e-24 | AZ101: 4.761904762e+13 | BA101: 4.761904762e+13 | BB101: -7425.108551
A102: =Main!A101 -> 987.7666025 | B102: 1000 | C102: 6.206320604e-06 | D102: 1000 | E102: -0.1611260623 | F102: 0.000999999987 | G102: 0.000999999974 | H102: 1.611260581e-07 | I102: 1000.001 | J102: 6.367446662e-06 | K102: 0.000999999 | L102: 0.000999999 | N102: -6.367433927e-12 | O102: 1e-15 | P102: 0.0001365390533 | Q102: 7323.911921 | R102: 5.363968582e-08 | S102: -7323.911921 | T102: 50000000000000 | U102: -7323.911921 | V102: 2e-14 | W102: 2e-14 | X102: 2.929564768e-24 | Y102: 1e-15 | Z102: 6.206320604e-15 | AA102: 1.590743798e+14 | AB102: 2.530465832e+13 | AC102: -1.570488223e+14 | AD102: 1e+27 | AE102: -1.570488223e+14 | AF102: 1e-27 | AG102: 1e-27 | AH102: 1.570488223e-40 | AI102: 2e-14 | AJ102: 2.929564768e-24 | AK102: 5e+13 | AL102: 5e+13 | AM102: -7323.911921 | AN102: 5e+13 | AO102: -7323.911921 | AP102: 2e-14 | AQ102: 2e-14 | AR102: 2.929564768e-24 | AS102: 1000000000000000 | AT102: -161126.0623 | AU102: 1e-15 | AV102: 1e-15 | AW102: 1.611260623e-25 | AX102: 2.1e-14 | AY102: 3.090690831e-24 | AZ102: 4.761904762e+13 | BA102: 4.761904762e+13 | BB102: -7008.36923
A103: =Main!A102 -> 1046.502261 | B103: 1000 | C103: 6.575367632e-06 | D103: 1000 | E103: -0.1520827513 | F103: 0.0009999999884 | G103: 0.0009999999769 | H103: 1.520827478e-07 | I103: 1000.001 | J103: 6.727450379e-06 | K103: 0.000999999 | L103: 0.000999999 | N103: -6.727436924e-12 | O103: 1e-15 | P103: 0.0001446580879 | Q103: 6912.85233 | R103: 4.778752734e-08 | S103: -6912.85233 | T103: 50000000000000 | U103: -6912.85233 | V103: 2e-14 | W103: 2e-14 | X103: 2.765140932e-24 | Y103: 1e-15 | Z103: 6.575367632e-15 | AA103: 1.503539107e+14 | AB103: 2.260629847e+13 | AC103: -1.486447232e+14 | AD103: 1e+27 | AE103: -1.486447232e+14 | AF103: 1e-27 | AG103: 1e-27 | AH103: 1.486447232e-40 | AI103: 2e-14 | AJ103: 2.765140932e-24 | AK103: 5e+13 | AL103: 5e+13 | AM103: -6912.85233 | AN103: 5e+13 | AO103: -6912.85233 | AP103: 2e-14 | AQ103: 2e-14 | AR103: 2.765140932e-24 | AS103: 1000000000000000 | AT103: -152082.7513 | AU103: 1e-15 | AV103: 1e-15 | AW103: 1.520827513e-25 | AX103: 2.1e-14 | AY103: 2.917223683e-24 | AZ103: 4.761904762e+13 | BA103: 4.761904762e+13 | BB103: -6615.01969
A104: =Main!A103 -> 1108.730524 | B104: 1000 | C104: 6.966359337e-06 | D104: 1000 | E104: -0.1435470023 | F104: 0.0009999999897 | G104: 0.0009999999794 | H104: 1.435469994e-07 | I104: 1000.001 | J104: 7.109906337e-06 | K104: 0.000999999 | L104: 0.000999999 | N104: -7.109892117e-12 | O104: 1e-15 | P104: 0.0001532599054 | Q104: 6524.863742 | R104: 4.257384685e-08 | S104: -6524.863742 | T104: 50000000000000 | U104: -6524.863742 | V104: 2e-14 | W104: 2e-14 | X104: 2.609945497e-24 | Y104: 1e-15 | Z104: 6.966359337e-15 | AA104: 1.420905266e+14 | AB104: 2.018971776e+13 | AC104: -1.406488289e+14 | AD104: 1e+27 | AE104: -1.406488289e+14 | AF104: 1e-27 | AG104: 1e-27 | AH104: 1.406488289e-40 | AI104: 2e-14 | AJ104: 2.609945497e-24 | AK104: 5e+13 | AL104: 5e+13 | AM104: -6524.863742 | AN104: 5e+13 | AO104: -6524.863742 | AP104: 2e-14 | AQ104: 2e-14 | AR104: 2.609945497e-24 | AS104: 1000000000000000 | AT104: -143547.0023 | AU104: 1e-15 | AV104: 1e-15 | AW104: 1.435470023e-25 | AX104: 2.1e-14 | AY104: 2.753492499e-24 | AZ104: 4.761904762e+13 | BA104: 4.761904762e+13 | BB104: -6243.747164
A105: =Main!A104 -> 1174.659072 | B105: 1000 | C105: 7.38060062e-06 | D105: 1000 | E105: -0.1354903282 | F105: 0.0009999999908 | G105: 0.0009999999816 | H105: 1.354903257e-07 | I105: 1000.001 | J105: 7.516090946e-06 | K105: 0.000999999 | L105: 0.000999999 | N105: -7.516075914e-12 | O105: 1e-15 | P105: 0.0001623732136 | Q105: 6158.65128 | R105: 3.792898559e-08 | S105: -6158.65128 | T105: 50000000000000 | U105: -6158.65128 | V105: 2e-14 | W105: 2e-14 | X105: 2.463460512e-24 | Y105: 1e-15 | Z105: 7.38060062e-15 | AA105: 1.342635525e+14 | AB105: 1.802670152e+13 | AC105: -1.330478845e+14 | AD105: 1e+27 | AE105: -1.330478845e+14 | AF105: 1e-27 | AG105: 1e-27 | AH105: 1.330478845e-40 | AI105: 2e-14 | AJ105: 2.463460512e-24 | AK105: 5e+13 | AL105: 5e+13 | AM105: -6158.65128 | AN105: 5e+13 | AO105: -6158.65128 | AP105: 2e-14 | AQ105: 2e-14 | AR105: 2.463460512e-24 | AS105: 1000000000000000 | AT105: -135490.3282 | AU105: 1e-15 | AV105: 1e-15 | AW105: 1.354903282e-25 | AX105: 2.1e-14 | AY105: 2.59895084e-24 | AZ105: 4.761904762e+13 | BA105: 4.761904762e+13 | BB105: -5893.312563
A106: =Main!A105 -> 1244.507935 | B106: 1000 | C106: 7.819473971e-06 | D106: 1000 | E106: -0.1278858404 | F106: 0.0009999999918 | G106: 0.0009999999836 | H106: 1.278858383e-07 | I106: 1000.001 | J106: 7.947359809e-06 | K106: 0.000999999 | L106: 0.000999999 | N106: -7.947343915e-12 | O106: 1e-15 | P106: 0.0001720284274 | Q106: 5812.992744 | R106: 3.379088464e-08 | S106: -5812.992744 | T106: 50000000000000 | U106: -5812.992744 | V106: 2e-14 | W106: 2e-14 | X106: 2.325197098e-24 | Y106: 1e-15 | Z106: 7.819473971e-15 | AA106: 1.268527226e+14 | AB106: 1.609161324e+13 | AC106: -1.258279509e+14 | AD106: 1e+27 | AE106: -1.258279509e+14 | AF106: 1e-27 | AG106: 1e-27 | AH106: 1.258279509e-40 | AI106: 2e-14 | AJ106: 2.325197098e-24 | AK106: 5e+13 | AL106: 5e+13 | AM106: -5812.992744 | AN106: 5e+13 | AO106: -5812.992744 | AP106: 2e-14 | AQ106: 2e-14 | AR106: 2.325197098e-24 | AS106: 1000000000000000 | AT106: -127885.8404 | AU106: 1e-15 | AV106: 1e-15 | AW106: 1.278858404e-25 | AX106: 2.1e-14 | AY106: 2.453082938e-24 | AZ106: 4.761904762e+13 | BA106: 4.761904762e+13 | BB106: -5562.546344
A107: =Main!A106 -> 1318.510228 | B107: 1000 | C107: 8.28444409e-06 | D107: 1000 | E107: -0.1207081597 | F107: 0.0009999999927 | G107: 0.0009999999854 | H107: 1.207081579e-07 | I107: 1000.001 | J107: 8.405152248e-06 | K107: 0.000999999 | L107: 0.000999999 | N107: -8.405135437e-12 | O107: 1e-15 | P107: 0.00018225777 | Q107: 5486.734531 | R107: 3.010425581e-08 | S107: -5486.734531 | T107: 50000000000000 | U107: -5486.734531 | V107: 2e-14 | W107: 2e-14 | X107: 2.194693812e-24 | Y107: 1e-15 | Z107: 8.28444409e-15 | AA107: 1.198382676e+14 | AB107: 1.436121037e+13 | AC107: -1.189746444e+14 | AD107: 1e+27 | AE107: -1.189746444e+14 | AF107: 1e-27 | AG107: 1e-27 | AH107: 1.189746444e-40 | AI107: 2e-14 | AJ107: 2.194693812e-24 | AK107: 5e+13 | AL107: 5e+13 | AM107: -5486.734531 | AN107: 5e+13 | AO107: -5486.734531 | AP107: 2e-14 | AQ107: 2e-14 | AR107: 2.194693812e-24 | AS107: 1000000000000000 | AT107: -120708.1597 | AU107: 1e-15 | AV107: 1e-15 | AW107: 1.207081597e-25 | AX107: 2.1e-14 | AY107: 2.315401972e-24 | AZ107: 4.761904762e+13 | BA107: 4.761904762e+13 | BB107: -5250.344608
